Workbook

Sheet Readme First
A3: 1 | B3: Some programs in the Portfolio and Sector Views, (Single Family Existing and Electronic Media Tools & Marketing, for instance) are comprised
B4: of sub-groupings.
C5: Those sub-groups are color-coded and indented. Their totals add up to the grouping above.
A6: 2 | B6: In all program detail pages, program names, order number, and fuel type are noted in both the horizontal and vertical margins, providing a quick reference
B7: for readers, no matter where they are in the worksheet.
A8: 3 | B8: Measure tables are calculated for 2022/23-specific values.
B9: Original 2021 (the 2021 values originally stated in the 2021 ACP) are hard-coded in the detail pages for reference.
A10: 4 | B10: Navigation buttons are included in the detail pages. Readers can navigate directly to a corresponding gas or electric detail page.
B11: (The exception, of course, are those programs that are gas-or electric-only, or retired [red tab] programs.)
A12: 5 | B12: Tabs colored red indicate a retired program or a program that is on hiatus
C13: Over the years, as programs are retired and new programs implemented, old sheets within this workbook are re-purposed. As a result, all tabs may not be
C14: program sequential order, according to Exhibit 1's Portfolio View.

Sheet Budget Category Descriptions
B1: Exhibit 1 Budget Category Definitions
B3: Cost Element | C3: Also referred to as a General Ledger account number, the cost element is the finest level of detail within PSE accounting systems. There are often many cost element numbers that "roll up" into a cost element segment. For instance, the overhead segment includes material OH, transportation OH, labor OH, etc. Employee/Office Expenses include travel, meals, lodging, parking, etc. Cost elements have a very specific connotation and are typically designed to meet a variety of accounting standards, such as FERC requirements. Therefore, in Exhibit 1, the term "cost element" is rarely used. The groupings that represent the budget allocations are most accurately listed in the below table.
B4: Order number(s) | C4: This is the main level of tracking expenditures and expenses in Energy Effiency. Per FERC rules, all conservation order numbers start with a "1823nnnn", where "n" is some number. Cost elements apply to all order numbers (for instance, all conservation programs that offer incentives will have at least a labor, incentive and overhead cost element within the order number.
B5: Labor | C5: Energy Efficiency program staff labor. Average FTE cost including management assessments. This Budget Category group includes assessments from Major Accounts management, Resource Planning, Corporate Communications management, IT specialists and some building maintenance allocations.
B6: Marketing Labor | C6: Also Energy Efficiency staff labor, associated specifically with Marketing functions. Marketing allocates staffing according to program needs.
B7: Overhead | C7: Overhead--costs associated with primarily employee labor; benefits, for instance.
B8: Micro-Overhead | C8: Implemented in previous biennia, this budget category reflects assessments (both labor and non-labor, such as office supplies, departmental meetings, group trainings, etc.) that were formerly calculated, aggregated, and then represented in the Labor category. This provides a more direct view of expenditures that assess over a cost center, rather than directly to an order number.
B9: Marketing | C9: Service and materials associated with the cost of printing program brochures, marketing pieces, advertising, banners, etc. Also includes marketing conducted by vendors and contractors.
B10: Employee/Office Expense | C10: Costs associated with EE staff attending events, employee training, conferences, business meals, business parking, ferry & bridge tolls, mileage incurred on employee automobiles, office supplies, phones, subscriptions, software/hardware, etc.
B11: Outside Services | C11: Contractors and vendors, such as PECI, Ecos, CostCo, EFI, etc. Legal expenses, technical services (CMS design, PSE.com web portals, etc.). These costs do NOT include brochure development, marketing pieces, (which are classified under MARKETING). These costs do NOT include incentives paid to customers by contractors.
B12: Materials | C12: Primarily tools, trade show equipment, etc.
B13: Miscellaneous | C13: This category should seldomly be used, and only expenses that cannot be classified under one of the above categories.
B14: Direct Benefit to Customer | C14: All costs associated with rebates, grants, remuneration, value-added services. PSE cost element # 62510000; Consumer Incentive Payments, is classified by the Accounting department as Miscellaneous. However, it is one of the primarily elements of Energy Efficiency's Direct Benefit to Customer (DBtC).
B15: Revenue (Enter as a negative) | C15: Any amount that PSE is paid by a customer, partner, municipality or outside entity.

Sheet Global Figures Reference
A1: Global References
B3: Overhead Rates
D4: 2022 | E4: 2023
C5: Labor Overhead | D5: 0.571 | E5: 0.571
C6: Micro Overhead | D6: 0.21 | E6: 0.21
B8: Biennial Years
C9: First Year | D9: 2022
C10: Second Year | D10: 2023
B12: Messages
C13: Horizontal Table Reference | D13: This table summarizes the subtotals in the detail table below and is used to populate 2022-2023 Sector view tables (located at the front of this workbook).
C14: Horizontal Table Labels | D14: 2021 ACP (For comparison reference)
D15: 2022
D16: 2023
D17: 2022-2023 Total

Sheet Savings Terminology
A1: PSE's formerly used terms | B1: Updated Terms (2018) | C1: Definition
A2: Total Biennial Potential | B2: CPA Pro-Rata Share | C2: Pro-rata share of the utilities IRP's Conservation Potential Assessment's 10-year potential or 2 year total (whichever is greater). Includes NEEA.
A3: Total Base Savings | B3: EIA Target | C3: [(CPA Pro-Rata Share) + (other programs/measures with confident savings that were omitted from CPA)]
A4: Decoupling Penalty Target | B4: Decoupling Threshold | C4: [EIA Target * 0.05]
A5: Total Portfolio Target | B5: Total Utility Conservation Goal/Achievement | C5: All savings programs funded by Conservation Riders [EIA Target + Decoupling Threshold]
A6: (Loosely) "Excluded" | B6: Excluded Programs | C6: Programs approved by the Commission to be excluded from a Penalty Threshold. For last three biennia, these included NEEA and Pilots with Uncertain Savings.
A7: Utility-Specific Savings | B7: Utility-Specific Conservation Goal/Achievement | C7: [Total Utility Conservation Goal/Achievement – (Excluded programs (for instance, NEEA, Pilots with uncertain savings, retail wheeling accounts, etc.) + adjustments)]
A8: EIA Penalty Target | B8: EIA Penalty Threshold | C8: [Utility-Specific Conservation - Decoupling Threshold]
A9: Excess Savings (1) | B9: Excess Savings (Dept of Commerce driven) | C9: (Referencing results) The difference of [Total Utility Conservation Achievement – Total Utility Conservation Goal]
A10: Excess Savings (2P) | B10: PSE Excess Savings for Penalty Thresholds (UTC Driven) | C10: (Referencing results) The difference of Total Utility-Specific Conservation Achievement - Goal.

Sheet Building the 2-yr elec target
F5: Puget Sound Energy 2022-2023 Electric Portfolio Savings
G8: Index | H8: Description | I8: MWh | J8: aMW | K8: Comment | N8: Calculation
H10: Colored cells correspond to indicated lines in Exhibit 1: Savings and Budgets, 2-Year Portfolio View.
H11: Calculate the EIA Target
G12: a | H12: CPA Pro-Rata Share IRP & CPA Guidance | I12: 497564 | J12: =I12/8760 -> 56.79954338 | K12: IRP guidance (no behavior savings) | L12: Represents all available conservation that is cost-effective, reliable, and feasible, as a 20% pro-rata share of PSE's 10-year conservation potential, per RCW 19.285.040(1). | N12: Figure 3, Exhibit i
G13: b | H13: EIA Target | I13: =SUM(I12) -> 497564 | J13: =I13/8760 -> 56.79954338 | L13: Meets RCW 18.285.040(1)(a) and (b) requirements
H14: Calculate the Penalty Thresholds
G15: c | H15: Subtract NEEA Savings | I15: =-'Portfolio--2022-2023'!F42 -> -28382.4 | J15: =I15/8760 -> -3.24 | L15: ("Option A" in savings calculation table from NEEA forecast--current method)
G16: d | H16: EIA Penalty Threshold | I16: =I13+I15 -> 469181.6 | J16: =I16/8760 -> 53.55954338 | K16: EIA Target + Decoupling Commitment. $50/MWh of shortfall. | L16: $58-60/MWh shortfall penalty, based on 2020 inflation, per RCW 19.285.060. | N16: = b - c
G17: e | H17: Decoupling Threshold | I17: =I13*0.05 -> 24878.2 | J17: =I17/8760 -> 2.839977169 | L17: 5 percent of EIA Target | N17: = b * .05
H18: Complete the Portfolio | L18: Use CPA Pro-Rata Share as foundation.
G19: f | H19: Add Firm Savings Excluded from CPA | I19: ='Portfolio--2022-2023'!F30 -> 9549.935 | J19: =I19/8760 -> 1.090175228 | K19: 15,000 residential HER customers | L19: 2022/2023: 449s, special contracts
G20: g | H20: Add Pilots with Uncertain Savings | I20: ='Portfolio--2022-2023'!F39 -> 4725 | J20: =I20/8760 -> 0.5393835616 | K20: New Residential + Small Business
G21: h | H21: Total 2022-2023 Utility Conservation Goal | I21: =I13+SUM(I17:I20) -> 536717.135 | J21: =I21/8760 -> 61.26907934 | L21: This is the total Portfolio to which Energy Efficiency is managing. | N21: = b + e + (f + g)
L28: D.C. = Decoupling Commitment
L29: EIA = Energy Independence Act; referencing RCW 19.285, or "I-937".
L30: HER = Residential Home Energy Reports
L31: IRP = Integrated Resource Plan

Sheet Building the 2-yr gas target
D7: Puget Sound Energy 2022-2023 Natural Gas Portfolio Savings
E10: Index | F10: Description | G10: Therms | H10: Comment | K10: Calculation
F12: Calculate Natural Gas Penalty Threshold | H12: These are specific elements that comprise the Portfolio View of Exhibit 1
E13: a | F13: CPA First Two Years IRP Guidance | G13: 9262930.566
E14: b | F14: Subtract NEEA Savings | G14: 0
E15: c | F15: Total Natural Gas Penalty Threshold | G15: =G13+G14 -> 9262930.566 | H15: Penalty outlined in Stipulation Agreement, UG-011571 Section M43. | K15: = a + b
E16: d | F16: Decoupling Threshold | G16: =G13*0.05 -> 463146.5283 | H16: Penalty = Up to $75,000, depending on range | K16: = a *0.05
F17: Build the Total Utility Conservation Goal
E18: e | F18: Add Pilots with Uncertain Savings | G18: ='Portfolio--2022-2023'!H39 -> 65250
E19: f | F19: Total 2022-2023 Utility Conservation Goal | G19: =SUM(G15:G18) -> 9791327.094 | H19: This is the total Portfolio to which Energy Efficiency is managing. | K19: = c + d + e
G24: It is important to note that many specific natural gas program total values include decimals. Their aggregation may
G25: result in slight rounding differences between this table and the Portfolio View of Exhibit 1.
G28: [1] In Docket UG-170034, Public Version Testimony, (UE-170033) 2017 GRC Piliaris direct, page 145 of 159:
G29: 11 “What would happen if PSE does not meet these decoupling-related gas
G30: 12 conservation commitments?
G31: 13 A. PSE proposes to pay $20,000 for meeting between 4.5 percent and 5.0 percent of
G32: 14 its incremental gas conservation commitment, $50,000 for meeting between 3.75
G33: 15 percent and 4.5 percent of its incremental commitment, and $75,000 for less than
G34: 16 3.75 percent of its incremental commitment.”

Sheet Compare 20-21 to 22-23
A1: Schedule | B1: Program Name | E1: MWh Savings | I1: Electric Rider Budget | M1: Therm Savings | Q1: Gas Rider Budget | U1: Total Rider Budget
E2: 2020-2021 BCP | F2: 2022-2023 BCP | G2: Difference (22/23 - 20/21) | H2: % Change | I2: 2020-2021 BCP | J2: 2022-2023 BCP | K2: Difference (22/23 - 20/21) | L2: % Change | M2: 2020-2021 BCP | N2: 2022-2023 BCP | O2: Difference (22/23 - 20/21) | P2: % Change | Q2: 2020-2021 BCP | R2: 2022-2023 BCP | S2: Difference (22/23 - 20/21) | T2: % Change | U2: 2020-2021 BCP | V2: 2022-2023 BCP | W2: Difference (22/23 - 20/21) | X2: % Change
B3: Residential Energy Management
A4: 201 | B4: Low Income Weatherization | E4: 3915.7792 | F4: ='Portfolio--2022-2023'!F7 -> 3954.882 | G4: =F4-E4 -> 39.1028 | H4: =(F4-E4)/E4 -> 0.009985956307 | I4: 12289870.85 | J4: ='Portfolio--2022-2023'!G7 -> 12216391.93 | K4: =J4-I4 -> -73478.922 | L4: =(J4-I4)/I4 -> -0.005978819703 | M4: 49918.31 | N4: ='Portfolio--2022-2023'!H7 -> 41487.06 | O4: =N4-M4 -> -8431.25 | P4: =(N4-M4)/M4 -> -0.1689009504 | Q4: 2543666.336 | R4: ='Portfolio--2022-2023'!I7 -> 2033571.863 | S4: =R4-Q4 -> -510094.473 | T4: =(R4-Q4)/Q4 -> -0.2005351354 | U4: 14833537.19 | V4: =J4+R4 -> 14249963.79 | W4: =V4-U4 -> -583573.395 | X4: =(V4-U4)/U4 -> -0.03934148596
A5: 214 | B5: Single Family Existing Subtotal | E5: 137220.0276 | F5: ='Portfolio--2022-2023'!F8 -> 114141.2001 | G5: =F5-E5 -> -23078.82743 | H5: =(F5-E5)/E5 -> -0.1681884769 | I5: 34783732.27 | J5: ='Portfolio--2022-2023'!G8 -> 44067060.41 | K5: 9283328.141 | L5: 0.2668870629 | M5: 4123983.5 | N5: ='Portfolio--2022-2023'!H8 -> 5636060.548 | O5: 1512077.048 | P5: 0.3666544854 | Q5: 14304230.33 | R5: ='Portfolio--2022-2023'!I8 -> 21486673.73 | S5: 7182443.408 | T5: 0.502120229 | U5: 49087962.6 | V5: =J5+R5 -> 65553734.14 | W5: 16465771.55 | X5: 0.335433998
C6: Residential lighting | E6: 35395.01941 | F6: ='Portfolio--2022-2023'!F9 -> 2038.6064 | G6: -33356.41301 | H6: -0.9424041452 | I6: 8972128.11 | J6: ='Portfolio--2022-2023'!G9 -> 2186289.5 | K6: -6785838.61 | L6: -0.7563243109 | M6: 0 | N6: ='Portfolio--2022-2023'!H9 -> 0 | O6: 0 | Q6: 0 | R6: ='Portfolio--2022-2023'!I9 -> 0 | S6: 0 | U6: 8972128.11 | V6: 2186289.5 | W6: -6785838.61 | X6: -0.7563243109
C7: Space heat | E7: 28464.405 | F7: ='Portfolio--2022-2023'!F10 -> 16517.34 | G7: -11947.065 | H7: -0.4197194707 | I7: 12915839 | J7: ='Portfolio--2022-2023'!G10 -> 8750082.7 | K7: -4165756.3 | L7: -0.3225308321 | M7: 1130450 | N7: ='Portfolio--2022-2023'!H10 -> 1373944 | O7: 243494 | P7: 0.2153956389 | Q7: 4376339 | R7: ='Portfolio--2022-2023'!I10 -> 9728949 | S7: 5352610 | T7: 1.223079382 | U7: 17292178 | V7: 18479031.7 | W7: 1186853.7 | X7: 0.06863529279
C8: Water heat | E8: 4450 | F8: ='Portfolio--2022-2023'!F11 -> 3009.6959 | G8: -1440.3041 | H8: -0.3236638427 | I8: 1984919.5 | J8: ='Portfolio--2022-2023'!G11 -> 2289697.5 | K8: 304778 | L8: 0.1535467811 | M8: 107600 | N8: ='Portfolio--2022-2023'!H11 -> 130426.8 | O8: 22826.8 | P8: 0.2121449814 | Q8: 657919.5 | R8: ='Portfolio--2022-2023'!I11 -> 953268.8 | S8: 295349.3 | T8: 0.4489140389 | U8: 2642839 | V8: 3242966.3 | W8: 600127.3 | X8: 0.2270767534
C9: Home Energy Assessment | E9: 6247.546654 | F9: ='Portfolio--2022-2023'!F12 -> 0 | G9: -6247.546654 | H9: -1 | I9: 2350595.157 | J9: ='Portfolio--2022-2023'!G12 -> 0 | K9: -2350595.157 | L9: -1 | M9: 0 | N9: ='Portfolio--2022-2023'!H12 -> 0 | O9: 0 | Q9: 0 | R9: ='Portfolio--2022-2023'!I12 -> 0 | S9: 0 | U9: 2350595.157 | V9: 0 | W9: -2350595.157 | X9: -1
C10: Home Appliances | E10: 5104.28128 | F10: ='Portfolio--2022-2023'!F13 -> 1197.328 | G10: -3906.95328 | H10: -0.7654267204 | I10: 2591725.34 | J10: ='Portfolio--2022-2023'!G13 -> 1377979.7 | K10: -1213745.64 | L10: -0.4683156897 | M10: 14017.2 | N10: ='Portfolio--2022-2023'!H13 -> 12353.4 | O10: -1663.8 | P10: -0.1186970294 | Q10: 0 | R10: ='Portfolio--2022-2023'!I13 -> 0 | S10: 0 | U10: 2591725.34 | V10: 1377979.7 | W10: -1213745.64 | X10: -0.4683156897
C11: Smart Thermostats | E11: 1555.48144 | F11: ='Portfolio--2022-2023'!F14 -> 2470.904 | G11: 915.42256 | H11: 0.5885139716 | I11: 525502.86 | J11: ='Portfolio--2022-2023'!G14 -> 1798394 | K11: 1272891.14 | L11: 2.422234467 | M11: 629449.8 | N11: ='Portfolio--2022-2023'!H14 -> 660000 | O11: 30550.2 | P11: 0.04853476798 | Q11: 2606184.05 | R11: ='Portfolio--2022-2023'!I14 -> 3556156.3 | S11: 949972.25 | T11: 0.3645069695 | U11: 3131686.91 | V11: 5354550.3 | W11: 2222863.39 | X11: 0.7097974523
C12: Showerheads | E12: 4104.4598 | F12: ='Portfolio--2022-2023'!F15 -> 0.0948 | G12: -4104.365 | H12: -0.9999769032 | I12: 1213769.06 | J12: ='Portfolio--2022-2023'!G15 -> 5108.35 | K12: -1208660.71 | L12: -0.9957913328 | M12: 115264.7 | N12: ='Portfolio--2022-2023'!H15 -> 5.2 | O12: -115259.5 | P12: -0.9999548864 | Q12: 501672.66 | R12: ='Portfolio--2022-2023'!I15 -> 4069.275 | S12: -497603.385 | T12: -0.9918885853 | U12: 1715441.72 | V12: 9177.625 | W12: -1706264.095 | X12: -0.9946499931
C13: Weatherization | E13: 4122.524 | F13: ='Portfolio--2022-2023'!F16 -> 2434.26105 | G13: -1688.26295 | H13: -0.409521679 | I13: 1494156.2 | J13: ='Portfolio--2022-2023'!G16 -> 2199889 | K13: 705732.8 | L13: 0.4723286628 | M13: 695350.8 | N13: ='Portfolio--2022-2023'!H16 -> 489831.148 | O13: -205519.652 | P13: -0.2955625448 | Q13: 4163333.8 | R13: ='Portfolio--2022-2023'!I16 -> 4785587.6 | S13: 622253.8 | T13: 0.1494604636 | U13: 5657490 | V13: 6985476.6 | W13: 1327986.6 | X13: 0.2347307021
C14: Home Energy Reports | E14: 47776.31 | F14: ='Portfolio--2022-2023'!F17 -> 52064 | G14: 4287.69 | H14: 0.08974510589 | I14: 2735097.042 | J14: ='Portfolio--2022-2023'!G17 -> 3149674.36 | K14: 414577.318 | L14: 0.1515768222 | M14: 1431851 | N14: ='Portfolio--2022-2023'!H17 -> 2969500 | O14: 1537649 | P14: 1.073888973 | Q14: 1998781.317 | R14: ='Portfolio--2022-2023'!I17 -> 2458642.76 | S14: 459861.443 | T14: 0.2300709133 | U14: 4733878.359 | V14: 5608317.12 | W14: 874438.761 | X14: 0.1847193136
C15: Midstream HVAC and Water Heat | F15: ='Portfolio--2022-2023'!F18 -> 34408.97 | G15: 34408.97 | J15: ='Portfolio--2022-2023'!G18 -> 22309945.3 | K15: =J15-I15 -> 22309945.3 | L15: =(J15-I15)/I15 ->  | N15: ='Portfolio--2022-2023'!H18 -> 0 | O15: =N15-M15 -> 0 | P15: =(N15-M15)/M15 ->  | R15: ='Portfolio--2022-2023'!I18 -> 0 | S15: =R15-Q15 -> 0 | T15: =(R15-Q15)/Q15 ->  | V15: =J15+R15 -> 22309945.3 | W15: =V15-U15 -> 22309945.3 | X15: =(V15-U15)/U15 -> 
A16: 215 | B16: Single Family New Construction | E16: 1447.7 | F16: ='Portfolio--2022-2023'!F19 -> 510.276 | G16: -937.424 | H16: -0.6475264212 | I16: 1027008.82 | J16: ='Portfolio--2022-2023'!G19 -> 787680.4 | K16: -239328.42 | L16: -0.2330344349 | M16: 51860 | N16: ='Portfolio--2022-2023'!H19 -> 4191.8 | O16: -47668.2 | P16: -0.9191708446 | Q16: 291287.32 | R16: ='Portfolio--2022-2023'!I19 -> 92723.8 | S16: -198563.52 | T16: -0.6816758107 | U16: 1318296.14 | V16: 880404.2 | W16: -437891.94 | X16: -0.3321650779
A17: 214 & 217 | B17: Moderate Income Residences | E17: 0 | F17: ='Portfolio--2022-2023'!F20 -> 0 | G17: 0 | I17: 87326.66 | J17: ='Portfolio--2022-2023'!G20 -> 177394.3 | K17: 90067.64 | L17: 1.031387666 | M17: 0 | N17: ='Portfolio--2022-2023'!H20 -> 0 | O17: 0 | Q17: 87326.66 | R17: ='Portfolio--2022-2023'!I20 -> 99191.85 | S17: 11865.19 | T17: 0.1358713364 | U17: 174653.32 | V17: 276586.15 | W17: 101932.83 | X17: 0.583629501
A18: 217 | B18: Multifamily Retrofit | E18: 25426.92114 | F18: ='Portfolio--2022-2023'!F21 -> 18139.9544 | G18: -7286.96674 | H18: -0.2865847068 | I18: 13544656.43 | J18: ='Portfolio--2022-2023'!G21 -> 15407119.81 | K18: 1862463.376 | L18: 0.1375053981 | M18: 53534.26 | N18: ='Portfolio--2022-2023'!H21 -> 74704.76 | O18: 21170.5 | P18: 0.39545704 | Q18: 533849.924 | R18: ='Portfolio--2022-2023'!I21 -> 744953.564 | S18: 211103.64 | T18: 0.3954363024 | U18: 14078506.36 | V18: 16152073.37 | W18: 2073567.016 | X18: 0.1472860091
A19: 218 | B19: Multifamily New Construction | E19: 11862 | F19: ='Portfolio--2022-2023'!F22 -> 9000 | G19: -2862 | H19: -0.2412746586 | I19: 4408040.4 | J19: ='Portfolio--2022-2023'!G22 -> 4134910.85 | K19: -273129.55 | L19: -0.06196167122 | M19: 109900 | N19: ='Portfolio--2022-2023'!H22 -> 100000 | O19: -9900 | P19: -0.09008189263 | Q19: 910415.06 | R19: ='Portfolio--2022-2023'!I22 -> 708732.1 | S19: -201682.96 | T19: -0.221528585 | U19: 5318455.46 | V19: 4843642.95 | W19: -474812.51 | X19: -0.08927639116
B20: Subtotal, Residential Programs | E20: 179872.4279 | F20: ='Portfolio--2022-2023'!F23 -> 145746.3126 | G20: -34126.11537 | H20: -0.1897239937 | I20: 66140635.44 | J20: ='Portfolio--2022-2023'!G23 -> 76790557.7 | K20: 10649922.26 | L20: 0.1610193521 | M20: 4389196.07 | N20: ='Portfolio--2022-2023'!H23 -> 5856444.168 | O20: 1467248.098 | P20: 0.3342862963 | Q20: 18670775.63 | R20: ='Portfolio--2022-2023'!I23 -> 25165846.91 | S20: 6495071.285 | T20: 0.3478736725 | U20: 84811411.06 | V20: =J20+R20 -> 101956404.6 | W20: 17144993.55 | X20: 0.2021543249
B22: Business Energy Management
A23: 250 | B23: Commercial / Industrial Retrofit | E23: 148500 | F23: ='Portfolio--2022-2023'!F26 -> 153511.035 | G23: =F23-E23 -> 5011.035 | H23: =(F23-E23)/E23 -> 0.03374434343 | I23: 40242911.96 | J23: ='Portfolio--2022-2023'!G26 -> 52426324.77 | K23: =J23-I23 -> 12183412.81 | L23: =(J23-I23)/I23 -> 0.3027467998 | M23: 670000 | N23: ='Portfolio--2022-2023'!H26 -> 1161722 | O23: =N23-M23 -> 491722 | P23: =(N23-M23)/M23 -> 0.7339134328 | Q23: 3120756 | R23: ='Portfolio--2022-2023'!I26 -> 4938319.476 | S23: =R23-Q23 -> 1817563.476 | T23: =(R23-Q23)/Q23 -> 0.5824112734 | U23: 43363667.96 | V23: =J23+R23 -> 57364644.25 | W23: =V23-U23 -> 14000976.29 | X23: =(V23-U23)/U23 -> 0.3228734317
A24: 251 | B24: Commercial/Industrial New Construction | E24: 35000 | F24: ='Portfolio--2022-2023'!F27 -> 47000 | G24: =F24-E24 -> 12000 | H24: =(F24-E24)/E24 -> 0.3428571429 | I24: 9344846 | J24: ='Portfolio--2022-2023'!G27 -> 15834532 | K24: 6489686 | L24: 0.6944668751 | M24: 200000 | N24: ='Portfolio--2022-2023'!H27 -> 180000 | O24: -20000 | P24: -0.1 | Q24: 1055934 | R24: ='Portfolio--2022-2023'!I27 -> 1446228 | S24: 390294 | T24: 0.3696196921 | U24: 10400780 | V24: =J24+R24 -> 17280760 | W24: 6879980 | X24: 0.6614869269
A25: 253 | B25: Commercial Strategic Energy Management | E25: 30000 | F25: ='Portfolio--2022-2023'!F28 -> 32000 | G25: 2000 | H25: 0.06666666667 | I25: 3569336.394 | J25: ='Portfolio--2022-2023'!G28 -> 4907478.5 | K25: 1338142.106 | L25: 0.3748994094 | M25: 1140000 | N25: ='Portfolio--2022-2023'!H28 -> 1143000 | O25: 3000 | P25: 0.002631578947 | Q25: 1127632.789 | R25: ='Portfolio--2022-2023'!I28 -> 1506733.5 | S25: 379100.7108 | T25: 0.3361916348 | U25: 4696969.183 | V25: 6414212 | W25: 1717242.817 | X25: 0.3656065752
A26: E258 | B26: Large Power User - Self Directed Program - Subtotal | E26: 16151.13 | F26: ='Portfolio--2022-2023'!F29 -> 20042.48 | G26: =F26-E26 -> 3891.35 | H26: 0.2409336065 | I26: 8370734.387 | J26: ='Portfolio--2022-2023'!G29 -> 9931576.967 | K26: 1560842.58 | L26: 0.1864642345 | N26: ='Portfolio--2022-2023'!H29 -> 0 | O26: 0 | R26: ='Portfolio--2022-2023'!I29 -> 0 | S26: 0 | U26: 8370734.387 | V26: 9931576.967 | W26: 1560842.58 | X26: 0.1864642345
A27: E258 | C27: 449 Customers | E27: 9197.791 | F27: ='Portfolio--2022-2023'!F30 -> 9549.935 | G27: 352.144 | H27: 0.03828571447 | I27: 4248048.734 | J27: ='Portfolio--2022-2023'!G30 -> 5241600.397 | K27: 993551.6629 | L27: 0.2338842431 | N27: ='Portfolio--2022-2023'!H30 -> 0 | O27: 0 | R27: ='Portfolio--2022-2023'!I30 -> 0 | S27: 0 | U27: 4248048.734 | V27: 5241600.397 | W27: 993551.6629 | X27: 0.2338842431
A28: E258 | C28: Non-449 Customers | E28: 6953.339 | F28: ='Portfolio--2022-2023'!F31 -> 10492.545 | G28: 3539.206 | H28: 0.5089937367 | I28: 4122685.653 | J28: ='Portfolio--2022-2023'!G31 -> 4689976.57 | K28: 567290.9167 | L28: 0.137602273 | N28: ='Portfolio--2022-2023'!H31 -> 0 | O28: 0 | R28: ='Portfolio--2022-2023'!I31 -> 0 | S28: 0 | U28: 4122685.653 | V28: 4689976.57 | W28: 567290.9167 | X28: 0.137602273
A29: 261 | B29: Energy Efficient Technology Evaluation | E29: 0 | F29: ='Portfolio--2022-2023'!F32 -> 0 | G29: 0 | I29: 0 | J29: ='Portfolio--2022-2023'!G32 -> 0 | K29: 0 | M29: 0 | N29: ='Portfolio--2022-2023'!H32 -> 0 | O29: 0 | Q29: 0 | R29: ='Portfolio--2022-2023'!I32 -> 0 | S29: 0 | U29: 0 | V29: 0 | W29: 0
A30: 262 | B30: Commercial Rebates | E30: 76375.7446 | F30: ='Portfolio--2022-2023'!F33 -> 94291.0125 | G30: 17915.2679 | H30: =(F30-E30)/E30 -> 0.2345675056 | I30: 27327113.46 | J30: ='Portfolio--2022-2023'!G33 -> 33129279.25 | K30: 5802165.794 | L30: =(J30-I30)/I30 -> 0.2123226737 | M30: 1284086 | N30: ='Portfolio--2022-2023'!H33 -> 1484104 | O30: 200018 | P30: 0.1557668256 | Q30: 4801390.844 | R30: ='Portfolio--2022-2023'!I33 -> 6033890.68 | S30: 1232499.836 | T30: 0.256696419 | U30: 32128504.3 | V30: 39163169.93 | W30: 7034665.63 | X30: 0.2189540342
B31: Subtotal, Business Programs | E31: =SUM(E23:E26)+E30 -> 306026.8746 | F31: ='Portfolio--2022-2023'!F34 -> 346844.5275 | G31: =F31-E31 -> 40817.6529 | H31: =(F31-E31)/E31 -> 0.1333793084 | I31: 88854942.2 | J31: ='Portfolio--2022-2023'!G34 -> 116229191.5 | K31: 27374249.29 | L31: 0.3080779596 | M31: 3294086 | N31: ='Portfolio--2022-2023'!H34 -> 3968826 | O31: 674740 | P31: 0.2048337536 | Q31: 10105713.63 | R31: ='Portfolio--2022-2023'!I34 -> 13925171.66 | S31: 3819458.023 | T31: =(R31-Q31)/Q31 -> 0.3779503518 | U31: 98960655.83 | V31: 130154363.1 | W31: 31193707.31 | X31: 0.3152132234
Q32: 0 | R32: ='Portfolio--2022-2023'!I35 -> 0 | U32: 0 | V32: 0
B33: Pilots With Uncertain Savings | Q33: 0 | R33: ='Portfolio--2022-2023'!I36 -> 0
A34: 249 | B34: Residential | E34: 11480 | F34: ='Portfolio--2022-2023'!F37 -> 1725 | G34: =F34-E34 -> -9755 | H34: =(F34-E34)/E34 -> -0.849738676 | I34: 2771949.5 | J34: ='Portfolio--2022-2023'!G37 -> 1044333.877 | K34: =J34-I34 -> -1727615.623 | L34: =(J34-I34)/I34 -> -0.6232493137 | M34: 300000 | N34: ='Portfolio--2022-2023'!H37 -> 50250 | O34: =N34-M34 -> -249750 | P34: =(N34-M34)/M34 -> -0.8325 | Q34: 176700 | R34: ='Portfolio--2022-2023'!I37 -> 0 | S34: =R34-Q34 -> -176700 | T34: =(R34-Q34)/Q34 -> -1 | U34: 2948649.5 | V34: =J34+R34 -> 1044333.877 | W34: =V34-U34 -> -1904315.623 | X34: =(V34-U34)/U34 -> -0.6458263769
A35: 249 | B35: Commercial Pay for Performance Pilot | E35: 3600 | F35: ='Portfolio--2022-2023'!F38 -> 3000 | G35: -600 | H35: -0.1666666667 | I35: 1219220 | J35: ='Portfolio--2022-2023'!G38 -> 648700.5 | K35: -570519.5 | L35: -0.467938108 | M35: 20000 | N35: ='Portfolio--2022-2023'!H38 -> 15000 | O35: -5000 | P35: -0.25 | Q35: 25125 | R35: ='Portfolio--2022-2023'!I38 -> 3740.1 | S35: -21384.9 | T35: -0.8511402985 | U35: 1244345 | V35: 652440.6 | W35: -591904.4 | X35: -0.4756754759
B36: Subtotal, Pilots | E36: 15080 | F36: ='Portfolio--2022-2023'!F39 -> 4725 | G36: -10355 | H36: -0.6866710875 | I36: 3991169.5 | J36: ='Portfolio--2022-2023'!G39 -> 1693034.377 | K36: -2298135.123 | L36: =(J36-I36)/I36 -> -0.5758049422 | M36: 320000 | N36: ='Portfolio--2022-2023'!H39 -> 65250 | O36: =N36-M36 -> -254750 | P36: -0.79609375 | Q36: 201825 | R36: ='Portfolio--2022-2023'!I39 -> 3740.1 | S36: -198084.9 | T36: -0.981468599 | U36: 4192994.5 | V36: 1696774.477 | W36: -2496220.023 | X36: -0.5953310989
B38: Regional Efficiency Programs
A39: E254 | B39: NW Energy Efficiency Alliance (NEEA) | E39: 23564.4 | F39: ='Portfolio--2022-2023'!F42 -> 28382.4 | G39: =F39-E39 -> 4818 | H39: =(F39-E39)/E39 -> 0.2044609665 | I39: 8914410 | J39: ='Portfolio--2022-2023'!G42 -> 9683388 | K39: =J39-I39 -> 768978 | L39: =(J39-I39)/I39 -> 0.086262355 | M39: 0 | N39: ='Portfolio--2022-2023'!H42 -> 0 | O39: =N39-M39 -> 0 | P39: =(N39-M39)/M39 ->  | Q39: 0 | R39: ='Portfolio--2022-2023'!I42 -> 0 | S39: =R39-Q39 -> 0 | T39: =(R39-Q39)/Q39 ->  | U39: 8914410 | V39: =J39+R39 -> 9683388 | W39: =V39-U39 -> 768978 | X39: =(V39-U39)/U39 -> 0.086262355
B40: NEEA Natural Gas Market Transformation | E40: 0 | F40: ='Portfolio--2022-2023'!F43 -> 0 | G40: 0 | I40: 0 | J40: ='Portfolio--2022-2023'!G43 -> 0 | K40: 0 | M40: 0 | N40: ='Portfolio--2022-2023'!H43 -> 0 | O40: 0 | Q40: 3466888 | R40: ='Portfolio--2022-2023'!I43 -> 3180472 | S40: -286416 | T40: -0.08261472537 | U40: 3466888 | V40: =J40+R40 -> 3180472 | W40: -286416 | X40: -0.08261472537
B41: Targeted DSM | E41: 0 | F41: ='Portfolio--2022-2023'!F44 -> 0 | G41: 0 | I41: 926784.74 | J41: ='Portfolio--2022-2023'!G44 -> 1232307.25 | K41: 305522.51 | L41: 0.3296585462 | M41: 0 | N41: ='Portfolio--2022-2023'!H44 -> 0 | O41: 0 | Q41: 397193.46 | R41: ='Portfolio--2022-2023'!I44 -> 564560.25 | S41: 167366.79 | T41: 0.4213734788 | U41: 1323978.2 | V41: 1796867.5 | W41: 472889.3 | X41: 0.357173026
A42: E292 | B42: Generation, Transmission and Distribution | E42: 1500 | F42: ='Portfolio--2022-2023'!F45 -> 12000 | G42: 10500 | H42: 7 | J42: ='Portfolio--2022-2023'!G45 -> 0 | K42: 0 | M42: 0 | N42: ='Portfolio--2022-2023'!H45 -> 0 | O42: 0 | Q42: 0 | R42: ='Portfolio--2022-2023'!I45 -> 0 | S42: 0 | U42: 926784.74 | V42: 0 | W42: -926784.74 | X42: -1
B43: Subtotal, Regional Programs | E43: 25064.4 | F43: ='Portfolio--2022-2023'!F46 -> 40382.4 | G43: =F43-E43 -> 15318 | H43: 0.6111456887 | I43: 9841194.74 | J43: ='Portfolio--2022-2023'!G46 -> 10915695.25 | K43: =J43-I43 -> 1074500.51 | L43: =(J43-I43)/I43 -> 0.1091839495 | M43: 0 | N43: ='Portfolio--2022-2023'!H46 -> 0 | O43: 0 | Q43: 3864081.46 | R43: ='Portfolio--2022-2023'!I46 -> 3745032.25 | S43: -119049.21 | T43: =(R43-Q43)/Q43 -> -0.03080918744 | U43: 13705276.2 | V43: 14660727.5 | W43: 955451.3 | X43: 0.06971412222
B45: Energy Efficiency Portfolio Support
B46: Data and Systems Services | E46: 0 | F46: ='Portfolio--2022-2023'!F49 -> 0 | G46: =F46-E46 -> 0 | H46: =(F46-E46)/E46 ->  | I46: 2121378.42 | J46: ='Portfolio--2022-2023'!G49 -> 1964912.4 | K46: =J46-I46 -> -156466.02 | L46: =(J46-I46)/I46 -> -0.0737567699 | M46: 0 | N46: ='Portfolio--2022-2023'!H49 -> 0 | O46: =N46-M46 -> 0 | P46: =(N46-M46)/M46 ->  | Q46: 316987.58 | R46: ='Portfolio--2022-2023'!I49 -> 293607.6 | S46: =R46-Q46 -> -23379.98 | T46: =(R46-Q46)/Q46 -> -0.0737567699 | U46: 2438366 | V46: =J46+R46 -> 2258520 | W46: =V46-U46 -> -179846 | X46: =(V46-U46)/U46 -> -0.0737567699
B47: Rebates Processing | E47: 0 | F47: ='Portfolio--2022-2023'!F50 -> 0 | G47: 0 | I47: 1268135.73 | J47: ='Portfolio--2022-2023'!G50 -> 1835930.78 | K47: 567795.05 | L47: 0.4477399671 | M47: 0 | N47: ='Portfolio--2022-2023'!H50 -> 0 | O47: 0 | Q47: 202826.78 | R47: ='Portfolio--2022-2023'!I50 -> 277244.22 | S47: 74417.44 | T47: 0.3669014516 | U47: 1470962.51 | V47: =J47+R47 -> 2113175 | W47: 642212.49 | X47: 0.4365933772
B48: Verification Team | E48: 0 | F48: ='Portfolio--2022-2023'!F51 -> 0 | G48: 0 | I48: 1171556.78 | J48: ='Portfolio--2022-2023'!G51 -> 1222300.38 | K48: 50743.6 | L48: 0.04331296687 | M48: 0 | N48: ='Portfolio--2022-2023'!H51 -> 0 | O48: 0 | Q48: 172459.22 | R48: ='Portfolio--2022-2023'!I51 -> 182354.62 | S48: 9895.4 | T48: 0.05737820222 | U48: 1344016 | V48: 1404655 | W48: 60639 | X48: 0.04511776646
B49: Programs Support | E49: 0 | F49: ='Portfolio--2022-2023'!F52 -> 0 | G49: 0 | I49: 825718.92 | J49: ='Portfolio--2022-2023'!G52 -> 1485040.845 | K49: 659321.925 | L49: 0.7984822789 | M49: 0 | N49: ='Portfolio--2022-2023'!H52 -> 0 | O49: 0 | Q49: 123797.08 | R49: ='Portfolio--2022-2023'!I52 -> 42003.845 | S49: -81793.235 | T49: -0.6607040731 | U49: 949516 | V49: 1527044.69 | W49: 577528.69 | X49: 0.6082348165
B50: Trade Ally Memberships | E50: 0 | F50: ='Portfolio--2022-2023'!F53 -> 0 | G50: 0 | I50: 236000 | J50: ='Portfolio--2022-2023'!G53 -> 243600 | K50: 7600 | L50: 0.03220338983 | M50: 0 | N50: ='Portfolio--2022-2023'!H53 -> 0 | O50: 0 | Q50: 44000 | R50: ='Portfolio--2022-2023'!I53 -> 36400 | S50: -7600 | T50: -0.1727272727 | U50: 280000 | V50: 280000 | W50: 0 | X50: 0
B51: Trade Ally Network | E51: 0 | F51: ='Portfolio--2022-2023'!F54 -> 0 | G51: 0 | I51: -2977 | J51: ='Portfolio--2022-2023'!G54 -> 31413.087 | K51: 34390.087 | L51: -11.55192711 | M51: 0 | N51: ='Portfolio--2022-2023'!H54 -> 0 | O51: 0 | Q51: -2977 | R51: ='Portfolio--2022-2023'!I54 -> -32622.913 | S51: -29645.913 | T51: 9.958318105 | U51: -5954 | V51: -1209.826 | W51: 4744.174 | X51: -0.7968045012
B52: Automated Benchmarking System | E52: 0 | F52: ='Portfolio--2022-2023'!F55 -> 0 | G52: 0 | I52: 603491.6 | J52: ='Portfolio--2022-2023'!G55 -> 4177728 | K52: 3574236.4 | L52: 5.922595112 | M52: 0 | N52: ='Portfolio--2022-2023'!H55 -> 0 | O52: 0 | Q52: 283340 | R52: ='Portfolio--2022-2023'!I55 -> 1044432 | S52: 761092 | T52: 2.686143855 | U52: 886831.6 | V52: 5222160 | W52: 4335328.4 | X52: 4.888558775
B53: Energy Advisors | E53: 0 | F53: ='Portfolio--2022-2023'!F56 -> 0 | G53: 0 | I53: 2755768.86 | J53: ='Portfolio--2022-2023'!G56 -> 2624961.42 | K53: -130807.44 | L53: -0.04746676759 | M53: 0 | N53: ='Portfolio--2022-2023'!H56 -> 0 | O53: 0 | Q53: 403519.14 | R53: ='Portfolio--2022-2023'!I56 -> 384550.58 | S53: -18968.56 | T53: -0.04700783214 | U53: 3159288 | V53: 3009512 | W53: -149776 | X53: -0.04740815019
B54: Energy Efficient Communities | E54: 0 | F54: ='Portfolio--2022-2023'!F57 -> 0 | G54: 0 | I54: 2064850.775 | J54: ='Portfolio--2022-2023'!G57 -> 2438589.274 | K54: 373738.4986 | L54: 0.1810002462 | M54: 0 | N54: ='Portfolio--2022-2023'!H57 -> 0 | O54: 0 | Q54: 476117.76 | R54: ='Portfolio--2022-2023'!I57 -> 373873.2633 | S54: -102244.4967 | T54: -0.2147462356 | U54: 2540968.535 | V54: 2812462.537 | W54: 271494.0019 | X54: 0.1068466603
B55: Customer Digital Services | E55: 0 | F55: ='Portfolio--2022-2023'!F58 -> 0 | G55: 0 | I55: 2714512.08 | J55: ='Portfolio--2022-2023'!G58 -> 3453894.57 | K55: 739382.49 | L55: 0.2723813592 | M55: 0 | N55: ='Portfolio--2022-2023'!H58 -> 0 | O55: 0 | Q55: 928810.36 | R55: ='Portfolio--2022-2023'!I58 -> 1128829.55 | S55: 200019.19 | T55: 0.2153498697 | U55: 3643322.44 | V55: 4582724.12 | W55: 939401.68 | X55: 0.2578420372
B56: Market Integration | E56: 0 | F56: ='Portfolio--2022-2023'!F59 -> 0 | G56: 0 | I56: 631580.539 | J56: ='Portfolio--2022-2023'!G59 -> 2850093.61 | K56: 2218513.071 | L56: 3.512636844 | M56: 0 | N56: ='Portfolio--2022-2023'!H59 -> 0 | O56: 0 | Q56: 93667.961 | R56: ='Portfolio--2022-2023'!I59 -> 422602.7 | S56: 328934.739 | T56: 3.511710253 | U56: 725248.5 | V56: 3272696.31 | W56: 2547447.81 | X56: 3.512517172
B57: Events | E57: 0 | F57: ='Portfolio--2022-2023'!F60 -> 0 | G57: 0 | I57: 732046.063 | J57: ='Portfolio--2022-2023'!G60 -> 1025314.9 | K57: 293268.837 | L57: 0.4006152779 | M57: 0 | N57: ='Portfolio--2022-2023'!H60 -> 0 | O57: 0 | Q57: 109598.837 | R57: ='Portfolio--2022-2023'!I60 -> 212218.6 | S57: 102619.763 | T57: 0.9363216418 | U57: 841644.9 | V57: 1237533.5 | W57: 395888.6 | X57: 0.4703748576
B58: Brochures, non program-specific | E58: 0 | F58: ='Portfolio--2022-2023'!#REF! ->  | I58: 0 | K58: 0 | M58: 0 | N58: ='Portfolio--2022-2023'!#REF! ->  | Q58: 0 | R58: ='Portfolio--2022-2023'!#REF! ->  | U58: 0
B59: Subtotal, Portfolio Support | E59: 0 | F59: ='Portfolio--2022-2023'!F61 -> 0 | G59: 0 | I59: 15122062.77 | J59: ='Portfolio--2022-2023'!G61 -> 23353779.27 | K59: =J59-I59 -> 8231716.499 | L59: =(J59-I59)/I59 -> 0.5443514304 | M59: 0 | N59: ='Portfolio--2022-2023'!H61 -> 0 | O59: 0 | Q59: 3152147.718 | R59: ='Portfolio--2022-2023'!I61 -> 4365494.065 | S59: 1213346.347 | T59: 0.3849268676 | U59: 18274210.48 | V59: 27719273.33 | W59: 9445062.846 | X59: 0.5168520333
B61: Energy Efficiency Research & Compliance
B62: Conservation Supply Curves | E62: 0 | F62: ='Portfolio--2022-2023'!F64 -> 0 | G62: =F62-E62 -> 0 | H62: =(F62-E62)/E62 ->  | I62: 634379.64 | J62: ='Portfolio--2022-2023'!G64 -> 880884.7 | K62: =J62-I62 -> 246505.06 | L62: =(J62-I62)/I62 -> 0.3885765628 | M62: 0 | N62: ='Portfolio--2022-2023'!H64 -> 0 | O62: =N62-M62 -> 0 | P62: =(N62-M62)/M62 ->  | Q62: 94792.36 | R62: ='Portfolio--2022-2023'!I64 -> 131627.3 | S62: =R62-Q62 -> 36834.94 | T62: =(R62-Q62)/Q62 -> 0.3885855358 | U62: 729172 | V62: =J62+R62 -> 1012512 | W62: =V62-U62 -> 283340 | X62: =(V62-U62)/U62 -> 0.3885777293
B63: Strategic Planning | E63: 0 | F63: ='Portfolio--2022-2023'!F65 -> 0 | G63: 0 | I63: 1408171.735 | J63: ='Portfolio--2022-2023'!G65 -> 1015855.5 | K63: -392316.235 | L63: -0.2785997086 | M63: 0 | N63: ='Portfolio--2022-2023'!H65 -> 0 | O63: 0 | Q63: 105818.765 | R63: ='Portfolio--2022-2023'!I65 -> 151794.5 | S63: 45975.735 | T63: 0.4344762009 | U63: 1513990.5 | V63: =J63+R63 -> 1167650 | W63: -346340.5 | X63: -0.2287600219
B64: Market Research | E64: 0 | F64: ='Portfolio--2022-2023'!F66 -> 0 | G64: 0 | I64: 333871.88 | J64: ='Portfolio--2022-2023'!G66 -> 407866.44 | K64: 73994.56 | L64: 0.2216256128 | M64: 0 | N64: ='Portfolio--2022-2023'!H66 -> 0 | O64: 0 | Q64: 51303.52 | R64: ='Portfolio--2022-2023'!I66 -> 60945.56 | S64: 9642.04 | T64: 0.1879411003 | U64: 385175.4 | V64: 468812 | W64: 83636.6 | X64: 0.2171389969
B65: Program Evaluation | E65: 0 | F65: ='Portfolio--2022-2023'!F67 -> 0 | G65: 0 | I65: 4006746.105 | J65: ='Portfolio--2022-2023'!G67 -> 3277005.4 | K65: -729740.705 | L65: -0.1821280126 | M65: 0 | N65: ='Portfolio--2022-2023'!H67 -> 0 | O65: 0 | Q65: 767295.395 | R65: ='Portfolio--2022-2023'!I67 -> 713878.6 | S65: -53416.795 | T65: -0.0696169889 | U65: 4774041.5 | V65: 3990884 | W65: -783157.5 | X65: -0.1640449711
B66: Biennial Electric Conservation Acquisition Review | E66: 0 | F66: ='Portfolio--2022-2023'!F68 -> 0 | G66: 0 | I66: 150000 | J66: ='Portfolio--2022-2023'!G68 -> 300000 | K66: 150000 | L66: 1 | M66: 0 | N66: ='Portfolio--2022-2023'!H68 -> 0 | O66: 0 | Q66: 0 | R66: ='Portfolio--2022-2023'!I68 -> 0 | S66: 0 | U66: 150000 | V66: 300000 | W66: 150000 | X66: 1
B67: Subtotal, Research & Compliance | E67: 0 | F67: ='Portfolio--2022-2023'!F69 -> 0 | G67: 0 | I67: 6533169.36 | J67: ='Portfolio--2022-2023'!G69 -> 5881612.04 | K67: =J67-I67 -> -651557.32 | L67: -0.09973066426 | M67: 0 | N67: ='Portfolio--2022-2023'!H69 -> 0 | O67: 0 | Q67: 1019210.04 | R67: ='Portfolio--2022-2023'!I69 -> 1058245.96 | S67: 39035.92 | T67: 0.03830017216 | U67: 7552379.4 | V67: 6939858 | W67: -612521.4 | X67: -0.08110310242
I68: 0 | J68: ='Portfolio--2022-2023'!G70 -> 0 | M68: 0 | N68: ='Portfolio--2022-2023'!H70 -> 0 | Q68: 0 | R68: ='Portfolio--2022-2023'!I70 -> 0 | U68: 0 | V68: 0
B69: Total Savings, Efficiency Programs Included in CE Calculations | E69: 526043.7025 | F69: ='Portfolio--2022-2023'!F71 -> 537698.2401 | G69: =F69-E69 -> 11654.53753 | H69: =(F69-E69)/E69 -> 0.0221550747 | I69: 190483174 | J69: ='Portfolio--2022-2023'!G71 -> 234863870.1 | K69: =J69-I69 -> 44380696.12 | L69: =(J69-I69)/I69 -> 0.2329901124 | M69: 8003282 | N69: ='Portfolio--2022-2023'!H71 -> 9890520.168 | O69: =N69-M69 -> 1887238.168 | P69: =(N69-M69)/M69 -> 0.2358080308 | Q69: 37013753.48 | R69: ='Portfolio--2022-2023'!I71 -> 48263530.94 | S69: =R69-Q69 -> 11249777.47 | T69: =(R69-Q69)/Q69 -> 0.3039350622 | U69: 227496927.5 | V69: 283127401.1 | W69: =U69-V69 -> -55630473.59 | X69: =(V69-U69)/U69 -> 0.2445328568
Q70: 0 | R70: ='Portfolio--2022-2023'!I72 -> 0 | U70: 0 | V70: 0
B71: Other Customer Programs | Q71: 0 | R71: ='Portfolio--2022-2023'!I73 -> 0 | U71: 0 | V71: 0
A72: E150 | B72: Net Metering | E72: 0 | F72: ='Portfolio--2022-2023'!F74 -> 0 | G72: =F72-E72 -> 0 | H72: =(F72-E72)/E72 ->  | I72: 2908514.5 | J72: ='Portfolio--2022-2023'!G74 -> 4601937 | K72: =J72-I72 -> 1693422.5 | L72: =(J72-I72)/I72 -> 0.5822293477 | M72: 0 | N72: ='Portfolio--2022-2023'!H74 -> 0 | O72: =N72-M72 -> 0 | P72: =(N72-M72)/M72 ->  | Q72: 0 | R72: ='Portfolio--2022-2023'!I74 -> 0 | S72: =R72-Q72 -> 0 | T72: =(R72-Q72)/Q72 ->  | U72: 2908514.5 | V72: =J72+R72 -> 4601937 | W72: =V72-U72 -> 1693422.5 | X72: =(V72-U72)/U72 -> 0.5822293477
A73: 249 | B73: Demand Response Pilots | E73: 0 | F73: ='Portfolio--2022-2023'!F75 -> 0 | G73: 0 | H73: =(F73-E73)/E73 ->  | I73: 485100 | J73: ='Portfolio--2022-2023'!G75 -> 640000 | K73: 154900 | L73: 0.319315605 | M73: 0 | N73: ='Portfolio--2022-2023'!H75 -> 0 | O73: 0 | Q73: 207900 | R73: ='Portfolio--2022-2023'!I75 -> 260000 | S73: 52100 | T73: 0.2506012506 | U73: 693000 | V73: 900000 | W73: 207000 | X73: 0.2987012987
B74: Subtotal, Other Customer Programs | E74: 0 | F74: ='Portfolio--2022-2023'!F76 -> 0 | G74: 0 | I74: 3393614.5 | J74: ='Portfolio--2022-2023'!G76 -> 5241937 | K74: =J74-I74 -> 1848322.5 | L74: =(J74-I74)/I74 -> 0.5446471601 | M74: 0 | N74: ='Portfolio--2022-2023'!H76 -> 0 | O74: 0 | Q74: 207900 | R74: ='Portfolio--2022-2023'!I76 -> 260000 | S74: 52100 | T74: 0.2506012506 | U74: 3601514.5 | V74: =J74+R74 -> 5501937 | W74: 1900422.5 | X74: 0.5276731497
B78: GRAND TOTAL All Programs | E78: 526043.7025 | F78: ='Portfolio--2022-2023'!F71 -> 537698.2401 | G78: =F78-E78 -> 11654.53753 | H78: =(F78-E78)/E78 -> 0.0221550747 | I78: 193876788.5 | J78: ='Portfolio--2022-2023'!G80 -> 240105807.1 | K78: =J78-I78 -> 46229018.62 | L78: =(J78-I78)/I78 -> 0.2384453496 | M78: 8003282 | N78: ='Portfolio--2022-2023'!H71 -> 9890520.168 | O78: =N78-M78 -> 1887238.168 | P78: =(N78-M78)/M78 -> 0.2358080308 | Q78: =Q69+Q74 -> 37221653.48 | R78: ='Portfolio--2022-2023'!I80 -> 48523530.94 | S78: =R78-Q78 -> 11301877.47 | T78: =(R78-Q78)/Q78 -> 0.3036371684 | U78: 231098442 | V78: =J78+R78 -> 288629338.1 | W78: =V78-U78 -> 57530896.09 | X78: =(V78-U78)/U78 -> 0.2489454087
B79: and Portfolio Budgets | E79: 60.1 | F79: ='Portfolio--2022-2023'!F81 -> 61.26907934 | G79: =F79-E79 -> 1.169079338 | H79: =(F79-E79)/E79 -> 0.01945223524 | K79: =I79-J79 -> 0 | O79: =M79-N79 -> 0

Sheet Portfolio--2022-2023
F1: 2022-2023 Two-Year
E2: PSE Conservation Rider Savings Goals and Budgets
C3: =NOW() -> 2021-10-22T17:15:42.630
B4: Schedule Nos. (Unless otherwise noted, applies to both electric and gas) | C4: Program Name | F4: MWh Savings | G4: Electric Rider Budget | H4: Therm Savings | I4: Gas Rider Budget | J4: Total Rider Budget
C5: (All indented program or activity names are color-coded and comprise the totals of the above program or activity grouping.)
C6: Residential Energy Management
B7: 201 | C7: Low Income Weatherization | F7: ='Portfolio--2022 Specific'!F7+'Portfolio--2023 Specific'!F7 -> 3954.882 | G7: ='Portfolio--2022 Specific'!G7+'Portfolio--2023 Specific'!G7 -> 12216391.93 | H7: ='Portfolio--2022 Specific'!H7+'Portfolio--2023 Specific'!H7 -> 41487.06 | I7: ='Portfolio--2022 Specific'!I7+'Portfolio--2023 Specific'!I7 -> 2033571.863 | J7: =G7+I7 -> 14249963.79
B8: 214 | C8: Single Family Existing Subtotal | F8: =SUM(F9:F18) -> 114141.2001 | G8: =SUM(G9:G18) -> 44067060.41 | H8: =SUM(H9:H18) -> 5636060.548 | I8: =SUM(I9:I18) -> 21486673.73 | J8: =G8+I8 -> 65553734.14
D9: Residential lighting | F9: ='Portfolio--2022 Specific'!F9+'Portfolio--2023 Specific'!F9 -> 2038.6064 | G9: ='Portfolio--2022 Specific'!G9+'Portfolio--2023 Specific'!G9 -> 2186289.5 | H9: ='Portfolio--2022 Specific'!H9+'Portfolio--2023 Specific'!H9 -> 0 | I9: ='Portfolio--2022 Specific'!I9+'Portfolio--2023 Specific'!I9 -> 0 | J9: =G9+I9 -> 2186289.5
D10: Space heat | F10: ='Portfolio--2022 Specific'!F10+'Portfolio--2023 Specific'!F10 -> 16517.34 | G10: ='Portfolio--2022 Specific'!G10+'Portfolio--2023 Specific'!G10 -> 8750082.7 | H10: ='Portfolio--2022 Specific'!H10+'Portfolio--2023 Specific'!H10 -> 1373944 | I10: ='Portfolio--2022 Specific'!I10+'Portfolio--2023 Specific'!I10 -> 9728949 | J10: =G10+I10 -> 18479031.7
D11: Water heat | F11: ='Portfolio--2022 Specific'!F11+'Portfolio--2023 Specific'!F11 -> 3009.6959 | G11: ='Portfolio--2022 Specific'!G11+'Portfolio--2023 Specific'!G11 -> 2289697.5 | H11: ='Portfolio--2022 Specific'!H11+'Portfolio--2023 Specific'!H11 -> 130426.8 | I11: ='Portfolio--2022 Specific'!I11+'Portfolio--2023 Specific'!I11 -> 953268.8 | J11: 3242966.3
D12: Home Energy Assessment | F12: ='Portfolio--2022 Specific'!F12+'Portfolio--2023 Specific'!F12 -> 0 | G12: ='Portfolio--2022 Specific'!G12+'Portfolio--2023 Specific'!G12 -> 0 | H12: ='Portfolio--2022 Specific'!H12+'Portfolio--2023 Specific'!H12 -> 0 | I12: ='Portfolio--2022 Specific'!I12+'Portfolio--2023 Specific'!I12 -> 0 | J12: 0
D13: Home Appliances | F13: ='Portfolio--2022 Specific'!F13+'Portfolio--2023 Specific'!F13 -> 1197.328 | G13: ='Portfolio--2022 Specific'!G13+'Portfolio--2023 Specific'!G13 -> 1377979.7 | H13: ='Portfolio--2022 Specific'!H13+'Portfolio--2023 Specific'!H13 -> 12353.4 | I13: ='Portfolio--2022 Specific'!I13+'Portfolio--2023 Specific'!I13 -> 0 | J13: 1377979.7
D14: Smart Thermostats | F14: ='Portfolio--2022 Specific'!F14+'Portfolio--2023 Specific'!F14 -> 2470.904 | G14: ='Portfolio--2022 Specific'!G14+'Portfolio--2023 Specific'!G14 -> 1798394 | H14: ='Portfolio--2022 Specific'!H14+'Portfolio--2023 Specific'!H14 -> 660000 | I14: ='Portfolio--2022 Specific'!I14+'Portfolio--2023 Specific'!I14 -> 3556156.3 | J14: 5354550.3
D15: Water Use Reducers | F15: ='Portfolio--2022 Specific'!F15+'Portfolio--2023 Specific'!F15 -> 0.0948 | G15: ='Portfolio--2022 Specific'!G15+'Portfolio--2023 Specific'!G15 -> 5108.35 | H15: ='Portfolio--2022 Specific'!H15+'Portfolio--2023 Specific'!H15 -> 5.2 | I15: ='Portfolio--2022 Specific'!I15+'Portfolio--2023 Specific'!I15 -> 4069.275 | J15: 9177.625
D16: Weatherization | F16: ='Portfolio--2022 Specific'!F16+'Portfolio--2023 Specific'!F16 -> 2434.26105 | G16: ='Portfolio--2022 Specific'!G16+'Portfolio--2023 Specific'!G16 -> 2199889 | H16: ='Portfolio--2022 Specific'!H16+'Portfolio--2023 Specific'!H16 -> 489831.148 | I16: ='Portfolio--2022 Specific'!I16+'Portfolio--2023 Specific'!I16 -> 4785587.6 | J16: 6985476.6
D17: Home Energy Reports | F17: ='Portfolio--2022 Specific'!F17+'Portfolio--2023 Specific'!F17 -> 52064 | G17: ='Portfolio--2022 Specific'!G17+'Portfolio--2023 Specific'!G17 -> 3149674.36 | H17: ='Portfolio--2022 Specific'!H17+'Portfolio--2023 Specific'!H17 -> 2969500 | I17: ='Portfolio--2022 Specific'!I17+'Portfolio--2023 Specific'!I17 -> 2458642.76 | J17: 5608317.12
D18: Midstream HVAC and Water Heat | F18: ='Portfolio--2022 Specific'!F18+'Portfolio--2023 Specific'!F18 -> 34408.97 | G18: ='Portfolio--2022 Specific'!G18+'Portfolio--2023 Specific'!G18 -> 22309945.3 | H18: ='Portfolio--2022 Specific'!H18+'Portfolio--2023 Specific'!I18 -> 0 | I18: ='Portfolio--2022 Specific'!I18+'Portfolio--2023 Specific'!I18 -> 0 | J18: 22309945.3
B19: 215 | C19: Single Family New Construction | F19: ='Portfolio--2022 Specific'!F19+'Portfolio--2023 Specific'!F19 -> 510.276 | G19: ='Portfolio--2022 Specific'!G19+'Portfolio--2023 Specific'!G19 -> 787680.4 | H19: ='Portfolio--2022 Specific'!H19+'Portfolio--2023 Specific'!H19 -> 4191.8 | I19: ='Portfolio--2022 Specific'!I19+'Portfolio--2023 Specific'!I19 -> 92723.8 | J19: 880404.2
B20: 214 & 217 | C20: Moderate Income Residences | F20: ='Portfolio--2022 Specific'!F20+'Portfolio--2023 Specific'!F20 -> 0 | G20: ='Portfolio--2022 Specific'!G20+'Portfolio--2023 Specific'!G20 -> 177394.3 | H20: ='Portfolio--2022 Specific'!H20+'Portfolio--2023 Specific'!H20 -> 0 | I20: ='Portfolio--2022 Specific'!I20+'Portfolio--2023 Specific'!I20 -> 99191.85 | J20: 276586.15
B21: 217 | C21: Multifamily Retrofit | F21: ='Portfolio--2022 Specific'!F21+'Portfolio--2023 Specific'!F21 -> 18139.9544 | G21: ='Portfolio--2022 Specific'!G21+'Portfolio--2023 Specific'!G21 -> 15407119.81 | H21: ='Portfolio--2022 Specific'!H21+'Portfolio--2023 Specific'!H21 -> 74704.76 | I21: ='Portfolio--2022 Specific'!I21+'Portfolio--2023 Specific'!I21 -> 744953.564 | J21: 16152073.37
B22: 218 | C22: Multifamily New Construction | F22: ='Portfolio--2022 Specific'!F22+'Portfolio--2023 Specific'!F22 -> 9000 | G22: ='Portfolio--2022 Specific'!G22+'Portfolio--2023 Specific'!G22 -> 4134910.85 | H22: ='Portfolio--2022 Specific'!H22+'Portfolio--2023 Specific'!H22 -> 100000 | I22: ='Portfolio--2022 Specific'!I22+'Portfolio--2023 Specific'!I22 -> 708732.1 | J22: 4843642.95
C23: Total, Residential Programs | F23: =F7+F8+SUM(F19:F22) -> 145746.3126 | G23: =G7+G8+SUM(G19:G22) -> 76790557.7 | H23: =H7+H8+SUM(H19:H22) -> 5856444.168 | I23: =I7+I8+SUM(I19:I22) -> 25165846.91 | J23: 101956404.6
C25: Business Energy Management
B26: 250 | C26: Commercial / Industrial Retrofit | F26: ='Portfolio--2022 Specific'!F26+'Portfolio--2023 Specific'!F26 -> 153511.035 | G26: ='Portfolio--2022 Specific'!G26+'Portfolio--2023 Specific'!G26 -> 52426324.77 | H26: ='Portfolio--2022 Specific'!H26+'Portfolio--2023 Specific'!H26 -> 1161722 | I26: ='Portfolio--2022 Specific'!I26+'Portfolio--2023 Specific'!I26 -> 4938319.476 | J26: =G26+I26 -> 57364644.25
B27: 251 | C27: Commercial/Industrial New Construction | F27: ='Portfolio--2022 Specific'!F27+'Portfolio--2023 Specific'!F27 -> 47000 | G27: ='Portfolio--2022 Specific'!G27+'Portfolio--2023 Specific'!G27 -> 15834532 | H27: ='Portfolio--2022 Specific'!H27+'Portfolio--2023 Specific'!H27 -> 180000 | I27: ='Portfolio--2022 Specific'!I27+'Portfolio--2023 Specific'!I27 -> 1446228 | J27: 17280760
B28: 253 | C28: Commercial Strategic Energy Management | F28: ='Portfolio--2022 Specific'!F28+'Portfolio--2023 Specific'!F28 -> 32000 | G28: ='Portfolio--2022 Specific'!G28+'Portfolio--2023 Specific'!G28 -> 4907478.5 | H28: ='Portfolio--2022 Specific'!H28+'Portfolio--2023 Specific'!H28 -> 1143000 | I28: ='Portfolio--2022 Specific'!I28+'Portfolio--2023 Specific'!I28 -> 1506733.5 | J28: 6414212
B29: E258 | C29: Large Power User - Self Directed Program - Subtotal | F29: =F30+F31 -> 20042.48 | G29: =G30+G31 -> 9931576.967 | J29: 9931576.967
B30: E258 | D30: 449 Customers | F30: ='Portfolio--2022 Specific'!F30+'Portfolio--2023 Specific'!F30 -> 9549.935 | G30: ='Portfolio--2022 Specific'!G30+'Portfolio--2023 Specific'!G30 -> 5241600.397 | J30: 5241600.397
B31: E258 | D31: Non-449 Customers | F31: ='Portfolio--2022 Specific'!F31+'Portfolio--2023 Specific'!F31 -> 10492.545 | G31: ='Portfolio--2022 Specific'!G31+'Portfolio--2023 Specific'!G31 -> 4689976.57 | J31: 4689976.57
B32: 261 | C32: Energy Efficient Technology Evaluation | F32: ='Portfolio--2022 Specific'!F32+'Portfolio--2023 Specific'!F32 -> 0 | G32: ='Portfolio--2022 Specific'!G32+'Portfolio--2023 Specific'!G32 -> 0 | H32: ='Portfolio--2022 Specific'!H32+'Portfolio--2023 Specific'!H32 -> 0 | I32: ='Portfolio--2022 Specific'!I32+'Portfolio--2023 Specific'!I32 -> 0 | J32: 0
B33: 262 | C33: Commercial Rebates | F33: ='Portfolio--2022 Specific'!F33+'Portfolio--2023 Specific'!F33 -> 94291.0125 | G33: ='Portfolio--2022 Specific'!G33+'Portfolio--2023 Specific'!G33 -> 33129279.25 | H33: ='Portfolio--2022 Specific'!H33+'Portfolio--2023 Specific'!H33 -> 1484104 | I33: ='Portfolio--2022 Specific'!I33+'Portfolio--2023 Specific'!I33 -> 6033890.68 | J33: 39163169.93
C34: Subtotal, Business Programs | F34: =SUM(F26:F29)+SUM(F32:F33) -> 346844.5275 | G34: =SUM(G26:G29)+SUM(G32:G33) -> 116229191.5 | H34: =SUM(H26:H33) -> 3968826 | I34: =SUM(I26:I33) -> 13925171.66 | J34: 130154363.1
C36: Pilots With Uncertain Savings
B37: 249 | C37: Residential | F37: ='Portfolio--2022 Specific'!F37+'Portfolio--2023 Specific'!F37 -> 1725 | G37: ='Portfolio--2022 Specific'!G37+'Portfolio--2023 Specific'!G37 -> 1044333.877 | H37: ='Portfolio--2022 Specific'!H37+'Portfolio--2023 Specific'!H37 -> 50250 | I37: ='Portfolio--2022 Specific'!I37+'Portfolio--2023 Specific'!I37 -> 0 | J37: =G37+I37 -> 1044333.877
B38: 249 | C38: Commercial | F38: ='Portfolio--2022 Specific'!F38+'Portfolio--2023 Specific'!F38 -> 3000 | G38: ='Portfolio--2022 Specific'!G38+'Portfolio--2023 Specific'!G38 -> 648700.5 | H38: ='Portfolio--2022 Specific'!H38+'Portfolio--2023 Specific'!H38 -> 15000 | I38: ='Portfolio--2022 Specific'!I38+'Portfolio--2023 Specific'!I38 -> 3740.1 | J38: =G38+I38 -> 652440.6
C39: Subtotal, Pilots | F39: =SUM(F37:F38) -> 4725 | G39: =SUM(G37:G38) -> 1693034.377 | H39: =SUM(H37:H38) -> 65250 | I39: =SUM(I37:I38) -> 3740.1 | J39: 1696774.477
C41: Regional Efficiency Programs
B42: E254 | C42: NW Energy Efficiency Alliance (NEEA) | F42: ='Portfolio--2022 Specific'!F42+'Portfolio--2023 Specific'!F42 -> 28382.4 | G42: ='Portfolio--2022 Specific'!G42+'Portfolio--2023 Specific'!G42 -> 9683388 | J42: =G42+I42 -> 9683388
C43: NEEA Natural Gas Market Transformation | H43: ='Portfolio--2022 Specific'!H43+'Portfolio--2023 Specific'!H43 -> 0 | I43: ='Portfolio--2022 Specific'!I43+'Portfolio--2023 Specific'!I43 -> 3180472 | J43: 3180472
B44: 219 | C44: Targeted DSM Pilot | F44: ='Portfolio--2022 Specific'!F44+'Portfolio--2023 Specific'!F44 -> 0 | G44: ='Portfolio--2022 Specific'!G44+'Portfolio--2023 Specific'!G44 -> 1232307.25 | H44: ='Portfolio--2022 Specific'!H44+'Portfolio--2023 Specific'!H44 -> 0 | I44: ='Portfolio--2022 Specific'!I44+'Portfolio--2023 Specific'!I44 -> 564560.25 | J44: =G44+I44 -> 1796867.5
B45: E292 | C45: Generation, Transmission and Distribution | F45: ='Portfolio--2022 Specific'!F45+'Portfolio--2023 Specific'!F45 -> 12000 | G45: ='Portfolio--2022 Specific'!G45+'Portfolio--2023 Specific'!G45 -> 0 | J45: 0
C46: Subtotal, Regional Programs | F46: =SUM(F42:F45) -> 40382.4 | G46: =SUM(G42:G45) -> 10915695.25 | H46: =SUM(H42:H45) -> 0 | I46: =SUM(I42:I45) -> 3745032.25 | J46: 14660727.5
J47: 0
C48: Energy Efficiency Portfolio Support
C49: Data and Systems Services | G49: ='Portfolio--2022 Specific'!G49+'Portfolio--2023 Specific'!G49 -> 1964912.4 | I49: ='Portfolio--2022 Specific'!I49+'Portfolio--2023 Specific'!I49 -> 293607.6 | J49: =G49+I49 -> 2258520
C50: Rebates Processing | G50: ='Portfolio--2022 Specific'!G50+'Portfolio--2023 Specific'!G50 -> 1835930.78 | I50: ='Portfolio--2022 Specific'!I50+'Portfolio--2023 Specific'!I50 -> 277244.22 | J50: 2113175
C51: Verification Team | G51: ='Portfolio--2022 Specific'!G51+'Portfolio--2023 Specific'!G51 -> 1222300.38 | I51: ='Portfolio--2022 Specific'!I51+'Portfolio--2023 Specific'!I51 -> 182354.62 | J51: 1404655
C52: Programs Support | G52: ='Portfolio--2022 Specific'!G52+'Portfolio--2023 Specific'!G52 -> 1485040.845 | I52: ='Portfolio--2022 Specific'!I52+'Portfolio--2023 Specific'!I52 -> 42003.845 | J52: 1527044.69
C53: Trade Ally Memberships | G53: ='Portfolio--2022 Specific'!G53+'Portfolio--2023 Specific'!G53 -> 243600 | I53: ='Portfolio--2022 Specific'!I53+'Portfolio--2023 Specific'!I53 -> 36400 | J53: 280000
C54: Trade Ally Network (revenue + cost) | G54: ='Portfolio--2022 Specific'!G54+'Portfolio--2023 Specific'!G54 -> 31413.087 | I54: ='Portfolio--2022 Specific'!I54+'Portfolio--2023 Specific'!I54 -> -32622.913 | J54: -1209.826
C55: Automated Benchmarking System | G55: ='Portfolio--2022 Specific'!G55+'Portfolio--2023 Specific'!G55 -> 4177728 | I55: ='Portfolio--2022 Specific'!I55+'Portfolio--2023 Specific'!I55 -> 1044432 | J55: 5222160
C56: Energy Advisors | G56: ='Portfolio--2022 Specific'!G56+'Portfolio--2023 Specific'!G56 -> 2624961.42 | I56: ='Portfolio--2022 Specific'!I56+'Portfolio--2023 Specific'!I56 -> 384550.58 | J56: 3009512
C57: Energy Efficient Communities | G57: ='Portfolio--2022 Specific'!G57+'Portfolio--2023 Specific'!G57 -> 2438589.274 | I57: ='Portfolio--2022 Specific'!I57+'Portfolio--2023 Specific'!I57 -> 373873.2633 | J57: 2812462.537
C58: Customer Digital Services | G58: ='Portfolio--2022 Specific'!G58+'Portfolio--2023 Specific'!G58 -> 3453894.57 | I58: ='Portfolio--2022 Specific'!I58+'Portfolio--2023 Specific'!I58 -> 1128829.55 | J58: 4582724.12
C59: Market Integration | G59: ='Portfolio--2022 Specific'!G59+'Portfolio--2023 Specific'!G59 -> 2850093.61 | I59: ='Portfolio--2022 Specific'!I59+'Portfolio--2023 Specific'!I59 -> 422602.7 | J59: 3272696.31
C60: Events | G60: ='Portfolio--2022 Specific'!G60+'Portfolio--2023 Specific'!G60 -> 1025314.9 | I60: ='Portfolio--2022 Specific'!I60+'Portfolio--2023 Specific'!I60 -> 212218.6 | J60: 1237533.5
C61: Subtotal, Portfolio Support | G61: =SUM(G49:G60) -> 23353779.27 | I61: =SUM(I49:I60) -> 4365494.065 | J61: 27719273.33
C63: Energy Efficiency Research & Compliance
C64: Conservation Supply Curves | G64: ='Portfolio--2022 Specific'!G64+'Portfolio--2023 Specific'!G64 -> 880884.7 | I64: ='Portfolio--2022 Specific'!I64+'Portfolio--2023 Specific'!I64 -> 131627.3 | J64: =G64+I64 -> 1012512
C65: Strategic Planning | G65: ='Portfolio--2022 Specific'!G65+'Portfolio--2023 Specific'!G65 -> 1015855.5 | I65: ='Portfolio--2022 Specific'!I65+'Portfolio--2023 Specific'!I65 -> 151794.5 | J65: 1167650
C66: Market Research | G66: ='Portfolio--2022 Specific'!G66+'Portfolio--2023 Specific'!G66 -> 407866.44 | I66: ='Portfolio--2022 Specific'!I66+'Portfolio--2023 Specific'!I66 -> 60945.56 | J66: 468812
C67: Program Evaluation | G67: ='Portfolio--2022 Specific'!G67+'Portfolio--2023 Specific'!G67 -> 3277005.4 | I67: ='Portfolio--2022 Specific'!I67+'Portfolio--2023 Specific'!I67 -> 713878.6 | J67: 3990884
C68: Biennial Electric Conservation Acquisition Review | G68: ='Portfolio--2022 Specific'!G68+'Portfolio--2023 Specific'!G68 -> 300000 | I68: ='Portfolio--2022 Specific'!I68+'Portfolio--2023 Specific'!I68 -> 0 | J68: 300000
C69: Subtotal, Research & Compliance | G69: =SUM(G64:G68) -> 5881612.04 | I69: =SUM(I64:I68) -> 1058245.96 | J69: 6939858
B71: Total EE Portfolio Savings and Budgets | F71: =F23+F34+F39+F46 -> 537698.2401 | G71: =G23+G34+G39+G46+G61+G69 -> 234863870.1 | H71: =H23+H34+H39+H46 -> 9890520.168 | I71: =I23+I34+I39+I46+I61+I69 -> 48263530.94 | J71: =G71+I71 -> 283127401.1
C73: Other Customer Programs
B74: E150 | C74: Net Metering | G74: ='Portfolio--2022 Specific'!G74+'Portfolio--2023 Specific'!G74 -> 4601937 | J74: =G74+I74 -> 4601937
B75: 249A, 271 | C75: Demand Response Pilot | G75: ='Portfolio--2022 Specific'!G75+'Portfolio--2023 Specific'!G75 -> 640000 | I75: ='Portfolio--2022 Specific'!I75+'Portfolio--2023 Specific'!I75 -> 260000 | J75: 900000
C76: Subtotal, Other Energy Efficiency Programs | G76: =SUM(G74:G75) -> 5241937 | I76: =SUM(I74:I75) -> 260000 | J76: 5501937
C80: TOTAL UTILITY CONSERVATION GOALS | F80: ='Building the 2-yr elec target'!I21 -> 536717.135 | G80: =G71+G76 -> 240105807.1 | H80: ='Building the 2-yr gas target'!G19 -> 9791327.094 | I80: =I71+I76 -> 48523530.94 | J80: =G80+I80 -> 288629338.1
C81: and Portfolio Budgets | F81: =F80/8760 -> 61.26907934
C83: EIA Target | F83: ='Building the 2-yr elec target'!I13 -> 497564 | H83: Electric Only | I83: CPA Pro-Rata Share
F84: =F83/8760 -> 56.79954338
C86: EIA and Natural Gas Penalty Threshold | F86: ='Building the 2-yr elec target'!I16 -> 469181.6 | H86: ='Building the 2-yr gas target'!G15 -> 9262930.566 | I86: EIA Target - NEEA
F87: =F86/8760 -> 53.55954338
C89: Two-Year Decoupling Threshold | F89: ='Building the 2-yr elec target'!I17 -> 24878.2 | G89: 5% of IRP Total Biennial Potential of | H89: ='Building the 2-yr gas target'!G16 -> 463146.5283 | I89: 5% of CPA Pro-Rata Share
F90: =F89/8760 -> 2.839977169 | G90: =F83 -> 497564
D93: Blue cells = use for 10% "info-only" calculation: | G93: =(G39+G61)/G71 -> 0.106643962 | I93: =(I39+I61)/I71 -> 0.09052868864
E94: Add up all blue cells and divide by "Total, Efficiency Programs Included in CE Calculations" line.
E95: HER program costs excluded from "info-only" calculation because savings will be measured.
D97: Purple cells = use to indicate a reasonable amt. spent on EM&V (condition (6)(c)): | G97: =(G49+G51+SUM(G67:G68))/(G23+G34) -> 0.03504417661 | I97: =(I49+I51+SUM(I67:I68))/(I23+I34) -> 0.03043770318
D98: EM&V Budget (WAC 480-109-120(1)(b)(vi)(B)) | G98: =(G49+G51+SUM(G67:G68)) -> 6764218.18 | I98: =(I49+I51+SUM(I67:I68)) -> 1189840.82
E99: Add up the sum of [Data & Systems Services + Program Evaluation + BECAR + Verification] purple cells and divide by the [Residential + Business] purple cells.
E100: Add up the sum of [Data & Systems Services + Program Evaluation + BECAR + Verification] purple cells

Sheet Portfolio--2022 Specific
F1: BCP 2022
E2: PSE Conservation Rider Savings Goals and Budgets
C3: =NOW() -> 2021-10-22T17:15:42.630
B4: Schedule Nos. (Unless otherwise noted, applies to both electric and gas) | C4: Program Name | F4: MWh Savings | G4: Electric Rider Budget | H4: Therm Savings | I4: Gas Rider Budget | J4: Total Rider Budget
C5: (All indented program or activity names are color-coded and comprise the totals of the above program or activity grouping.)
C6: Residential Energy Management
B7: 201 | C7: Low Income Weatherization | F7: ='2022 Sector View Electric'!S8/1000 -> 1977.441 | G7: ='2022 Sector View Electric'!R8 -> 6108195.965 | H7: ='2022 Sector View Gas'!S8 -> 20743.53 | I7: ='2022 Sector View Gas'!R8 -> 1016785.932 | J7: =G7+I7 -> 7124981.897
B8: 214 | C8: Single Family Existing Subtotal | F8: =SUM(F9:F18) -> 79769.05897 | G8: =SUM(G9:G18) -> 21566039.88 | H8: 4078096.074 | I8: =SUM(I9:I18) -> 10749947.11 | J8: 32315986.98
D9: Residential lighting | F9: ='2022 Sector View Electric'!S16/1000 -> 1072.9522 | G9: ='2022 Sector View Electric'!R16 -> 1136128.75 | J9: =G9+I9 -> 1136128.75
D10: Space heat | F10: ='2022 Sector View Electric'!S12/1000 -> 8258.67 | G10: ='2022 Sector View Electric'!R12 -> 4375041.35 | H10: ='2022 Sector View Gas'!S11 -> 686972 | I10: ='2022 Sector View Gas'!R11 -> 4864474.5 | J10: 9239515.85
D11: Water heat | F11: ='2022 Sector View Electric'!S10/1000 -> 1444.69545 | G11: ='2022 Sector View Electric'!R10 -> 1119848.75 | H11: ='2022 Sector View Gas'!S9 -> 65469.9 | I11: ='2022 Sector View Gas'!R9 -> 476634.4 | J11: 1596483.15
D12: Home Energy Assessment | F12: ='2022 Sector View Electric'!S9/1000 -> 0 | G12: ='2022 Sector View Electric'!R9 -> 0 | J12: 0
D13: Home Appliances | F13: ='2022 Sector View Electric'!S14/1000 -> 639.328 | G13: ='2022 Sector View Electric'!R14 -> 711824.85 | H13: ='2022 Sector View Gas'!S14 -> 6233.4 | I13: ='2022 Sector View Gas'!R14 -> 0 | J13: 711824.85
D14: Smart Thermostats | F14: ='2022 Sector View Electric'!S18/1000 -> 1235.452 | G14: ='2022 Sector View Electric'!R18 -> 900197 | H14: ='2022 Sector View Gas'!S15 -> 330000 | I14: ='2022 Sector View Gas'!R15 -> 1785756.25 | J14: 2685953.25
D15: Water Use Reducers | F15: ='2022 Sector View Electric'!S15/1000 -> 0.0948 | G15: ='2022 Sector View Electric'!R15 -> 5108.35 | H15: ='2022 Sector View Gas'!S13 -> 5.2 | I15: ='2022 Sector View Gas'!R13 -> 4069.275 | J15: 9177.625
D16: Weatherization | F16: ='2022 Sector View Electric'!S11/1000 -> 1217.130525 | G16: ='2022 Sector View Electric'!R11 -> 1099944.5 | H16: ='2022 Sector View Gas'!S10 -> 244915.574 | I16: ='2022 Sector View Gas'!R10 -> 2392793.8 | J16: 3492738.3
D17: Home Energy Reports | F17: ='2022 Sector View Electric'!S17/1000 -> 49484 | G17: ='2022 Sector View Electric'!R17 -> 1574532.68 | H17: ='2022 Sector View Gas'!S16 -> 2744500 | I17: ='2022 Sector View Gas'!R16 -> 1226218.88 | J17: 2800751.56
D18: Midstream HVAC and Water Heat | F18: ='2022 Sector View Electric'!S13/1000 -> 16416.736 | G18: ='2022 Sector View Electric'!R13 -> 10643413.65 | H18: ='2022 Sector View Gas'!S12 -> 0 | I18: ='2022 Sector View Gas'!R12 -> 0 | J18: 10643413.65
B19: 215 | C19: Single Family New Construction | F19: ='2022 Sector View Electric'!S19/1000+'2022 Sector View Electric'!S20/1000 -> 255.138 | G19: ='2022 Sector View Electric'!R19+'2022 Sector View Electric'!R20 -> 356340.2 | H19: ='2022 Sector View Gas'!S17+'2022 Sector View Gas'!S18 -> 2095.9 | I19: =+'2022 Sector View Gas'!R17+'2022 Sector View Gas'!R18 -> 46361.9 | J19: 402702.1
B20: 214 & 217 | C20: Moderate Income Residences | F20: ='2022 Sector View Electric'!S21 -> 0 | G20: ='2022 Sector View Electric'!R21 -> 88697.15 | H20: ='2022 Sector View Gas'!S19 -> 0 | I20: ='2022 Sector View Gas'!R19 -> 42471.925 | J20: 131169.075
B21: 217 | C21: Multifamily Retrofit | F21: =('2022 Sector View Electric'!S22+'2022 Sector View Electric'!S23)/1000 -> 9069.9772 | G21: =('2022 Sector View Electric'!R22+'2022 Sector View Electric'!R23) -> 7703559.905 | H21: ='2022 Sector View Gas'!S20+'2022 Sector View Gas'!S21 -> 37352.38 | I21: ='2022 Sector View Gas'!R20+'2022 Sector View Gas'!R21 -> 372476.782 | J21: 8076036.687
B22: 218 | C22: Multifamily New Construction | F22: ='2022 Sector View Electric'!S24/1000 -> 4500 | G22: ='2022 Sector View Electric'!R24 -> 2067455.425 | H22: ='2022 Sector View Gas'!S22 -> 50000 | I22: ='2022 Sector View Gas'!R22 -> 354366.05 | J22: 2421821.475
C23: Total, Residential Programs | F23: =F7+F8+SUM(F19:F22) -> 95571.61517 | G23: =G7+G8+SUM(G19:G22) -> 37890288.53 | H23: =H7+H8+SUM(H19:H22) -> 4188287.884 | I23: =I7+I8+SUM(I19:I22) -> 12582409.69 | J23: =J7+J8+SUM(J19:J22) -> 50472698.22
C25: Business Energy Management
B26: 250 | C26: Commercial / Industrial Retrofit | F26: =('2022 Sector View Electric'!S29/1000) -> 73469.199 | G26: ='2022 Sector View Electric'!R29 -> 25839078.89 | H26: ='2022 Sector View Gas'!S28 -> 603268 | I26: ='2022 Sector View Gas'!R28 -> 2492178.65 | J26: =G26+I26 -> 28331257.54
B27: 251 | C27: Commercial/Industrial New Construction | F27: ='2022 Sector View Electric'!S34/1000 -> 29500 | G27: ='2022 Sector View Electric'!R34 -> 8817266 | H27: ='2022 Sector View Gas'!S32 -> 90000 | I27: ='2022 Sector View Gas'!R32 -> 723114 | J27: =G27+I27 -> 9540380
B28: 253 | C28: Commercial Strategic Energy Management | F28: ='2022 Sector View Electric'!S35/1000 -> 16000 | G28: ='2022 Sector View Electric'!R35 -> 2378739.25 | H28: ='2022 Sector View Gas'!S33 -> 571500 | I28: ='2022 Sector View Gas'!R33 -> 735866.75 | J28: =G28+I28 -> 3114606
B29: E258 | C29: Large Power User - Self Directed Program Subtotal | F29: =F30+F31 -> 18176.194 | G29: =G30+G31 -> 7892879.483 | J29: =G29+I29 -> 7892879.483
B30: E258 | D30: 449 Customers | F30: ='2022 Sector View Electric'!S40/1000 -> 7917.921 | G30: ='2022 Sector View Electric'!R40 -> 3607677.698 | J30: 3607677.698
B31: E258 | D31: Non-449 Customers | F31: ='2022 Sector View Electric'!S41/1000 -> 10258.273 | G31: ='2022 Sector View Electric'!R41 -> 4285201.785 | J31: 4285201.785
B32: 261 | C32: Energy Efficient Technology Evaluation | F32: ='2022 Sector View Electric'!S42 -> 0 | G32: ='2022 Sector View Electric'!R42 -> 0 | H32: ='2022 Sector View Gas'!S37 -> 0 | I32: ='2022 Sector View Gas'!R37 -> 0 | J32: 0
B33: 262 | C33: Commercial Rebates | F33: ='2022 Sector View Electric'!S43/1000 -> 44627.6734 | G33: ='2022 Sector View Electric'!R43 -> 15993443.06 | H33: ='2022 Sector View Gas'!S38 -> 832532 | I33: ='2022 Sector View Gas'!R38 -> 3378810.525 | J33: 19372253.58
C34: Subtotal, Business Programs | F34: =SUM(F26:F29)+SUM(F32:F33) -> 181773.0664 | G34: =SUM(G26:G29)+SUM(G32:G33) -> 60921406.68 | H34: =SUM(H26:H33) -> 2097300 | I34: =SUM(I26:I33) -> 7329969.925 | J34: =G34+I34 -> 68251376.61
C36: Pilots With Uncertain Savings
B37: 249 | C37: Residential | F37: ='2022 Sector View Electric'!S55/1000 -> 862.5 | G37: ='2022 Sector View Electric'!R55 -> 595608.25 | H37: ='2022 Sector View Gas'!S50 -> 25125 | I37: ='2022 Sector View Gas'!R50 -> 0 | J37: =G37+I37 -> 595608.25
B38: 249 | C38: Commercial | F38: ='2022 Sector View Electric'!S59/1000 -> 1500 | G38: ='2022 Sector View Electric'!R59 -> 324350.25 | H38: ='2022 Sector View Gas'!S53 -> 7500 | I38: ='2022 Sector View Gas'!R53 -> 1870.05 | J38: 326220.3
C39: Subtotal, Pilots | F39: =SUM(F37:F38) -> 2362.5 | G39: =SUM(G37:G38) -> 919958.5 | H39: =SUM(H37:H38) -> 32625 | I39: =SUM(I37:I38) -> 1870.05 | J39: 921828.55
C41: Regional Efficiency Programs
B42: E254 | C42: NW Energy Efficiency Alliance (NEEA) | F42: ='2022 Sector View Electric'!S66/1000 -> 12964.8 | G42: ='2022 Sector View Electric'!R66 -> 4916640 | J42: =G42+I42 -> 4916640
C43: NEEA Natural Gas Market Transformation | H43: ='2022 Sector View Gas'!S61 -> 0 | I43: ='2022 Sector View Gas'!R61 -> 1590236 | J43: 1590236
B44: 219 | C44: Targeted DSM Pilot | F44: ='2022 Sector View Electric'!S67/1000 -> 0 | G44: ='2022 Sector View Electric'!R67 -> 616153.625 | H44: ='2022 Sector View Gas'!S60 -> 0 | I44: ='2022 Sector View Gas'!R60 -> 282280.125 | J44: 898433.75
B45: E292 | C45: Generation, Transmission and Distribution | F45: ='2022 Sector View Electric'!S68/1000 -> 6000 | G45: ='2022 Sector View Electric'!R68 -> 0 | J45: 0
C46: Subtotal, Regional Programs | F46: =SUM(F42:F45) -> 18964.8 | G46: =SUM(G42:G45) -> 5532793.625 | H46: =SUM(H42:H45) -> 0 | I46: =SUM(I42:I45) -> 1872516.125 | J46: 7405309.75
C48: Energy Efficiency Portfolio Support
C49: Data and Systems Services | G49: ='2022 Sector View Electric'!R74 -> 982456.2 | I49: ='2022 Sector View Gas'!R67 -> 146803.8 | J49: =G49+I49 -> 1129260
C50: Rebates Processing | G50: ='2022 Sector View Electric'!R75 -> 917965.39 | I50: ='2022 Sector View Gas'!R68 -> 138622.11 | J50: 1056587.5
C51: Verification Team | G51: ='2022 Sector View Electric'!R76 -> 611150.19 | I51: ='2022 Sector View Gas'!R69 -> 91177.31 | J51: 702327.5
C52: Programs Support | G52: ='2022 Sector View Electric'!R77 -> 764270.4225 | I52: ='2022 Sector View Gas'!R70 -> 24251.9225 | J52: 788522.345
C53: Trade Ally Memberships | G53: ='2022 Sector View Electric'!R78 -> 121800 | I53: ='2022 Sector View Gas'!R71 -> 18200 | J53: 140000
C54: Trade Ally Network (revenue + cost) | G54: ='2022 Sector View Electric'!R79 -> 12290.5855 | I54: ='2022 Sector View Gas'!R72 -> -19727.4145 | J54: -7436.829
C55: Automated Benchmarking System | G55: ='2022 Sector View Electric'!R80 -> 3076304 | I55: ='2022 Sector View Gas'!R73 -> 769076 | J55: 3845380
C56: Energy Advisors | G56: ='2022 Sector View Electric'!R81 -> 1312480.71 | I56: ='2022 Sector View Gas'!R74 -> 192290.29 | J56: 1504771
C57: Energy Efficient Communities | G57: ='2022 Sector View Electric'!R82 -> 1200990.107 | I57: ='2022 Sector View Gas'!R75 -> 184155.2645 | J57: 1385145.372
C58: Customer Digital Services | G58: ='2022 Sector View Electric'!R83 -> 1726947.285 | I58: ='2022 Sector View Gas'!R76 -> 564414.775 | J58: 2291362.06
C59: Market Integration | G59: ='2022 Sector View Electric'!R88 -> 1425046.8 | I59: ='2022 Sector View Gas'!R81 -> 211301.35 | J59: 1636348.15
C60: Events | G60: ='2022 Sector View Electric'!R89 -> 531567.45 | I60: ='2022 Sector View Gas'!R82 -> 109889.3 | J60: 641456.75
C61: Subtotal, Portfolio Support | G61: =SUM(G49:G60) -> 12683269.14 | I61: =SUM(I49:I60) -> 2430454.708 | J61: 15113723.85
C63: Energy Efficiency Research & Compliance
C64: Conservation Supply Curves | G64: ='2022 Sector View Electric'!R95 -> 440442.35 | I64: ='2022 Sector View Gas'!R88 -> 65813.65 | J64: =G64+I64 -> 506256
C65: Strategic Planning | G65: ='2022 Sector View Electric'!R96 -> 507927.75 | I65: ='2022 Sector View Gas'!R89 -> 75897.25 | J65: 583825
C66: Market Research | G66: ='2022 Sector View Electric'!R97 -> 203933.22 | I66: ='2022 Sector View Gas'!R90 -> 30472.78 | J66: 234406
C67: Program Evaluation | G67: ='2022 Sector View Electric'!R98 -> 1635802.7 | I67: ='2022 Sector View Gas'!R91 -> 355139.3 | J67: 1990942
C68: Biennial Electric Conservation Acquisition Review | G68: ='2022 Sector View Electric'!R99 -> 150000 | J68: 150000
C69: Subtotal, Research & Compliance | G69: =SUM(G64:G68) -> 2938106.02 | I69: =SUM(I64:I68) -> 527322.98 | J69: 3465429
B71: Total Savings, Efficiency Programs Included in CE Calculations | F71: =F23+F34+F39+F46 -> 298671.9816 | G71: =G23+G34+G39+G46+G61+G69 -> 120885822.5 | H71: =H23+H34+H39+H46 -> 6318212.884 | I71: =I23+I34+I39+I46+I61+I69 -> 24744543.48 | J71: =G71+I71 -> 145630366
C73: Other Customer Programs
B74: E150 | C74: Net Metering | G74: ='2022 Sector View Electric'!R105 -> 2190968.5 | J74: =G74+I74 -> 2190968.5
B75: 249A, 271 | C75: Demand Response Pilot | G75: ='2022 Sector View Electric'!R106 -> 340000 | I75: ='2022 Sector View Gas'!R97 -> 160000 | J75: 500000
C76: Subtotal, Other Energy Efficiency Programs | G76: =SUM(G74:G75) -> 2530968.5 | I76: =SUM(I74:I75) -> 160000 | J76: 2690968.5
C80: TOTAL SAVINGS AND TOTAL BUDGETS | F80: =F71 -> 298671.9816 | G80: =G71+G76 -> 123416791 | H80: =H71 -> 6318212.884 | I80: =I71+I76 -> 24904543.48 | J80: =G80+I80 -> 148321334.5
F81: =F80/8760 -> 34.09497507
D83: Blue cells = use for 10% "info-only" calculation: | G83: =(G39+G61)/G71 -> 0.1125295536 | I83: =(I39+I61)/I71 -> 0.09829741896
E84: Add up all blue cells and divide by "Total, Efficiency Programs Included in CE Calculations" line.
E85: HER program costs excluded from "info-only" calculation because savings will be measured.
D87: Purple cells = use to indicate a reasonable amt. spent on EM&V (condition (6)(c)): | G87: =(G49+G51+SUM(G67:G68))/(G23+G34) -> 0.03420049705 | I87: =(I49+I51+SUM(I67:I68))/(I23+I34) -> 0.02978651579
D88: EM&V Budget (WAC 480-109-120(1)(b)(vi)(B)) | G88: =(G49+G51+SUM(G67:G68)) -> 3379409.09 | I88: =(I49+I51+SUM(I67:I68)) -> 593120.41
E89: (Line bh) Add up the sum of [Data & Systems Services + Program Evaluation + BECAR + Verification] purple cells and divide by the [Residential + Business] purple cells.
E90: (Line bi) Add up the sum of [Data & Systems Services + Program Evaluation + BECAR + Verification] purple cells

Sheet Portfolio--2023 Specific
F1: BCP 2023
E2: PSE Conservation Rider Savings Goals and Budgets
C3: =NOW() -> 2021-10-22T17:15:42.630
B4: Schedule Nos. (Unless otherwise noted, applies to both electric and gas) | C4: Program Name | F4: MWh Savings | G4: Electric Rider Budget | H4: Therm Savings | I4: Gas Rider Budget | J4: Total Rider Budget
C5: (All indented program or activity names are color-coded and comprise the totals of the above program or activity grouping.)
C6: Residential Energy Management
B7: 201 | C7: Low Income Weatherization | F7: ='2023 Sector View Elect'!S8/1000 -> 1977.441 | G7: ='2023 Sector View Elect'!R8 -> 6108195.965 | H7: ='2023 Sector View Gas'!S8 -> 20743.53 | I7: ='2023 Sector View Gas'!R8 -> 1016785.932 | J7: =G7+I7 -> 7124981.897
B8: 214 | C8: Single Family Existing Subtotal | F8: =SUM(F9:F18) -> 34372.14117 | G8: =SUM(G9:G18) -> 22501020.53 | H8: =SUM(H9:H18) -> 1557964.474 | I8: =SUM(I9:I18) -> 10736726.63 | J8: =G8+I8 -> 33237747.16
D9: Residential lighting | F9: ='2023 Sector View Elect'!S16/1000 -> 965.6542 | G9: ='2023 Sector View Elect'!R16 -> 1050160.75 | J9: 1050160.75
D10: Space heat | F10: ='2023 Sector View Elect'!S12/1000 -> 8258.67 | G10: ='2023 Sector View Elect'!R12 -> 4375041.35 | H10: ='2023 Sector View Gas'!S11 -> 686972 | I10: ='2023 Sector View Gas'!R11 -> 4864474.5 | J10: 9239515.85
D11: Water heat | F11: ='2023 Sector View Elect'!S10/1000 -> 1565.00045 | G11: ='2023 Sector View Elect'!R10 -> 1169848.75 | H11: ='2023 Sector View Gas'!S9 -> 64956.9 | I11: ='2023 Sector View Gas'!R9 -> 476634.4 | J11: 1646483.15
D12: Home Energy Assessment | F12: ='2023 Sector View Elect'!S9/1000 -> 0 | G12: ='2023 Sector View Elect'!R9 -> 0 | J12: =G12+I12 -> 0
D13: Home Appliances | F13: ='2023 Sector View Elect'!S14/1000 -> 558 | G13: ='2023 Sector View Elect'!R14 -> 666154.85 | H13: ='2023 Sector View Gas'!S14 -> 6120 | I13: ='2023 Sector View Gas'!R14 -> 0 | J13: 666154.85
D14: Smart Thermostats | F14: ='2023 Sector View Elect'!S18/1000 -> 1235.452 | G14: ='2023 Sector View Elect'!R18 -> 898197 | H14: ='2023 Sector View Gas'!S15 -> 330000 | I14: ='2023 Sector View Gas'!R15 -> 1770400.05 | J14: 2668597.05
D15: Water Use Reducers | F15: ='2023 Sector View Elect'!S15/1000 -> 0 | G15: ='2023 Sector View Elect'!R15 -> 0 | H15: ='2023 Sector View Gas'!S13 -> 0 | I15: ='2023 Sector View Gas'!R13 -> 0 | J15: 0
D16: Weatherization | F16: ='2023 Sector View Elect'!S11/1000 -> 1217.130525 | G16: ='2023 Sector View Elect'!R11 -> 1099944.5 | H16: ='2023 Sector View Gas'!S10 -> 244915.574 | I16: ='2023 Sector View Gas'!R10 -> 2392793.8 | J16: 3492738.3
D17: Home Energy Reports | F17: ='2023 Sector View Elect'!S17/1000 -> 2580 | G17: ='2023 Sector View Elect'!R17 -> 1575141.68 | H17: ='2023 Sector View Gas'!S16 -> 225000 | I17: ='2023 Sector View Gas'!R16 -> 1232423.88 | J17: 2807565.56
D18: Midstream HVAC and Water Heat | F18: ='2023 Sector View Elect'!S13/1000 -> 17992.234 | G18: ='2023 Sector View Elect'!R13 -> 11666531.65 | H18: ='2023 Sector View Gas'!S12 -> 0 | I18: ='2023 Sector View Gas'!R12 -> 0 | J18: 11666531.65
B19: 215 | C19: Single Family New Construction | F19: ='2023 Sector View Elect'!S19/1000+'2023 Sector View Elect'!S20/1000 -> 255.138 | G19: ='2023 Sector View Elect'!R19+'2023 Sector View Elect'!R20 -> 431340.2 | H19: =+'2023 Sector View Gas'!S17+'2023 Sector View Gas'!S18 -> 2095.9 | I19: ='2023 Sector View Gas'!R17+'2023 Sector View Gas'!R18 -> 46361.9 | J19: 477702.1
B20: 214 & 217 | C20: Moderate Income Residences | F20: ='2023 Sector View Elect'!S21 -> 0 | G20: ='2023 Sector View Elect'!R21 -> 88697.15 | H20: ='2023 Sector View Gas'!S19 -> 0 | I20: ='2023 Sector View Gas'!R19 -> 56719.925 | J20: 145417.075
B21: 217 | C21: Multifamily Retrofit | F21: =('2023 Sector View Elect'!S22+'2023 Sector View Elect'!S23)/1000 -> 9069.9772 | G21: ='2023 Sector View Elect'!R22+'2023 Sector View Elect'!R23 -> 7703559.905 | H21: ='2023 Sector View Gas'!S20+'2023 Sector View Gas'!S21 -> 37352.38 | I21: ='2023 Sector View Gas'!R21+'2023 Sector View Gas'!R20 -> 372476.782 | J21: 8076036.687
B22: 218 | C22: Multifamily New Construction | F22: ='2023 Sector View Elect'!S24/1000 -> 4500 | G22: ='2023 Sector View Elect'!R24 -> 2067455.425 | H22: ='2023 Sector View Gas'!S22 -> 50000 | I22: ='2023 Sector View Gas'!R22 -> 354366.05 | J22: 2421821.475
C23: Total, Residential Programs | F23: =F7+F8+SUM(F19:F22) -> 50174.69738 | G23: =G7+G8+SUM(G19:G22) -> 38900269.18 | H23: =H7+H8+SUM(H19:H22) -> 1668156.284 | I23: =I7+I8+SUM(I19:I22) -> 12583437.22 | J23: =G23+I23 -> 51483706.39
C25: Business Energy Management
B26: 250 | C26: Commercial / Industrial Retrofit | F26: =('2023 Sector View Elect'!S29/1000) -> 80041.836 | G26: ='2023 Sector View Elect'!R29 -> 26587245.88 | H26: ='2023 Sector View Gas'!S28 -> 558454 | I26: ='2023 Sector View Gas'!R28 -> 2446140.826 | J26: =G26+I26 -> 29033386.71
B27: 251 | C27: Commercial/Industrial New Construction | F27: ='2023 Sector View Elect'!S34/1000 -> 17500 | G27: ='2023 Sector View Elect'!R34 -> 7017266 | H27: ='2023 Sector View Gas'!S32 -> 90000 | I27: ='2023 Sector View Gas'!R32 -> 723114 | J27: 7740380
B28: 253 | C28: Commercial Strategic Energy Management | F28: ='2023 Sector View Elect'!S35/1000 -> 16000 | G28: ='2023 Sector View Elect'!R35 -> 2528739.25 | H28: ='2023 Sector View Gas'!S33 -> 571500 | I28: ='2023 Sector View Gas'!R33 -> 770866.75 | J28: 3299606
B29: E258 | C29: Large Power User - Self Directed Program Subtotal | F29: =F30+F31 -> 1866.286 | G29: =G30+G31 -> 2038697.483 | J29: 2038697.483
B30: E258 | D30: 449 Customers | F30: ='2023 Sector View Elect'!S40/1000 -> 1632.014 | G30: ='2023 Sector View Elect'!R40 -> 1633922.698 | J30: 1633922.698
B31: E258 | D31: Non-449 Customers | F31: ='2023 Sector View Elect'!S41/1000 -> 234.272 | G31: ='2023 Sector View Elect'!R41 -> 404774.785 | J31: 404774.785
B32: 261 | C32: Energy Efficient Technology Evaluation | F32: ='2023 Sector View Elect'!S42 -> 0 | G32: ='2023 Sector View Elect'!R42 -> 0 | H32: ='2023 Sector View Gas'!S37 -> 0 | I32: ='2023 Sector View Gas'!R37 -> 0 | J32: 0
B33: 262 | C33: Commercial Rebates | F33: ='2023 Sector View Elect'!S43/1000 -> 49663.3391 | G33: ='2023 Sector View Elect'!R43 -> 17135836.19 | H33: ='2023 Sector View Gas'!S38 -> 651572 | I33: ='2023 Sector View Gas'!R38 -> 2655080.155 | J33: 19790916.35
C34: Subtotal, Business Programs | F34: =SUM(F26:F29)+SUM(F32:F33) -> 165071.4611 | G34: =SUM(G26:G29)+SUM(G32:G33) -> 55307784.81 | H34: =SUM(H26:H33) -> 1871526 | I34: =SUM(I26:I33) -> 6595201.731 | J34: 61902986.54
C36: Pilots With Uncertain Savings
B37: 249 | C37: Residential | F37: ='2023 Sector View Elect'!S55/1000 -> 862.5 | G37: ='2023 Sector View Elect'!R55 -> 448725.6266 | H37: ='2023 Sector View Gas'!S50 -> 25125 | I37: ='2023 Sector View Gas'!R50 -> 0 | J37: =G37+I37 -> 448725.6266
B38: 249 | C38: Commercial | F38: ='2023 Sector View Elect'!S59/1000 -> 1500 | G38: ='2023 Sector View Elect'!R59 -> 324350.25 | H38: ='2023 Sector View Gas'!S53 -> 7500 | I38: ='2023 Sector View Gas'!R53 -> 1870.05 | J38: 326220.3
C39: Subtotal, Pilots | F39: =SUM(F37:F38) -> 2362.5 | G39: =SUM(G37:G38) -> 773075.8766 | H39: =SUM(H37:H38) -> 32625 | I39: =SUM(I37:I38) -> 1870.05 | J39: 774945.9267
C41: Regional Efficiency Programs
B42: E254 | C42: NW Energy Efficiency Alliance (NEEA) | F42: ='2023 Sector View Elect'!S66/1000 -> 15417.6 | G42: ='2023 Sector View Elect'!R66 -> 4766748 | J42: =G42+I42 -> 4766748
C43: NEEA Natural Gas Market Transformation | H43: ='2023 Sector View Gas'!S61 -> 0 | I43: ='2023 Sector View Gas'!R61 -> 1590236 | J43: 1590236
B44: 219 | C44: Targeted DSM Pilot | F44: ='2023 Sector View Elect'!S67/1000 -> 0 | G44: ='2023 Sector View Elect'!R67 -> 616153.625 | H44: ='2023 Sector View Gas'!S60 -> 0 | I44: ='2023 Sector View Gas'!R60 -> 282280.125 | J44: 898433.75
B45: E292 | C45: Generation, Transmission and Distribution | F45: ='2023 Sector View Elect'!S68/1000 -> 6000 | G45: ='2023 Sector View Elect'!R68 -> 0 | J45: 0
C46: Subtotal, Regional Programs | F46: =SUM(F42:F45) -> 21417.6 | G46: =SUM(G42:G45) -> 5382901.625 | H46: =SUM(H42:H45) -> 0 | I46: =SUM(I42:I45) -> 1872516.125 | J46: 7255417.75
C48: Energy Efficiency Portfolio Support
C49: Data and Systems Services | G49: ='2023 Sector View Elect'!R74 -> 982456.2 | I49: ='2023 Sector View Gas'!R67 -> 146803.8 | J49: =G49+I49 -> 1129260
C50: Rebates Processing | G50: ='2023 Sector View Elect'!R75 -> 917965.39 | I50: ='2023 Sector View Gas'!R68 -> 138622.11 | J50: 1056587.5
C51: Verification Team | G51: ='2023 Sector View Elect'!R76 -> 611150.19 | I51: ='2023 Sector View Gas'!R69 -> 91177.31 | J51: 702327.5
C52: Programs Support | G52: ='2023 Sector View Elect'!R77 -> 720770.4225 | I52: ='2023 Sector View Gas'!R70 -> 17751.9225 | J52: 738522.345
C53: Trade Ally Memberships | G53: ='2023 Sector View Elect'!R78 -> 121800 | I53: ='2023 Sector View Gas'!R71 -> 18200 | J53: 140000
C54: Trade Ally Network (revenue + cost) | G54: ='2023 Sector View Elect'!R79 -> 19122.5015 | I54: ='2023 Sector View Gas'!R72 -> -12895.4985 | J54: 6227.003
C55: Automated Benchmarking System | G55: ='2023 Sector View Elect'!R80 -> 1101424 | I55: ='2023 Sector View Gas'!R73 -> 275356 | J55: 1376780
C56: Energy Advisors | G56: ='2023 Sector View Elect'!R81 -> 1312480.71 | I56: ='2023 Sector View Gas'!R74 -> 192260.29 | J56: 1504741
C57: Energy Efficient Communities | G57: ='2023 Sector View Elect'!R82 -> 1237599.166 | I57: ='2023 Sector View Gas'!R75 -> 189717.9988 | J57: 1427317.165
C58: Customer Digital Services | G58: ='2023 Sector View Elect'!R83 -> 1726947.285 | I58: ='2023 Sector View Gas'!R76 -> 564414.775 | J58: 2291362.06
C59: Market Integration | G59: ='2023 Sector View Elect'!R88 -> 1425046.81 | I59: ='2023 Sector View Gas'!R81 -> 211301.35 | J59: 1636348.16
C60: Events | G60: ='2023 Sector View Elect'!R89 -> 493747.45 | I60: ='2023 Sector View Gas'!R82 -> 102329.3 | J60: 596076.75
C61: Subtotal, Portfolio Support | G61: =SUM(G49:G60) -> 10670510.13 | I61: =SUM(I49:I60) -> 1935039.358 | J61: 12605549.48
C63: Energy Efficiency Research & Compliance
C64: Conservation Supply Curves | G64: ='2023 Sector View Elect'!R95 -> 440442.35 | I64: ='2023 Sector View Gas'!R88 -> 65813.65 | J64: =G64+I64 -> 506256
C65: Strategic Planning | G65: ='2023 Sector View Elect'!R96 -> 507927.75 | I65: ='2023 Sector View Gas'!R89 -> 75897.25 | J65: 583825
C66: Market Research | G66: ='2023 Sector View Elect'!R97 -> 203933.22 | I66: ='2023 Sector View Gas'!R90 -> 30472.78 | J66: 234406
C67: Program Evaluation | G67: ='2023 Sector View Elect'!R98 -> 1641202.7 | I67: ='2023 Sector View Gas'!R91 -> 358739.3 | J67: 1999942
C68: Biennial Electric Conservation Acquisition Review | G68: ='2023 Sector View Elect'!R99 -> 150000 | J68: 150000
C69: Subtotal, Research & Compliance | G69: =SUM(G64:G68) -> 2943506.02 | I69: =SUM(I64:I68) -> 530922.98 | J69: 3474429
B71: Total Savings, Efficiency Programs Included in CE Calculations | F71: =F23+F34+F39+F46 -> 239026.2585 | G71: =G23+G34+G39+G46+G61+G69 -> 113978047.6 | H71: =H23+H34+H39+H46 -> 3572307.284 | I71: =I23+I34+I39+I46+I61+I69 -> 23518987.46 | J71: =G71+I71 -> 137497035.1
C73: Other Customer Programs
B74: E150 | C74: Net Metering | G74: ='2023 Sector View Elect'!R105 -> 2410968.5 | J74: =G74+I74 -> 2410968.5
B75: 249A, 271 | C75: Demand Response Pilot | G75: ='2023 Sector View Elect'!R106 -> 300000 | I75: ='2023 Sector View Gas'!R97 -> 100000 | J75: 400000
C76: Subtotal, Other Energy Efficiency Programs | G76: =SUM(G74:G75) -> 2710968.5 | I76: =SUM(I74:I75) -> 100000 | J76: 2810968.5
C80: TOTAL SAVINGS AND TOTAL BUDGETS | F80: =F71 -> 239026.2585 | G80: =G71+G76 -> 116689016.1 | H80: =H71 -> 3572307.284 | I80: =I71+I76 -> 23618987.46 | J80: =G80+I80 -> 140308003.6
F81: =F80/8760 -> 27.28610257
D83: Blue cells = use for 10% "info-only" calculation: | G83: =(G39+G61)/G71 -> 0.1004016672 | I83: =(I39+I61)/I71 -> 0.08235513586
E84: Add up all blue cells and divide by "Total, Efficiency Programs Included in CE Calculations" line.
E85: HER program costs excluded from "info-only" calculation because savings will be measured.
D87: Purple cells = use to indicate a reasonable amt. spent on EM&V (condition (6)(c)): | G87: =(G49+G51+SUM(G67:G68))/(G23+G34) -> 0.03592908405 | I87: =(I49+I51+SUM(I67:I68))/(I23+I34) -> 0.03111380383
D88: EM&V Budget (WAC 480-109-120(1)(b)(vi)(B)) | G88: =(G49+G51+SUM(G67:G68)) -> 3384809.09 | I88: =(I49+I51+SUM(I67:I68)) -> 596720.41
E89: (Line bh) Add up the sum of [Data & Systems Services + Program Evaluation + BECAR + Verification] purple cells and divide by the [Residential + Business] purple cells.
E90: (Line bi) Add up the sum of [Data & Systems Services + Program Evaluation + BECAR + Verification] purple cells

Sheet 2-year Sector View Electric
C2: Energy Efficiency 2022-2023 Budgets and Aggregate Program Savings
C3: Two-Year Sector View
C4: Electric Programs | I4: Please see category descriptions at the bottom of the sector table.
I5: Budget Category
B6: Workbook Name | C6: Schedule | D6: Comment | E6: Description (Blue, indented text indicates a sub-total value) | H6: Order Number (Click on the order# below to link to the detail page) | I6: Program Labor | J6: Overhead | K6: Marketing | L6: Employee/Office Expense | M6: Outside Services | N6: Materials | O6: Miscellaneous | P6: DBtC | Q6: Revenue | R6: Total Budget | S6: Total Savings kWh | U6: Comments
C7: Residential Energy Management
B8: LIW Detail_REM E201_Elec | C8: E201 | E8: Low Income Weatherization | H8: 18230611 | I8: ='2022 Sector View Electric'!I8+'2023 Sector View Elect'!I8 -> 234225 | J8: ='2022 Sector View Electric'!J8+'2023 Sector View Elect'!J8 -> 182929.725 | K8: ='2022 Sector View Electric'!K8+'2023 Sector View Elect'!K8 -> 194400 | L8: ='2022 Sector View Electric'!L8+'2023 Sector View Elect'!L8 -> 9000 | M8: ='2022 Sector View Electric'!M8+'2023 Sector View Elect'!M8 -> 45000 | N8: ='2022 Sector View Electric'!N8+'2023 Sector View Elect'!N8 -> 2700 | O8: ='2022 Sector View Electric'!O8+'2023 Sector View Elect'!O8 -> 0 | P8: ='2022 Sector View Electric'!P8+'2023 Sector View Elect'!P8 -> 11548137.21 | Q8: ='2022 Sector View Electric'!Q8+'2023 Sector View Elect'!Q8 -> 0 | R8: ='2022 Sector View Electric'!R8+'2023 Sector View Elect'!R8 -> 12216391.93 | S8: ='2022 Sector View Electric'!S8+'2023 Sector View Elect'!S8 -> 3954882
B9: HomePrint Detail_REM_E214 Elec | C9: E214 | E9: Home Energy Assessments | H9: 18230625 | I9: ='2022 Sector View Electric'!I9+'2023 Sector View Elect'!I9 -> 0 | J9: ='2022 Sector View Electric'!J9+'2023 Sector View Elect'!J9 -> 0 | K9: ='2022 Sector View Electric'!K9+'2023 Sector View Elect'!K9 -> 0 | L9: ='2022 Sector View Electric'!L9+'2023 Sector View Elect'!L9 -> 0 | M9: ='2022 Sector View Electric'!M9+'2023 Sector View Elect'!M9 -> 0 | N9: ='2022 Sector View Electric'!N9+'2023 Sector View Elect'!N9 -> 0 | O9: ='2022 Sector View Electric'!O9+'2023 Sector View Elect'!O9 -> 0 | P9: ='2022 Sector View Electric'!P9+'2023 Sector View Elect'!P9 -> 0 | Q9: ='2022 Sector View Electric'!Q9+'2023 Sector View Elect'!Q9 -> 0 | R9: ='2022 Sector View Electric'!R9+'2023 Sector View Elect'!R9 -> 0 | S9: ='2022 Sector View Electric'!S9+'2023 Sector View Elect'!S9 -> 0
B10: WaterHea_Detail_REM_E214 Elec | C10: E214 | E10: SF Existing Water Heat | H10: 18230626 | I10: ='2022 Sector View Electric'!I10+'2023 Sector View Elect'!I10 -> 307500 | J10: ='2022 Sector View Electric'!J10+'2023 Sector View Elect'!J10 -> 240157.5 | K10: ='2022 Sector View Electric'!K10+'2023 Sector View Elect'!K10 -> 280000 | L10: ='2022 Sector View Electric'!L10+'2023 Sector View Elect'!L10 -> 1000 | M10: ='2022 Sector View Electric'!M10+'2023 Sector View Elect'!M10 -> 187040 | N10: ='2022 Sector View Electric'!N10+'2023 Sector View Elect'!N10 -> 1000 | O10: ='2022 Sector View Electric'!O10+'2023 Sector View Elect'!O10 -> 1000 | P10: ='2022 Sector View Electric'!P10+'2023 Sector View Elect'!P10 -> 1272000 | Q10: ='2022 Sector View Electric'!Q10+'2023 Sector View Elect'!Q10 -> 0 | R10: ='2022 Sector View Electric'!R10+'2023 Sector View Elect'!R10 -> 2289697.5 | S10: ='2022 Sector View Electric'!S10+'2023 Sector View Elect'!S10 -> 3009695.9
B11: Wx_Detail_REM E214 Elec | C11: E214 | E11: SF Existing Weatherization | H11: 18230627 | I11: ='2022 Sector View Electric'!I11+'2023 Sector View Elect'!I11 -> 169000 | J11: ='2022 Sector View Electric'!J11+'2023 Sector View Elect'!J11 -> 131989 | K11: ='2022 Sector View Electric'!K11+'2023 Sector View Elect'!K11 -> 220000 | L11: ='2022 Sector View Electric'!L11+'2023 Sector View Elect'!L11 -> 2000 | M11: ='2022 Sector View Electric'!M11+'2023 Sector View Elect'!M11 -> 7000 | N11: ='2022 Sector View Electric'!N11+'2023 Sector View Elect'!N11 -> 1000 | O11: ='2022 Sector View Electric'!O11+'2023 Sector View Elect'!O11 -> 5000 | P11: ='2022 Sector View Electric'!P11+'2023 Sector View Elect'!P11 -> 1663900 | Q11: ='2022 Sector View Electric'!Q11+'2023 Sector View Elect'!Q11 -> 0 | R11: ='2022 Sector View Electric'!R11+'2023 Sector View Elect'!R11 -> 2199889 | S11: ='2022 Sector View Electric'!S11+'2023 Sector View Elect'!S11 -> 2434261.05
B12: SpcHeat Detail_REM_E214 Elec | C12: E214 | E12: SF Existing Space Heat | H12: 18230628 | I12: ='2022 Sector View Electric'!I12+'2023 Sector View Elect'!I12 -> 156700 | J12: ='2022 Sector View Electric'!J12+'2023 Sector View Elect'!J12 -> 122382.7 | K12: ='2022 Sector View Electric'!K12+'2023 Sector View Elect'!K12 -> 450000 | L12: ='2022 Sector View Electric'!L12+'2023 Sector View Elect'!L12 -> 2000 | M12: ='2022 Sector View Electric'!M12+'2023 Sector View Elect'!M12 -> 80000 | N12: ='2022 Sector View Electric'!N12+'2023 Sector View Elect'!N12 -> 3000 | O12: ='2022 Sector View Electric'!O12+'2023 Sector View Elect'!O12 -> 0 | P12: ='2022 Sector View Electric'!P12+'2023 Sector View Elect'!P12 -> 7936000 | Q12: ='2022 Sector View Electric'!Q12+'2023 Sector View Elect'!Q12 -> 0 | R12: ='2022 Sector View Electric'!R12+'2023 Sector View Elect'!R12 -> 8750082.7 | S12: ='2022 Sector View Electric'!S12+'2023 Sector View Elect'!S12 -> 16517340
C13: E214 | E13: Residential Midstream HVAC and Water Heat | H13: 18230162 | I13: ='2022 Sector View Electric'!I13+'2023 Sector View Elect'!I13 -> 211300 | J13: ='2022 Sector View Electric'!J13+'2023 Sector View Elect'!J13 -> 165025.3 | K13: ='2022 Sector View Electric'!K13+'2023 Sector View Elect'!K13 -> 0 | L13: ='2022 Sector View Electric'!L13+'2023 Sector View Elect'!L13 -> 3000 | M13: ='2022 Sector View Electric'!M13+'2023 Sector View Elect'!M13 -> 7160000 | N13: ='2022 Sector View Electric'!N13+'2023 Sector View Elect'!N13 -> 3000 | O13: ='2022 Sector View Electric'!O13+'2023 Sector View Elect'!O13 -> 0 | P13: ='2022 Sector View Electric'!P13+'2023 Sector View Elect'!P13 -> 14767620 | Q13: ='2022 Sector View Electric'!Q13+'2023 Sector View Elect'!Q13 -> 0 | R13: ='2022 Sector View Electric'!R13+'2023 Sector View Elect'!R13 -> 22309945.3 | S13: ='2022 Sector View Electric'!S13+'2023 Sector View Elect'!S13 -> 34408970
B14: HmAppplc_Detail_REM_E214 Elec | C14: E214 | E14: Home Appliances | H14: 18230434 | I14: ='2022 Sector View Electric'!I14+'2023 Sector View Elect'!I14 -> 123700 | J14: ='2022 Sector View Electric'!J14+'2023 Sector View Elect'!J14 -> 96609.7 | K14: ='2022 Sector View Electric'!K14+'2023 Sector View Elect'!K14 -> 120000 | L14: ='2022 Sector View Electric'!L14+'2023 Sector View Elect'!L14 -> 1000 | M14: ='2022 Sector View Electric'!M14+'2023 Sector View Elect'!M14 -> 480000 | N14: ='2022 Sector View Electric'!N14+'2023 Sector View Elect'!N14 -> 1000 | O14: ='2022 Sector View Electric'!O14+'2023 Sector View Elect'!O14 -> 0 | P14: ='2022 Sector View Electric'!P14+'2023 Sector View Elect'!P14 -> 555670 | Q14: ='2022 Sector View Electric'!Q14+'2023 Sector View Elect'!Q14 -> 0 | R14: ='2022 Sector View Electric'!R14+'2023 Sector View Elect'!R14 -> 1377979.7 | S14: ='2022 Sector View Electric'!S14+'2023 Sector View Elect'!S14 -> 1197328
B15: ShwrHead_Detail_REM_E214 Elec | C15: E214 | E15: Residential Water Use Reducers | H15: 18230435 | I15: ='2022 Sector View Electric'!I15+'2023 Sector View Elect'!I15 -> 2850 | J15: ='2022 Sector View Electric'!J15+'2023 Sector View Elect'!J15 -> 2225.85 | K15: ='2022 Sector View Electric'!K15+'2023 Sector View Elect'!K15 -> 0 | L15: ='2022 Sector View Electric'!L15+'2023 Sector View Elect'!L15 -> 0 | M15: ='2022 Sector View Electric'!M15+'2023 Sector View Elect'!M15 -> 0 | N15: ='2022 Sector View Electric'!N15+'2023 Sector View Elect'!N15 -> 0 | O15: ='2022 Sector View Electric'!O15+'2023 Sector View Elect'!O15 -> 0 | P15: ='2022 Sector View Electric'!P15+'2023 Sector View Elect'!P15 -> 32.5 | Q15: ='2022 Sector View Electric'!Q15+'2023 Sector View Elect'!Q15 -> 0 | R15: ='2022 Sector View Electric'!R15+'2023 Sector View Elect'!R15 -> 5108.35 | S15: ='2022 Sector View Electric'!S15+'2023 Sector View Elect'!S15 -> 94.8
B16: Lighting Detail_REM_E214 Elec | C16: E214 | E16: Energy Efficient Lighting Services | H16: 18230440 | I16: ='2022 Sector View Electric'!I16+'2023 Sector View Elect'!I16 -> 187500 | J16: ='2022 Sector View Electric'!J16+'2023 Sector View Elect'!J16 -> 146437.5 | K16: ='2022 Sector View Electric'!K16+'2023 Sector View Elect'!K16 -> 160000 | L16: ='2022 Sector View Electric'!L16+'2023 Sector View Elect'!L16 -> 5000 | M16: ='2022 Sector View Electric'!M16+'2023 Sector View Elect'!M16 -> 430000 | N16: ='2022 Sector View Electric'!N16+'2023 Sector View Elect'!N16 -> 4000 | O16: ='2022 Sector View Electric'!O16+'2023 Sector View Elect'!O16 -> 0 | P16: ='2022 Sector View Electric'!P16+'2023 Sector View Elect'!P16 -> 1253352 | Q16: ='2022 Sector View Electric'!Q16+'2023 Sector View Elect'!Q16 -> 0 | R16: ='2022 Sector View Electric'!R16+'2023 Sector View Elect'!R16 -> 2186289.5 | S16: ='2022 Sector View Electric'!S16+'2023 Sector View Elect'!S16 -> 2038606.4
B17: HER Detail_REM_E214 elec. | C17: E214 | E17: Home Energy Reports | H17: 18230461 | I17: ='2022 Sector View Electric'!I17+'2023 Sector View Elect'!I17 -> 124400 | J17: ='2022 Sector View Electric'!J17+'2023 Sector View Elect'!J17 -> 97156.4 | K17: ='2022 Sector View Electric'!K17+'2023 Sector View Elect'!K17 -> 0 | L17: ='2022 Sector View Electric'!L17+'2023 Sector View Elect'!L17 -> 2900 | M17: ='2022 Sector View Electric'!M17+'2023 Sector View Elect'!M17 -> 1469408.96 | N17: ='2022 Sector View Electric'!N17+'2023 Sector View Elect'!N17 -> 0 | O17: ='2022 Sector View Electric'!O17+'2023 Sector View Elect'!O17 -> 0 | P17: ='2022 Sector View Electric'!P17+'2023 Sector View Elect'!P17 -> 1455809 | Q17: ='2022 Sector View Electric'!Q17+'2023 Sector View Elect'!Q17 -> 0 | R17: ='2022 Sector View Electric'!R17+'2023 Sector View Elect'!R17 -> 3149674.36 | S17: ='2022 Sector View Electric'!S17+'2023 Sector View Elect'!S17 -> 52064000
B18: Web Tstat Detail_REM E214 Elec | C18: E214 | E18: Smart Thermostats | H18: 18230023 | I18: ='2022 Sector View Electric'!I18+'2023 Sector View Elect'!I18 -> 124000 | J18: ='2022 Sector View Electric'!J18+'2023 Sector View Elect'!J18 -> 96844 | K18: ='2022 Sector View Electric'!K18+'2023 Sector View Elect'!K18 -> 88000 | L18: ='2022 Sector View Electric'!L18+'2023 Sector View Elect'!L18 -> 200 | M18: ='2022 Sector View Electric'!M18+'2023 Sector View Elect'!M18 -> 902000 | N18: ='2022 Sector View Electric'!N18+'2023 Sector View Elect'!N18 -> 2000 | O18: ='2022 Sector View Electric'!O18+'2023 Sector View Elect'!O18 -> 0 | P18: ='2022 Sector View Electric'!P18+'2023 Sector View Elect'!P18 -> 585350 | Q18: ='2022 Sector View Electric'!Q18+'2023 Sector View Elect'!Q18 -> 0 | R18: ='2022 Sector View Electric'!R18+'2023 Sector View Elect'!R18 -> 1798394 | S18: ='2022 Sector View Electric'!S18+'2023 Sector View Elect'!S18 -> 2470904
B19: SFNC Detail_REM E215 Elec | C19: E215 | E19: Single Family New Construction | H19: 18230405 | I19: ='2022 Sector View Electric'!I19+'2023 Sector View Elect'!I19 -> 71750 | J19: ='2022 Sector View Electric'!J19+'2023 Sector View Elect'!J19 -> 56036.75 | K19: ='2022 Sector View Electric'!K19+'2023 Sector View Elect'!K19 -> 20000 | L19: ='2022 Sector View Electric'!L19+'2023 Sector View Elect'!L19 -> 2000 | M19: ='2022 Sector View Electric'!M19+'2023 Sector View Elect'!M19 -> 12000 | N19: ='2022 Sector View Electric'!N19+'2023 Sector View Elect'!N19 -> 0 | O19: ='2022 Sector View Electric'!O19+'2023 Sector View Elect'!O19 -> 0 | P19: ='2022 Sector View Electric'!P19+'2023 Sector View Elect'!P19 -> 150000 | Q19: ='2022 Sector View Electric'!Q19+'2023 Sector View Elect'!Q19 -> 75000 | R19: ='2022 Sector View Electric'!R19+'2023 Sector View Elect'!R19 -> 386786.75 | S19: ='2022 Sector View Electric'!S19+'2023 Sector View Elect'!S19 -> 200000
B20: MfgHmNew Detail_REM E215 Elec | C20: E215 | E20: Manufactured Home New Construction | H20: 18230071 | I20: ='2022 Sector View Electric'!I20+'2023 Sector View Elect'!I20 -> 56650 | J20: ='2022 Sector View Electric'!J20+'2023 Sector View Elect'!J20 -> 44243.65 | K20: ='2022 Sector View Electric'!K20+'2023 Sector View Elect'!K20 -> 10000 | L20: ='2022 Sector View Electric'!L20+'2023 Sector View Elect'!L20 -> 0 | M20: ='2022 Sector View Electric'!M20+'2023 Sector View Elect'!M20 -> 108000 | N20: ='2022 Sector View Electric'!N20+'2023 Sector View Elect'!N20 -> 0 | O20: ='2022 Sector View Electric'!O20+'2023 Sector View Elect'!O20 -> 0 | P20: ='2022 Sector View Electric'!P20+'2023 Sector View Elect'!P20 -> 182000 | Q20: ='2022 Sector View Electric'!Q20+'2023 Sector View Elect'!Q20 -> 0 | R20: ='2022 Sector View Electric'!R20+'2023 Sector View Elect'!R20 -> 400893.65 | S20: ='2022 Sector View Electric'!S20+'2023 Sector View Elect'!S20 -> 310276
B21: Efficiency Boost E217 Elec | C21: E214 & 217 | E21: Moderate Income Residences | H21: 18230751 | I21: ='2022 Sector View Electric'!I21+'2023 Sector View Elect'!I21 -> 60300 | J21: ='2022 Sector View Electric'!J21+'2023 Sector View Elect'!J21 -> 47094.3 | K21: ='2022 Sector View Electric'!K21+'2023 Sector View Elect'!K21 -> 70000 | L21: ='2022 Sector View Electric'!L21+'2023 Sector View Elect'!L21 -> 0 | M21: ='2022 Sector View Electric'!M21+'2023 Sector View Elect'!M21 -> 0 | N21: ='2022 Sector View Electric'!N21+'2023 Sector View Elect'!N21 -> 0 | O21: ='2022 Sector View Electric'!O21+'2023 Sector View Elect'!O21 -> 0 | P21: ='2022 Sector View Electric'!P21+'2023 Sector View Elect'!P21 -> 0 | Q21: ='2022 Sector View Electric'!Q21+'2023 Sector View Elect'!Q21 -> 0 | R21: ='2022 Sector View Electric'!R21+'2023 Sector View Elect'!R21 -> 177394.3 | S21: ='2022 Sector View Electric'!S21+'2023 Sector View Elect'!S21 -> 0
B22: MF Retr Detail_REM E217 Elec | C22: E217 | E22: Multifamily Retrofit | H22: 18230407 | I22: ='2022 Sector View Electric'!I22+'2023 Sector View Elect'!I22 -> 280250 | J22: ='2022 Sector View Electric'!J22+'2023 Sector View Elect'!J22 -> 218875.25 | K22: ='2022 Sector View Electric'!K22+'2023 Sector View Elect'!K22 -> 120000 | L22: ='2022 Sector View Electric'!L22+'2023 Sector View Elect'!L22 -> 8000 | M22: ='2022 Sector View Electric'!M22+'2023 Sector View Elect'!M22 -> 2720993.16 | N22: ='2022 Sector View Electric'!N22+'2023 Sector View Elect'!N22 -> 0 | O22: ='2022 Sector View Electric'!O22+'2023 Sector View Elect'!O22 -> 0 | P22: ='2022 Sector View Electric'!P22+'2023 Sector View Elect'!P22 -> 12059001.4 | Q22: ='2022 Sector View Electric'!Q22+'2023 Sector View Elect'!Q22 -> 0 | R22: ='2022 Sector View Electric'!R22+'2023 Sector View Elect'!R22 -> 15407119.81 | S22: ='2022 Sector View Electric'!S22+'2023 Sector View Elect'!S22 -> 18139954.4
B23: MF Retr Grants Detail_REM E217 Elec | C23: E217 | E23: State Grants | H23: 18230747 | I23: ='2022 Sector View Electric'!I23+'2023 Sector View Elect'!I23 -> 0 | J23: ='2022 Sector View Electric'!J23+'2023 Sector View Elect'!J23 -> 0 | K23: ='2022 Sector View Electric'!K23+'2023 Sector View Elect'!K23 -> 0 | L23: ='2022 Sector View Electric'!L23+'2023 Sector View Elect'!L23 -> 0 | M23: ='2022 Sector View Electric'!M23+'2023 Sector View Elect'!M23 -> 0 | N23: ='2022 Sector View Electric'!N23+'2023 Sector View Elect'!N23 -> 0 | O23: ='2022 Sector View Electric'!O23+'2023 Sector View Elect'!O23 -> 0 | P23: ='2022 Sector View Electric'!P23+'2023 Sector View Elect'!P23 -> 0 | Q23: ='2022 Sector View Electric'!Q23+'2023 Sector View Elect'!Q23 -> 0 | R23: ='2022 Sector View Electric'!R23+'2023 Sector View Elect'!R23 -> 0 | S23: ='2022 Sector View Electric'!S23+'2023 Sector View Elect'!S23 -> 0
B24: MFNC Detail_REM E218 Elec | C24: E218 | E24: Multi-Family New Construction | H24: 18230486 | I24: ='2022 Sector View Electric'!I24+'2023 Sector View Elect'!I24 -> 137850 | J24: ='2022 Sector View Electric'!J24+'2023 Sector View Elect'!J24 -> 107660.85 | K24: ='2022 Sector View Electric'!K24+'2023 Sector View Elect'!K24 -> 40000 | L24: ='2022 Sector View Electric'!L24+'2023 Sector View Elect'!L24 -> 3000 | M24: ='2022 Sector View Electric'!M24+'2023 Sector View Elect'!M24 -> 1110000 | N24: ='2022 Sector View Electric'!N24+'2023 Sector View Elect'!N24 -> 400 | O24: ='2022 Sector View Electric'!O24+'2023 Sector View Elect'!O24 -> 0 | P24: ='2022 Sector View Electric'!P24+'2023 Sector View Elect'!P24 -> 2736000 | Q24: ='2022 Sector View Electric'!Q24+'2023 Sector View Elect'!Q24 -> 0 | R24: ='2022 Sector View Electric'!R24+'2023 Sector View Elect'!R24 -> 4134910.85 | S24: ='2022 Sector View Electric'!S24+'2023 Sector View Elect'!S24 -> 9000000
G25: Total, Residential Energy Management | I25: =SUM(I8:I24) -> 2247975 | J25: 1755668.475 | K25: 1772400 | L25: 39100 | M25: 14711442.12 | N25: 18100 | O25: 6000 | P25: 56164872.11 | Q25: 75000 | R25: 76790557.7 | S25: 145746312.6
P26: =P25/R25 -> 0.7314033624
H27: 2020-2021 Figures | I27: 2378381 | J27: 2076326.613 | K27: 2418530 | L27: 62150 | M27: 8172905.98 | N27: 32200 | O27: 10200 | P27: 50989941.84 | Q27: 0 | R27: 66140635.44 | S27: 179872427.9
C28: Business Energy Managment
E29: Commercial/Industrial Retrofit | I29: =SUM(I30:I33) -> 5710412 | J29: =SUM(J30:J33) -> 4459831.772 | K29: 246000 | L29: 95000 | M29: 1978936 | N29: 14000 | O29: 6000 | P29: 39916145 | Q29: 0 | R29: =SUM(R30:R33) -> 52426324.77 | S29: =SUM(S30:S33) -> 153511035
B30: CI Retr Detail_BEM E250 Elec | C30: E250 | E30: Retrofit Custom Grants | H30: 18230711 | I30: ='2022 Sector View Electric'!I30+'2023 Sector View Elect'!I30 -> 1421555 | J30: ='2022 Sector View Electric'!J30+'2023 Sector View Elect'!J30 -> 1110234.455 | K30: ='2022 Sector View Electric'!K30+'2023 Sector View Elect'!K30 -> 100000 | L30: ='2022 Sector View Electric'!L30+'2023 Sector View Elect'!L30 -> 50000 | M30: ='2022 Sector View Electric'!M30+'2023 Sector View Elect'!M30 -> 1024000 | N30: ='2022 Sector View Electric'!N30+'2023 Sector View Elect'!N30 -> 7000 | O30: ='2022 Sector View Electric'!O30+'2023 Sector View Elect'!O30 -> 0 | P30: ='2022 Sector View Electric'!P30+'2023 Sector View Elect'!P30 -> 9131555 | Q30: ='2022 Sector View Electric'!Q30+'2023 Sector View Elect'!Q30 -> 0 | R30: ='2022 Sector View Electric'!R30+'2023 Sector View Elect'!R30 -> 12844344.46 | S30: ='2022 Sector View Electric'!S30+'2023 Sector View Elect'!S30 -> 28500000
B31: BusLgtGrants_BEM E250 Elect | C31: E250 | E31: Custom Lighting Grants | H31: 18230724 | I31: ='2022 Sector View Electric'!I31+'2023 Sector View Elect'!I31 -> 3550000 | J31: ='2022 Sector View Electric'!J31+'2023 Sector View Elect'!J31 -> 2772550 | K31: ='2022 Sector View Electric'!K31+'2023 Sector View Elect'!K31 -> 94000 | L31: ='2022 Sector View Electric'!L31+'2023 Sector View Elect'!L31 -> 35000 | M31: ='2022 Sector View Electric'!M31+'2023 Sector View Elect'!M31 -> 205000 | N31: ='2022 Sector View Electric'!N31+'2023 Sector View Elect'!N31 -> 7000 | O31: ='2022 Sector View Electric'!O31+'2023 Sector View Elect'!O31 -> 6000 | P31: ='2022 Sector View Electric'!P31+'2023 Sector View Elect'!P31 -> 27175000 | Q31: ='2022 Sector View Electric'!Q31+'2023 Sector View Elect'!Q31 -> 0 | R31: ='2022 Sector View Electric'!R31+'2023 Sector View Elect'!R31 -> 33844550 | S31: ='2022 Sector View Electric'!S31+'2023 Sector View Elect'!S31 -> 97000000
B32: CI Indust_BEM_E250_Elec | C32: E250 | E32: Industrial Programs | H32: 18231137 | I32: ='2022 Sector View Electric'!I32+'2023 Sector View Elect'!I32 -> 738857 | J32: ='2022 Sector View Electric'!J32+'2023 Sector View Elect'!J32 -> 577047.317 | K32: ='2022 Sector View Electric'!K32+'2023 Sector View Elect'!K32 -> 50000 | L32: ='2022 Sector View Electric'!L32+'2023 Sector View Elect'!L32 -> 10000 | M32: ='2022 Sector View Electric'!M32+'2023 Sector View Elect'!M32 -> 172000 | N32: ='2022 Sector View Electric'!N32+'2023 Sector View Elect'!N32 -> 0 | O32: ='2022 Sector View Electric'!O32+'2023 Sector View Elect'!O32 -> 0 | P32: ='2022 Sector View Electric'!P32+'2023 Sector View Elect'!P32 -> 3609590 | Q32: ='2022 Sector View Electric'!Q32+'2023 Sector View Elect'!Q32 -> 0 | R32: ='2022 Sector View Electric'!R32+'2023 Sector View Elect'!R32 -> 5157494.317 | S32: ='2022 Sector View Electric'!S32+'2023 Sector View Elect'!S32 -> 18011035
C33: E250 | E33: Clean Buildings Accelerator | H33: 18230013 | I33: ='2022 Sector View Electric'!I33+'2023 Sector View Elect'!I33 -> 0 | J33: ='2022 Sector View Electric'!J33+'2023 Sector View Elect'!J33 -> 0 | K33: ='2022 Sector View Electric'!K33+'2023 Sector View Elect'!K33 -> 2000 | L33: ='2022 Sector View Electric'!L33+'2023 Sector View Elect'!L33 -> 0 | M33: ='2022 Sector View Electric'!M33+'2023 Sector View Elect'!M33 -> 577936 | N33: ='2022 Sector View Electric'!N33+'2023 Sector View Elect'!N33 -> 0 | O33: ='2022 Sector View Electric'!O33+'2023 Sector View Elect'!O33 -> 0 | P33: ='2022 Sector View Electric'!P33+'2023 Sector View Elect'!P33 -> 0 | Q33: ='2022 Sector View Electric'!Q33+'2023 Sector View Elect'!Q33 -> 0 | R33: ='2022 Sector View Electric'!R33+'2023 Sector View Elect'!R33 -> 579936 | S33: ='2022 Sector View Electric'!S33+'2023 Sector View Elect'!S33 -> 10000000
B34: CI NC Detail_BEM E251 Elec | C34: E251 | E34: Commercial/Industrial New Construction | H34: 18230715 | I34: ='2022 Sector View Electric'!I34+'2023 Sector View Elect'!I34 -> 672000 | J34: ='2022 Sector View Electric'!J34+'2023 Sector View Elect'!J34 -> 524832 | K34: ='2022 Sector View Electric'!K34+'2023 Sector View Elect'!K34 -> 44600 | L34: ='2022 Sector View Electric'!L34+'2023 Sector View Elect'!L34 -> 9600 | M34: ='2022 Sector View Electric'!M34+'2023 Sector View Elect'!M34 -> 348000 | N34: ='2022 Sector View Electric'!N34+'2023 Sector View Elect'!N34 -> 10500 | O34: ='2022 Sector View Electric'!O34+'2023 Sector View Elect'!O34 -> 0 | P34: ='2022 Sector View Electric'!P34+'2023 Sector View Elect'!P34 -> 14225000 | Q34: ='2022 Sector View Electric'!Q34+'2023 Sector View Elect'!Q34 -> 0 | R34: ='2022 Sector View Electric'!R34+'2023 Sector View Elect'!R34 -> 15834532 | S34: ='2022 Sector View Electric'!S34+'2023 Sector View Elect'!S34 -> 47000000
E35: Commercial Strategic Energy Management | I35: ='2022 Sector View Electric'!I35+'2023 Sector View Elect'!I35 -> 1286500 | J35: ='2022 Sector View Electric'!J35+'2023 Sector View Elect'!J35 -> 1004756.5 | K35: ='2022 Sector View Electric'!K35+'2023 Sector View Elect'!K35 -> 7000 | L35: ='2022 Sector View Electric'!L35+'2023 Sector View Elect'!L35 -> 34900 | M35: ='2022 Sector View Electric'!M35+'2023 Sector View Elect'!M35 -> 420922 | N35: ='2022 Sector View Electric'!N35+'2023 Sector View Elect'!N35 -> 400 | O35: ='2022 Sector View Electric'!O35+'2023 Sector View Elect'!O35 -> 3000 | P35: ='2022 Sector View Electric'!P35+'2023 Sector View Elect'!P35 -> 2150000 | Q35: ='2022 Sector View Electric'!Q35+'2023 Sector View Elect'!Q35 -> 0 | R35: ='2022 Sector View Electric'!R35+'2023 Sector View Elect'!R35 -> 4907478.5 | S35: ='2022 Sector View Electric'!S35+'2023 Sector View Elect'!S35 -> 32000000
B36: RCM Detail_BEM E253 Elec | C36: E253 | E36: SEM | H36: 18230723 | I36: ='2022 Sector View Electric'!I36+'2023 Sector View Elect'!I36 -> 1179500 | J36: ='2022 Sector View Electric'!J36+'2023 Sector View Elect'!J36 -> 921189.5 | K36: ='2022 Sector View Electric'!K36+'2023 Sector View Elect'!K36 -> 7000 | L36: ='2022 Sector View Electric'!L36+'2023 Sector View Elect'!L36 -> 32900 | M36: ='2022 Sector View Electric'!M36+'2023 Sector View Elect'!M36 -> 420922 | N36: ='2022 Sector View Electric'!N36+'2023 Sector View Elect'!N36 -> 400 | O36: ='2022 Sector View Electric'!O36+'2023 Sector View Elect'!O36 -> 3000 | P36: ='2022 Sector View Electric'!P36+'2023 Sector View Elect'!P36 -> 1350000 | Q36: ='2022 Sector View Electric'!Q36+'2023 Sector View Elect'!Q36 -> 0 | R36: ='2022 Sector View Electric'!R36+'2023 Sector View Elect'!R36 -> 3914911.5 | S36: ='2022 Sector View Electric'!S36+'2023 Sector View Elect'!S36 -> 30000000
B37: ResAcctSW Detail_PSWE_Elec | C37: E253 | E37: Resource Accounting Software | H37: 18230502 | I37: ='2022 Sector View Electric'!I37+'2023 Sector View Elect'!I37 -> 0 | J37: ='2022 Sector View Electric'!J37+'2023 Sector View Elect'!J37 -> 0 | K37: ='2022 Sector View Electric'!K37+'2023 Sector View Elect'!K37 -> 0 | L37: ='2022 Sector View Electric'!L37+'2023 Sector View Elect'!L37 -> 0 | M37: ='2022 Sector View Electric'!M37+'2023 Sector View Elect'!M37 -> 0 | N37: ='2022 Sector View Electric'!N37+'2023 Sector View Elect'!N37 -> 0 | O37: ='2022 Sector View Electric'!O37+'2023 Sector View Elect'!O37 -> 0 | P37: ='2022 Sector View Electric'!P37+'2023 Sector View Elect'!P37 -> 0 | Q37: ='2022 Sector View Electric'!Q37+'2023 Sector View Elect'!Q37 -> 0 | R37: ='2022 Sector View Electric'!R37+'2023 Sector View Elect'!R37 -> 0 | S37: ='2022 Sector View Electric'!S37+'2023 Sector View Elect'!S37 -> 0
C38: E253 | E38: Pay For Performance | H38: 18236102 | I38: ='2022 Sector View Electric'!I38+'2023 Sector View Elect'!I38 -> 107000 | J38: ='2022 Sector View Electric'!J38+'2023 Sector View Elect'!J38 -> 83567 | K38: ='2022 Sector View Electric'!K38+'2023 Sector View Elect'!K38 -> 0 | L38: ='2022 Sector View Electric'!L38+'2023 Sector View Elect'!L38 -> 2000 | M38: ='2022 Sector View Electric'!M38+'2023 Sector View Elect'!M38 -> 0 | N38: ='2022 Sector View Electric'!N38+'2023 Sector View Elect'!N38 -> 0 | O38: ='2022 Sector View Electric'!O38+'2023 Sector View Elect'!O38 -> 0 | P38: ='2022 Sector View Electric'!P38+'2023 Sector View Elect'!P38 -> 800000 | Q38: ='2022 Sector View Electric'!Q38+'2023 Sector View Elect'!Q38 -> 0 | R38: ='2022 Sector View Electric'!R38+'2023 Sector View Elect'!R38 -> 992567 | S38: ='2022 Sector View Electric'!S38+'2023 Sector View Elect'!S38 -> 2000000
E39: High Voltage, Self-Directed | I39: ='2022 Sector View Electric'!I39+'2023 Sector View Elect'!I39 -> 0 | J39: ='2022 Sector View Electric'!J39+'2023 Sector View Elect'!J39 -> 307857.8167 | K39: ='2022 Sector View Electric'!K39+'2023 Sector View Elect'!K39 -> 0 | L39: ='2022 Sector View Electric'!L39+'2023 Sector View Elect'!L39 -> 0 | M39: ='2022 Sector View Electric'!M39+'2023 Sector View Elect'!M39 -> 0 | N39: ='2022 Sector View Electric'!N39+'2023 Sector View Elect'!N39 -> 0 | O39: ='2022 Sector View Electric'!O39+'2023 Sector View Elect'!O39 -> 0 | P39: ='2022 Sector View Electric'!P39+'2023 Sector View Elect'!P39 -> 9623719.15 | Q39: ='2022 Sector View Electric'!Q39+'2023 Sector View Elect'!Q39 -> 0 | R39: ='2022 Sector View Electric'!R39+'2023 Sector View Elect'!R39 -> 9931576.967 | S39: ='2022 Sector View Electric'!S39+'2023 Sector View Elect'!S39 -> 20042480
B40: LPSD_Detail_449_Elec | C40: E258 | E40: 449 Customers | H40: 18230720 | I40: ='2022 Sector View Electric'!I40+'2023 Sector View Elect'!I40 -> 0 | J40: ='2022 Sector View Electric'!J40+'2023 Sector View Elect'!J40 -> 184630.2967 | K40: ='2022 Sector View Electric'!K40+'2023 Sector View Elect'!K40 -> 0 | L40: ='2022 Sector View Electric'!L40+'2023 Sector View Elect'!L40 -> 0 | M40: ='2022 Sector View Electric'!M40+'2023 Sector View Elect'!M40 -> 0 | N40: ='2022 Sector View Electric'!N40+'2023 Sector View Elect'!N40 -> 0 | O40: ='2022 Sector View Electric'!O40+'2023 Sector View Elect'!O40 -> 0 | P40: ='2022 Sector View Electric'!P40+'2023 Sector View Elect'!P40 -> 5056970.1 | Q40: ='2022 Sector View Electric'!Q40+'2023 Sector View Elect'!Q40 -> 0 | R40: ='2022 Sector View Electric'!R40+'2023 Sector View Elect'!R40 -> 5241600.397 | S40: ='2022 Sector View Electric'!S40+'2023 Sector View Elect'!S40 -> 9549935
B41: LPSD_Detail_Non-449 Elec | C41: E258 | E41: Non-449 Customers | H41: 18230721 | I41: ='2022 Sector View Electric'!I41+'2023 Sector View Elect'!I41 -> 0 | J41: ='2022 Sector View Electric'!J41+'2023 Sector View Elect'!J41 -> 123227.52 | K41: ='2022 Sector View Electric'!K41+'2023 Sector View Elect'!K41 -> 0 | L41: ='2022 Sector View Electric'!L41+'2023 Sector View Elect'!L41 -> 0 | M41: ='2022 Sector View Electric'!M41+'2023 Sector View Elect'!M41 -> 0 | N41: ='2022 Sector View Electric'!N41+'2023 Sector View Elect'!N41 -> 0 | O41: ='2022 Sector View Electric'!O41+'2023 Sector View Elect'!O41 -> 0 | P41: ='2022 Sector View Electric'!P41+'2023 Sector View Elect'!P41 -> 4566749.05 | Q41: ='2022 Sector View Electric'!Q41+'2023 Sector View Elect'!Q41 -> 0 | R41: ='2022 Sector View Electric'!R41+'2023 Sector View Elect'!R41 -> 4689976.57 | S41: ='2022 Sector View Electric'!S41+'2023 Sector View Elect'!S41 -> 10492545
B42: TechEval Detail_BEM E261 Elec | C42: E261 | E42: Technology Evaluation | H42: 18230448 | I42: ='2022 Sector View Electric'!I42+'2023 Sector View Elect'!I42 -> 0 | J42: ='2022 Sector View Electric'!J42+'2023 Sector View Elect'!J42 -> 0 | K42: ='2022 Sector View Electric'!K42+'2023 Sector View Elect'!K42 -> 0 | L42: ='2022 Sector View Electric'!L42+'2023 Sector View Elect'!L42 -> 0 | M42: ='2022 Sector View Electric'!M42+'2023 Sector View Elect'!M42 -> 0 | N42: ='2022 Sector View Electric'!N42+'2023 Sector View Elect'!N42 -> 0 | O42: ='2022 Sector View Electric'!O42+'2023 Sector View Elect'!O42 -> 0 | P42: ='2022 Sector View Electric'!P42+'2023 Sector View Elect'!P42 -> 0 | Q42: ='2022 Sector View Electric'!Q42+'2023 Sector View Elect'!Q42 -> 0 | R42: ='2022 Sector View Electric'!R42+'2023 Sector View Elect'!R42 -> 0 | S42: ='2022 Sector View Electric'!S42+'2023 Sector View Elect'!S42 -> 0
C43: E262 | E43: Business Rebates | I43: ='2022 Sector View Electric'!I43+'2023 Sector View Elect'!I43 -> 791400 | J43: ='2022 Sector View Electric'!J43+'2023 Sector View Elect'!J43 -> 618083.4 | K43: ='2022 Sector View Electric'!K43+'2023 Sector View Elect'!K43 -> 305500 | L43: ='2022 Sector View Electric'!L43+'2023 Sector View Elect'!L43 -> 9400 | M43: ='2022 Sector View Electric'!M43+'2023 Sector View Elect'!M43 -> 6677024.85 | N43: ='2022 Sector View Electric'!N43+'2023 Sector View Elect'!N43 -> 3500 | O43: ='2022 Sector View Electric'!O43+'2023 Sector View Elect'!O43 -> 2000 | P43: ='2022 Sector View Electric'!P43+'2023 Sector View Elect'!P43 -> 24722371 | Q43: ='2022 Sector View Electric'!Q43+'2023 Sector View Elect'!Q43 -> 0 | R43: ='2022 Sector View Electric'!R43+'2023 Sector View Elect'!R43 -> 33129279.25 | S43: ='2022 Sector View Electric'!S43+'2023 Sector View Elect'!S43 -> 94291012.5
B44: Comm Lgt Mkdn_E262 Elect | C44: E262 | E44: Lighting to Go--also referred to as Business Lighting Markdowns | H44: 18230714 | I44: ='2022 Sector View Electric'!I44+'2023 Sector View Elect'!I44 -> 161400 | J44: ='2022 Sector View Electric'!J44+'2023 Sector View Elect'!J44 -> 126053.4 | K44: ='2022 Sector View Electric'!K44+'2023 Sector View Elect'!K44 -> 45000 | L44: ='2022 Sector View Electric'!L44+'2023 Sector View Elect'!L44 -> 2000 | M44: ='2022 Sector View Electric'!M44+'2023 Sector View Elect'!M44 -> 2361941.98 | N44: ='2022 Sector View Electric'!N44+'2023 Sector View Elect'!N44 -> 500 | O44: ='2022 Sector View Electric'!O44+'2023 Sector View Elect'!O44 -> 500 | P44: ='2022 Sector View Electric'!P44+'2023 Sector View Elect'!P44 -> 5224466 | Q44: ='2022 Sector View Electric'!Q44+'2023 Sector View Elect'!Q44 -> 0 | R44: ='2022 Sector View Electric'!R44+'2023 Sector View Elect'!R44 -> 7921861.38 | S44: ='2022 Sector View Electric'!S44+'2023 Sector View Elect'!S44 -> 48041716.5
B45: Comm Kit-Laund_E262 Elect | C45: E262 | E45: Commercial Foodservice | H45: 18230716 | I45: ='2022 Sector View Electric'!I45+'2023 Sector View Elect'!I45 -> 38100 | J45: ='2022 Sector View Electric'!J45+'2023 Sector View Elect'!J45 -> 29756.1 | K45: ='2022 Sector View Electric'!K45+'2023 Sector View Elect'!K45 -> 10500 | L45: ='2022 Sector View Electric'!L45+'2023 Sector View Elect'!L45 -> 0 | M45: ='2022 Sector View Electric'!M45+'2023 Sector View Elect'!M45 -> 137982.87 | N45: ='2022 Sector View Electric'!N45+'2023 Sector View Elect'!N45 -> 0 | O45: ='2022 Sector View Electric'!O45+'2023 Sector View Elect'!O45 -> 0 | P45: ='2022 Sector View Electric'!P45+'2023 Sector View Elect'!P45 -> 165929 | Q45: ='2022 Sector View Electric'!Q45+'2023 Sector View Elect'!Q45 -> 0 | R45: ='2022 Sector View Electric'!R45+'2023 Sector View Elect'!R45 -> 382267.97 | S45: ='2022 Sector View Electric'!S45+'2023 Sector View Elect'!S45 -> 800000
B46: Comm HVAC_E262 Elect | C46: E262 | E46: Commercial HVAC Rebates | H46: 18230718 | I46: ='2022 Sector View Electric'!I46+'2023 Sector View Elect'!I46 -> 144700 | J46: ='2022 Sector View Electric'!J46+'2023 Sector View Elect'!J46 -> 113010.7 | K46: ='2022 Sector View Electric'!K46+'2023 Sector View Elect'!K46 -> 20000 | L46: ='2022 Sector View Electric'!L46+'2023 Sector View Elect'!L46 -> 1000 | M46: ='2022 Sector View Electric'!M46+'2023 Sector View Elect'!M46 -> 1100 | N46: ='2022 Sector View Electric'!N46+'2023 Sector View Elect'!N46 -> 1000 | O46: ='2022 Sector View Electric'!O46+'2023 Sector View Elect'!O46 -> 1000 | P46: ='2022 Sector View Electric'!P46+'2023 Sector View Elect'!P46 -> 527976 | Q46: ='2022 Sector View Electric'!Q46+'2023 Sector View Elect'!Q46 -> 0 | R46: ='2022 Sector View Electric'!R46+'2023 Sector View Elect'!R46 -> 809786.7 | S46: ='2022 Sector View Electric'!S46+'2023 Sector View Elect'!S46 -> 1905296
C47: E262 | E47: Commercial Midstream HVAC and Water Heat | H47: 18230524 | I47: ='2022 Sector View Electric'!I47+'2023 Sector View Elect'!I47 -> 98300 | J47: ='2022 Sector View Electric'!J47+'2023 Sector View Elect'!J47 -> 76772.3 | K47: ='2022 Sector View Electric'!K47+'2023 Sector View Elect'!K47 -> 0 | L47: ='2022 Sector View Electric'!L47+'2023 Sector View Elect'!L47 -> 2000 | M47: ='2022 Sector View Electric'!M47+'2023 Sector View Elect'!M47 -> 780000 | N47: ='2022 Sector View Electric'!N47+'2023 Sector View Elect'!N47 -> 0 | O47: ='2022 Sector View Electric'!O47+'2023 Sector View Elect'!O47 -> 0 | P47: ='2022 Sector View Electric'!P47+'2023 Sector View Elect'!P47 -> 1524000 | Q47: ='2022 Sector View Electric'!Q47+'2023 Sector View Elect'!Q47 -> 0 | R47: ='2022 Sector View Electric'!R47+'2023 Sector View Elect'!R47 -> 2481072.3 | S47: ='2022 Sector View Electric'!S47+'2023 Sector View Elect'!S47 -> 3544000
B48: Sm Bus DI_E262 Elect | C48: E262 | E48: Small Business Direct Install | H48: 18231134 | I48: ='2022 Sector View Electric'!I48+'2023 Sector View Elect'!I48 -> 195900 | J48: ='2022 Sector View Electric'!J48+'2023 Sector View Elect'!J48 -> 152997.9 | K48: ='2022 Sector View Electric'!K48+'2023 Sector View Elect'!K48 -> 150000 | L48: ='2022 Sector View Electric'!L48+'2023 Sector View Elect'!L48 -> 2400 | M48: ='2022 Sector View Electric'!M48+'2023 Sector View Elect'!M48 -> 3396000 | N48: ='2022 Sector View Electric'!N48+'2023 Sector View Elect'!N48 -> 1000 | O48: ='2022 Sector View Electric'!O48+'2023 Sector View Elect'!O48 -> 500 | P48: ='2022 Sector View Electric'!P48+'2023 Sector View Elect'!P48 -> 12240000 | Q48: ='2022 Sector View Electric'!Q48+'2023 Sector View Elect'!Q48 -> 0 | R48: ='2022 Sector View Electric'!R48+'2023 Sector View Elect'!R48 -> 16138797.9 | S48: ='2022 Sector View Electric'!S48+'2023 Sector View Elect'!S48 -> 36000000
B49: New BusRebt prgm_E262 Elec | C49: E262 | E49: Commercial General Rebates | H49: 1823nnnn | I49: ='2022 Sector View Electric'!I49+'2023 Sector View Elect'!I49 -> 0 | J49: ='2022 Sector View Electric'!J49+'2023 Sector View Elect'!J49 -> 0 | K49: ='2022 Sector View Electric'!K49+'2023 Sector View Elect'!K49 -> 0 | L49: ='2022 Sector View Electric'!L49+'2023 Sector View Elect'!L49 -> 0 | M49: ='2022 Sector View Electric'!M49+'2023 Sector View Elect'!M49 -> 0 | N49: ='2022 Sector View Electric'!N49+'2023 Sector View Elect'!N49 -> 0 | O49: ='2022 Sector View Electric'!O49+'2023 Sector View Elect'!O49 -> 0 | P49: ='2022 Sector View Electric'!P49+'2023 Sector View Elect'!P49 -> 0 | Q49: ='2022 Sector View Electric'!Q49+'2023 Sector View Elect'!Q49 -> 0 | R49: ='2022 Sector View Electric'!R49+'2023 Sector View Elect'!R49 -> 0 | S49: ='2022 Sector View Electric'!S49+'2023 Sector View Elect'!S49 -> 0
C50: E262 | E50: Lodging Rebates | H50: 18230014 | I50: ='2022 Sector View Electric'!I50+'2023 Sector View Elect'!I50 -> 153000 | J50: ='2022 Sector View Electric'!J50+'2023 Sector View Elect'!J50 -> 119493 | K50: ='2022 Sector View Electric'!K50+'2023 Sector View Elect'!K50 -> 80000 | L50: ='2022 Sector View Electric'!L50+'2023 Sector View Elect'!L50 -> 2000 | M50: ='2022 Sector View Electric'!M50+'2023 Sector View Elect'!M50 -> 0 | N50: ='2022 Sector View Electric'!N50+'2023 Sector View Elect'!N50 -> 1000 | O50: ='2022 Sector View Electric'!O50+'2023 Sector View Elect'!O50 -> 0 | P50: ='2022 Sector View Electric'!P50+'2023 Sector View Elect'!P50 -> 5040000 | Q50: ='2022 Sector View Electric'!Q50+'2023 Sector View Elect'!Q50 -> 0 | R50: ='2022 Sector View Electric'!R50+'2023 Sector View Elect'!R50 -> 5395493 | S50: ='2022 Sector View Electric'!S50+'2023 Sector View Elect'!S50 -> 4000000
G51: Total, Business Energy Management | I51: =I29+I34+I35+I39+I42+I43 -> 8460312 | J51: =J29+J34+J35+J39+J42+J43 -> 6915361.489 | K51: =K29+K34+K35+K39+K42+K43 -> 603100 | L51: 148900 | M51: 9424882.85 | N51: 28400 | O51: 11000 | P51: 90637235.15 | Q51: 0 | R51: =R29+R34+R35+R39+R42+R43 -> 116229191.5 | S51: =S29+S34+S35+S39+S42+S43 -> 346844527.5
P52: =P51/R51 -> 0.7798147263
H53: 2020-2021 Figures | I53: 7367720.681 | J53: 6839010.228 | K53: 575063 | L53: 317400 | M53: 6224702 | N53: 31900 | O53: 25000 | P53: 67474146.29 | Q53: 0 | R53: 88854942.2 | S53: 306026874.6
C54: Pilots With Uncertain Savings
B55: REM Pilots E249 Elec | C55: E249 | E55: Residential Pilots | I55: ='2022 Sector View Electric'!I55+'2023 Sector View Elect'!I55 -> 224499.65 | J55: ='2022 Sector View Electric'!J55+'2023 Sector View Elect'!J55 -> 175334.2266 | K55: ='2022 Sector View Electric'!K55+'2023 Sector View Elect'!K55 -> 110000 | L55: ='2022 Sector View Electric'!L55+'2023 Sector View Elect'!L55 -> 2000 | M55: ='2022 Sector View Electric'!M55+'2023 Sector View Elect'!M55 -> 465000 | N55: ='2022 Sector View Electric'!N55+'2023 Sector View Elect'!N55 -> 0 | O55: ='2022 Sector View Electric'!O55+'2023 Sector View Elect'!O55 -> 15000 | P55: ='2022 Sector View Electric'!P55+'2023 Sector View Elect'!P55 -> 52500 | Q55: ='2022 Sector View Electric'!Q55+'2023 Sector View Elect'!Q55 -> 0 | R55: ='2022 Sector View Electric'!R55+'2023 Sector View Elect'!R55 -> 1044333.877 | S55: ='2022 Sector View Electric'!S55+'2023 Sector View Elect'!S55 -> 1725000
C56: E249 | E56: HEA Behavioral | H56: 18230748 | I56: ='2022 Sector View Electric'!I56+'2023 Sector View Elect'!I56 -> 0 | J56: ='2022 Sector View Electric'!J56+'2023 Sector View Elect'!J56 -> 0 | K56: ='2022 Sector View Electric'!K56+'2023 Sector View Elect'!K56 -> 0 | L56: ='2022 Sector View Electric'!L56+'2023 Sector View Elect'!L56 -> 0 | M56: ='2022 Sector View Electric'!M56+'2023 Sector View Elect'!M56 -> 0 | N56: ='2022 Sector View Electric'!N56+'2023 Sector View Elect'!N56 -> 0 | O56: ='2022 Sector View Electric'!O56+'2023 Sector View Elect'!O56 -> 0 | P56: ='2022 Sector View Electric'!P56+'2023 Sector View Elect'!P56 -> 0 | Q56: ='2022 Sector View Electric'!Q56+'2023 Sector View Elect'!Q56 -> 0 | R56: ='2022 Sector View Electric'!R56+'2023 Sector View Elect'!R56 -> 0 | S56: ='2022 Sector View Electric'!S56+'2023 Sector View Elect'!S56 -> 0
C57: E249 | E57: Retail Choice | H57: 18230750 | I57: ='2022 Sector View Electric'!I57+'2023 Sector View Elect'!I57 -> 180500 | J57: ='2022 Sector View Electric'!J57+'2023 Sector View Elect'!J57 -> 140970.5 | K57: ='2022 Sector View Electric'!K57+'2023 Sector View Elect'!K57 -> 100000 | L57: ='2022 Sector View Electric'!L57+'2023 Sector View Elect'!L57 -> 0 | M57: ='2022 Sector View Electric'!M57+'2023 Sector View Elect'!M57 -> 270000 | N57: ='2022 Sector View Electric'!N57+'2023 Sector View Elect'!N57 -> 0 | O57: ='2022 Sector View Electric'!O57+'2023 Sector View Elect'!O57 -> 0 | P57: ='2022 Sector View Electric'!P57+'2023 Sector View Elect'!P57 -> 0 | Q57: ='2022 Sector View Electric'!Q57+'2023 Sector View Elect'!Q57 -> 0 | R57: ='2022 Sector View Electric'!R57+'2023 Sector View Elect'!R57 -> 691470.5 | S57: ='2022 Sector View Electric'!S57+'2023 Sector View Elect'!S57 -> 1005000
C58: E249 | E58: Single Family AMI Engagement | H58: 18230749 | I58: ='2022 Sector View Electric'!I58+'2023 Sector View Elect'!I58 -> 43999.65 | J58: ='2022 Sector View Electric'!J58+'2023 Sector View Elect'!J58 -> 34363.72665 | K58: ='2022 Sector View Electric'!K58+'2023 Sector View Elect'!K58 -> 10000 | L58: ='2022 Sector View Electric'!L58+'2023 Sector View Elect'!L58 -> 2000 | M58: ='2022 Sector View Electric'!M58+'2023 Sector View Elect'!M58 -> 195000 | N58: ='2022 Sector View Electric'!N58+'2023 Sector View Elect'!N58 -> 0 | O58: ='2022 Sector View Electric'!O58+'2023 Sector View Elect'!O58 -> 15000 | P58: ='2022 Sector View Electric'!P58+'2023 Sector View Elect'!P58 -> 52500 | Q58: ='2022 Sector View Electric'!Q58+'2023 Sector View Elect'!Q58 -> 0 | R58: ='2022 Sector View Electric'!R58+'2023 Sector View Elect'!R58 -> 352863.3766 | S58: ='2022 Sector View Electric'!S58+'2023 Sector View Elect'!S58 -> 720000
B59: BEM Pilots E249 Elec | C59: E249 | E59: Commercial Pilots | I59: ='2022 Sector View Electric'!I59+'2023 Sector View Elect'!I59 -> 10500 | J59: ='2022 Sector View Electric'!J59+'2023 Sector View Elect'!J59 -> 8200.5 | K59: ='2022 Sector View Electric'!K59+'2023 Sector View Elect'!K59 -> 0 | L59: ='2022 Sector View Electric'!L59+'2023 Sector View Elect'!L59 -> 0 | M59: ='2022 Sector View Electric'!M59+'2023 Sector View Elect'!M59 -> 630000 | N59: ='2022 Sector View Electric'!N59+'2023 Sector View Elect'!N59 -> 0 | O59: ='2022 Sector View Electric'!O59+'2023 Sector View Elect'!O59 -> 0 | P59: ='2022 Sector View Electric'!P59+'2023 Sector View Elect'!P59 -> 0 | Q59: ='2022 Sector View Electric'!Q59+'2023 Sector View Elect'!Q59 -> 0 | R59: ='2022 Sector View Electric'!R59+'2023 Sector View Elect'!R59 -> 648700.5 | S59: ='2022 Sector View Electric'!S59+'2023 Sector View Elect'!S59 -> 3000000
C60: E249 | E60: SMB AMI Engagement | H60: 18231128 | I60: ='2022 Sector View Electric'!I60+'2023 Sector View Elect'!I60 -> 10500 | J60: ='2022 Sector View Electric'!J60+'2023 Sector View Elect'!J60 -> 8200.5 | K60: ='2022 Sector View Electric'!K60+'2023 Sector View Elect'!K60 -> 0 | L60: ='2022 Sector View Electric'!L60+'2023 Sector View Elect'!L60 -> 0 | M60: ='2022 Sector View Electric'!M60+'2023 Sector View Elect'!M60 -> 630000 | N60: ='2022 Sector View Electric'!N60+'2023 Sector View Elect'!N60 -> 0 | O60: ='2022 Sector View Electric'!O60+'2023 Sector View Elect'!O60 -> 0 | P60: ='2022 Sector View Electric'!P60+'2023 Sector View Elect'!P60 -> 0 | Q60: ='2022 Sector View Electric'!Q60+'2023 Sector View Elect'!Q60 -> 0 | R60: ='2022 Sector View Electric'!R60+'2023 Sector View Elect'!R60 -> 648700.5 | S60: ='2022 Sector View Electric'!S60+'2023 Sector View Elect'!S60 -> 3000000
G61: Total, Pilots | I61: =I55+I59 -> 234999.65 | J61: =J55+J59 -> 183534.7266 | K61: 110000 | L61: 2000 | M61: 1095000 | N61: 0 | O61: 15000 | P61: 52500 | Q61: 0 | R61: 1693034.377 | S61: 4725000
P62: =P61/R61 -> 0.0310094117
H63: 2020-2021 Figures | I63: 241500 | J63: 204169.5 | K63: 220000 | L63: 0 | M63: 1480000 | N63: 0 | O63: 432000 | P63: 1413500 | Q63: 0 | R63: 3991169.5 | S63: 15080000
C65: Regional Efficiency Programs
B66: NEEA Detail_E254 elec | C66: E254 | E66: Northwest Energy Efficiency Alliance | H66: 18230421 | I66: ='2022 Sector View Electric'!I66+'2023 Sector View Elect'!I66 -> 0 | J66: ='2022 Sector View Electric'!J66+'2023 Sector View Elect'!J66 -> 0 | K66: ='2022 Sector View Electric'!K66+'2023 Sector View Elect'!K66 -> 0 | L66: ='2022 Sector View Electric'!L66+'2023 Sector View Elect'!L66 -> 0 | M66: ='2022 Sector View Electric'!M66+'2023 Sector View Elect'!M66 -> 9683388 | N66: ='2022 Sector View Electric'!N66+'2023 Sector View Elect'!N66 -> 0 | O66: ='2022 Sector View Electric'!O66+'2023 Sector View Elect'!O66 -> 0 | P66: ='2022 Sector View Electric'!P66+'2023 Sector View Elect'!P66 -> 0 | Q66: ='2022 Sector View Electric'!Q66+'2023 Sector View Elect'!Q66 -> 0 | R66: ='2022 Sector View Electric'!R66+'2023 Sector View Elect'!R66 -> 9683388 | S66: ='2022 Sector View Electric'!S66+'2023 Sector View Elect'!S66 -> 28382400
B67: TDSM_Regnl_elec_e219 | C67: E219 | E67: Targeted DSM | H67: 18230134 | I67: ='2022 Sector View Electric'!I67+'2023 Sector View Elect'!I67 -> 502250 | J67: ='2022 Sector View Electric'!J67+'2023 Sector View Elect'!J67 -> 392257.25 | K67: ='2022 Sector View Electric'!K67+'2023 Sector View Elect'!K67 -> 20000 | L67: ='2022 Sector View Electric'!L67+'2023 Sector View Elect'!L67 -> 2800 | M67: ='2022 Sector View Electric'!M67+'2023 Sector View Elect'!M67 -> 210000 | N67: ='2022 Sector View Electric'!N67+'2023 Sector View Elect'!N67 -> 0 | O67: ='2022 Sector View Electric'!O67+'2023 Sector View Elect'!O67 -> 0 | P67: ='2022 Sector View Electric'!P67+'2023 Sector View Elect'!P67 -> 105000 | Q67: ='2022 Sector View Electric'!Q67+'2023 Sector View Elect'!Q67 -> 0 | R67: ='2022 Sector View Electric'!R67+'2023 Sector View Elect'!R67 -> 1232307.25 | S67: ='2022 Sector View Electric'!S67+'2023 Sector View Elect'!S67 -> 0
B68: T&D Detail_Reg E292 elec | C68: E292 | E68: Transmission & Distribution | H68: 18230713 | I68: ='2022 Sector View Electric'!I68+'2023 Sector View Elect'!I68 -> 0 | J68: ='2022 Sector View Electric'!J68+'2023 Sector View Elect'!J68 -> 0 | K68: ='2022 Sector View Electric'!K68+'2023 Sector View Elect'!K68 -> 0 | L68: ='2022 Sector View Electric'!L68+'2023 Sector View Elect'!L68 -> 0 | M68: ='2022 Sector View Electric'!M68+'2023 Sector View Elect'!M68 -> 0 | N68: ='2022 Sector View Electric'!N68+'2023 Sector View Elect'!N68 -> 0 | O68: ='2022 Sector View Electric'!O68+'2023 Sector View Elect'!O68 -> 0 | P68: ='2022 Sector View Electric'!P68+'2023 Sector View Elect'!P68 -> 0 | Q68: ='2022 Sector View Electric'!Q68+'2023 Sector View Elect'!Q68 -> 0 | R68: ='2022 Sector View Electric'!R68+'2023 Sector View Elect'!R68 -> 0 | S68: ='2022 Sector View Electric'!S68+'2023 Sector View Elect'!S68 -> 12000000
G69: Total, Regional Efficiency Programs | I69: =SUM(I66:I68) -> 502250 | J69: =SUM(J66:J68) -> 392257.25 | K69: 20000 | L69: 2800 | M69: 9893388 | N69: 0 | O69: 0 | P69: 105000 | Q69: 0 | R69: =SUM(R66:R68) -> 10915695.25 | S69: 40382400
P70: =P69/R69 -> 0.009619176571
H71: 2020-2021 Figures | I71: 401380 | J71: 350404.74 | K71: 0 | L71: 0 | M71: 2849323 | N71: 0 | O71: 0 | P71: 6240087 | Q71: 0 | R71: 9841194.74 | S71: 25064400
C73: Energy Efficiency Portfolio Support
B74: Data & Systm Svcs_Elect | E74: Data and Systems Services | H74: 18230745 | I74: ='2022 Sector View Electric'!I74+'2023 Sector View Elect'!I74 -> 800400 | J74: ='2022 Sector View Electric'!J74+'2023 Sector View Elect'!J74 -> 625112.4 | K74: ='2022 Sector View Electric'!K74+'2023 Sector View Elect'!K74 -> 0 | L74: ='2022 Sector View Electric'!L74+'2023 Sector View Elect'!L74 -> 17400 | M74: ='2022 Sector View Electric'!M74+'2023 Sector View Elect'!M74 -> 522000 | N74: ='2022 Sector View Electric'!N74+'2023 Sector View Elect'!N74 -> 0 | O74: ='2022 Sector View Electric'!O74+'2023 Sector View Elect'!O74 -> 0 | P74: ='2022 Sector View Electric'!P74+'2023 Sector View Elect'!P74 -> 0 | Q74: ='2022 Sector View Electric'!Q74+'2023 Sector View Elect'!Q74 -> 0 | R74: ='2022 Sector View Electric'!R74+'2023 Sector View Elect'!R74 -> 1964912.4
B75: Rebt Procg Detail_Elect | E75: Rebates Processing | H75: 18230507 | I75: ='2022 Sector View Electric'!I75+'2023 Sector View Elect'!I75 -> 934380 | J75: ='2022 Sector View Electric'!J75+'2023 Sector View Elect'!J75 -> 729750.78 | K75: ='2022 Sector View Electric'!K75+'2023 Sector View Elect'!K75 -> 0 | L75: ='2022 Sector View Electric'!L75+'2023 Sector View Elect'!L75 -> 40000 | M75: ='2022 Sector View Electric'!M75+'2023 Sector View Elect'!M75 -> 121800 | N75: ='2022 Sector View Electric'!N75+'2023 Sector View Elect'!N75 -> 10000 | O75: ='2022 Sector View Electric'!O75+'2023 Sector View Elect'!O75 -> 0 | P75: ='2022 Sector View Electric'!P75+'2023 Sector View Elect'!P75 -> 0 | Q75: ='2022 Sector View Electric'!Q75+'2023 Sector View Elect'!Q75 -> 0 | R75: ='2022 Sector View Electric'!R75+'2023 Sector View Elect'!R75 -> 1835930.78
B76: VTeam Detail_R&C_Elec | E76: Verification Team | H76: 18230418 | I76: ='2022 Sector View Electric'!I76+'2023 Sector View Elect'!I76 -> 655980 | J76: ='2022 Sector View Electric'!J76+'2023 Sector View Elect'!J76 -> 512320.38 | K76: ='2022 Sector View Electric'!K76+'2023 Sector View Elect'!K76 -> 0 | L76: ='2022 Sector View Electric'!L76+'2023 Sector View Elect'!L76 -> 40000 | M76: ='2022 Sector View Electric'!M76+'2023 Sector View Elect'!M76 -> 0 | N76: ='2022 Sector View Electric'!N76+'2023 Sector View Elect'!N76 -> 14000 | O76: ='2022 Sector View Electric'!O76+'2023 Sector View Elect'!O76 -> 0 | P76: ='2022 Sector View Electric'!P76+'2023 Sector View Elect'!P76 -> 0 | Q76: ='2022 Sector View Electric'!Q76+'2023 Sector View Elect'!Q76 -> 0 | R76: ='2022 Sector View Electric'!R76+'2023 Sector View Elect'!R76 -> 1222300.38
B77: ProgDev Detail_R&C_ Elec | E77: Programs Support | H77: 18230810 | I77: ='2022 Sector View Electric'!I77+'2023 Sector View Elect'!I77 -> 794745 | J77: ='2022 Sector View Electric'!J77+'2023 Sector View Elect'!J77 -> 620695.845 | K77: ='2022 Sector View Electric'!K77+'2023 Sector View Elect'!K77 -> 0 | L77: ='2022 Sector View Electric'!L77+'2023 Sector View Elect'!L77 -> 26100 | M77: ='2022 Sector View Electric'!M77+'2023 Sector View Elect'!M77 -> 43500 | N77: ='2022 Sector View Electric'!N77+'2023 Sector View Elect'!N77 -> 0 | O77: ='2022 Sector View Electric'!O77+'2023 Sector View Elect'!O77 -> 0 | P77: ='2022 Sector View Electric'!P77+'2023 Sector View Elect'!P77 -> 0 | Q77: ='2022 Sector View Electric'!Q77+'2023 Sector View Elect'!Q77 -> 0 | R77: ='2022 Sector View Electric'!R77+'2023 Sector View Elect'!R77 -> 1485040.845
B78: TradeAlly Detail_PS_ Elec | E78: Trade Ally Memberships | H78: 18230730 | I78: ='2022 Sector View Electric'!I78+'2023 Sector View Elect'!I78 -> 0 | J78: ='2022 Sector View Electric'!J78+'2023 Sector View Elect'!J78 -> 0 | K78: ='2022 Sector View Electric'!K78+'2023 Sector View Elect'!K78 -> 0 | L78: ='2022 Sector View Electric'!L78+'2023 Sector View Elect'!L78 -> 0 | M78: ='2022 Sector View Electric'!M78+'2023 Sector View Elect'!M78 -> 243600 | N78: ='2022 Sector View Electric'!N78+'2023 Sector View Elect'!N78 -> 0 | O78: ='2022 Sector View Electric'!O78+'2023 Sector View Elect'!O78 -> 0 | P78: ='2022 Sector View Electric'!P78+'2023 Sector View Elect'!P78 -> 0 | Q78: ='2022 Sector View Electric'!Q78+'2023 Sector View Elect'!Q78 -> 0 | R78: ='2022 Sector View Electric'!R78+'2023 Sector View Elect'!R78 -> 243600
B79: CAN_Elect | E79: Trade Ally Network (revenue + cost) | H79: 18230746 | I79: ='2022 Sector View Electric'!I79+'2023 Sector View Elect'!I79 -> 223027 | J79: ='2022 Sector View Electric'!J79+'2023 Sector View Elect'!J79 -> 174184.087 | K79: ='2022 Sector View Electric'!K79+'2023 Sector View Elect'!K79 -> 40000 | L79: ='2022 Sector View Electric'!L79+'2023 Sector View Elect'!L79 -> 10000 | M79: ='2022 Sector View Electric'!M79+'2023 Sector View Elect'!M79 -> 75000 | N79: ='2022 Sector View Electric'!N79+'2023 Sector View Elect'!N79 -> 3000 | O79: ='2022 Sector View Electric'!O79+'2023 Sector View Elect'!O79 -> 0 | P79: ='2022 Sector View Electric'!P79+'2023 Sector View Elect'!P79 -> 0 | Q79: ='2022 Sector View Electric'!Q79+'2023 Sector View Elect'!Q79 -> -493798 | R79: ='2022 Sector View Electric'!R79+'2023 Sector View Elect'!R79 -> 31413.087
B80: ABS Detail_PSWE_Elec | E80: Automated Benchmarking System | H80: 18230411 | I80: ='2022 Sector View Electric'!I80+'2023 Sector View Elect'!I80 -> 1088000 | J80: ='2022 Sector View Electric'!J80+'2023 Sector View Elect'!J80 -> 849728 | K80: ='2022 Sector View Electric'!K80+'2023 Sector View Elect'!K80 -> 0 | L80: ='2022 Sector View Electric'!L80+'2023 Sector View Elect'!L80 -> 0 | M80: ='2022 Sector View Electric'!M80+'2023 Sector View Elect'!M80 -> 2240000 | N80: ='2022 Sector View Electric'!N80+'2023 Sector View Elect'!N80 -> 0 | O80: ='2022 Sector View Electric'!O80+'2023 Sector View Elect'!O80 -> 0 | P80: ='2022 Sector View Electric'!P80+'2023 Sector View Elect'!P80 -> 0 | Q80: ='2022 Sector View Electric'!Q80+'2023 Sector View Elect'!Q80 -> 0 | R80: ='2022 Sector View Electric'!R80+'2023 Sector View Elect'!R80 -> 4177728
B81: Engy Adv Detail_PSCE Elec | E81: Energy Advisors | H81: 18230610 | I81: ='2022 Sector View Electric'!I81+'2023 Sector View Elect'!I81 -> 1421820 | J81: ='2022 Sector View Electric'!J81+'2023 Sector View Elect'!J81 -> 1110441.42 | K81: ='2022 Sector View Electric'!K81+'2023 Sector View Elect'!K81 -> 0 | L81: ='2022 Sector View Electric'!L81+'2023 Sector View Elect'!L81 -> 88000 | M81: ='2022 Sector View Electric'!M81+'2023 Sector View Elect'!M81 -> 2000 | N81: ='2022 Sector View Electric'!N81+'2023 Sector View Elect'!N81 -> 0 | O81: ='2022 Sector View Electric'!O81+'2023 Sector View Elect'!O81 -> 2700 | P81: ='2022 Sector View Electric'!P81+'2023 Sector View Elect'!P81 -> 0 | Q81: ='2022 Sector View Electric'!Q81+'2023 Sector View Elect'!Q81 -> 0 | R81: ='2022 Sector View Electric'!R81+'2023 Sector View Elect'!R81 -> 2624961.42
B82: EEC Detail_PS_Elec | E82: Energy Efficient Communities | H82: 18230811 | I82: ='2022 Sector View Electric'!I82+'2023 Sector View Elect'!I82 -> 1195146.139 | J82: ='2022 Sector View Electric'!J82+'2023 Sector View Elect'!J82 -> 933409.1346 | K82: ='2022 Sector View Electric'!K82+'2023 Sector View Elect'!K82 -> 51592 | L82: ='2022 Sector View Electric'!L82+'2023 Sector View Elect'!L82 -> 30800 | M82: ='2022 Sector View Electric'!M82+'2023 Sector View Elect'!M82 -> 220000 | N82: ='2022 Sector View Electric'!N82+'2023 Sector View Elect'!N82 -> 7642 | O82: ='2022 Sector View Electric'!O82+'2023 Sector View Elect'!O82 -> 0 | P82: ='2022 Sector View Electric'!P82+'2023 Sector View Elect'!P82 -> 0 | Q82: ='2022 Sector View Electric'!Q82+'2023 Sector View Elect'!Q82 -> 0 | R82: ='2022 Sector View Electric'!R82+'2023 Sector View Elect'!R82 -> 2438589.274
B83: CustOnline Detail_PSWE_Elec | D83: New Name | E83: Customer Digital Services | I83: =SUM(I84:I87) -> 463970 | J83: =SUM(J84:J87) -> 362360.57 | K83: 260000 | L83: 500 | M83: 2367064 | N83: 0 | O83: 0 | P83: 0 | Q83: 0 | R83: =SUM(R84:R87) -> 3453894.57
F84: Digital Experience | H84: 18230400 | I84: ='2022 Sector View Electric'!I84+'2023 Sector View Elect'!I84 -> 121800 | J84: ='2022 Sector View Electric'!J84+'2023 Sector View Elect'!J84 -> 95125.8 | K84: ='2022 Sector View Electric'!K84+'2023 Sector View Elect'!K84 -> 0 | L84: ='2022 Sector View Electric'!L84+'2023 Sector View Elect'!L84 -> 0 | M84: ='2022 Sector View Electric'!M84+'2023 Sector View Elect'!M84 -> 0 | N84: ='2022 Sector View Electric'!N84+'2023 Sector View Elect'!N84 -> 0 | O84: ='2022 Sector View Electric'!O84+'2023 Sector View Elect'!O84 -> 0 | P84: ='2022 Sector View Electric'!P84+'2023 Sector View Elect'!P84 -> 0 | Q84: ='2022 Sector View Electric'!Q84+'2023 Sector View Elect'!Q84 -> 0 | R84: ='2022 Sector View Electric'!R84+'2023 Sector View Elect'!R84 -> 216925.8
F85: Customer Digital Experience | H85: 18230408 | I85: ='2022 Sector View Electric'!I85+'2023 Sector View Elect'!I85 -> 52500 | J85: ='2022 Sector View Electric'!J85+'2023 Sector View Elect'!J85 -> 41002.5 | K85: ='2022 Sector View Electric'!K85+'2023 Sector View Elect'!K85 -> 0 | L85: ='2022 Sector View Electric'!L85+'2023 Sector View Elect'!L85 -> 0 | M85: ='2022 Sector View Electric'!M85+'2023 Sector View Elect'!M85 -> 1377152 | N85: ='2022 Sector View Electric'!N85+'2023 Sector View Elect'!N85 -> 0 | O85: ='2022 Sector View Electric'!O85+'2023 Sector View Elect'!O85 -> 0 | P85: ='2022 Sector View Electric'!P85+'2023 Sector View Elect'!P85 -> 0 | Q85: ='2022 Sector View Electric'!Q85+'2023 Sector View Elect'!Q85 -> 0 | R85: ='2022 Sector View Electric'!R85+'2023 Sector View Elect'!R85 -> 1470654.5
B86: CustAwarTools_elec | F86: Customer Awareness Tools | H86: 18230508 | I86: ='2022 Sector View Electric'!I86+'2023 Sector View Elect'!I86 -> 96470 | J86: ='2022 Sector View Electric'!J86+'2023 Sector View Elect'!J86 -> 75343.07 | K86: ='2022 Sector View Electric'!K86+'2023 Sector View Elect'!K86 -> 0 | L86: ='2022 Sector View Electric'!L86+'2023 Sector View Elect'!L86 -> 500 | M86: ='2022 Sector View Electric'!M86+'2023 Sector View Elect'!M86 -> 970312 | N86: ='2022 Sector View Electric'!N86+'2023 Sector View Elect'!N86 -> 0 | O86: ='2022 Sector View Electric'!O86+'2023 Sector View Elect'!O86 -> 0 | P86: ='2022 Sector View Electric'!P86+'2023 Sector View Elect'!P86 -> 0 | Q86: ='2022 Sector View Electric'!Q86+'2023 Sector View Elect'!Q86 -> 0 | R86: ='2022 Sector View Electric'!R86+'2023 Sector View Elect'!R86 -> 1142625.07
B87: ShopPSE_elec | F87: PSE Marketplace | H87: 18230509 | I87: ='2022 Sector View Electric'!I87+'2023 Sector View Elect'!I87 -> 193200 | J87: ='2022 Sector View Electric'!J87+'2023 Sector View Elect'!J87 -> 150889.2 | K87: ='2022 Sector View Electric'!K87+'2023 Sector View Elect'!K87 -> 260000 | L87: ='2022 Sector View Electric'!L87+'2023 Sector View Elect'!L87 -> 0 | M87: ='2022 Sector View Electric'!M87+'2023 Sector View Elect'!M87 -> 19600 | N87: ='2022 Sector View Electric'!N87+'2023 Sector View Elect'!N87 -> 0 | O87: ='2022 Sector View Electric'!O87+'2023 Sector View Elect'!O87 -> 0 | P87: ='2022 Sector View Electric'!P87+'2023 Sector View Elect'!P87 -> 0 | Q87: ='2022 Sector View Electric'!Q87+'2023 Sector View Elect'!Q87 -> 0 | R87: ='2022 Sector View Electric'!R87+'2023 Sector View Elect'!R87 -> 623689.2
B88: Mkt Intgn Detail_PSWE_Elec | E88: Market Integration | H88: 18230466 | I88: ='2022 Sector View Electric'!I88+'2023 Sector View Elect'!I88 -> 525600 | J88: ='2022 Sector View Electric'!J88+'2023 Sector View Elect'!J88 -> 410493.6 | K88: ='2022 Sector View Electric'!K88+'2023 Sector View Elect'!K88 -> 1914000.01 | L88: ='2022 Sector View Electric'!L88+'2023 Sector View Elect'!L88 -> 0 | M88: ='2022 Sector View Electric'!M88+'2023 Sector View Elect'!M88 -> 0 | N88: ='2022 Sector View Electric'!N88+'2023 Sector View Elect'!N88 -> 0 | O88: ='2022 Sector View Electric'!O88+'2023 Sector View Elect'!O88 -> 0 | P88: ='2022 Sector View Electric'!P88+'2023 Sector View Elect'!P88 -> 0 | Q88: ='2022 Sector View Electric'!Q88+'2023 Sector View Elect'!Q88 -> 0 | R88: ='2022 Sector View Electric'!R88+'2023 Sector View Elect'!R88 -> 2850093.61
B89: Events Detail_PSCE Elec | E89: Events | H89: 18230487 | I89: ='2022 Sector View Electric'!I89+'2023 Sector View Elect'!I89 -> 412900 | J89: ='2022 Sector View Electric'!J89+'2023 Sector View Elect'!J89 -> 322474.9 | K89: ='2022 Sector View Electric'!K89+'2023 Sector View Elect'!K89 -> 26000 | L89: ='2022 Sector View Electric'!L89+'2023 Sector View Elect'!L89 -> 7810 | M89: ='2022 Sector View Electric'!M89+'2023 Sector View Elect'!M89 -> 210020 | N89: ='2022 Sector View Electric'!N89+'2023 Sector View Elect'!N89 -> 46110 | O89: ='2022 Sector View Electric'!O89+'2023 Sector View Elect'!O89 -> 0 | P89: ='2022 Sector View Electric'!P89+'2023 Sector View Elect'!P89 -> 0 | Q89: ='2022 Sector View Electric'!Q89+'2023 Sector View Elect'!Q89 -> 0 | R89: ='2022 Sector View Electric'!R89+'2023 Sector View Elect'!R89 -> 1025314.9
G90: Total, Portfolio Support | I90: =SUM(I74:I83)+SUM(I88:I89) -> 8515968.139 | J90: 6650971.117 | K90: 2291592.01 | L90: 260610 | M90: 6044984 | N90: 80752 | O90: 2700 | P90: 0 | Q90: -493798 | R90: 23353779.27
H92: 2020-2021 Figures | I92: 6759099 | J92: 5199883.947 | K92: 146000 | L92: 257690 | M92: 3856829.82 | N92: 117620 | O92: 2700 | P92: 0 | Q92: -415000 | R92: 15122062.77
C94: Research & Compliance
B95: SuppCrv Detail_R&C_Elec | E95: Conservation Supply Curves | H95: 18230809 | I95: ='2022 Sector View Electric'!I95+'2023 Sector View Elect'!I95 -> 182700 | J95: ='2022 Sector View Electric'!J95+'2023 Sector View Elect'!J95 -> 142688.7 | K95: ='2022 Sector View Electric'!K95+'2023 Sector View Elect'!K95 -> 0 | L95: ='2022 Sector View Electric'!L95+'2023 Sector View Elect'!L95 -> 870 | M95: ='2022 Sector View Electric'!M95+'2023 Sector View Elect'!M95 -> 554626 | N95: ='2022 Sector View Electric'!N95+'2023 Sector View Elect'!N95 -> 0 | O95: ='2022 Sector View Electric'!O95+'2023 Sector View Elect'!O95 -> 0 | P95: ='2022 Sector View Electric'!P95+'2023 Sector View Elect'!P95 -> 0 | Q95: ='2022 Sector View Electric'!Q95+'2023 Sector View Elect'!Q95 -> 0 | R95: ='2022 Sector View Electric'!R95+'2023 Sector View Elect'!R95 -> 880884.7
B96: Strat Plan Detail_R&C_Elec | E96: Strategic Planning | H96: 18230469 | I96: ='2022 Sector View Electric'!I96+'2023 Sector View Elect'!I96 -> 565500 | J96: ='2022 Sector View Electric'!J96+'2023 Sector View Elect'!J96 -> 441655.5 | K96: ='2022 Sector View Electric'!K96+'2023 Sector View Elect'!K96 -> 0 | L96: ='2022 Sector View Electric'!L96+'2023 Sector View Elect'!L96 -> 8700 | M96: ='2022 Sector View Electric'!M96+'2023 Sector View Elect'!M96 -> 0 | N96: ='2022 Sector View Electric'!N96+'2023 Sector View Elect'!N96 -> 0 | O96: ='2022 Sector View Electric'!O96+'2023 Sector View Elect'!O96 -> 0 | P96: ='2022 Sector View Electric'!P96+'2023 Sector View Elect'!P96 -> 0 | Q96: ='2022 Sector View Electric'!Q96+'2023 Sector View Elect'!Q96 -> 0 | R96: ='2022 Sector View Electric'!R96+'2023 Sector View Elect'!R96 -> 1015855.5
B97: Mktg Resch Detail_PS_ Elec | E97: Market Research | H97: 18230413 | I97: ='2022 Sector View Electric'!I97+'2023 Sector View Elect'!I97 -> 219240 | J97: ='2022 Sector View Electric'!J97+'2023 Sector View Elect'!J97 -> 171226.44 | K97: ='2022 Sector View Electric'!K97+'2023 Sector View Elect'!K97 -> 0 | L97: ='2022 Sector View Electric'!L97+'2023 Sector View Elect'!L97 -> 0 | M97: ='2022 Sector View Electric'!M97+'2023 Sector View Elect'!M97 -> 0 | N97: ='2022 Sector View Electric'!N97+'2023 Sector View Elect'!N97 -> 0 | O97: ='2022 Sector View Electric'!O97+'2023 Sector View Elect'!O97 -> 17400 | P97: ='2022 Sector View Electric'!P97+'2023 Sector View Elect'!P97 -> 0 | Q97: ='2022 Sector View Electric'!Q97+'2023 Sector View Elect'!Q97 -> 0 | R97: ='2022 Sector View Electric'!R97+'2023 Sector View Elect'!R97 -> 407866.44
B98: Eval Detail_R&C_Elec | E98: Program Evaluation | H98: 18230802 | I98: ='2022 Sector View Electric'!I98+'2023 Sector View Elect'!I98 -> 365400 | J98: ='2022 Sector View Electric'!J98+'2023 Sector View Elect'!J98 -> 285377.4 | K98: ='2022 Sector View Electric'!K98+'2023 Sector View Elect'!K98 -> 0 | L98: ='2022 Sector View Electric'!L98+'2023 Sector View Elect'!L98 -> 8700 | M98: ='2022 Sector View Electric'!M98+'2023 Sector View Elect'!M98 -> 2179928 | N98: ='2022 Sector View Electric'!N98+'2023 Sector View Elect'!N98 -> 0 | O98: ='2022 Sector View Electric'!O98+'2023 Sector View Elect'!O98 -> 437600 | P98: ='2022 Sector View Electric'!P98+'2023 Sector View Elect'!P98 -> 0 | Q98: ='2022 Sector View Electric'!Q98+'2023 Sector View Elect'!Q98 -> 0 | R98: ='2022 Sector View Electric'!R98+'2023 Sector View Elect'!R98 -> 3277005.4
B99: BECAR Detail_R&C Elec | E99: Biennial Elec. Consv. Aquisitn. Review | H99: 18230624 | I99: ='2022 Sector View Electric'!I99+'2023 Sector View Elect'!I99 -> 0 | J99: ='2022 Sector View Electric'!J99+'2023 Sector View Elect'!J99 -> 0 | K99: ='2022 Sector View Electric'!K99+'2023 Sector View Elect'!K99 -> 0 | L99: ='2022 Sector View Electric'!L99+'2023 Sector View Elect'!L99 -> 0 | M99: ='2022 Sector View Electric'!M99+'2023 Sector View Elect'!M99 -> 300000 | N99: ='2022 Sector View Electric'!N99+'2023 Sector View Elect'!N99 -> 0 | O99: ='2022 Sector View Electric'!O99+'2023 Sector View Elect'!O99 -> 0 | P99: ='2022 Sector View Electric'!P99+'2023 Sector View Elect'!P99 -> 0 | Q99: ='2022 Sector View Electric'!Q99+'2023 Sector View Elect'!Q99 -> 0 | R99: ='2022 Sector View Electric'!R99+'2023 Sector View Elect'!R99 -> 300000
G100: Total, Research & Compliance | I100: =SUM(I95:I99) -> 1332840 | J100: 1040948.04 | K100: 0 | L100: =SUM(L95:L99) -> 18270 | M100: 3034554 | N100: 0 | O100: =SUM(O95:O99) -> 455000 | P100: 0 | Q100: 0 | R100: 5881612.04
H102: 2020-2021 Figures | I102: 995320 | J102: 868914.36 | K102: 0 | L102: 20532 | M102: 4240013 | N102: 0 | O102: 408390 | P102: 0 | Q102: 0 | R102: 6533169.36
C104: Other Customer Programs
B105: Net Mtr Details_Oth Elec E150 | C105: E150 | E105: Net Metering | H105: 18230128 | I105: ='2022 Sector View Electric'!I105+'2023 Sector View Elect'!I105 -> 877000 | J105: ='2022 Sector View Electric'!J105+'2023 Sector View Elect'!J105 -> 684937 | K105: ='2022 Sector View Electric'!K105+'2023 Sector View Elect'!K105 -> 0 | L105: ='2022 Sector View Electric'!L105+'2023 Sector View Elect'!L105 -> 20000 | M105: ='2022 Sector View Electric'!M105+'2023 Sector View Elect'!M105 -> 220000 | N105: ='2022 Sector View Electric'!N105+'2023 Sector View Elect'!N105 -> 0 | O105: ='2022 Sector View Electric'!O105+'2023 Sector View Elect'!O105 -> 2800000 | P105: ='2022 Sector View Electric'!P105+'2023 Sector View Elect'!P105 -> 0 | Q105: ='2022 Sector View Electric'!Q105+'2023 Sector View Elect'!Q105 -> 0 | R105: ='2022 Sector View Electric'!R105+'2023 Sector View Elect'!R105 -> 4601937
B106: DemndResp_Detail_E249_Elec | C106: 249A, 271 | E106: Demand Response Pilot | H106: 18230133 | I106: ='2022 Sector View Electric'!I106+'2023 Sector View Elect'!I106 -> 0 | J106: ='2022 Sector View Electric'!J106+'2023 Sector View Elect'!J106 -> 0 | K106: ='2022 Sector View Electric'!K106+'2023 Sector View Elect'!K106 -> 0 | L106: ='2022 Sector View Electric'!L106+'2023 Sector View Elect'!L106 -> 0 | M106: ='2022 Sector View Electric'!M106+'2023 Sector View Elect'!M106 -> 640000 | N106: ='2022 Sector View Electric'!N106+'2023 Sector View Elect'!N106 -> 0 | O106: ='2022 Sector View Electric'!O106+'2023 Sector View Elect'!O106 -> 0 | P106: ='2022 Sector View Electric'!P106+'2023 Sector View Elect'!P106 -> 0 | Q106: ='2022 Sector View Electric'!Q106+'2023 Sector View Elect'!Q106 -> 0 | R106: ='2022 Sector View Electric'!R106+'2023 Sector View Elect'!R106 -> 640000
G107: Total, Other Energy Efficiency Programs | I107: =SUM(I105:I106) -> 877000 | J107: =SUM(J105:J106) -> 684937 | K107: 0 | L107: 20000 | M107: 860000 | N107: 0 | O107: 2800000 | P107: 0 | Q107: 0 | R107: 5241937
H109: 2020-2021 Figures | I109: 586500 | J109: 512014.5 | K109: 0 | L109: 20000 | M109: 625100 | N109: 0 | O109: 1650000 | P109: 0 | Q109: 0 | R109: 3393614.5
G111: GRAND TOTAL, ELECTRIC PROGRAMS | I111: =I107+I100+I69+I61+I51+I25 -> 13655376.65 | J111: 10972706.98 | K111: 2505500 | L111: 231070 | M111: 39019266.97 | N111: 46500 | O111: 3287000 | P111: 146959607.3 | Q111: =Q107+Q90+Q100+Q69+Q61+Q51+Q25 -> -418798 | R111: =R107+R100+R90+R69+R61+R51+R25 -> 240105807.1 | S111: =S107+S100+S69+S61+S51+S25 -> 537698240
P112: =P111/R111 -> 0.6120618615
H113: 2020-2021 Figures | I113: 18729900.68 | J113: 16050723.89 | K113: 3359593 | L113: 677772 | M113: 27448873.8 | N113: 181720 | O113: 2528290 | P113: 126117675.1 | Q113: -415000 | R113: 193876788.5 | S113: 526043702.5
S114: =S111/1000/8760 -> 61.38107763
G115: Budget Category Includes | H115: This is the main level of tracking expenditures and expenses in EES. Per FERC rules, all conservation order numbers start with a "1823nnnn", where "n" is some number. Cost elements apply to all order numbers (for instance, all conservation programs that | I115: Energy Efficiency program staff labor. Average FTE cost including management assessments. This Budget Category group includes assessments from Major Accounts management, Resource Planning, Corporate Communications management, IT specialists and some building maintenance allocations. | J115: Overhead--costs associated with primarily employee labor; benefits, for instance. For 2017, includes micro-overhead. | K115: Service and materials associated with the cost of printing program brochures, marketing pieces, advertising, banners, etc. Also includes marketing conducted by vendors and contractors. | L115: Costs associated with EE staff attending events, employee training, conferences, business meals, business parking, ferry & bridge tolls, mileage incurred on employee automobiles, office supplies, phones, subscriptions, software/hardware, etc. | M115: Contractors and vendors, such as PECI, Ecos, CostCo, EFI, etc. Legal expenses, technical services (CMS design, PSE.com web portals, etc.). These costs do NOT include brochure development, marketing pieces, (which are classified under MARKETING). These costs do NOT include incentives paid to customers by contractors. | N115: Primarily tools, trade show equipment, etc. | O115: This category should seldomly be used, and only expenses that cannot be classified under one of the above categories. | P115: All costs associated with rebates, grants, remuneration, value-added services that have a direct bearing on a customer's perceived value of PSE offerings. | Q115: Any amount that PSE is paid by a customer, partner, municipality or outside entity.

Sheet 2022 Sector View Electric
C2: Energy Efficiency 2022 Budgets and Aggregate Program Savings
C3: Sector View
C4: Electric Programs | I4: Please see category descriptions at the bottom of the sector table.
I5: Budget Category
B6: Workbook Name | C6: Schedule | D6: Comment | E6: Description (Blue, indented text indicates a sub-total value) | H6: Order Number (Click on the order# below to link to the detail page) | I6: Labor | J6: Overhead | K6: Marketing | L6: Employee/Office Expense | M6: Outside Services | N6: Materials | O6: Miscellaneous | P6: DBtC | Q6: Revenue | R6: Total Budget | S6: Total Savings kWh | U6: Comments
C7: Residential Energy Management
B8: LIW Detail_REM E201_Elec | C8: E201 | E8: Low Income Weatherization | H8: 18230611 | I8: =' LowIncWx Detail_REM E201_Elec'!D5 -> 117112.5 | J8: =' LowIncWx Detail_REM E201_Elec'!E5 -> 91464.8625 | K8: =' LowIncWx Detail_REM E201_Elec'!F5 -> 97200 | L8: =' LowIncWx Detail_REM E201_Elec'!G5 -> 4500 | M8: =' LowIncWx Detail_REM E201_Elec'!H5 -> 22500 | N8: =' LowIncWx Detail_REM E201_Elec'!I5 -> 1350 | O8: =' LowIncWx Detail_REM E201_Elec'!J5 -> 0 | P8: =' LowIncWx Detail_REM E201_Elec'!K5 -> 5774068.603 | Q8: =' LowIncWx Detail_REM E201_Elec'!L5 -> 0 | R8: =' LowIncWx Detail_REM E201_Elec'!M5 -> 6108195.965 | S8: =' LowIncWx Detail_REM E201_Elec'!N5 -> 1977441
B9: HomePrint Detail_REM_E214 Elec | C9: E214 | E9: Home Energy Assessments | H9: 18230625 | I9: ='HmEnrgAsmt Detail_REM_E214 Elec'!D5 -> 0 | J9: ='HmEnrgAsmt Detail_REM_E214 Elec'!E5 -> 0 | K9: ='HmEnrgAsmt Detail_REM_E214 Elec'!F5 -> 0 | L9: ='HmEnrgAsmt Detail_REM_E214 Elec'!G5 -> 0 | M9: ='HmEnrgAsmt Detail_REM_E214 Elec'!H5 -> 0 | N9: ='HmEnrgAsmt Detail_REM_E214 Elec'!I5 -> 0 | O9: ='HmEnrgAsmt Detail_REM_E214 Elec'!J5 -> 0 | P9: ='HmEnrgAsmt Detail_REM_E214 Elec'!K5 -> 0 | Q9: ='HmEnrgAsmt Detail_REM_E214 Elec'!L5 -> 0 | R9: ='HmEnrgAsmt Detail_REM_E214 Elec'!M5 -> 0 | S9: ='HmEnrgAsmt Detail_REM_E214 Elec'!N5 -> 0
B10: WaterHea_Detail_REM_E214 Elec | C10: E214 | E10: SF Existing Water Heat | H10: 18230626 | I10: ='WaterHea_Detail_REM_E214 Elec'!D5 -> 153750 | J10: ='WaterHea_Detail_REM_E214 Elec'!E5 -> 120078.75 | K10: ='WaterHea_Detail_REM_E214 Elec'!F5 -> 140000 | L10: ='WaterHea_Detail_REM_E214 Elec'!G5 -> 500 | M10: ='WaterHea_Detail_REM_E214 Elec'!H5 -> 93520 | N10: ='WaterHea_Detail_REM_E214 Elec'!I5 -> 500 | O10: ='WaterHea_Detail_REM_E214 Elec'!J5 -> 500 | P10: ='WaterHea_Detail_REM_E214 Elec'!K5 -> 611000 | Q10: ='WaterHea_Detail_REM_E214 Elec'!L5 -> 0 | R10: ='WaterHea_Detail_REM_E214 Elec'!M5 -> 1119848.75 | S10: ='WaterHea_Detail_REM_E214 Elec'!N5 -> 1444695.45
B11: Wx_Detail_REM E214 Elec | C11: E214 | E11: SF Existing Weatherization | H11: 18230627 | I11: ='Wx_Detail_REM E214 Elec'!D5 -> 84500 | J11: ='Wx_Detail_REM E214 Elec'!E5 -> 65994.5 | K11: ='Wx_Detail_REM E214 Elec'!F5 -> 110000 | L11: ='Wx_Detail_REM E214 Elec'!G5 -> 1000 | M11: ='Wx_Detail_REM E214 Elec'!H5 -> 3500 | N11: ='Wx_Detail_REM E214 Elec'!I5 -> 500 | O11: ='Wx_Detail_REM E214 Elec'!J5 -> 2500 | P11: ='Wx_Detail_REM E214 Elec'!K5 -> 831950 | Q11: ='Wx_Detail_REM E214 Elec'!L5 -> 0 | R11: ='Wx_Detail_REM E214 Elec'!M5 -> 1099944.5 | S11: ='Wx_Detail_REM E214 Elec'!N5 -> 1217130.525
B12: SpcHeat Detail_REM_E214 Elec | C12: E214 | E12: SF Existing Space Heat | H12: 18230628 | I12: ='SpcHeat Detail_REM_E214 Elec'!D5 -> 78350 | J12: ='SpcHeat Detail_REM_E214 Elec'!E5 -> 61191.35 | K12: ='SpcHeat Detail_REM_E214 Elec'!F5 -> 225000 | L12: ='SpcHeat Detail_REM_E214 Elec'!G5 -> 1000 | M12: ='SpcHeat Detail_REM_E214 Elec'!H5 -> 40000 | N12: ='SpcHeat Detail_REM_E214 Elec'!I5 -> 1500 | O12: ='SpcHeat Detail_REM_E214 Elec'!J5 -> 0 | P12: ='SpcHeat Detail_REM_E214 Elec'!K5 -> 3968000 | Q12: ='SpcHeat Detail_REM_E214 Elec'!L5 -> 0 | R12: ='SpcHeat Detail_REM_E214 Elec'!M5 -> 4375041.35 | S12: ='SpcHeat Detail_REM_E214 Elec'!N5 -> 8258670
C13: E214 | E13: Residential Midstream HVAC and Water Heat | H13: 18230162 | I13: ='HVAC&WH Mdsrm_E214_Elec'!D5 -> 105650 | J13: ='HVAC&WH Mdsrm_E214_Elec'!E5 -> 82512.65 | K13: ='HVAC&WH Mdsrm_E214_Elec'!F5 -> 0 | L13: ='HVAC&WH Mdsrm_E214_Elec'!G5 -> 1500 | M13: ='HVAC&WH Mdsrm_E214_Elec'!H5 -> 3405000 | N13: ='HVAC&WH Mdsrm_E214_Elec'!I5 -> 1500 | O13: ='HVAC&WH Mdsrm_E214_Elec'!J5 -> 0 | P13: ='HVAC&WH Mdsrm_E214_Elec'!K5 -> 7047251 | Q13: ='HVAC&WH Mdsrm_E214_Elec'!L5 -> 0 | R13: ='HVAC&WH Mdsrm_E214_Elec'!M5 -> 10643413.65 | S13: ='HVAC&WH Mdsrm_E214_Elec'!N5 -> 16416736
B14: HmAppplc_Detail_REM_E214 Elec | C14: E214 | E14: Home Appliances | H14: 18230434 | I14: ='HmAppplc_Detail_REM_E214 Elec'!D5 -> 61850 | J14: ='HmAppplc_Detail_REM_E214 Elec'!E5 -> 48304.85 | K14: ='HmAppplc_Detail_REM_E214 Elec'!F5 -> 60000 | L14: ='HmAppplc_Detail_REM_E214 Elec'!G5 -> 500 | M14: ='HmAppplc_Detail_REM_E214 Elec'!H5 -> 240000 | N14: ='HmAppplc_Detail_REM_E214 Elec'!I5 -> 500 | O14: ='HmAppplc_Detail_REM_E214 Elec'!J5 -> 0 | P14: ='HmAppplc_Detail_REM_E214 Elec'!K5 -> 300670 | Q14: ='HmAppplc_Detail_REM_E214 Elec'!L5 -> 0 | R14: ='HmAppplc_Detail_REM_E214 Elec'!M5 -> 711824.85 | S14: ='HmAppplc_Detail_REM_E214 Elec'!N5 -> 639328
B15: ShwrHead_Detail_REM_E214 Elec | C15: E214 | E15: Residential Water Use Reducers | H15: 18230435 | I15: ='Water Use Rdsrs_E214 Elec'!D5 -> 2850 | J15: ='Water Use Rdsrs_E214 Elec'!E5 -> 2225.85 | K15: ='Water Use Rdsrs_E214 Elec'!F5 -> 0 | L15: ='Water Use Rdsrs_E214 Elec'!G5 -> 0 | M15: ='Water Use Rdsrs_E214 Elec'!H5 -> 0 | N15: ='Water Use Rdsrs_E214 Elec'!I5 -> 0 | O15: ='Water Use Rdsrs_E214 Elec'!J5 -> 0 | P15: ='Water Use Rdsrs_E214 Elec'!K5 -> 32.5 | Q15: ='Water Use Rdsrs_E214 Elec'!L5 -> 0 | R15: ='Water Use Rdsrs_E214 Elec'!M5 -> 5108.35 | S15: ='Water Use Rdsrs_E214 Elec'!N5 -> 94.8
B16: Lighting Detail_REM_E214 Elec | C16: E214 | E16: Energy Efficient Lighting Services | H16: 18230440 | I16: ='Lighting Detail_REM_E214 Elec'!D5 -> 93750 | J16: ='Lighting Detail_REM_E214 Elec'!E5 -> 73218.75 | K16: ='Lighting Detail_REM_E214 Elec'!F5 -> 80000 | L16: ='Lighting Detail_REM_E214 Elec'!G5 -> 2500 | M16: ='Lighting Detail_REM_E214 Elec'!H5 -> 225000 | N16: ='Lighting Detail_REM_E214 Elec'!I5 -> 2000 | O16: ='Lighting Detail_REM_E214 Elec'!J5 -> 0 | P16: ='Lighting Detail_REM_E214 Elec'!K5 -> 659660 | Q16: ='Lighting Detail_REM_E214 Elec'!L5 -> 0 | R16: ='Lighting Detail_REM_E214 Elec'!M5 -> 1136128.75 | S16: ='Lighting Detail_REM_E214 Elec'!N5 -> 1072952.2
B17: HER Detail_REM_E214 elec. | C17: E214 | E17: Home Energy Reports | H17: 18230461 | I17: ='HER Detail_REM_E214 elec.'!D5 -> 62200 | J17: ='HER Detail_REM_E214 elec.'!E5 -> 48578.2 | K17: ='HER Detail_REM_E214 elec.'!F5 -> 0 | L17: ='HER Detail_REM_E214 elec.'!G5 -> 1450 | M17: ='HER Detail_REM_E214 elec.'!H5 -> 734704.48 | N17: ='HER Detail_REM_E214 elec.'!I5 -> 0 | O17: ='HER Detail_REM_E214 elec.'!J5 -> 0 | P17: ='HER Detail_REM_E214 elec.'!K5 -> 727600 | Q17: ='HER Detail_REM_E214 elec.'!L5 -> 0 | R17: ='HER Detail_REM_E214 elec.'!M5 -> 1574532.68 | S17: ='HER Detail_REM_E214 elec.'!N5 -> 49484000
B18: Web Tstat Detail_REM E214 Elec | C18: E214 | E18: Smart Thermostats | H18: 18230023 | I18: ='Web Tstat Detail_REM E214 Elec'!D5 -> 62000 | J18: ='Web Tstat Detail_REM E214 Elec'!E5 -> 48422 | K18: ='Web Tstat Detail_REM E214 Elec'!F5 -> 44000 | L18: ='Web Tstat Detail_REM E214 Elec'!G5 -> 100 | M18: ='Web Tstat Detail_REM E214 Elec'!H5 -> 452000 | N18: ='Web Tstat Detail_REM E214 Elec'!I5 -> 1000 | O18: ='Web Tstat Detail_REM E214 Elec'!J5 -> 0 | P18: ='Web Tstat Detail_REM E214 Elec'!K5 -> 292675 | Q18: ='Web Tstat Detail_REM E214 Elec'!L5 -> 0 | R18: ='Web Tstat Detail_REM E214 Elec'!M5 -> 900197 | S18: ='Web Tstat Detail_REM E214 Elec'!N5 -> 1235452
B19: SFNC Detail_REM E215 Elec | C19: E215 | E19: Single Family New Construction | H19: 18230405 | I19: ='SFNC Detail_REM E215 Elec'!D5 -> 35875 | J19: ='SFNC Detail_REM E215 Elec'!E5 -> 28018.375 | K19: ='SFNC Detail_REM E215 Elec'!F5 -> 10000 | L19: ='SFNC Detail_REM E215 Elec'!G5 -> 1000 | M19: ='SFNC Detail_REM E215 Elec'!H5 -> 6000 | N19: ='SFNC Detail_REM E215 Elec'!I5 -> 0 | O19: ='SFNC Detail_REM E215 Elec'!J5 -> 0 | P19: ='SFNC Detail_REM E215 Elec'!K5 -> 75000 | Q19: ='SFNC Detail_REM E215 Elec'!L5 -> 0 | R19: ='SFNC Detail_REM E215 Elec'!M5 -> 155893.375 | S19: ='SFNC Detail_REM E215 Elec'!N5 -> 100000
B20: MfgHmNew Detail_REM E215 Elec | C20: E215 | E20: Manufactured Home New Construction | H20: 18230071 | I20: ='NCMfgHome Detail_REM E215 Elec'!D5 -> 28325 | J20: ='NCMfgHome Detail_REM E215 Elec'!E5 -> 22121.825 | K20: ='NCMfgHome Detail_REM E215 Elec'!F5 -> 5000 | L20: ='NCMfgHome Detail_REM E215 Elec'!G5 -> 0 | M20: ='NCMfgHome Detail_REM E215 Elec'!H5 -> 54000 | N20: ='NCMfgHome Detail_REM E215 Elec'!I5 -> 0 | O20: ='NCMfgHome Detail_REM E215 Elec'!J5 -> 0 | P20: ='NCMfgHome Detail_REM E215 Elec'!K5 -> 91000 | Q20: ='NCMfgHome Detail_REM E215 Elec'!L5 -> 0 | R20: ='NCMfgHome Detail_REM E215 Elec'!M5 -> 200446.825 | S20: ='NCMfgHome Detail_REM E215 Elec'!N5 -> 155138
B21: Efficiency Boost E217 Elec | C21: E214 & 217 | E21: Moderate Income Residences | H21: 18230751 | I21: ='Moderate Income_E217 Elec'!D5 -> 30150 | J21: ='Moderate Income_E217 Elec'!E5 -> 23547.15 | K21: ='Moderate Income_E217 Elec'!F5 -> 35000 | L21: ='Moderate Income_E217 Elec'!G5 -> 0 | M21: ='Moderate Income_E217 Elec'!H5 -> 0 | N21: ='Moderate Income_E217 Elec'!I5 -> 0 | O21: ='Moderate Income_E217 Elec'!J5 -> 0 | P21: ='Moderate Income_E217 Elec'!K5 -> 0 | Q21: ='Moderate Income_E217 Elec'!L5 -> 0 | R21: ='Moderate Income_E217 Elec'!M5 -> 88697.15 | S21: ='Moderate Income_E217 Elec'!N5 -> 0
B22: MF Retr Detail_REM E217 Elec | C22: E217 | E22: Multifamily Retrofit | H22: 18230407 | I22: ='MF Retr Detail_REM E217 Elec'!D5 -> 140125 | J22: ='MF Retr Detail_REM E217 Elec'!E5 -> 109437.625 | K22: ='MF Retr Detail_REM E217 Elec'!F5 -> 60000 | L22: ='MF Retr Detail_REM E217 Elec'!G5 -> 4000 | M22: ='MF Retr Detail_REM E217 Elec'!H5 -> 1360496.58 | N22: ='MF Retr Detail_REM E217 Elec'!I5 -> 0 | O22: ='MF Retr Detail_REM E217 Elec'!J5 -> 0 | P22: ='MF Retr Detail_REM E217 Elec'!K5 -> 6029500.7 | Q22: ='MF Retr Detail_REM E217 Elec'!L5 -> 0 | R22: ='MF Retr Detail_REM E217 Elec'!M5 -> 7703559.905 | S22: ='MF Retr Detail_REM E217 Elec'!N5 -> 9069977.2
B23: MF Retr Grants Detail_REM E217 Elec | C23: E217 | E23: State Grants | H23: 18230747 | I23: ='MF Retr-Grnts Detail_E217 Elect'!D5 -> 0 | J23: ='MF Retr-Grnts Detail_E217 Elect'!E5 -> 0 | K23: ='MF Retr-Grnts Detail_E217 Elect'!F5 -> 0 | L23: ='MF Retr-Grnts Detail_E217 Elect'!G5 -> 0 | M23: ='MF Retr-Grnts Detail_E217 Elect'!H5 -> 0 | N23: ='MF Retr-Grnts Detail_E217 Elect'!I5 -> 0 | O23: ='MF Retr-Grnts Detail_E217 Elect'!J5 -> 0 | P23: ='MF Retr-Grnts Detail_E217 Elect'!K5 -> 0 | Q23: ='MF Retr-Grnts Detail_E217 Elect'!L5 -> 0 | R23: ='MF Retr-Grnts Detail_E217 Elect'!M5 -> 0 | S23: ='MF Retr-Grnts Detail_E217 Elect'!N5 -> 0
B24: MFNC Detail_REM E218 Elec | C24: E218 | E24: Multi-Family New Construction | H24: 18230486 | I24: ='MFNC Detail_REM E218 Elec'!D5 -> 68925 | J24: ='MFNC Detail_REM E218 Elec'!E5 -> 53830.425 | K24: ='MFNC Detail_REM E218 Elec'!F5 -> 20000 | L24: ='MFNC Detail_REM E218 Elec'!G5 -> 1500 | M24: ='MFNC Detail_REM E218 Elec'!H5 -> 555000 | N24: ='MFNC Detail_REM E218 Elec'!I5 -> 200 | O24: ='MFNC Detail_REM E218 Elec'!J5 -> 0 | P24: ='MFNC Detail_REM E218 Elec'!K5 -> 1368000 | Q24: ='MFNC Detail_REM E218 Elec'!L5 -> 0 | R24: ='MFNC Detail_REM E218 Elec'!M5 -> 2067455.425 | S24: ='MFNC Detail_REM E218 Elec'!N5 -> 4500000
G25: Total, Residential Energy Management | I25: =SUM(I8:I24) -> 1125412.5 | J25: 878947.1625 | K25: 886200 | L25: 19550 | M25: 7191721.06 | N25: 9050 | O25: 3000 | P25: 27776407.8 | Q25: 0 | R25: 37890288.53 | S25: 95571615.17
C28: Business Energy Managment
E29: Commercial/Industrial Retrofit | I29: =SUM(I30:I33) -> 2838448 | J29: 2216827.888 | K29: 123000 | L29: 65000 | M29: 1036388 | N29: 7000 | O29: 3000 | P29: 19549415 | Q29: 0 | R29: =SUM(R30:R33) -> 25839078.89 | S29: =SUM(S30:S33) -> 73469199
B30: CI Retr Detail_BEM E250 Elec | C30: E250 | E30: Retrofit Custom Grants | H30: 18230711 | I30: ='CI Retr Detail_BEM E250 Elec'!C5 -> 733483 | J30: ='CI Retr Detail_BEM E250 Elec'!D5 -> 572850.223 | K30: ='CI Retr Detail_BEM E250 Elec'!E5 -> 50000 | L30: ='CI Retr Detail_BEM E250 Elec'!F5 -> 25000 | M30: ='CI Retr Detail_BEM E250 Elec'!G5 -> 558000 | N30: ='CI Retr Detail_BEM E250 Elec'!H5 -> 3500 | O30: ='CI Retr Detail_BEM E250 Elec'!I5 -> 0 | P30: ='CI Retr Detail_BEM E250 Elec'!J5 -> 4131483 | Q30: ='CI Retr Detail_BEM E250 Elec'!K5 -> 0 | R30: ='CI Retr Detail_BEM E250 Elec'!L5 -> 6074316.223 | S30: ='CI Retr Detail_BEM E250 Elec'!M5 -> 13600000
B31: BusLgtGrants_BEM E250 Elect | C31: E250 | E31: Custom Lighting Grants | H31: 18230724 | I31: ='BusLgtGrants_BEM E250 Elect'!C5 -> 1750000 | J31: ='BusLgtGrants_BEM E250 Elect'!D5 -> 1366750 | K31: ='BusLgtGrants_BEM E250 Elect'!E5 -> 47000 | L31: ='BusLgtGrants_BEM E250 Elect'!F5 -> 35000 | M31: ='BusLgtGrants_BEM E250 Elect'!G5 -> 102500 | N31: ='BusLgtGrants_BEM E250 Elect'!H5 -> 3500 | O31: ='BusLgtGrants_BEM E250 Elect'!I5 -> 3000 | P31: ='BusLgtGrants_BEM E250 Elect'!J5 -> 13200000 | Q31: ='BusLgtGrants_BEM E250 Elect'!K5 -> 0 | R31: ='BusLgtGrants_BEM E250 Elect'!L5 -> 16507750 | S31: ='BusLgtGrants_BEM E250 Elect'!M5 -> 48000000
B32: CI Indust_BEM_E250_Elec | C32: E250 | E32: Industrial Programs | H32: 18231137 | I32: ='CI Indust_BEM_E250_Elec'!C5 -> 354965 | J32: ='CI Indust_BEM_E250_Elec'!D5 -> 277227.665 | K32: ='CI Indust_BEM_E250_Elec'!E5 -> 25000 | L32: ='CI Indust_BEM_E250_Elec'!F5 -> 5000 | M32: ='CI Indust_BEM_E250_Elec'!G5 -> 86000 | N32: ='CI Indust_BEM_E250_Elec'!H5 -> 0 | O32: ='CI Indust_BEM_E250_Elec'!I5 -> 0 | P32: ='CI Indust_BEM_E250_Elec'!J5 -> 2217932 | Q32: ='CI Indust_BEM_E250_Elec'!K5 -> 0 | R32: ='CI Indust_BEM_E250_Elec'!L5 -> 2966124.665 | S32: ='CI Indust_BEM_E250_Elec'!M5 -> 7869199
C33: E250 | E33: Clean Buildings Accelerator | H33: 18230013 | I33: ='Cln Build Accel_E250_Elec'!C5 -> 0 | J33: ='Cln Build Accel_E250_Elec'!D5 -> 0 | K33: ='Cln Build Accel_E250_Elec'!E5 -> 1000 | L33: ='Cln Build Accel_E250_Elec'!F5 -> 0 | M33: ='Cln Build Accel_E250_Elec'!G5 -> 289888 | N33: ='Cln Build Accel_E250_Elec'!H5 -> 0 | O33: ='Cln Build Accel_E250_Elec'!I5 -> 0 | P33: ='Cln Build Accel_E250_Elec'!J5 -> 0 | Q33: ='Cln Build Accel_E250_Elec'!K5 -> 0 | R33: ='Cln Build Accel_E250_Elec'!L5 -> 290888 | S33: ='Cln Build Accel_E250_Elec'!M5 -> 4000000
B34: CI NC Detail_BEM E251 Elec | C34: E251 | E34: Commercial/Industrial New Construction | H34: 18230715 | I34: ='CI NC Detail_BEM E251 Elec'!C5 -> 336000 | J34: ='CI NC Detail_BEM E251 Elec'!D5 -> 262416 | K34: ='CI NC Detail_BEM E251 Elec'!E5 -> 22300 | L34: ='CI NC Detail_BEM E251 Elec'!F5 -> 4800 | M34: ='CI NC Detail_BEM E251 Elec'!G5 -> 174000 | N34: ='CI NC Detail_BEM E251 Elec'!H5 -> 5250 | O34: ='CI NC Detail_BEM E251 Elec'!I5 -> 0 | P34: ='CI NC Detail_BEM E251 Elec'!J5 -> 8012500 | Q34: ='CI NC Detail_BEM E251 Elec'!K5 -> 0 | R34: ='CI NC Detail_BEM E251 Elec'!L5 -> 8817266 | S34: ='CI NC Detail_BEM E251 Elec'!M5 -> 29500000
E35: Commercial Strategic Energy Management | I35: =SUM(I36:I38) -> 643250 | J35: =SUM(J36:J38) -> 502378.25 | K35: 3500 | L35: 17450 | M35: 210461 | N35: 200 | O35: 1500 | P35: 1000000 | Q35: 0 | R35: =SUM(R36:R38) -> 2378739.25 | S35: =SUM(S36:S38) -> 16000000
B36: RCM Detail_BEM E253 Elec | C36: E253 | E36: SEM | H36: 18230723 | I36: ='RCM Detail_BEM E253 Elec'!C5 -> 589750 | J36: ='RCM Detail_BEM E253 Elec'!D5 -> 460594.75 | K36: ='RCM Detail_BEM E253 Elec'!E5 -> 3500 | L36: ='RCM Detail_BEM E253 Elec'!F5 -> 16450 | M36: ='RCM Detail_BEM E253 Elec'!G5 -> 210461 | N36: ='RCM Detail_BEM E253 Elec'!H5 -> 200 | O36: ='RCM Detail_BEM E253 Elec'!I5 -> 1500 | P36: ='RCM Detail_BEM E253 Elec'!J5 -> 600000 | Q36: ='RCM Detail_BEM E253 Elec'!K5 -> 0 | R36: ='RCM Detail_BEM E253 Elec'!L5 -> 1882455.75 | S36: ='RCM Detail_BEM E253 Elec'!M5 -> 15000000
B37: ResAcctSW Detail_PSWE_Elec | C37: E253 | E37: Resource Accounting Software | H37: 18230502 | I37: ='ResAcctSW Detail_PSWE_Elec'!D5 -> 0 | J37: ='ResAcctSW Detail_PSWE_Elec'!E5 -> 0 | K37: ='ResAcctSW Detail_PSWE_Elec'!F5 -> 0 | L37: ='ResAcctSW Detail_PSWE_Elec'!G5 -> 0 | M37: ='ResAcctSW Detail_PSWE_Elec'!H5 -> 0 | N37: ='ResAcctSW Detail_PSWE_Elec'!I5 -> 0 | O37: ='ResAcctSW Detail_PSWE_Elec'!J5 -> 0 | P37: ='ResAcctSW Detail_PSWE_Elec'!K5 -> 0 | Q37: ='ResAcctSW Detail_PSWE_Elec'!L5 -> 0 | R37: ='ResAcctSW Detail_PSWE_Elec'!M5 -> 0 | S37: ='ResAcctSW Detail_PSWE_Elec'!N5 -> 0
C38: E253 | E38: Pay For Performance | H38: 18236102 | I38: ='Pay For Perf_E253_Elec'!C5 -> 53500 | J38: ='Pay For Perf_E253_Elec'!D5 -> 41783.5 | K38: ='Pay For Perf_E253_Elec'!E5 -> 0 | L38: ='Pay For Perf_E253_Elec'!F5 -> 1000 | M38: ='Pay For Perf_E253_Elec'!G5 -> 0 | N38: ='Pay For Perf_E253_Elec'!H5 -> 0 | O38: ='Pay For Perf_E253_Elec'!I5 -> 0 | P38: ='Pay For Perf_E253_Elec'!J5 -> 400000 | Q38: ='Pay For Perf_E253_Elec'!K5 -> 0 | R38: ='Pay For Perf_E253_Elec'!L5 -> 496283.5 | S38: ='Pay For Perf_E253_Elec'!M5 -> 1000000
E39: High Voltage, Self-Directed | I39: =SUM(I40:I41) -> 0 | J39: =SUM(J40:J41) -> 153928.9083 | K39: 0 | L39: 0 | M39: 0 | N39: 0 | O39: 0 | P39: 7738950.575 | Q39: 0 | R39: =SUM(R40:R41) -> 7892879.483 | S39: =SUM(S40:S41) -> 18176194
B40: LPSD_Detail_449_Elec | C40: E258 | E40: 449 Customers | H40: 18230720 | I40: =LPSD_Detail_449_Elec!C5 -> 0 | J40: =LPSD_Detail_449_Elec!D5 -> 92315.14834 | K40: =LPSD_Detail_449_Elec!E5 -> 0 | L40: =LPSD_Detail_449_Elec!F5 -> 0 | M40: =LPSD_Detail_449_Elec!G5 -> 0 | N40: =LPSD_Detail_449_Elec!H5 -> 0 | O40: =LPSD_Detail_449_Elec!I5 -> 0 | P40: =LPSD_Detail_449_Elec!J5 -> 3515362.55 | Q40: =LPSD_Detail_449_Elec!K5 -> 0 | R40: =LPSD_Detail_449_Elec!L5 -> 3607677.698 | S40: =LPSD_Detail_449_Elec!M5 -> 7917921
B41: LPSD_Detail_Non-449 Elec | C41: E258 | E41: Non-449 Customers | H41: 18230721 | I41: ='LPSD_Detail_Non-449 Elec'!C5 -> 0 | J41: ='LPSD_Detail_Non-449 Elec'!D5 -> 61613.76 | K41: ='LPSD_Detail_Non-449 Elec'!E5 -> 0 | L41: ='LPSD_Detail_Non-449 Elec'!F5 -> 0 | M41: ='LPSD_Detail_Non-449 Elec'!G5 -> 0 | N41: ='LPSD_Detail_Non-449 Elec'!H5 -> 0 | O41: ='LPSD_Detail_Non-449 Elec'!I5 -> 0 | P41: ='LPSD_Detail_Non-449 Elec'!J5 -> 4223588.025 | Q41: ='LPSD_Detail_Non-449 Elec'!K5 -> 0 | R41: ='LPSD_Detail_Non-449 Elec'!L5 -> 4285201.785 | S41: ='LPSD_Detail_Non-449 Elec'!M5 -> 10258273
B42: TechEval Detail_BEM E261 Elec | C42: E261 | E42: Technology Evaluation | H42: 18230448 | I42: ='TechEval Detail_BEM E261 Elec'!C5 -> 0 | J42: ='TechEval Detail_BEM E261 Elec'!D5 -> 0 | K42: ='TechEval Detail_BEM E261 Elec'!E5 -> 0 | L42: ='TechEval Detail_BEM E261 Elec'!F5 -> 0 | M42: ='TechEval Detail_BEM E261 Elec'!G5 -> 0 | N42: ='TechEval Detail_BEM E261 Elec'!H5 -> 0 | O42: ='TechEval Detail_BEM E261 Elec'!I5 -> 0 | P42: ='TechEval Detail_BEM E261 Elec'!J5 -> 0 | Q42: ='TechEval Detail_BEM E261 Elec'!K5 -> 0 | R42: ='TechEval Detail_BEM E261 Elec'!L5 -> 0 | S42: ='TechEval Detail_BEM E261 Elec'!M5 -> 0
C43: E262 | E43: Business Rebates | I43: =SUM(I44:I50) -> 395700 | J43: =SUM(J44:J50) -> 309041.7 | K43: 168000 | L43: 4700 | M43: 3040568.36 | N43: 1750 | O43: 1000 | P43: 12072683 | Q43: 0 | R43: =SUM(R44:R50) -> 15993443.06 | S43: =SUM(S44:S50) -> 44627673.4
B44: Comm Lgt Mkdn_E262 Elect | C44: E262 | E44: Lighting to Go--also referred to as Business Lighting Markdowns | H44: 18230714 | I44: ='Comm Lgt Mkdn_E262 Elect'!D5 -> 80700 | J44: ='Comm Lgt Mkdn_E262 Elect'!E5 -> 63026.7 | K44: ='Comm Lgt Mkdn_E262 Elect'!F5 -> 25000 | L44: ='Comm Lgt Mkdn_E262 Elect'!G5 -> 1000 | M44: ='Comm Lgt Mkdn_E262 Elect'!H5 -> 924695.93 | N44: ='Comm Lgt Mkdn_E262 Elect'!I5 -> 250 | O44: ='Comm Lgt Mkdn_E262 Elect'!J5 -> 250 | P44: ='Comm Lgt Mkdn_E262 Elect'!K5 -> 2402964 | Q44: ='Comm Lgt Mkdn_E262 Elect'!L5 -> 0 | R44: ='Comm Lgt Mkdn_E262 Elect'!M5 -> 3497886.63 | S44: ='Comm Lgt Mkdn_E262 Elect'!N5 -> 21711025.4
B45: Comm Kit-Laund_E262 Elect | C45: E262 | E45: Commercial Foodservice | H45: 18230716 | I45: ='Comm Foodservice_E262 Elect'!D5 -> 19050 | J45: ='Comm Foodservice_E262 Elect'!E5 -> 14878.05 | K45: ='Comm Foodservice_E262 Elect'!F5 -> 7000 | L45: ='Comm Foodservice_E262 Elect'!G5 -> 0 | M45: ='Comm Foodservice_E262 Elect'!H5 -> 77772.43 | N45: ='Comm Foodservice_E262 Elect'!I5 -> 0 | O45: ='Comm Foodservice_E262 Elect'!J5 -> 0 | P45: ='Comm Foodservice_E262 Elect'!K5 -> 92981 | Q45: ='Comm Foodservice_E262 Elect'!L5 -> 0 | R45: ='Comm Foodservice_E262 Elect'!M5 -> 211681.48 | S45: ='Comm Foodservice_E262 Elect'!N5 -> 450000
B46: Comm HVAC_E262 Elect | C46: E262 | E46: Commercial HVAC Rebates | H46: 18230718 | I46: ='Comm HVAC_E262 Elect'!D5 -> 72350 | J46: ='Comm HVAC_E262 Elect'!E5 -> 56505.35 | K46: ='Comm HVAC_E262 Elect'!F5 -> 10000 | L46: ='Comm HVAC_E262 Elect'!G5 -> 500 | M46: ='Comm HVAC_E262 Elect'!H5 -> 100 | N46: ='Comm HVAC_E262 Elect'!I5 -> 500 | O46: ='Comm HVAC_E262 Elect'!J5 -> 500 | P46: ='Comm HVAC_E262 Elect'!K5 -> 263988 | Q46: ='Comm HVAC_E262 Elect'!L5 -> 0 | R46: ='Comm HVAC_E262 Elect'!M5 -> 404443.35 | S46: ='Comm HVAC_E262 Elect'!N5 -> 952648
C47: E262 | E47: Commercial Midstream HVAC and Water Heat | H47: 18230524 | I47: ='Comm Midstream_E262 Elect'!D5 -> 49150 | J47: ='Comm Midstream_E262 Elect'!E5 -> 38386.15 | K47: ='Comm Midstream_E262 Elect'!F5 -> 0 | L47: ='Comm Midstream_E262 Elect'!G5 -> 1000 | M47: ='Comm Midstream_E262 Elect'!H5 -> 340000 | N47: ='Comm Midstream_E262 Elect'!I5 -> 0 | O47: ='Comm Midstream_E262 Elect'!J5 -> 0 | P47: ='Comm Midstream_E262 Elect'!K5 -> 672750 | Q47: ='Comm Midstream_E262 Elect'!L5 -> 0 | R47: ='Comm Midstream_E262 Elect'!M5 -> 1101286.15 | S47: ='Comm Midstream_E262 Elect'!N5 -> 1514000
B48: Sm Bus DI_E262 Elect | C48: E262 | E48: Small Business Direct Install | H48: 18231134 | I48: ='Sm Bus DI_E262 Elect'!D5 -> 97950 | J48: ='Sm Bus DI_E262 Elect'!E5 -> 76498.95 | K48: ='Sm Bus DI_E262 Elect'!F5 -> 76000 | L48: ='Sm Bus DI_E262 Elect'!G5 -> 1200 | M48: ='Sm Bus DI_E262 Elect'!H5 -> 1698000 | N48: ='Sm Bus DI_E262 Elect'!I5 -> 500 | O48: ='Sm Bus DI_E262 Elect'!J5 -> 250 | P48: ='Sm Bus DI_E262 Elect'!K5 -> 6120000 | Q48: ='Sm Bus DI_E262 Elect'!L5 -> 0 | R48: ='Sm Bus DI_E262 Elect'!M5 -> 8070398.95 | S48: ='Sm Bus DI_E262 Elect'!N5 -> 18000000
B49: New BusRebt prgm_E262 Elec | C49: E262 | E49: Commercial General Rebates | H49: 1823nnnn | I49: ='Comm Genl Rbats_E262 Elec'!D5 -> 0 | J49: ='Comm Genl Rbats_E262 Elec'!E5 -> 0 | K49: ='Comm Genl Rbats_E262 Elec'!F5 -> 0 | L49: ='Comm Genl Rbats_E262 Elec'!G5 -> 0 | M49: ='Comm Genl Rbats_E262 Elec'!H5 -> 0 | N49: ='Comm Genl Rbats_E262 Elec'!I5 -> 0 | O49: ='Comm Genl Rbats_E262 Elec'!J5 -> 0 | P49: ='Comm Genl Rbats_E262 Elec'!K5 -> 0 | Q49: ='Comm Genl Rbats_E262 Elec'!L5 -> 0 | R49: ='Comm Genl Rbats_E262 Elec'!M5 -> 0 | S49: ='Comm Genl Rbats_E262 Elec'!N5 -> 0
C50: E262 | E50: Lodging Rebates | H50: 18230014 | I50: ='Lodging Rbats_E262 Elec'!D5 -> 76500 | J50: ='Lodging Rbats_E262 Elec'!E5 -> 59746.5 | K50: ='Lodging Rbats_E262 Elec'!F5 -> 50000 | L50: ='Lodging Rbats_E262 Elec'!G5 -> 1000 | M50: ='Lodging Rbats_E262 Elec'!H5 -> 0 | N50: ='Lodging Rbats_E262 Elec'!I5 -> 500 | O50: ='Lodging Rbats_E262 Elec'!J5 -> 0 | P50: ='Lodging Rbats_E262 Elec'!K5 -> 2520000 | Q50: ='Lodging Rbats_E262 Elec'!L5 -> 0 | R50: ='Lodging Rbats_E262 Elec'!M5 -> 2707746.5 | S50: ='Lodging Rbats_E262 Elec'!N5 -> 2000000
G51: Total, Business Energy Management | I51: =SUM(I30:I35)+I39+I42+I43 -> 4213398 | J51: =SUM(J30:J35)+J39+J42+J43 -> 3444592.746 | K51: 316800 | L51: 91950 | M51: 4461417.36 | N51: 14200 | O51: 5500 | P51: 48373548.58 | Q51: 0 | R51: =SUM(R30:R35)+R39+R42+R43 -> 60921406.68 | S51: =SUM(S30:S35)+S39+S42+S43 -> 181773066.4
C54: Pilots With Uncertain Savings
B55: REM Pilots E249 Elec | C55: E249 | E55: Residential Pilots | I55: =SUM(I56:I58) -> 123250 | J55: =SUM(J56:J58) -> 96258.25 | K55: 58000 | L55: 1000 | M55: 276600 | N55: 0 | O55: 9000 | P55: =SUM(P56:P58) -> 31500 | Q55: 0 | R55: =SUM(R56:R58) -> 595608.25 | S55: =SUM(S56:S58) -> 862500
C56: E249 | E56: HEA Behavioral | H56: 18230748 | I56: ='HEA Behavioral Pilot_Elec'!D5 -> 0 | J56: ='HEA Behavioral Pilot_Elec'!E5 -> 0 | K56: ='HEA Behavioral Pilot_Elec'!F5 -> 0 | L56: ='HEA Behavioral Pilot_Elec'!G5 -> 0 | M56: ='HEA Behavioral Pilot_Elec'!H5 -> 0 | N56: ='HEA Behavioral Pilot_Elec'!I5 -> 0 | O56: ='HEA Behavioral Pilot_Elec'!J5 -> 0 | P56: ='HEA Behavioral Pilot_Elec'!K5 -> 0 | Q56: ='HEA Behavioral Pilot_Elec'!L5 -> 0 | R56: ='HEA Behavioral Pilot_Elec'!M5 -> 0 | S56: ='HEA Behavioral Pilot_Elec'!N5 -> 0
C57: E249 | E57: Retail Choice | H57: 18230750 | I57: ='Retail Choice Pilot_Elec'!D5 -> 90250 | J57: ='Retail Choice Pilot_Elec'!E5 -> 70485.25 | K57: ='Retail Choice Pilot_Elec'!F5 -> 50000 | L57: ='Retail Choice Pilot_Elec'!G5 -> 0 | M57: ='Retail Choice Pilot_Elec'!H5 -> 135000 | N57: ='Retail Choice Pilot_Elec'!I5 -> 0 | O57: ='Retail Choice Pilot_Elec'!J5 -> 0 | P57: ='Retail Choice Pilot_Elec'!K5 -> 0 | Q57: ='Retail Choice Pilot_Elec'!L5 -> 0 | R57: ='Retail Choice Pilot_Elec'!M5 -> 345735.25 | S57: ='Retail Choice Pilot_Elec'!N5 -> 502500
C58: E249 | E58: Single Family AMI Engagement | H58: 18230749 | I58: ='SF AMI Engmt Pilot_Elec'!D5 -> 33000 | J58: ='SF AMI Engmt Pilot_Elec'!E5 -> 25773 | K58: ='SF AMI Engmt Pilot_Elec'!F5 -> 8000 | L58: ='SF AMI Engmt Pilot_Elec'!G5 -> 1000 | M58: ='SF AMI Engmt Pilot_Elec'!H5 -> 141600 | N58: ='SF AMI Engmt Pilot_Elec'!I5 -> 0 | O58: ='SF AMI Engmt Pilot_Elec'!J5 -> 9000 | P58: ='SF AMI Engmt Pilot_Elec'!K5 -> 31500 | Q58: ='SF AMI Engmt Pilot_Elec'!L5 -> 0 | R58: ='SF AMI Engmt Pilot_Elec'!M5 -> 249873 | S58: ='SF AMI Engmt Pilot_Elec'!N5 -> 360000
B59: BEM Pilots E249 Elec | C59: E249 | E59: Commercial Pilots | I59: =SUM(I60) -> 5250 | J59: =SUM(J60) -> 4100.25 | K59: 0 | L59: 0 | M59: 315000 | N59: 0 | O59: 0 | P59: 0 | Q59: 0 | R59: =SUM(R60) -> 324350.25 | S59: 1500000
C60: E249 | E60: SMB AMI Engagement | H60: 18231128 | I60: ='SMB AMI Engmt Pilot_Elec'!E5 -> 5250 | J60: ='SMB AMI Engmt Pilot_Elec'!F5 -> 4100.25 | K60: ='SMB AMI Engmt Pilot_Elec'!G5 -> 0 | L60: ='SMB AMI Engmt Pilot_Elec'!H5 -> 0 | M60: ='SMB AMI Engmt Pilot_Elec'!I5 -> 315000 | N60: ='SMB AMI Engmt Pilot_Elec'!J5 -> 0 | O60: ='SMB AMI Engmt Pilot_Elec'!K5 -> 0 | P60: ='SMB AMI Engmt Pilot_Elec'!L5 -> 0 | Q60: ='SMB AMI Engmt Pilot_Elec'!M5 -> 0 | R60: ='SMB AMI Engmt Pilot_Elec'!N5 -> 324350.25 | S60: ='SMB AMI Engmt Pilot_Elec'!O5 -> 1500000
G61: Total, Pilots | I61: =SUM(I55)+I59 -> 128500 | J61: =SUM(J55)+J59 -> 100358.5 | K61: 58000 | L61: 1000 | M61: 591600 | N61: 0 | O61: 9000 | P61: 31500 | Q61: 0 | R61: 919958.5 | S61: 2362500
C65: Regional Efficiency Programs
B66: NEEA Detail_E254 elec | C66: E254 | E66: Northwest Energy Efficiency Alliance | H66: 18230421 | I66: ='NEEA Detail_E254 elec'!D5 -> 0 | J66: ='NEEA Detail_E254 elec'!E5 -> 0 | K66: ='NEEA Detail_E254 elec'!F5 -> 0 | L66: ='NEEA Detail_E254 elec'!G5 -> 0 | M66: ='NEEA Detail_E254 elec'!H5 -> 4916640 | N66: ='NEEA Detail_E254 elec'!I5 -> 0 | O66: ='NEEA Detail_E254 elec'!J5 -> 0 | P66: ='NEEA Detail_E254 elec'!K5 -> 0 | Q66: ='NEEA Detail_E254 elec'!L5 -> 0 | R66: ='NEEA Detail_E254 elec'!M5 -> 4916640 | S66: ='NEEA Detail_E254 elec'!N5 -> 12964800
B67: TDSM_Regnl_elec_e219 | C67: E219 | E67: Targeted DSM | H67: 18230134 | I67: ='TDSM_Regnl_E219 Elec'!D5 -> 251125 | J67: ='TDSM_Regnl_E219 Elec'!E5 -> 196128.625 | K67: ='TDSM_Regnl_E219 Elec'!F5 -> 10000 | L67: ='TDSM_Regnl_E219 Elec'!G5 -> 1400 | M67: ='TDSM_Regnl_E219 Elec'!H5 -> 105000 | N67: ='TDSM_Regnl_E219 Elec'!I5 -> 0 | O67: ='TDSM_Regnl_E219 Elec'!J5 -> 0 | P67: ='TDSM_Regnl_E219 Elec'!K5 -> 52500 | Q67: ='TDSM_Regnl_E219 Elec'!L5 -> 0 | R67: ='TDSM_Regnl_E219 Elec'!M5 -> 616153.625 | S67: ='TDSM_Regnl_E219 Elec'!N5 -> 0
B68: T&D Detail_Reg E292 elec | C68: E292 | E68: Transmission & Distribution | H68: 18230713 | I68: ='T&D Detail_Reg E292 elec'!C5 -> 0 | J68: ='T&D Detail_Reg E292 elec'!D5 -> 0 | K68: ='T&D Detail_Reg E292 elec'!E5 -> 0 | L68: ='T&D Detail_Reg E292 elec'!F5 -> 0 | M68: ='T&D Detail_Reg E292 elec'!G5 -> 0 | N68: ='T&D Detail_Reg E292 elec'!H5 -> 0 | O68: ='T&D Detail_Reg E292 elec'!I5 -> 0 | P68: ='T&D Detail_Reg E292 elec'!J5 -> 0 | Q68: ='T&D Detail_Reg E292 elec'!K5 -> 0 | R68: ='T&D Detail_Reg E292 elec'!L5 -> 0 | S68: ='T&D Detail_Reg E292 elec'!M5 -> 6000000
G69: Total, Regional Efficiency Programs | I69: =SUM(I66:I68) -> 251125 | J69: 196128.625 | K69: 10000 | L69: 1400 | M69: 5021640 | N69: 0 | O69: 0 | P69: 52500 | Q69: 0 | R69: =SUM(R66:R68) -> 5532793.625 | S69: =SUM(S66:S68) -> 18964800
C73: Energy Efficiency Portfolio Support
B74: Data & Systm Svcs_Elect | E74: Data and Systems Services | H74: 18230745 | I74: ='Data & Systm Svcs_Elect'!D5 -> 400200 | J74: ='Data & Systm Svcs_Elect'!E5 -> 312556.2 | K74: ='Data & Systm Svcs_Elect'!F5 -> 0 | L74: ='Data & Systm Svcs_Elect'!G5 -> 8700 | M74: ='Data & Systm Svcs_Elect'!H5 -> 261000 | N74: ='Data & Systm Svcs_Elect'!I5 -> 0 | O74: ='Data & Systm Svcs_Elect'!J5 -> 0 | P74: ='Data & Systm Svcs_Elect'!K5 -> 0 | Q74: ='Data & Systm Svcs_Elect'!L5 -> 0 | R74: ='Data & Systm Svcs_Elect'!M5 -> 982456.2
B75: Rebt Procg Detail_Elect | E75: Rebates Processing | H75: 18230507 | I75: ='Rebt Procg Detail_Elect'!D5 -> 467190 | J75: ='Rebt Procg Detail_Elect'!E5 -> 364875.39 | K75: ='Rebt Procg Detail_Elect'!F5 -> 0 | L75: ='Rebt Procg Detail_Elect'!G5 -> 20000 | M75: ='Rebt Procg Detail_Elect'!H5 -> 60900 | N75: ='Rebt Procg Detail_Elect'!I5 -> 5000 | O75: ='Rebt Procg Detail_Elect'!J5 -> 0 | P75: ='Rebt Procg Detail_Elect'!K5 -> 0 | Q75: ='Rebt Procg Detail_Elect'!L5 -> 0 | R75: ='Rebt Procg Detail_Elect'!M5 -> 917965.39
B76: VTeam Detail_R&C_Elec | E76: Verification Team | H76: 18230418 | I76: ='Verifctn Team Detail Elec'!D5 -> 327990 | J76: ='Verifctn Team Detail Elec'!E5 -> 256160.19 | K76: ='Verifctn Team Detail Elec'!F5 -> 0 | L76: ='Verifctn Team Detail Elec'!G5 -> 20000 | M76: ='Verifctn Team Detail Elec'!H5 -> 0 | N76: ='Verifctn Team Detail Elec'!I5 -> 7000 | O76: ='Verifctn Team Detail Elec'!J5 -> 0 | P76: ='Verifctn Team Detail Elec'!K5 -> 0 | Q76: ='Verifctn Team Detail Elec'!L5 -> 0 | R76: ='Verifctn Team Detail Elec'!M5 -> 611150.19
B77: ProgDev Detail_R&C_ Elec | E77: Programs Support | H77: 18230810 | I77: ='Progs Supp Detail_PS_ Elec'!D5 -> 397372.5 | J77: ='Progs Supp Detail_PS_ Elec'!E5 -> 310347.9225 | K77: ='Progs Supp Detail_PS_ Elec'!F5 -> 0 | L77: ='Progs Supp Detail_PS_ Elec'!G5 -> 13050 | M77: ='Progs Supp Detail_PS_ Elec'!H5 -> 43500 | N77: ='Progs Supp Detail_PS_ Elec'!I5 -> 0 | O77: ='Progs Supp Detail_PS_ Elec'!J5 -> 0 | P77: ='Progs Supp Detail_PS_ Elec'!K5 -> 0 | Q77: ='Progs Supp Detail_PS_ Elec'!L5 -> 0 | R77: ='Progs Supp Detail_PS_ Elec'!M5 -> 764270.4225
B78: TradeAlly Detail_PS_ Elec | E78: Trade Ally Memberships | H78: 18230730 | I78: ='TradeAlly Detail_PS_ Elec'!D5 -> 0 | J78: ='TradeAlly Detail_PS_ Elec'!E5 -> 0 | K78: ='TradeAlly Detail_PS_ Elec'!F5 -> 0 | L78: ='TradeAlly Detail_PS_ Elec'!G5 -> 0 | M78: ='TradeAlly Detail_PS_ Elec'!H5 -> 121800 | N78: ='TradeAlly Detail_PS_ Elec'!I5 -> 0 | O78: ='TradeAlly Detail_PS_ Elec'!J5 -> 0 | P78: ='TradeAlly Detail_PS_ Elec'!K5 -> 0 | Q78: ='TradeAlly Detail_PS_ Elec'!L5 -> 0 | R78: ='TradeAlly Detail_PS_ Elec'!M5 -> 121800
B79: CAN_Elect | E79: Trade Ally Network (revenue + cost) | H79: 18230746 | I79: =REP_Elect!D5 -> 109595.5 | J79: =REP_Elect!E5 -> 85594.0855 | K79: =REP_Elect!F5 -> 20000 | L79: =REP_Elect!G5 -> 5000 | M79: =REP_Elect!H5 -> 37500 | N79: =REP_Elect!I5 -> 1500 | O79: =REP_Elect!J5 -> 0 | P79: =REP_Elect!K5 -> 0 | Q79: =REP_Elect!L5 -> -246899 | R79: =REP_Elect!M5 -> 12290.5855
B80: ABS Detail_PSWE_Elec | E80: Automated Benchmarking System | H80: 18230411 | I80: ='ABS Detail_PSWE_Elec'!D5 -> 784000 | J80: ='ABS Detail_PSWE_Elec'!E5 -> 612304 | K80: ='ABS Detail_PSWE_Elec'!F5 -> 0 | L80: ='ABS Detail_PSWE_Elec'!G5 -> 0 | M80: ='ABS Detail_PSWE_Elec'!H5 -> 1680000 | N80: ='ABS Detail_PSWE_Elec'!I5 -> 0 | O80: ='ABS Detail_PSWE_Elec'!J5 -> 0 | P80: ='ABS Detail_PSWE_Elec'!K5 -> 0 | Q80: ='ABS Detail_PSWE_Elec'!L5 -> 0 | R80: ='ABS Detail_PSWE_Elec'!M5 -> 3076304
B81: Engy Adv Detail_PSCE Elec | E81: Energy Advisors | H81: 18230610 | I81: ='Engy Adv Detail_PSCE Elec'!D5 -> 710910 | J81: ='Engy Adv Detail_PSCE Elec'!E5 -> 555220.71 | K81: ='Engy Adv Detail_PSCE Elec'!F5 -> 0 | L81: ='Engy Adv Detail_PSCE Elec'!G5 -> 44000 | M81: ='Engy Adv Detail_PSCE Elec'!H5 -> 1000 | N81: ='Engy Adv Detail_PSCE Elec'!I5 -> 0 | O81: ='Engy Adv Detail_PSCE Elec'!J5 -> 1350 | P81: ='Engy Adv Detail_PSCE Elec'!K5 -> 0 | Q81: ='Engy Adv Detail_PSCE Elec'!L5 -> 0 | R81: ='Engy Adv Detail_PSCE Elec'!M5 -> 1312480.71
B82: EEC Detail_PS_Elec | E82: Energy Efficient Communities | H82: 18230811 | I82: ='EEC Detail_PS_Elec'!D5 -> 587295.4 | J82: ='EEC Detail_PS_Elec'!E5 -> 458677.7074 | K82: ='EEC Detail_PS_Elec'!F5 -> 25796 | L82: ='EEC Detail_PS_Elec'!G5 -> 15400 | M82: ='EEC Detail_PS_Elec'!H5 -> 110000 | N82: ='EEC Detail_PS_Elec'!I5 -> 3821 | O82: ='EEC Detail_PS_Elec'!J5 -> 0 | P82: ='EEC Detail_PS_Elec'!K5 -> 0 | Q82: ='EEC Detail_PS_Elec'!L5 -> 0 | R82: ='EEC Detail_PS_Elec'!M5 -> 1200990.107
B83: CustOnline Detail_PSWE_Elec | D83: New Name | E83: Customer Digital Services | I83: =SUM(I84:I87) -> 231985 | J83: =SUM(J84:J87) -> 181180.285 | K83: 130000 | L83: 250 | M83: 1183532 | N83: 0 | O83: 0 | P83: 0 | Q83: =SUM(Q84:Q87) -> 0 | R83: =SUM(R84:R87) -> 1726947.285
F84: Digital Experience | H84: 18230400 | I84: ='Dig Exprnc_Elec'!D5 -> 60900 | J84: ='Dig Exprnc_Elec'!E5 -> 47562.9 | K84: ='Dig Exprnc_Elec'!F5 -> 0 | L84: ='Dig Exprnc_Elec'!G5 -> 0 | M84: ='Dig Exprnc_Elec'!H5 -> 0 | N84: ='Dig Exprnc_Elec'!I5 -> 0 | O84: ='Dig Exprnc_Elec'!J5 -> 0 | P84: ='Dig Exprnc_Elec'!K5 -> 0 | Q84: ='Dig Exprnc_Elec'!L5 -> 0 | R84: ='Dig Exprnc_Elec'!M5 -> 108462.9
F85: Customer Digital Experience | H85: 18230408 | I85: ='Customer Dig Exprnc_Elec'!D5 -> 26250 | J85: ='Customer Dig Exprnc_Elec'!E5 -> 20501.25 | K85: ='Customer Dig Exprnc_Elec'!F5 -> 0 | L85: ='Customer Dig Exprnc_Elec'!G5 -> 0 | M85: ='Customer Dig Exprnc_Elec'!H5 -> 688576 | N85: ='Customer Dig Exprnc_Elec'!I5 -> 0 | O85: ='Customer Dig Exprnc_Elec'!J5 -> 0 | P85: ='Customer Dig Exprnc_Elec'!K5 -> 0 | Q85: ='Customer Dig Exprnc_Elec'!L5 -> 0 | R85: ='Customer Dig Exprnc_Elec'!M5 -> 735327.25
B86: CustAwarTools_elec | F86: Customer Awareness Tools | H86: 18230508 | I86: =CustAwarTools_Elect!D5 -> 48235 | J86: =CustAwarTools_Elect!E5 -> 37671.535 | K86: =CustAwarTools_Elect!F5 -> 0 | L86: =CustAwarTools_Elect!G5 -> 250 | M86: =CustAwarTools_Elect!H5 -> 485156 | N86: =CustAwarTools_Elect!I5 -> 0 | O86: =CustAwarTools_Elect!J5 -> 0 | P86: =CustAwarTools_Elect!K5 -> 0 | Q86: =CustAwarTools_Elect!L5 -> 0 | R86: =CustAwarTools_Elect!M5 -> 571312.535
B87: ShopPSE_elec | F87: PSE Marketplace | H87: 18230509 | I87: ='PSE Mktplce_elect'!D5 -> 96600 | J87: ='PSE Mktplce_elect'!E5 -> 75444.6 | K87: ='PSE Mktplce_elect'!F5 -> 130000 | L87: ='PSE Mktplce_elect'!G5 -> 0 | M87: ='PSE Mktplce_elect'!H5 -> 9800 | N87: ='PSE Mktplce_elect'!I5 -> 0 | O87: ='PSE Mktplce_elect'!J5 -> 0 | P87: ='PSE Mktplce_elect'!K5 -> 0 | Q87: ='PSE Mktplce_elect'!L5 -> 0 | R87: ='PSE Mktplce_elect'!M5 -> 311844.6
B88: Mkt Intgn Detail_PSWE_Elec | E88: Market Integration | H88: 18230466 | I88: ='Mkt Intgn Detail_PSWE_Elec'!D5 -> 262800 | J88: ='Mkt Intgn Detail_PSWE_Elec'!E5 -> 205246.8 | K88: ='Mkt Intgn Detail_PSWE_Elec'!F5 -> 957000 | L88: ='Mkt Intgn Detail_PSWE_Elec'!G5 -> 0 | M88: ='Mkt Intgn Detail_PSWE_Elec'!H5 -> 0 | N88: ='Mkt Intgn Detail_PSWE_Elec'!I5 -> 0 | O88: ='Mkt Intgn Detail_PSWE_Elec'!J5 -> 0 | P88: ='Mkt Intgn Detail_PSWE_Elec'!K5 -> 0 | Q88: ='Mkt Intgn Detail_PSWE_Elec'!L5 -> 0 | R88: ='Mkt Intgn Detail_PSWE_Elec'!M5 -> 1425046.8
B89: Events Detail_PSCE Elec | E89: Events | H89: 18230602 | I89: ='Events Detail_PSCE Elec'!D5 -> 206450 | J89: ='Events Detail_PSCE Elec'!E5 -> 161237.45 | K89: ='Events Detail_PSCE Elec'!F5 -> 13000 | L89: ='Events Detail_PSCE Elec'!G5 -> 3905 | M89: ='Events Detail_PSCE Elec'!H5 -> 112610 | N89: ='Events Detail_PSCE Elec'!I5 -> 34365 | O89: ='Events Detail_PSCE Elec'!J5 -> 0 | P89: ='Events Detail_PSCE Elec'!K5 -> 0 | Q89: ='Events Detail_PSCE Elec'!L5 -> 0 | R89: ='Events Detail_PSCE Elec'!M5 -> 531567.45
G90: Total, Portfolio Support | I90: =SUM(I74:I83)+SUM(I88:I89) -> 4485788.4 | J90: 3503400.74 | K90: 1145796 | L90: 130305 | M90: 3611842 | N90: 51686 | O90: 1350 | P90: 0 | Q90: -246899 | R90: 12683269.14
C94: Research & Compliance
B95: SuppCrv Detail_R&C_Elec | E95: Conservation Supply Curves | H95: 18230809 | I95: ='SuppCrv Detail_R&C_Elec'!D5 -> 91350 | J95: ='SuppCrv Detail_R&C_Elec'!E5 -> 71344.35 | K95: ='SuppCrv Detail_R&C_Elec'!F5 -> 0 | L95: ='SuppCrv Detail_R&C_Elec'!G5 -> 435 | M95: ='SuppCrv Detail_R&C_Elec'!H5 -> 277313 | N95: ='SuppCrv Detail_R&C_Elec'!I5 -> 0 | O95: ='SuppCrv Detail_R&C_Elec'!J5 -> 0 | P95: ='SuppCrv Detail_R&C_Elec'!K5 -> 0 | Q95: ='SuppCrv Detail_R&C_Elec'!L5 -> 0 | R95: ='SuppCrv Detail_R&C_Elec'!M5 -> 440442.35
B96: Strat Plan Detail_R&C_Elec | E96: Strategic Planning | H96: 18230469 | I96: ='Strat Plan Detail_R&C_Elec'!D5 -> 282750 | J96: ='Strat Plan Detail_R&C_Elec'!E5 -> 220827.75 | K96: ='Strat Plan Detail_R&C_Elec'!F5 -> 0 | L96: ='Strat Plan Detail_R&C_Elec'!G5 -> 4350 | M96: ='Strat Plan Detail_R&C_Elec'!H5 -> 0 | N96: ='Strat Plan Detail_R&C_Elec'!I5 -> 0 | O96: ='Strat Plan Detail_R&C_Elec'!J5 -> 0 | P96: ='Strat Plan Detail_R&C_Elec'!K5 -> 0 | Q96: ='Strat Plan Detail_R&C_Elec'!L5 -> 0 | R96: ='Strat Plan Detail_R&C_Elec'!M5 -> 507927.75
B97: Mktg Resch Detail_PS_ Elec | E97: Market Research | H97: 18230413 | I97: ='Mktg Resch Detail_PS_ Elec'!D5 -> 109620 | J97: ='Mktg Resch Detail_PS_ Elec'!E5 -> 85613.22 | K97: ='Mktg Resch Detail_PS_ Elec'!F5 -> 0 | L97: ='Mktg Resch Detail_PS_ Elec'!G5 -> 0 | M97: ='Mktg Resch Detail_PS_ Elec'!H5 -> 0 | N97: ='Mktg Resch Detail_PS_ Elec'!I5 -> 0 | O97: ='Mktg Resch Detail_PS_ Elec'!J5 -> 8700 | P97: ='Mktg Resch Detail_PS_ Elec'!K5 -> 0 | Q97: ='Mktg Resch Detail_PS_ Elec'!L5 -> 0 | R97: ='Mktg Resch Detail_PS_ Elec'!M5 -> 203933.22
B98: Eval Detail_R&C_Elec | E98: Program Evaluation | H98: 18230802 | I98: ='Eval Detail_R&C_Elec'!D5 -> 182700 | J98: ='Eval Detail_R&C_Elec'!E5 -> 142688.7 | K98: ='Eval Detail_R&C_Elec'!F5 -> 0 | L98: ='Eval Detail_R&C_Elec'!G5 -> 4350 | M98: ='Eval Detail_R&C_Elec'!H5 -> 1089964 | N98: ='Eval Detail_R&C_Elec'!I5 -> 0 | O98: ='Eval Detail_R&C_Elec'!J5 -> 216100 | P98: ='Eval Detail_R&C_Elec'!K5 -> 0 | Q98: ='Eval Detail_R&C_Elec'!L5 -> 0 | R98: ='Eval Detail_R&C_Elec'!M5 -> 1635802.7
B99: BECAR Detail_R&C Elec | E99: Biennial Elec. Consv. Aquisitn. Review | H99: 18230624 | I99: ='BECAR Detail_R&C Elec'!D5 -> 0 | J99: ='BECAR Detail_R&C Elec'!E5 -> 0 | K99: ='BECAR Detail_R&C Elec'!F5 -> 0 | L99: ='BECAR Detail_R&C Elec'!G5 -> 0 | M99: ='BECAR Detail_R&C Elec'!H5 -> 150000 | N99: ='BECAR Detail_R&C Elec'!I5 -> 0 | O99: ='BECAR Detail_R&C Elec'!J5 -> 0 | P99: ='BECAR Detail_R&C Elec'!K5 -> 0 | Q99: ='BECAR Detail_R&C Elec'!L5 -> 0 | R99: ='BECAR Detail_R&C Elec'!M5 -> 150000
G100: Total, Research & Compliance | I100: =SUM(I95:I99) -> 666420 | J100: 520474.02 | K100: 0 | L100: 9135 | M100: 1517277 | N100: 0 | O100: 224800 | P100: 0 | Q100: 0 | R100: 2938106.02
C104: Other Customer Programs
B105: Net Mtr Details_Oth Elec E150 | C105: E150 | E105: Net Metering | H105: 18230128 | I105: ='Net Mtr Details_Oth Elec E150'!D5 -> 438500 | J105: ='Net Mtr Details_Oth Elec E150'!E5 -> 342468.5 | K105: ='Net Mtr Details_Oth Elec E150'!F5 -> 0 | L105: ='Net Mtr Details_Oth Elec E150'!G5 -> 10000 | M105: ='Net Mtr Details_Oth Elec E150'!H5 -> 100000 | N105: ='Net Mtr Details_Oth Elec E150'!I5 -> 0 | O105: ='Net Mtr Details_Oth Elec E150'!J5 -> 1300000 | P105: ='Net Mtr Details_Oth Elec E150'!K5 -> 0 | Q105: ='Net Mtr Details_Oth Elec E150'!L5 -> 0 | R105: ='Net Mtr Details_Oth Elec E150'!M5 -> 2190968.5
B106: DemndResp_Detail_E249_Elec | C106: 249A, 271 | E106: Demand Response Pilot | H106: 18230133 | I106: =DmndResp_Detail_E249_Elec!D5 -> 0 | J106: =DmndResp_Detail_E249_Elec!E5 -> 0 | K106: =DmndResp_Detail_E249_Elec!F5 -> 0 | L106: =DmndResp_Detail_E249_Elec!G5 -> 0 | M106: =DmndResp_Detail_E249_Elec!H5 -> 340000 | N106: =DmndResp_Detail_E249_Elec!I5 -> 0 | O106: =DmndResp_Detail_E249_Elec!J5 -> 0 | P106: =DmndResp_Detail_E249_Elec!K5 -> 0 | Q106: =DmndResp_Detail_E249_Elec!L5 -> 0 | R106: =DmndResp_Detail_E249_Elec!M5 -> 340000
G107: Total, Other Energy Efficiency Programs | I107: =SUM(I105:I106) -> 438500 | J107: =SUM(J105:J106) -> 342468.5 | K107: 0 | L107: 10000 | M107: 440000 | N107: 0 | O107: 1300000 | P107: 0 | Q107: 0 | R107: 2530968.5
G111: GRAND TOTAL, ELECTRIC PROGRAMS | I111: =I107+I100+I69+I61+I51+I25 -> 6823355.5 | J111: 5482969.554 | K111: 1271000 | L111: 133035 | M111: 19223655.42 | N111: 23250 | O111: 1542300 | P111: 76233956.38 | Q111: 0 | R111: =R107+R100+R90+R69+R61+R51+R25 -> 123416791 | S111: =S107+S100+S69+S61+S51+S25 -> 298671981.6
S114: =S111/1000/8760 -> 34.09497507
G115: Budget Category Includes | H115: This is the main level of tracking expenditures and expenses in EES. Per FERC rules, all conservation order numbers start with a "1823nnnn", where "n" is some number. Cost elements apply to all order numbers (for instance, all conservation programs that | I115: Energy Efficiency program staff labor. Average FTE cost including management assessments. This Budget Category group includes assessments from Major Accounts management, Resource Planning, Corporate Communications management, IT specialists and some building maintenance allocations. | J115: Overhead--costs associated with primarily employee labor; benefits, for instance. For 2017, includes micro-overhead. | K115: Service and materials associated with the cost of printing program brochures, marketing pieces, advertising, banners, etc. Also includes marketing conducted by vendors and contractors. | L115: Costs associated with EE staff attending events, employee training, conferences, business meals, business parking, ferry & bridge tolls, mileage incurred on employee automobiles, office supplies, phones, subscriptions, software/hardware, etc. | M115: Contractors and vendors, such as PECI, Ecos, CostCo, EFI, etc. Legal expenses, technical services (CMS design, PSE.com web portals, etc.). These costs do NOT include brochure development, marketing pieces, (which are classified under MARKETING). These costs do NOT include incentives paid to customers by contractors. | N115: Primarily tools, trade show equipment, etc. | O115: This category should seldomly be used, and only expenses that cannot be classified under one of the above categories. | P115: All costs associated with rebates, grants, remuneration, value-added services that have a direct bearing on a customer's perceived value of PSE offerings. | Q115: Any amount that PSE is paid by a customer, partner, municipality or outside entity.

Sheet 2023 Sector View Elect
C2: Energy Efficiency 2023 Budgets and Aggregate Program Savings
C3: Sector View | I3: Please see category descriptions at the bottom of the sector table.
C4: Electric Programs
I5: Budget Category
B6: Workbook Name | C6: Schedule | D6: Comment | E6: Description (Blue, indented text indicates a sub-total value) | H6: Order Number (Click on the order# below to link to the detail page) | I6: Labor | J6: Overhead | K6: Marketing | L6: Employee/Office Expense | M6: Outside Services | N6: Materials | O6: Miscellaneous | P6: DBtC | Q6: Revenue | R6: Total Budget | S6: Total Savings kWh | U6: Comments
C7: Residential Energy Management
B8: LIW Detail_REM E201_Elec | C8: E201 | E8: Low Income Weatherization | H8: 18230611 | I8: =' LowIncWx Detail_REM E201_Elec'!D6 -> 117112.5 | J8: =' LowIncWx Detail_REM E201_Elec'!E6 -> 91464.8625 | K8: =' LowIncWx Detail_REM E201_Elec'!F6 -> 97200 | L8: =' LowIncWx Detail_REM E201_Elec'!G6 -> 4500 | M8: =' LowIncWx Detail_REM E201_Elec'!H6 -> 22500 | N8: =' LowIncWx Detail_REM E201_Elec'!I6 -> 1350 | O8: =' LowIncWx Detail_REM E201_Elec'!J6 -> 0 | P8: =' LowIncWx Detail_REM E201_Elec'!K6 -> 5774068.603 | Q8: =' LowIncWx Detail_REM E201_Elec'!L6 -> 0 | R8: =' LowIncWx Detail_REM E201_Elec'!M6 -> 6108195.965 | S8: =' LowIncWx Detail_REM E201_Elec'!N6 -> 1977441
B9: HomePrint Detail_REM_E214 Elec | C9: E214 | E9: Home Energy Assessments | H9: 18230625 | I9: ='HmEnrgAsmt Detail_REM_E214 Elec'!D6 -> 0 | J9: ='HmEnrgAsmt Detail_REM_E214 Elec'!E6 -> 0 | K9: ='HmEnrgAsmt Detail_REM_E214 Elec'!F6 -> 0 | L9: ='HmEnrgAsmt Detail_REM_E214 Elec'!G6 -> 0 | M9: ='HmEnrgAsmt Detail_REM_E214 Elec'!H6 -> 0 | N9: ='HmEnrgAsmt Detail_REM_E214 Elec'!I6 -> 0 | O9: ='HmEnrgAsmt Detail_REM_E214 Elec'!J6 -> 0 | P9: ='HmEnrgAsmt Detail_REM_E214 Elec'!K6 -> 0 | Q9: ='HmEnrgAsmt Detail_REM_E214 Elec'!L6 -> 0 | R9: ='HmEnrgAsmt Detail_REM_E214 Elec'!M6 -> 0 | S9: ='HmEnrgAsmt Detail_REM_E214 Elec'!N6 -> 0
B10: WaterHea_Detail_REM_E214 Elec | C10: E214 | E10: SF Existing Water Heat | H10: 18230626 | I10: ='WaterHea_Detail_REM_E214 Elec'!D6 -> 153750 | J10: ='WaterHea_Detail_REM_E214 Elec'!E6 -> 120078.75 | K10: ='WaterHea_Detail_REM_E214 Elec'!F6 -> 140000 | L10: ='WaterHea_Detail_REM_E214 Elec'!G6 -> 500 | M10: ='WaterHea_Detail_REM_E214 Elec'!H6 -> 93520 | N10: ='WaterHea_Detail_REM_E214 Elec'!I6 -> 500 | O10: ='WaterHea_Detail_REM_E214 Elec'!J6 -> 500 | P10: ='WaterHea_Detail_REM_E214 Elec'!K6 -> 661000 | Q10: ='WaterHea_Detail_REM_E214 Elec'!L6 -> 0 | R10: ='WaterHea_Detail_REM_E214 Elec'!M6 -> 1169848.75 | S10: ='WaterHea_Detail_REM_E214 Elec'!N6 -> 1565000.45
B11: Wx_Detail_REM E214 Elec | C11: E214 | E11: SF Existing Weatherization | H11: 18230627 | I11: ='Wx_Detail_REM E214 Elec'!D6 -> 84500 | J11: ='Wx_Detail_REM E214 Elec'!E6 -> 65994.5 | K11: ='Wx_Detail_REM E214 Elec'!F6 -> 110000 | L11: ='Wx_Detail_REM E214 Elec'!G6 -> 1000 | M11: ='Wx_Detail_REM E214 Elec'!H6 -> 3500 | N11: ='Wx_Detail_REM E214 Elec'!I6 -> 500 | O11: ='Wx_Detail_REM E214 Elec'!J6 -> 2500 | P11: ='Wx_Detail_REM E214 Elec'!K6 -> 831950 | Q11: ='Wx_Detail_REM E214 Elec'!L6 -> 0 | R11: ='Wx_Detail_REM E214 Elec'!M6 -> 1099944.5 | S11: ='Wx_Detail_REM E214 Elec'!N6 -> 1217130.525
B12: SpcHeat Detail_REM_E214 Elec | C12: E214 | E12: SF Existing Space Heat | H12: 18230628 | I12: ='SpcHeat Detail_REM_E214 Elec'!D6 -> 78350 | J12: ='SpcHeat Detail_REM_E214 Elec'!E6 -> 61191.35 | K12: ='SpcHeat Detail_REM_E214 Elec'!F6 -> 225000 | L12: ='SpcHeat Detail_REM_E214 Elec'!G6 -> 1000 | M12: ='SpcHeat Detail_REM_E214 Elec'!H6 -> 40000 | N12: ='SpcHeat Detail_REM_E214 Elec'!I6 -> 1500 | O12: ='SpcHeat Detail_REM_E214 Elec'!J6 -> 0 | P12: ='SpcHeat Detail_REM_E214 Elec'!K6 -> 3968000 | Q12: ='SpcHeat Detail_REM_E214 Elec'!L6 -> 0 | R12: ='SpcHeat Detail_REM_E214 Elec'!M6 -> 4375041.35 | S12: ='SpcHeat Detail_REM_E214 Elec'!N6 -> 8258670
C13: E214 | E13: Residential Midstream HVAC and Water Heat | H13: 18230162 | I13: ='HVAC&WH Mdsrm_E214_Elec'!D6 -> 105650 | J13: ='HVAC&WH Mdsrm_E214_Elec'!E6 -> 82512.65 | K13: ='HVAC&WH Mdsrm_E214_Elec'!F6 -> 0 | L13: ='HVAC&WH Mdsrm_E214_Elec'!G6 -> 1500 | M13: ='HVAC&WH Mdsrm_E214_Elec'!H6 -> 3755000 | N13: ='HVAC&WH Mdsrm_E214_Elec'!I6 -> 1500 | O13: ='HVAC&WH Mdsrm_E214_Elec'!J6 -> 0 | P13: ='HVAC&WH Mdsrm_E214_Elec'!K6 -> 7720369 | Q13: ='HVAC&WH Mdsrm_E214_Elec'!L6 -> 0 | R13: ='HVAC&WH Mdsrm_E214_Elec'!M6 -> 11666531.65 | S13: ='HVAC&WH Mdsrm_E214_Elec'!N6 -> 17992234
B14: HmAppplc_Detail_REM_E214 Elec | C14: E214 | E14: Home Appliances | H14: 18230434 | I14: ='HmAppplc_Detail_REM_E214 Elec'!D6 -> 61850 | J14: ='HmAppplc_Detail_REM_E214 Elec'!E6 -> 48304.85 | K14: ='HmAppplc_Detail_REM_E214 Elec'!F6 -> 60000 | L14: ='HmAppplc_Detail_REM_E214 Elec'!G6 -> 500 | M14: ='HmAppplc_Detail_REM_E214 Elec'!H6 -> 240000 | N14: ='HmAppplc_Detail_REM_E214 Elec'!I6 -> 500 | O14: ='HmAppplc_Detail_REM_E214 Elec'!J6 -> 0 | P14: ='HmAppplc_Detail_REM_E214 Elec'!K6 -> 255000 | Q14: ='HmAppplc_Detail_REM_E214 Elec'!L6 -> 0 | R14: ='HmAppplc_Detail_REM_E214 Elec'!M6 -> 666154.85 | S14: ='HmAppplc_Detail_REM_E214 Elec'!N6 -> 558000
B15: ShwrHead_Detail_REM_E214 Elec | C15: E214 | E15: Residential Water Use Reducers | H15: 18230435 | I15: ='Water Use Rdsrs_E214 Elec'!D6 -> 0 | J15: ='Water Use Rdsrs_E214 Elec'!E6 -> 0 | K15: ='Water Use Rdsrs_E214 Elec'!F6 -> 0 | L15: ='Water Use Rdsrs_E214 Elec'!G6 -> 0 | M15: ='Water Use Rdsrs_E214 Elec'!H6 -> 0 | N15: ='Water Use Rdsrs_E214 Elec'!I6 -> 0 | O15: ='Water Use Rdsrs_E214 Elec'!J6 -> 0 | P15: ='Water Use Rdsrs_E214 Elec'!K6 -> 0 | Q15: ='Water Use Rdsrs_E214 Elec'!L6 -> 0 | R15: ='Water Use Rdsrs_E214 Elec'!M6 -> 0 | S15: ='Water Use Rdsrs_E214 Elec'!N6 -> 0
B16: Lighting Detail_REM_E214 Elec | C16: E214 | E16: Energy Efficient Lighting Services | H16: 18230440 | I16: ='Lighting Detail_REM_E214 Elec'!D6 -> 93750 | J16: ='Lighting Detail_REM_E214 Elec'!E6 -> 73218.75 | K16: ='Lighting Detail_REM_E214 Elec'!F6 -> 80000 | L16: ='Lighting Detail_REM_E214 Elec'!G6 -> 2500 | M16: ='Lighting Detail_REM_E214 Elec'!H6 -> 205000 | N16: ='Lighting Detail_REM_E214 Elec'!I6 -> 2000 | O16: ='Lighting Detail_REM_E214 Elec'!J6 -> 0 | P16: ='Lighting Detail_REM_E214 Elec'!K6 -> 593692 | Q16: ='Lighting Detail_REM_E214 Elec'!L6 -> 0 | R16: ='Lighting Detail_REM_E214 Elec'!M6 -> 1050160.75 | S16: ='Lighting Detail_REM_E214 Elec'!N6 -> 965654.2
B17: HER Detail_REM_E214 elec. | C17: E214 | E17: Home Energy Reports | H17: 18230461 | I17: ='HER Detail_REM_E214 elec.'!D6 -> 62200 | J17: ='HER Detail_REM_E214 elec.'!E6 -> 48578.2 | K17: ='HER Detail_REM_E214 elec.'!F6 -> 0 | L17: ='HER Detail_REM_E214 elec.'!G6 -> 1450 | M17: ='HER Detail_REM_E214 elec.'!H6 -> 734704.48 | N17: ='HER Detail_REM_E214 elec.'!I6 -> 0 | O17: ='HER Detail_REM_E214 elec.'!J6 -> 0 | P17: ='HER Detail_REM_E214 elec.'!K6 -> 728209 | Q17: ='HER Detail_REM_E214 elec.'!L6 -> 0 | R17: ='HER Detail_REM_E214 elec.'!M6 -> 1575141.68 | S17: ='HER Detail_REM_E214 elec.'!N6 -> 2580000
B18: Web Tstat Detail_REM E214 Elec | C18: E214 | E18: Smart Thermostats | H18: 18230023 | I18: ='Web Tstat Detail_REM E214 Elec'!D6 -> 62000 | J18: ='Web Tstat Detail_REM E214 Elec'!E6 -> 48422 | K18: ='Web Tstat Detail_REM E214 Elec'!F6 -> 44000 | L18: ='Web Tstat Detail_REM E214 Elec'!G6 -> 100 | M18: ='Web Tstat Detail_REM E214 Elec'!H6 -> 450000 | N18: ='Web Tstat Detail_REM E214 Elec'!I6 -> 1000 | O18: ='Web Tstat Detail_REM E214 Elec'!J6 -> 0 | P18: ='Web Tstat Detail_REM E214 Elec'!K6 -> 292675 | Q18: ='Web Tstat Detail_REM E214 Elec'!L6 -> 0 | R18: ='Web Tstat Detail_REM E214 Elec'!M6 -> 898197 | S18: ='Web Tstat Detail_REM E214 Elec'!N6 -> 1235452
B19: SFNC Detail_REM E215 Elec | C19: E215 | E19: Single Family New Construction | H19: 18230405 | I19: ='SFNC Detail_REM E215 Elec'!D6 -> 35875 | J19: ='SFNC Detail_REM E215 Elec'!E6 -> 28018.375 | K19: ='SFNC Detail_REM E215 Elec'!F6 -> 10000 | L19: ='SFNC Detail_REM E215 Elec'!G6 -> 1000 | M19: ='SFNC Detail_REM E215 Elec'!H6 -> 6000 | N19: ='SFNC Detail_REM E215 Elec'!I6 -> 0 | O19: ='SFNC Detail_REM E215 Elec'!J6 -> 0 | P19: ='SFNC Detail_REM E215 Elec'!K6 -> 75000 | Q19: ='SFNC Detail_REM E215 Elec'!L6 -> 75000 | R19: ='SFNC Detail_REM E215 Elec'!M6 -> 230893.375 | S19: ='SFNC Detail_REM E215 Elec'!N6 -> 100000
B20: MfgHmNew Detail_REM E215 Elec | C20: E215 | E20: Manufactured Home New Construction | H20: 18230071 | I20: ='NCMfgHome Detail_REM E215 Elec'!D6 -> 28325 | J20: ='NCMfgHome Detail_REM E215 Elec'!E6 -> 22121.825 | K20: ='NCMfgHome Detail_REM E215 Elec'!F6 -> 5000 | L20: ='NCMfgHome Detail_REM E215 Elec'!G6 -> 0 | M20: ='NCMfgHome Detail_REM E215 Elec'!H6 -> 54000 | N20: ='NCMfgHome Detail_REM E215 Elec'!I6 -> 0 | O20: ='NCMfgHome Detail_REM E215 Elec'!J6 -> 0 | P20: ='NCMfgHome Detail_REM E215 Elec'!K6 -> 91000 | Q20: ='NCMfgHome Detail_REM E215 Elec'!L6 -> 0 | R20: ='NCMfgHome Detail_REM E215 Elec'!M6 -> 200446.825 | S20: ='NCMfgHome Detail_REM E215 Elec'!N6 -> 155138
B21: Efficiency Boost E217 Elec | C21: E214 & 217 | E21: Moderate Income Residences | H21: 18230751 | I21: ='Moderate Income_E217 Elec'!D6 -> 30150 | J21: ='Moderate Income_E217 Elec'!E6 -> 23547.15 | K21: ='Moderate Income_E217 Elec'!F6 -> 35000 | L21: ='Moderate Income_E217 Elec'!G6 -> 0 | M21: ='Moderate Income_E217 Elec'!H6 -> 0 | N21: ='Moderate Income_E217 Elec'!I6 -> 0 | O21: ='Moderate Income_E217 Elec'!J6 -> 0 | P21: ='Moderate Income_E217 Elec'!K6 -> 0 | Q21: ='Moderate Income_E217 Elec'!L6 -> 0 | R21: ='Moderate Income_E217 Elec'!M6 -> 88697.15 | S21: ='Moderate Income_E217 Elec'!N6 -> 0
B22: MF Retr Detail_REM E217 Elec | C22: E217 | E22: Multifamily Retrofit | H22: 18230407 | I22: ='MF Retr Detail_REM E217 Elec'!D6 -> 140125 | J22: ='MF Retr Detail_REM E217 Elec'!E6 -> 109437.625 | K22: ='MF Retr Detail_REM E217 Elec'!F6 -> 60000 | L22: ='MF Retr Detail_REM E217 Elec'!G6 -> 4000 | M22: ='MF Retr Detail_REM E217 Elec'!H6 -> 1360496.58 | N22: ='MF Retr Detail_REM E217 Elec'!I6 -> 0 | O22: ='MF Retr Detail_REM E217 Elec'!J6 -> 0 | P22: ='MF Retr Detail_REM E217 Elec'!K6 -> 6029500.7 | Q22: ='MF Retr Detail_REM E217 Elec'!L6 -> 0 | R22: ='MF Retr Detail_REM E217 Elec'!M6 -> 7703559.905 | S22: ='MF Retr Detail_REM E217 Elec'!N6 -> 9069977.2
B23: MF Retr Grants Detail_REM E217 Elec | C23: E217 | E23: State Grants | H23: 18230747 | I23: ='MF Retr-Grnts Detail_E217 Elect'!D6 -> 0 | J23: ='MF Retr-Grnts Detail_E217 Elect'!E6 -> 0 | K23: ='MF Retr-Grnts Detail_E217 Elect'!F6 -> 0 | L23: ='MF Retr-Grnts Detail_E217 Elect'!G6 -> 0 | M23: ='MF Retr-Grnts Detail_E217 Elect'!H6 -> 0 | N23: ='MF Retr-Grnts Detail_E217 Elect'!I6 -> 0 | O23: ='MF Retr-Grnts Detail_E217 Elect'!J6 -> 0 | P23: ='MF Retr-Grnts Detail_E217 Elect'!K6 -> 0 | Q23: ='MF Retr-Grnts Detail_E217 Elect'!L6 -> 0 | R23: ='MF Retr-Grnts Detail_E217 Elect'!M6 -> 0 | S23: ='MF Retr-Grnts Detail_E217 Elect'!N6 -> 0
B24: MFNC Detail_REM E218 Elec | C24: E218 | E24: Multi-Family New Construction | H24: 18230486 | I24: ='MFNC Detail_REM E218 Elec'!D6 -> 68925 | J24: ='MFNC Detail_REM E218 Elec'!E6 -> 53830.425 | K24: ='MFNC Detail_REM E218 Elec'!F6 -> 20000 | L24: ='MFNC Detail_REM E218 Elec'!G6 -> 1500 | M24: ='MFNC Detail_REM E218 Elec'!H6 -> 555000 | N24: ='MFNC Detail_REM E218 Elec'!I6 -> 200 | O24: ='MFNC Detail_REM E218 Elec'!J6 -> 0 | P24: ='MFNC Detail_REM E218 Elec'!K6 -> 1368000 | Q24: ='MFNC Detail_REM E218 Elec'!L6 -> 0 | R24: ='MFNC Detail_REM E218 Elec'!M6 -> 2067455.425 | S24: ='MFNC Detail_REM E218 Elec'!N6 -> 4500000
G25: Total, Residential Energy Management | I25: =SUM(I8:I24) -> 1122562.5 | J25: 876721.3125 | K25: 886200 | L25: 19550 | M25: 7519721.06 | N25: 9050 | O25: 3000 | P25: 28388464.3 | Q25: 75000 | R25: 38900269.18 | S25: 50174697.38
C28: Business Energy Managment
E29: Commercial/Industrial Retrofit | I29: =SUM(I30:I33) -> 2871964 | J29: =SUM(J30:J33) -> 2243003.884 | K29: 123000 | L29: 30000 | M29: 942548 | N29: 7000 | O29: 3000 | P29: 20366730 | Q29: 0 | R29: 26587245.88 | S29: =SUM(S30:S33) -> 80041836
B30: CI Retr Detail_BEM E250 Elec | C30: E250 | E30: Retrofit Custom Grants | H30: 18230711 | I30: ='CI Retr Detail_BEM E250 Elec'!C6 -> 688072 | J30: ='CI Retr Detail_BEM E250 Elec'!D6 -> 537384.232 | K30: ='CI Retr Detail_BEM E250 Elec'!E6 -> 50000 | L30: ='CI Retr Detail_BEM E250 Elec'!F6 -> 25000 | M30: ='CI Retr Detail_BEM E250 Elec'!G6 -> 466000 | N30: ='CI Retr Detail_BEM E250 Elec'!H6 -> 3500 | O30: ='CI Retr Detail_BEM E250 Elec'!I6 -> 0 | P30: ='CI Retr Detail_BEM E250 Elec'!J6 -> 5000072 | Q30: ='CI Retr Detail_BEM E250 Elec'!K6 -> 0 | R30: ='CI Retr Detail_BEM E250 Elec'!L6 -> 6770028.232 | S30: ='CI Retr Detail_BEM E250 Elec'!M6 -> 14900000
B31: BusLgtGrants_BEM E250 Elect | C31: E250 | E31: Custom Lighting Grants | H31: 18230724 | I31: ='BusLgtGrants_BEM E250 Elect'!C6 -> 1800000 | J31: ='BusLgtGrants_BEM E250 Elect'!D6 -> 1405800 | K31: ='BusLgtGrants_BEM E250 Elect'!E6 -> 47000 | L31: ='BusLgtGrants_BEM E250 Elect'!F6 -> 0 | M31: ='BusLgtGrants_BEM E250 Elect'!G6 -> 102500 | N31: ='BusLgtGrants_BEM E250 Elect'!H6 -> 3500 | O31: ='BusLgtGrants_BEM E250 Elect'!I6 -> 3000 | P31: ='BusLgtGrants_BEM E250 Elect'!J6 -> 13975000 | Q31: ='BusLgtGrants_BEM E250 Elect'!K6 -> 0 | R31: ='BusLgtGrants_BEM E250 Elect'!L6 -> 17336800 | S31: ='BusLgtGrants_BEM E250 Elect'!M6 -> 49000000
B32: CI Indust_BEM_E250_Elec | C32: E250 | E32: Industrial Programs | H32: 18231137 | I32: ='CI Indust_BEM_E250_Elec'!C6 -> 383892 | J32: ='CI Indust_BEM_E250_Elec'!D6 -> 299819.652 | K32: ='CI Indust_BEM_E250_Elec'!E6 -> 25000 | L32: ='CI Indust_BEM_E250_Elec'!F6 -> 5000 | M32: ='CI Indust_BEM_E250_Elec'!G6 -> 86000 | N32: ='CI Indust_BEM_E250_Elec'!H6 -> 0 | O32: ='CI Indust_BEM_E250_Elec'!I6 -> 0 | P32: ='CI Indust_BEM_E250_Elec'!J6 -> 1391658 | Q32: ='CI Indust_BEM_E250_Elec'!K6 -> 0 | R32: ='CI Indust_BEM_E250_Elec'!L6 -> 2191369.652 | S32: ='CI Indust_BEM_E250_Elec'!M6 -> 10141836
C33: E250 | E33: Clean Buildings Accelerator | H33: 18230013 | I33: ='Cln Build Accel_E250_Elec'!C6 -> 0 | J33: ='Cln Build Accel_E250_Elec'!D6 -> 0 | K33: ='Cln Build Accel_E250_Elec'!E6 -> 1000 | L33: ='Cln Build Accel_E250_Elec'!F6 -> 0 | M33: ='Cln Build Accel_E250_Elec'!G6 -> 288048 | N33: ='Cln Build Accel_E250_Elec'!H6 -> 0 | O33: ='Cln Build Accel_E250_Elec'!I6 -> 0 | P33: ='Cln Build Accel_E250_Elec'!J6 -> 0 | Q33: ='Cln Build Accel_E250_Elec'!K6 -> 0 | R33: ='Cln Build Accel_E250_Elec'!L6 -> 289048 | S33: ='Cln Build Accel_E250_Elec'!M6 -> 6000000
B34: CI NC Detail_BEM E251 Elec | C34: E251 | E34: Commercial/Industrial New Construction | H34: 18230715 | I34: ='CI NC Detail_BEM E251 Elec'!C6 -> 336000 | J34: ='CI NC Detail_BEM E251 Elec'!D6 -> 262416 | K34: ='CI NC Detail_BEM E251 Elec'!E6 -> 22300 | L34: ='CI NC Detail_BEM E251 Elec'!F6 -> 4800 | M34: ='CI NC Detail_BEM E251 Elec'!G6 -> 174000 | N34: ='CI NC Detail_BEM E251 Elec'!H6 -> 5250 | O34: ='CI NC Detail_BEM E251 Elec'!I6 -> 0 | P34: ='CI NC Detail_BEM E251 Elec'!J6 -> 6212500 | Q34: ='CI NC Detail_BEM E251 Elec'!K6 -> 0 | R34: ='CI NC Detail_BEM E251 Elec'!L6 -> 7017266 | S34: ='CI NC Detail_BEM E251 Elec'!M6 -> 17500000
E35: Commercial Strategic Energy Management | I35: =SUM(I36:I38) -> 643250 | J35: =SUM(J36:J38) -> 502378.25 | K35: 3500 | L35: 17450 | M35: 210461 | N35: 200 | O35: 1500 | P35: 1150000 | Q35: 0 | R35: 2528739.25 | S35: 16000000
B36: RCM Detail_BEM E253 Elec | C36: E253 | E36: SEM | H36: 18230723 | I36: ='RCM Detail_BEM E253 Elec'!C6 -> 589750 | J36: ='RCM Detail_BEM E253 Elec'!D6 -> 460594.75 | K36: ='RCM Detail_BEM E253 Elec'!E6 -> 3500 | L36: ='RCM Detail_BEM E253 Elec'!F6 -> 16450 | M36: ='RCM Detail_BEM E253 Elec'!G6 -> 210461 | N36: ='RCM Detail_BEM E253 Elec'!H6 -> 200 | O36: ='RCM Detail_BEM E253 Elec'!I6 -> 1500 | P36: ='RCM Detail_BEM E253 Elec'!J6 -> 750000 | Q36: ='RCM Detail_BEM E253 Elec'!K6 -> 0 | R36: ='RCM Detail_BEM E253 Elec'!L6 -> 2032455.75 | S36: ='RCM Detail_BEM E253 Elec'!M6 -> 15000000
B37: ResAcctSW Detail_PSWE_Elec | C37: E253 | E37: Resource Accounting Software | H37: 18230502 | I37: ='ResAcctSW Detail_PSWE_Elec'!D6 -> 0 | J37: ='ResAcctSW Detail_PSWE_Elec'!E6 -> 0 | K37: ='ResAcctSW Detail_PSWE_Elec'!F6 -> 0 | L37: ='ResAcctSW Detail_PSWE_Elec'!G6 -> 0 | M37: ='ResAcctSW Detail_PSWE_Elec'!H6 -> 0 | N37: ='ResAcctSW Detail_PSWE_Elec'!I6 -> 0 | O37: ='ResAcctSW Detail_PSWE_Elec'!J6 -> 0 | P37: ='ResAcctSW Detail_PSWE_Elec'!K6 -> 0 | Q37: ='ResAcctSW Detail_PSWE_Elec'!L6 -> 0 | R37: ='ResAcctSW Detail_PSWE_Elec'!M6 -> 0 | S37: ='ResAcctSW Detail_PSWE_Elec'!N6 -> 0
C38: E253 | E38: Pay For Performance | H38: 18236102 | I38: ='Pay For Perf_E253_Elec'!C6 -> 53500 | J38: ='Pay For Perf_E253_Elec'!D6 -> 41783.5 | K38: ='Pay For Perf_E253_Elec'!E6 -> 0 | L38: ='Pay For Perf_E253_Elec'!F6 -> 1000 | M38: ='Pay For Perf_E253_Elec'!G6 -> 0 | N38: ='Pay For Perf_E253_Elec'!H6 -> 0 | O38: ='Pay For Perf_E253_Elec'!I6 -> 0 | P38: ='Pay For Perf_E253_Elec'!J6 -> 400000 | Q38: ='Pay For Perf_E253_Elec'!K6 -> 0 | R38: ='Pay For Perf_E253_Elec'!L6 -> 496283.5 | S38: ='Pay For Perf_E253_Elec'!M6 -> 1000000
E39: High Voltage, Self-Directed | I39: =SUM(I40:I41) -> 0 | J39: =SUM(J40:J41) -> 153928.9083 | K39: 0 | L39: 0 | M39: 0 | N39: 0 | O39: 0 | P39: 1884768.575 | Q39: =SUM(Q40:Q41) -> 0 | R39: 2038697.483 | S39: 1866286
B40: LPSD_Detail_449_Elec | C40: E258 | E40: 449 Customers | H40: 18230720 | I40: =LPSD_Detail_449_Elec!C6 -> 0 | J40: =LPSD_Detail_449_Elec!D6 -> 92315.14834 | K40: =LPSD_Detail_449_Elec!E6 -> 0 | L40: =LPSD_Detail_449_Elec!F6 -> 0 | M40: =LPSD_Detail_449_Elec!G6 -> 0 | N40: =LPSD_Detail_449_Elec!H6 -> 0 | O40: =LPSD_Detail_449_Elec!I6 -> 0 | P40: =LPSD_Detail_449_Elec!J6 -> 1541607.55 | Q40: =LPSD_Detail_449_Elec!K6 -> 0 | R40: =LPSD_Detail_449_Elec!L6 -> 1633922.698 | S40: =LPSD_Detail_449_Elec!M6 -> 1632014
B41: LPSD_Detail_Non-449 Elec | C41: E258 | E41: Non-449 Customers | H41: 18230721 | I41: ='LPSD_Detail_Non-449 Elec'!C6 -> 0 | J41: ='LPSD_Detail_Non-449 Elec'!D6 -> 61613.76 | K41: ='LPSD_Detail_Non-449 Elec'!E6 -> 0 | L41: ='LPSD_Detail_Non-449 Elec'!F6 -> 0 | M41: ='LPSD_Detail_Non-449 Elec'!G6 -> 0 | N41: ='LPSD_Detail_Non-449 Elec'!H6 -> 0 | O41: ='LPSD_Detail_Non-449 Elec'!I6 -> 0 | P41: ='LPSD_Detail_Non-449 Elec'!J6 -> 343161.025 | Q41: ='LPSD_Detail_Non-449 Elec'!K6 -> 0 | R41: ='LPSD_Detail_Non-449 Elec'!L6 -> 404774.785 | S41: ='LPSD_Detail_Non-449 Elec'!M6 -> 234272
B42: TechEval Detail_BEM E261 Elec | C42: E261 | E42: Technology Evaluation | H42: 18230448 | I42: ='TechEval Detail_BEM E261 Elec'!C6 -> 0 | J42: ='TechEval Detail_BEM E261 Elec'!D6 -> 0 | K42: ='TechEval Detail_BEM E261 Elec'!E6 -> 0 | L42: ='TechEval Detail_BEM E261 Elec'!F6 -> 0 | M42: ='TechEval Detail_BEM E261 Elec'!G6 -> 0 | N42: ='TechEval Detail_BEM E261 Elec'!H6 -> 0 | O42: ='TechEval Detail_BEM E261 Elec'!I6 -> 0 | P42: ='TechEval Detail_BEM E261 Elec'!J6 -> 0 | Q42: ='TechEval Detail_BEM E261 Elec'!K6 -> 0 | R42: ='TechEval Detail_BEM E261 Elec'!L6 -> 0 | S42: ='TechEval Detail_BEM E261 Elec'!M6 -> 0
C43: E262 | E43: Business Rebates | I43: =SUM(I44:I50) -> 395700 | J43: =SUM(J44:J50) -> 309041.7 | K43: 137500 | L43: 4700 | M43: 3636456.49 | N43: 1750 | O43: 1000 | P43: 12649688 | Q43: 0 | R43: 17135836.19 | S43: 49663339.1
B44: Comm Lgt Mkdn_E262 Elect | C44: E262 | E44: Lighting to Go--also referred to as Business Lighting Markdowns | H44: 18230714 | I44: ='Comm Lgt Mkdn_E262 Elect'!D6 -> 80700 | J44: ='Comm Lgt Mkdn_E262 Elect'!E6 -> 63026.7 | K44: ='Comm Lgt Mkdn_E262 Elect'!F6 -> 20000 | L44: ='Comm Lgt Mkdn_E262 Elect'!G6 -> 1000 | M44: ='Comm Lgt Mkdn_E262 Elect'!H6 -> 1437246.05 | N44: ='Comm Lgt Mkdn_E262 Elect'!I6 -> 250 | O44: ='Comm Lgt Mkdn_E262 Elect'!J6 -> 250 | P44: ='Comm Lgt Mkdn_E262 Elect'!K6 -> 2821502 | Q44: ='Comm Lgt Mkdn_E262 Elect'!L6 -> 0 | R44: ='Comm Lgt Mkdn_E262 Elect'!M6 -> 4423974.75 | S44: ='Comm Lgt Mkdn_E262 Elect'!N6 -> 26330691.1
B45: Comm Kit-Laund_E262 Elect | C45: E262 | E45: Commercial Foodservice | H45: 18230716 | I45: ='Comm Foodservice_E262 Elect'!D6 -> 19050 | J45: ='Comm Foodservice_E262 Elect'!E6 -> 14878.05 | K45: ='Comm Foodservice_E262 Elect'!F6 -> 3500 | L45: ='Comm Foodservice_E262 Elect'!G6 -> 0 | M45: ='Comm Foodservice_E262 Elect'!H6 -> 60210.44 | N45: ='Comm Foodservice_E262 Elect'!I6 -> 0 | O45: ='Comm Foodservice_E262 Elect'!J6 -> 0 | P45: ='Comm Foodservice_E262 Elect'!K6 -> 72948 | Q45: ='Comm Foodservice_E262 Elect'!L6 -> 0 | R45: ='Comm Foodservice_E262 Elect'!M6 -> 170586.49 | S45: ='Comm Foodservice_E262 Elect'!N6 -> 350000
B46: Comm HVAC_E262 Elect | C46: E262 | E46: Commercial HVAC Rebates | H46: 18230718 | I46: ='Comm HVAC_E262 Elect'!D6 -> 72350 | J46: ='Comm HVAC_E262 Elect'!E6 -> 56505.35 | K46: ='Comm HVAC_E262 Elect'!F6 -> 10000 | L46: ='Comm HVAC_E262 Elect'!G6 -> 500 | M46: ='Comm HVAC_E262 Elect'!H6 -> 1000 | N46: ='Comm HVAC_E262 Elect'!I6 -> 500 | O46: ='Comm HVAC_E262 Elect'!J6 -> 500 | P46: ='Comm HVAC_E262 Elect'!K6 -> 263988 | Q46: ='Comm HVAC_E262 Elect'!L6 -> 0 | R46: ='Comm HVAC_E262 Elect'!M6 -> 405343.35 | S46: ='Comm HVAC_E262 Elect'!N6 -> 952648
C47: E262 | E47: Commercial Midstream HVAC and Water Heat | H47: 18230524 | I47: ='Comm Midstream_E262 Elect'!D6 -> 49150 | J47: ='Comm Midstream_E262 Elect'!E6 -> 38386.15 | K47: ='Comm Midstream_E262 Elect'!F6 -> 0 | L47: ='Comm Midstream_E262 Elect'!G6 -> 1000 | M47: ='Comm Midstream_E262 Elect'!H6 -> 440000 | N47: ='Comm Midstream_E262 Elect'!I6 -> 0 | O47: ='Comm Midstream_E262 Elect'!J6 -> 0 | P47: ='Comm Midstream_E262 Elect'!K6 -> 851250 | Q47: ='Comm Midstream_E262 Elect'!L6 -> 0 | R47: ='Comm Midstream_E262 Elect'!M6 -> 1379786.15 | S47: ='Comm Midstream_E262 Elect'!N6 -> 2030000
B48: Sm Bus DI_E262 Elect | C48: E262 | E48: Small Business Direct Install | H48: 18231134 | I48: ='Sm Bus DI_E262 Elect'!D6 -> 97950 | J48: ='Sm Bus DI_E262 Elect'!E6 -> 76498.95 | K48: ='Sm Bus DI_E262 Elect'!F6 -> 74000 | L48: ='Sm Bus DI_E262 Elect'!G6 -> 1200 | M48: ='Sm Bus DI_E262 Elect'!H6 -> 1698000 | N48: ='Sm Bus DI_E262 Elect'!I6 -> 500 | O48: ='Sm Bus DI_E262 Elect'!J6 -> 250 | P48: ='Sm Bus DI_E262 Elect'!K6 -> 6120000 | Q48: ='Sm Bus DI_E262 Elect'!L6 -> 0 | R48: ='Sm Bus DI_E262 Elect'!M6 -> 8068398.95 | S48: ='Sm Bus DI_E262 Elect'!N6 -> 18000000
B49: Lodging DI_E262 Elec | C49: E262 | E49: Commercial General Rebates | H49: 1823nnnn | I49: ='Comm Genl Rbats_E262 Elec'!D6 -> 0 | J49: ='Comm Genl Rbats_E262 Elec'!E6 -> 0 | K49: ='Comm Genl Rbats_E262 Elec'!F6 -> 0 | L49: ='Comm Genl Rbats_E262 Elec'!G6 -> 0 | M49: ='Comm Genl Rbats_E262 Elec'!H6 -> 0 | N49: ='Comm Genl Rbats_E262 Elec'!I6 -> 0 | O49: ='Comm Genl Rbats_E262 Elec'!J6 -> 0 | P49: ='Comm Genl Rbats_E262 Elec'!K6 -> 0 | Q49: ='Comm Genl Rbats_E262 Elec'!L6 -> 0 | R49: ='Comm Genl Rbats_E262 Elec'!M6 -> 0 | S49: ='Comm Genl Rbats_E262 Elec'!N6 -> 0
C50: E262 | E50: Lodging Rebates | H50: 18230014 | I50: ='Lodging Rbats_E262 Elec'!D6 -> 76500 | J50: ='Lodging Rbats_E262 Elec'!E6 -> 59746.5 | K50: ='Lodging Rbats_E262 Elec'!F6 -> 30000 | L50: ='Lodging Rbats_E262 Elec'!G6 -> 1000 | M50: ='Lodging Rbats_E262 Elec'!H6 -> 0 | N50: ='Lodging Rbats_E262 Elec'!I6 -> 500 | O50: ='Lodging Rbats_E262 Elec'!J6 -> 0 | P50: ='Lodging Rbats_E262 Elec'!K6 -> 2520000 | Q50: ='Lodging Rbats_E262 Elec'!L6 -> 0 | R50: ='Lodging Rbats_E262 Elec'!M6 -> 2687746.5 | S50: ='Lodging Rbats_E262 Elec'!N6 -> 2000000
G51: Total, Business Energy Management | I51: =SUM(I30:I35)+I39+I42+I43 -> 4246914 | J51: =SUM(J30:J35)+J39+J42+J43 -> 3470768.742 | K51: =SUM(K30:K35)+K39+K42+K43 -> 286300 | L51: 56950 | M51: 4963465.49 | N51: 14200 | O51: 5500 | P51: 42263686.58 | Q51: 0 | R51: =SUM(R30:R35)+R39+R42+R43 -> 55307784.81 | S51: =SUM(S30:S35)+S39+S42+S43 -> 165071461.1
C54: Pilots With Uncertain Savings
B55: REM Pilots E249 Elec | C55: E249 | E55: Residential Pilots | I55: =SUM(I56:I58) -> 101249.65 | J55: =SUM(J56:J58) -> 79075.97665 | K55: 52000 | L55: 1000 | M55: =SUM(M56:M58) -> 188400 | N55: 0 | O55: 6000 | P55: 21000 | Q55: 0 | R55: 448725.6266 | S55: 862500
C56: E249 | E56: HEA Behavioral | H56: 18230748 | I56: ='HEA Behavioral Pilot_Elec'!D6 -> 0 | J56: ='HEA Behavioral Pilot_Elec'!E6 -> 0 | K56: ='HEA Behavioral Pilot_Elec'!F6 -> 0 | L56: ='HEA Behavioral Pilot_Elec'!G6 -> 0 | M56: ='HEA Behavioral Pilot_Elec'!H6 -> 0 | N56: ='HEA Behavioral Pilot_Elec'!I6 -> 0 | O56: ='HEA Behavioral Pilot_Elec'!J6 -> 0 | P56: ='HEA Behavioral Pilot_Elec'!K6 -> 0 | Q56: ='HEA Behavioral Pilot_Elec'!L6 -> 0 | R56: ='HEA Behavioral Pilot_Elec'!M6 -> 0 | S56: ='HEA Behavioral Pilot_Elec'!N6 -> 0
C57: E249 | E57: Retail Choice | H57: 18230750 | I57: ='Retail Choice Pilot_Elec'!D6 -> 90250 | J57: ='Retail Choice Pilot_Elec'!E6 -> 70485.25 | K57: ='Retail Choice Pilot_Elec'!F6 -> 50000 | L57: ='Retail Choice Pilot_Elec'!G6 -> 0 | M57: ='Retail Choice Pilot_Elec'!H6 -> 135000 | N57: ='Retail Choice Pilot_Elec'!I6 -> 0 | O57: ='Retail Choice Pilot_Elec'!J6 -> 0 | P57: ='Retail Choice Pilot_Elec'!K6 -> 0 | Q57: ='Retail Choice Pilot_Elec'!L6 -> 0 | R57: ='Retail Choice Pilot_Elec'!M6 -> 345735.25 | S57: ='Retail Choice Pilot_Elec'!N6 -> 502500
C58: E249 | E58: Single Family AMI Engagement | H58: 18230749 | I58: ='SF AMI Engmt Pilot_Elec'!D6 -> 10999.65 | J58: ='SF AMI Engmt Pilot_Elec'!E6 -> 8590.72665 | K58: ='SF AMI Engmt Pilot_Elec'!F6 -> 2000 | L58: ='SF AMI Engmt Pilot_Elec'!G6 -> 1000 | M58: ='SF AMI Engmt Pilot_Elec'!H6 -> 53400 | N58: ='SF AMI Engmt Pilot_Elec'!I6 -> 0 | O58: ='SF AMI Engmt Pilot_Elec'!J6 -> 6000 | P58: ='SF AMI Engmt Pilot_Elec'!K6 -> 21000 | Q58: ='SF AMI Engmt Pilot_Elec'!L6 -> 0 | R58: ='SF AMI Engmt Pilot_Elec'!M6 -> 102990.3766 | S58: ='SF AMI Engmt Pilot_Elec'!N6 -> 360000
B59: BEM Pilots E249 Elec | C59: E249 | E59: Commercial Pilots | I59: =SUM(I60) -> 5250 | J59: =SUM(J60) -> 4100.25 | K59: 0 | L59: 0 | M59: 315000 | N59: 0 | O59: 0 | P59: 0 | Q59: 0 | R59: 324350.25 | S59: =SUM(S60) -> 1500000
C60: E249 | E60: SMB AMI Engagement | H60: 18231128 | I60: ='SMB AMI Engmt Pilot_Elec'!E6 -> 5250 | J60: ='SMB AMI Engmt Pilot_Elec'!F6 -> 4100.25 | K60: ='SMB AMI Engmt Pilot_Elec'!G6 -> 0 | L60: ='SMB AMI Engmt Pilot_Elec'!H6 -> 0 | M60: ='SMB AMI Engmt Pilot_Elec'!I6 -> 315000 | N60: ='SMB AMI Engmt Pilot_Elec'!J6 -> 0 | O60: ='SMB AMI Engmt Pilot_Elec'!K6 -> 0 | P60: ='SMB AMI Engmt Pilot_Elec'!L6 -> 0 | Q60: ='SMB AMI Engmt Pilot_Elec'!M6 -> 0 | R60: ='SMB AMI Engmt Pilot_Elec'!N6 -> 324350.25 | S60: ='SMB AMI Engmt Pilot_Elec'!O6 -> 1500000
G61: Total, Pilots | I61: =SUM(I55)+I59 -> 106499.65 | J61: =SUM(J55)+J59 -> 83176.22665 | K61: 52000 | L61: 1000 | M61: 503400 | N61: 0 | O61: 6000 | P61: 21000 | Q61: =SUM(Q55)+Q59 -> 0 | R61: 773075.8766 | S61: 2362500
C65: Regional Efficiency Programs
B66: NEEA Detail_E254 elec | C66: E254 | E66: Northwest Energy Efficiency Alliance | H66: 18230421 | I66: ='NEEA Detail_E254 elec'!D6 -> 0 | J66: ='NEEA Detail_E254 elec'!E6 -> 0 | K66: ='NEEA Detail_E254 elec'!F6 -> 0 | L66: ='NEEA Detail_E254 elec'!G6 -> 0 | M66: ='NEEA Detail_E254 elec'!H6 -> 4766748 | N66: ='NEEA Detail_E254 elec'!I6 -> 0 | O66: ='NEEA Detail_E254 elec'!J6 -> 0 | P66: ='NEEA Detail_E254 elec'!K6 -> 0 | R66: ='NEEA Detail_E254 elec'!M6 -> 4766748 | S66: ='NEEA Detail_E254 elec'!N6 -> 15417600
B67: TDSM_Regnl_elec_e219 | C67: E219 | E67: Targeted DSM | H67: 18230134 | I67: ='TDSM_Regnl_E219 Elec'!D6 -> 251125 | J67: ='TDSM_Regnl_E219 Elec'!E6 -> 196128.625 | K67: ='TDSM_Regnl_E219 Elec'!F6 -> 10000 | L67: ='TDSM_Regnl_E219 Elec'!G6 -> 1400 | M67: ='TDSM_Regnl_E219 Elec'!H6 -> 105000 | N67: ='TDSM_Regnl_E219 Elec'!I6 -> 0 | O67: ='TDSM_Regnl_E219 Elec'!J6 -> 0 | P67: ='TDSM_Regnl_E219 Elec'!K6 -> 52500 | Q67: ='TDSM_Regnl_E219 Elec'!L6 -> 0 | R67: ='TDSM_Regnl_E219 Elec'!M6 -> 616153.625 | S67: ='TDSM_Regnl_E219 Elec'!N6 -> 0
B68: T&D Detail_Reg E292 elec | C68: E292 | E68: Transmission & Distribution | H68: 18230713 | I68: ='T&D Detail_Reg E292 elec'!C6 -> 0 | J68: ='T&D Detail_Reg E292 elec'!D6 -> 0 | K68: ='T&D Detail_Reg E292 elec'!E6 -> 0 | L68: ='T&D Detail_Reg E292 elec'!F6 -> 0 | M68: ='T&D Detail_Reg E292 elec'!G6 -> 0 | N68: ='T&D Detail_Reg E292 elec'!H6 -> 0 | O68: ='T&D Detail_Reg E292 elec'!I6 -> 0 | P68: ='T&D Detail_Reg E292 elec'!J6 -> 0 | R68: ='T&D Detail_Reg E292 elec'!L6 -> 0 | S68: ='T&D Detail_Reg E292 elec'!M6 -> 6000000
G69: Total, Regional Efficiency Programs | I69: =SUM(I66:I68) -> 251125 | J69: 196128.625 | K69: 10000 | L69: 1400 | M69: 4871748 | N69: 0 | O69: 0 | P69: 52500 | Q69: 0 | R69: 5382901.625 | S69: 21417600
C73: Energy Efficiency Portfolio Support
B74: Data & Systm Svcs_Elect | E74: Data and Systems Services | H74: 18230745 | I74: ='Data & Systm Svcs_Elect'!D6 -> 400200 | J74: ='Data & Systm Svcs_Elect'!E6 -> 312556.2 | K74: ='Data & Systm Svcs_Elect'!F6 -> 0 | L74: ='Data & Systm Svcs_Elect'!G6 -> 8700 | M74: ='Data & Systm Svcs_Elect'!H6 -> 261000 | N74: ='Data & Systm Svcs_Elect'!I6 -> 0 | O74: ='Data & Systm Svcs_Elect'!J6 -> 0 | P74: ='Data & Systm Svcs_Elect'!K6 -> 0 | Q74: ='Data & Systm Svcs_Elect'!L6 -> 0 | R74: ='Data & Systm Svcs_Elect'!M6 -> 982456.2
B75: Rebt Procg Detail_Elect | E75: Rebates Processing | H75: 18230507 | I75: ='Rebt Procg Detail_Elect'!D6 -> 467190 | J75: ='Rebt Procg Detail_Elect'!E6 -> 364875.39 | K75: ='Rebt Procg Detail_Elect'!F6 -> 0 | L75: ='Rebt Procg Detail_Elect'!G6 -> 20000 | M75: ='Rebt Procg Detail_Elect'!H6 -> 60900 | N75: ='Rebt Procg Detail_Elect'!I6 -> 5000 | O75: ='Rebt Procg Detail_Elect'!J6 -> 0 | P75: ='Rebt Procg Detail_Elect'!K6 -> 0 | R75: ='Rebt Procg Detail_Elect'!M6 -> 917965.39
B76: VTeam Detail_R&C_Elec | E76: Verification Team | H76: 18230418 | I76: ='Verifctn Team Detail Elec'!D6 -> 327990 | J76: ='Verifctn Team Detail Elec'!E6 -> 256160.19 | K76: ='Verifctn Team Detail Elec'!F6 -> 0 | L76: ='Verifctn Team Detail Elec'!G6 -> 20000 | M76: ='Verifctn Team Detail Elec'!H6 -> 0 | N76: ='Verifctn Team Detail Elec'!I6 -> 7000 | O76: ='Verifctn Team Detail Elec'!J6 -> 0 | P76: ='Verifctn Team Detail Elec'!K6 -> 0 | Q76: ='Verifctn Team Detail Elec'!L6 -> 0 | R76: ='Verifctn Team Detail Elec'!M6 -> 611150.19
B77: ProgDev Detail_R&C_ Elec | E77: Programs Support | H77: 18230810 | I77: ='Progs Supp Detail_PS_ Elec'!D6 -> 397372.5 | J77: ='Progs Supp Detail_PS_ Elec'!E6 -> 310347.9225 | K77: ='Progs Supp Detail_PS_ Elec'!F6 -> 0 | L77: ='Progs Supp Detail_PS_ Elec'!G6 -> 13050 | M77: ='Progs Supp Detail_PS_ Elec'!H6 -> 0 | N77: ='Progs Supp Detail_PS_ Elec'!I6 -> 0 | O77: ='Progs Supp Detail_PS_ Elec'!J6 -> 0 | P77: ='Progs Supp Detail_PS_ Elec'!K6 -> 0 | Q77: ='Progs Supp Detail_PS_ Elec'!L6 -> 0 | R77: ='Progs Supp Detail_PS_ Elec'!M6 -> 720770.4225
B78: TradeAlly Detail_PS_ Elec | E78: Trade Ally Memberships | H78: 18230730 | I78: ='TradeAlly Detail_PS_ Elec'!D6 -> 0 | J78: ='TradeAlly Detail_PS_ Elec'!E6 -> 0 | K78: ='TradeAlly Detail_PS_ Elec'!F6 -> 0 | L78: ='TradeAlly Detail_PS_ Elec'!G6 -> 0 | M78: ='TradeAlly Detail_PS_ Elec'!H6 -> 121800 | N78: ='TradeAlly Detail_PS_ Elec'!I6 -> 0 | O78: ='TradeAlly Detail_PS_ Elec'!J6 -> 0 | P78: ='TradeAlly Detail_PS_ Elec'!K6 -> 0 | R78: ='TradeAlly Detail_PS_ Elec'!M6 -> 121800
B79: CAN_Elect | E79: Trade Ally Network (revenue + cost) | H79: 18230746 | I79: =REP_Elect!D6 -> 113431.5 | J79: =REP_Elect!E6 -> 88590.0015 | K79: =REP_Elect!F6 -> 20000 | L79: =REP_Elect!G6 -> 5000 | M79: =REP_Elect!H6 -> 37500 | N79: =REP_Elect!I6 -> 1500 | O79: =REP_Elect!J6 -> 0 | P79: =REP_Elect!K6 -> 0 | Q79: =REP_Elect!L6 -> -246899 | R79: =REP_Elect!M6 -> 19122.5015
B80: ABS Detail_PSWE_Elec | E80: Automated Benchmarking System | H80: 18230411 | I80: ='ABS Detail_PSWE_Elec'!D6 -> 304000 | J80: ='ABS Detail_PSWE_Elec'!E6 -> 237424 | K80: ='ABS Detail_PSWE_Elec'!F6 -> 0 | L80: ='ABS Detail_PSWE_Elec'!G6 -> 0 | M80: ='ABS Detail_PSWE_Elec'!H6 -> 560000 | N80: ='ABS Detail_PSWE_Elec'!I6 -> 0 | O80: ='ABS Detail_PSWE_Elec'!J6 -> 0 | P80: ='ABS Detail_PSWE_Elec'!K6 -> 0 | Q80: ='ABS Detail_PSWE_Elec'!K6 -> 0 | R80: ='ABS Detail_PSWE_Elec'!M6 -> 1101424
B81: Engy Adv Detail_PSCE Elec | E81: Energy Advisors | H81: 18230610 | I81: ='Engy Adv Detail_PSCE Elec'!D6 -> 710910 | J81: ='Engy Adv Detail_PSCE Elec'!E6 -> 555220.71 | K81: ='Engy Adv Detail_PSCE Elec'!F6 -> 0 | L81: ='Engy Adv Detail_PSCE Elec'!G6 -> 44000 | M81: ='Engy Adv Detail_PSCE Elec'!H6 -> 1000 | N81: ='Engy Adv Detail_PSCE Elec'!I6 -> 0 | O81: ='Engy Adv Detail_PSCE Elec'!J6 -> 1350 | P81: ='Engy Adv Detail_PSCE Elec'!K6 -> 0 | Q81: ='Engy Adv Detail_PSCE Elec'!L6 -> 0 | R81: ='Engy Adv Detail_PSCE Elec'!M6 -> 1312480.71
B82: EEC Detail_PS_Elec | E82: Energy Efficient Communities | H82: 18230811 | I82: ='EEC Detail_PS_Elec'!D6 -> 607850.739 | J82: ='EEC Detail_PS_Elec'!E6 -> 474731.4272 | K82: ='EEC Detail_PS_Elec'!F6 -> 25796 | L82: ='EEC Detail_PS_Elec'!G6 -> 15400 | M82: ='EEC Detail_PS_Elec'!H6 -> 110000 | N82: ='EEC Detail_PS_Elec'!I6 -> 3821 | O82: ='EEC Detail_PS_Elec'!J6 -> 0 | P82: ='EEC Detail_PS_Elec'!K6 -> 0 | R82: ='EEC Detail_PS_Elec'!M6 -> 1237599.166
B83: CustOnline Detail_PSWE_Elec | D83: New Name | E83: Customer Digital Services | I83: =SUM(I84:I87) -> 231985 | J83: =SUM(J84:J87) -> 181180.285 | K83: 130000 | L83: 250 | M83: 1183532 | N83: 0 | O83: 0 | P83: 0 | Q83: 0 | R83: 1726947.285
F84: Digital Experience | H84: 18230400 | I84: ='Dig Exprnc_Elec'!D5 -> 60900 | J84: ='Dig Exprnc_Elec'!E6 -> 47562.9 | K84: ='Dig Exprnc_Elec'!F6 -> 0 | L84: ='Dig Exprnc_Elec'!G6 -> 0 | M84: ='Dig Exprnc_Elec'!H6 -> 0 | N84: ='Dig Exprnc_Elec'!I6 -> 0 | O84: ='Dig Exprnc_Elec'!J6 -> 0 | P84: ='Dig Exprnc_Elec'!K6 -> 0 | Q84: ='Dig Exprnc_Elec'!L6 -> 0 | R84: ='Dig Exprnc_Elec'!M6 -> 108462.9
F85: Customer Digital Experience | H85: 18230408 | I85: ='Customer Dig Exprnc_Elec'!D5 -> 26250 | J85: ='Customer Dig Exprnc_Elec'!E5 -> 20501.25 | K85: ='Customer Dig Exprnc_Elec'!F5 -> 0 | L85: ='Customer Dig Exprnc_Elec'!G5 -> 0 | M85: ='Customer Dig Exprnc_Elec'!H5 -> 688576 | N85: ='Customer Dig Exprnc_Elec'!I5 -> 0 | O85: ='Customer Dig Exprnc_Elec'!J5 -> 0 | P85: ='Customer Dig Exprnc_Elec'!K5 -> 0 | Q85: ='Customer Dig Exprnc_Elec'!L5 -> 0 | R85: ='Customer Dig Exprnc_Elec'!M5 -> 735327.25
B86: CustAwarTools_elec | F86: Customer Awareness Tools | H86: 18230508 | I86: =CustAwarTools_Elect!D6 -> 48235 | J86: =CustAwarTools_Elect!E6 -> 37671.535 | K86: =CustAwarTools_Elect!F6 -> 0 | L86: =CustAwarTools_Elect!G6 -> 250 | M86: =CustAwarTools_Elect!H6 -> 485156 | N86: =CustAwarTools_Elect!I6 -> 0 | O86: =CustAwarTools_Elect!J6 -> 0 | P86: =CustAwarTools_Elect!K6 -> 0 | Q86: =CustAwarTools_Elect!L6 -> 0 | R86: =CustAwarTools_Elect!M6 -> 571312.535
B87: ShopPSE_elec | F87: PSE Marketplace | H87: 18230509 | I87: ='PSE Mktplce_elect'!D6 -> 96600 | J87: ='PSE Mktplce_elect'!E6 -> 75444.6 | K87: ='PSE Mktplce_elect'!F6 -> 130000 | L87: ='PSE Mktplce_elect'!G6 -> 0 | M87: ='PSE Mktplce_elect'!H6 -> 9800 | N87: ='PSE Mktplce_elect'!I6 -> 0 | O87: ='PSE Mktplce_elect'!J6 -> 0 | P87: ='PSE Mktplce_elect'!K6 -> 0 | Q87: ='PSE Mktplce_elect'!L6 -> 0 | R87: ='PSE Mktplce_elect'!M6 -> 311844.6
B88: Mkt Intgn Detail_PSWE_Elec | E88: Market Integration | H88: 18230466 | I88: ='Mkt Intgn Detail_PSWE_Elec'!D6 -> 262800 | J88: ='Mkt Intgn Detail_PSWE_Elec'!E6 -> 205246.8 | K88: ='Mkt Intgn Detail_PSWE_Elec'!F6 -> 957000.01 | L88: ='Mkt Intgn Detail_PSWE_Elec'!G6 -> 0 | M88: ='Mkt Intgn Detail_PSWE_Elec'!H6 -> 0 | N88: ='Mkt Intgn Detail_PSWE_Elec'!I6 -> 0 | O88: ='Mkt Intgn Detail_PSWE_Elec'!J6 -> 0 | P88: ='Mkt Intgn Detail_PSWE_Elec'!K6 -> 0 | R88: ='Mkt Intgn Detail_PSWE_Elec'!M6 -> 1425046.81
B89: Events Detail_PSCE Elec | E89: Events | H89: 18230602 | I89: ='Events Detail_PSCE Elec'!D6 -> 206450 | J89: ='Events Detail_PSCE Elec'!E6 -> 161237.45 | K89: ='Events Detail_PSCE Elec'!F6 -> 13000 | L89: ='Events Detail_PSCE Elec'!G6 -> 3905 | M89: ='Events Detail_PSCE Elec'!H6 -> 97410 | N89: ='Events Detail_PSCE Elec'!I6 -> 11745 | O89: ='Events Detail_PSCE Elec'!J6 -> 0 | P89: ='Events Detail_PSCE Elec'!K6 -> 0 | Q89: ='Events Detail_PSCE Elec'!L6 -> 0 | R89: ='Events Detail_PSCE Elec'!M6 -> 493747.45
G90: Total, Portfolio Support | I90: =SUM(I74:I83)+SUM(I88:I89) -> 4030179.739 | J90: 3147570.376 | K90: 1145796.01 | L90: 130305 | M90: 2433142 | N90: 29066 | O90: 1350 | P90: 0 | Q90: -246899 | R90: 10670510.13
C94: Research & Compliance
B95: SuppCrv Detail_R&C_Elec | E95: Conservation Supply Curves | H95: 18230809 | I95: ='SuppCrv Detail_R&C_Elec'!D6 -> 91350 | J95: ='SuppCrv Detail_R&C_Elec'!E6 -> 71344.35 | K95: ='SuppCrv Detail_R&C_Elec'!F6 -> 0 | L95: ='SuppCrv Detail_R&C_Elec'!G6 -> 435 | M95: ='SuppCrv Detail_R&C_Elec'!H6 -> 277313 | N95: ='SuppCrv Detail_R&C_Elec'!I6 -> 0 | O95: ='SuppCrv Detail_R&C_Elec'!J6 -> 0 | P95: ='SuppCrv Detail_R&C_Elec'!K6 -> 0 | Q95: ='SuppCrv Detail_R&C_Elec'!L6 -> 0 | R95: ='SuppCrv Detail_R&C_Elec'!M6 -> 440442.35
B96: Strat Plan Detail_R&C_Elec | E96: Strategic Planning | H96: 18230469 | I96: ='Strat Plan Detail_R&C_Elec'!D6 -> 282750 | J96: ='Strat Plan Detail_R&C_Elec'!E6 -> 220827.75 | K96: ='Strat Plan Detail_R&C_Elec'!F6 -> 0 | L96: ='Strat Plan Detail_R&C_Elec'!G6 -> 4350 | M96: ='Strat Plan Detail_R&C_Elec'!H6 -> 0 | N96: ='Strat Plan Detail_R&C_Elec'!I6 -> 0 | O96: ='Strat Plan Detail_R&C_Elec'!J6 -> 0 | P96: ='Strat Plan Detail_R&C_Elec'!K6 -> 0 | Q96: ='Strat Plan Detail_R&C_Elec'!L6 -> 0 | R96: ='Strat Plan Detail_R&C_Elec'!M6 -> 507927.75
B97: Mktg Resch Detail_PS_ Elec | E97: Market Research | H97: 18230413 | I97: ='Mktg Resch Detail_PS_ Elec'!D6 -> 109620 | J97: ='Mktg Resch Detail_PS_ Elec'!E6 -> 85613.22 | K97: ='Mktg Resch Detail_PS_ Elec'!F6 -> 0 | L97: ='Mktg Resch Detail_PS_ Elec'!G6 -> 0 | M97: ='Mktg Resch Detail_PS_ Elec'!H6 -> 0 | N97: ='Mktg Resch Detail_PS_ Elec'!I6 -> 0 | O97: ='Mktg Resch Detail_PS_ Elec'!J6 -> 8700 | P97: ='Mktg Resch Detail_PS_ Elec'!K6 -> 0 | Q97: ='Mktg Resch Detail_PS_ Elec'!L6 -> 0 | R97: ='Mktg Resch Detail_PS_ Elec'!M6 -> 203933.22
B98: Eval Detail_R&C_Elec | E98: Program Evaluation | H98: 18230802 | I98: ='Eval Detail_R&C_Elec'!D6 -> 182700 | J98: ='Eval Detail_R&C_Elec'!E6 -> 142688.7 | K98: ='Eval Detail_R&C_Elec'!F6 -> 0 | L98: ='Eval Detail_R&C_Elec'!G6 -> 4350 | M98: ='Eval Detail_R&C_Elec'!H6 -> 1089964 | N98: ='Eval Detail_R&C_Elec'!I6 -> 0 | O98: ='Eval Detail_R&C_Elec'!J6 -> 221500 | P98: ='Eval Detail_R&C_Elec'!K6 -> 0 | Q98: ='Eval Detail_R&C_Elec'!L6 -> 0 | R98: ='Eval Detail_R&C_Elec'!M6 -> 1641202.7
B99: BECAR Detail_R&C Elec | E99: Biennial Elec. Consv. Aquisitn. Review | H99: 18230624 | I99: ='BECAR Detail_R&C Elec'!D6 -> 0 | J99: ='BECAR Detail_R&C Elec'!E6 -> 0 | K99: ='BECAR Detail_R&C Elec'!F6 -> 0 | L99: ='BECAR Detail_R&C Elec'!G6 -> 0 | M99: ='BECAR Detail_R&C Elec'!H6 -> 150000 | N99: ='BECAR Detail_R&C Elec'!I6 -> 0 | O99: ='BECAR Detail_R&C Elec'!J6 -> 0 | P99: ='BECAR Detail_R&C Elec'!K6 -> 0 | Q99: ='BECAR Detail_R&C Elec'!L6 -> 0 | R99: ='BECAR Detail_R&C Elec'!M6 -> 150000
G100: Total, Research & Compliance | I100: =SUM(I95:I99) -> 666420 | J100: 520474.02 | K100: 0 | L100: 9135 | M100: 1517277 | N100: 0 | O100: 230200 | P100: 0 | Q100: 0 | R100: 2943506.02
C104: Other Customer Programs
B105: Net Mtr Details_Oth Elec E150 | C105: E150 | E105: Net Metering | H105: 18230128 | I105: ='Net Mtr Details_Oth Elec E150'!D6 -> 438500 | J105: ='Net Mtr Details_Oth Elec E150'!E6 -> 342468.5 | K105: ='Net Mtr Details_Oth Elec E150'!F6 -> 0 | L105: ='Net Mtr Details_Oth Elec E150'!G6 -> 10000 | M105: ='Net Mtr Details_Oth Elec E150'!H6 -> 120000 | N105: ='Net Mtr Details_Oth Elec E150'!I6 -> 0 | O105: ='Net Mtr Details_Oth Elec E150'!J6 -> 1500000 | P105: ='Net Mtr Details_Oth Elec E150'!K6 -> 0 | R105: ='Net Mtr Details_Oth Elec E150'!M6 -> 2410968.5
B106: DemndResp_Detail_E249_Elec | C106: 249A, 271 | E106: Demand Response Pilot | H106: 18230133 | I106: =DmndResp_Detail_E249_Elec!D6 -> 0 | J106: =DmndResp_Detail_E249_Elec!E6 -> 0 | K106: =DmndResp_Detail_E249_Elec!F6 -> 0 | L106: =DmndResp_Detail_E249_Elec!G6 -> 0 | M106: =DmndResp_Detail_E249_Elec!H6 -> 300000 | N106: =DmndResp_Detail_E249_Elec!I6 -> 0 | O106: =DmndResp_Detail_E249_Elec!J6 -> 0 | P106: =DmndResp_Detail_E249_Elec!K6 -> 0 | Q106: =DmndResp_Detail_E249_Elec!L6 -> 0 | R106: =DmndResp_Detail_E249_Elec!M6 -> 300000
G107: Total, Other Energy Efficiency Programs | I107: =SUM(I105:I106) -> 438500 | J107: =SUM(J105:J106) -> 342468.5 | K107: 0 | L107: 10000 | M107: 420000 | N107: 0 | O107: 1500000 | P107: 0 | Q107: =SUM(Q105:Q106) -> 0 | R107: 2710968.5
G111: GRAND TOTAL, ELECTRIC PROGRAMS | I111: =I107+I100+I69+I61+I51+I25 -> 6832021.15 | J111: 5489737.426 | K111: 1234500 | L111: 98035 | M111: 19795611.55 | N111: 23250 | O111: 1744700 | P111: 70725650.88 | Q111: 75000 | R111: =R107+R100+R90+R69+R61+R51+R25 -> 116689016.1 | S111: =S107+S100+S69+S61+S51+S25 -> 239026258.5
S114: =S111/1000/8760 -> 27.28610257
G115: Budget Category Includes | H115: This is the main level of tracking expenditures and expenses in EES. Per FERC rules, all conservation order numbers start with a "1823nnnn", where "n" is some number. Cost elements apply to all order numbers (for instance, all conservation programs that | I115: Energy Efficiency program staff labor. Average FTE cost including management assessments. This Budget Category group includes assessments from Major Accounts management, Resource Planning, Corporate Communications management, IT specialists and some building maintenance allocations. | J115: Overhead--costs associated with primarily employee labor; benefits, for instance. For 2017, includes micro-overhead. | K115: Service and materials associated with the cost of printing program brochures, marketing pieces, advertising, banners, etc. Also includes marketing conducted by vendors and contractors. | L115: Costs associated with EE staff attending events, employee training, conferences, business meals, business parking, ferry & bridge tolls, mileage incurred on employee automobiles, office supplies, phones, subscriptions, software/hardware, etc. | M115: Contractors and vendors, such as PECI, Ecos, CostCo, EFI, etc. Legal expenses, technical services (CMS design, PSE.com web portals, etc.). These costs do NOT include brochure development, marketing pieces, (which are classified under MARKETING). These costs do NOT include incentives paid to customers by contractors. | N115: Primarily tools, trade show equipment, etc. | O115: This category should seldomly be used, and only expenses that cannot be classified under one of the above categories. | P115: All costs associated with rebates, grants, remuneration, value-added services that have a direct bearing on a customer's perceived value of PSE offerings. | Q115: Any amount that PSE is paid by a customer, partner, municipality or outside entity.

Sheet 2-year Sector View Gas
C2: Energy Efficiency 2022-2023 Budgets and Aggregate Program Savings
C3: Two-Year Sector View
C4: Natural Gas Programs | I4: Please see category descriptions at the bottom of the sector table.
I5: Budget Category
B6: Workbook Name | C6: Schedule | D6: Comment | E6: Description (Blue, indented text indicates a sub-total value) | H6: Order Number (Click on the order# below to link to the detail page) | I6: Labor | J6: Overhead | K6: Marketing | L6: Employee/Office Expense | M6: Outside Services | N6: Materials | O6: Miscellaneous | P6: DBtC | Q6: Revenue | R6: Total Budget | S6: Total Savings Therms
C7: Residential Energy Management
B8: LIW Detail_REM G201 Gas | C8: G201 | E8: Low Income Weatherization | H8: 18230661 | I8: ='2022 Sector View Gas'!I8+'2023 Sector View Gas'!I8 -> 67775 | J8: ='2022 Sector View Gas'!J8+'2023 Sector View Gas'!J8 -> 52932.275 | K8: ='2022 Sector View Gas'!K8+'2023 Sector View Gas'!K8 -> 21600 | L8: ='2022 Sector View Gas'!L8+'2023 Sector View Gas'!L8 -> 1000 | M8: ='2022 Sector View Gas'!M8+'2023 Sector View Gas'!M8 -> 5000 | N8: ='2022 Sector View Gas'!N8+'2023 Sector View Gas'!N8 -> 300 | O8: ='2022 Sector View Gas'!O8+'2023 Sector View Gas'!O8 -> 0 | P8: ='2022 Sector View Gas'!P8+'2023 Sector View Gas'!P8 -> 1884964.588 | Q8: ='2022 Sector View Gas'!Q8+'2023 Sector View Gas'!Q8 -> 0 | R8: ='2022 Sector View Gas'!R8+'2023 Sector View Gas'!R8 -> 2033571.863 | S8: ='2022 Sector View Gas'!S8+'2023 Sector View Gas'!S8 -> 41487.06
B9: WtrHeat Detail_REM G214 Gas | C9: G214 | E9: SF Existing Water Heat | H9: 18230249 | I9: ='2022 Sector View Gas'!I9+'2023 Sector View Gas'!I9 -> 124800 | J9: ='2022 Sector View Gas'!J9+'2023 Sector View Gas'!J9 -> 97468.8 | K9: ='2022 Sector View Gas'!K9+'2023 Sector View Gas'!K9 -> 80000 | L9: ='2022 Sector View Gas'!L9+'2023 Sector View Gas'!L9 -> 1000 | M9: ='2022 Sector View Gas'!M9+'2023 Sector View Gas'!M9 -> 2000 | N9: ='2022 Sector View Gas'!N9+'2023 Sector View Gas'!N9 -> 1000 | O9: ='2022 Sector View Gas'!O9+'2023 Sector View Gas'!O9 -> 3000 | P9: ='2022 Sector View Gas'!P9+'2023 Sector View Gas'!P9 -> 644000 | Q9: ='2022 Sector View Gas'!Q9+'2023 Sector View Gas'!Q9 -> 0 | R9: ='2022 Sector View Gas'!R9+'2023 Sector View Gas'!R9 -> 953268.8 | S9: ='2022 Sector View Gas'!S9+'2023 Sector View Gas'!S9 -> 130426.8
B10: Wx Detail_REM G214 Gas | C10: G214 | E10: SF Existing Weatherization | H10: 18230637 | I10: ='2022 Sector View Gas'!I10+'2023 Sector View Gas'!I10 -> 158800 | J10: ='2022 Sector View Gas'!J10+'2023 Sector View Gas'!J10 -> 124022.8 | K10: ='2022 Sector View Gas'!K10+'2023 Sector View Gas'!K10 -> 80000 | L10: ='2022 Sector View Gas'!L10+'2023 Sector View Gas'!L10 -> 2000 | M10: ='2022 Sector View Gas'!M10+'2023 Sector View Gas'!M10 -> 7000 | N10: ='2022 Sector View Gas'!N10+'2023 Sector View Gas'!N10 -> 0 | O10: ='2022 Sector View Gas'!O10+'2023 Sector View Gas'!O10 -> 5000 | P10: ='2022 Sector View Gas'!P10+'2023 Sector View Gas'!P10 -> 4408764.8 | Q10: ='2022 Sector View Gas'!Q10+'2023 Sector View Gas'!Q10 -> 0 | R10: ='2022 Sector View Gas'!R10+'2023 Sector View Gas'!R10 -> 4785587.6 | S10: ='2022 Sector View Gas'!S10+'2023 Sector View Gas'!S10 -> 489831.148
B11: SpHeat Detail_REM G214 Gas | C11: G214 | E11: SF Existing Space Heat | H11: 18230638 | I11: ='2022 Sector View Gas'!I11+'2023 Sector View Gas'!I11 -> 29000 | J11: ='2022 Sector View Gas'!J11+'2023 Sector View Gas'!J11 -> 22649 | K11: ='2022 Sector View Gas'!K11+'2023 Sector View Gas'!K11 -> 450000 | L11: ='2022 Sector View Gas'!L11+'2023 Sector View Gas'!L11 -> 2000 | M11: ='2022 Sector View Gas'!M11+'2023 Sector View Gas'!M11 -> 40000 | N11: ='2022 Sector View Gas'!N11+'2023 Sector View Gas'!N11 -> 3000 | O11: ='2022 Sector View Gas'!O11+'2023 Sector View Gas'!O11 -> 0 | P11: ='2022 Sector View Gas'!P11+'2023 Sector View Gas'!P11 -> 9182300 | Q11: ='2022 Sector View Gas'!Q11+'2023 Sector View Gas'!Q11 -> 0 | R11: ='2022 Sector View Gas'!R11+'2023 Sector View Gas'!R11 -> 9728949 | S11: ='2022 Sector View Gas'!S11+'2023 Sector View Gas'!S11 -> 1373944
C12: G214 | E12: Residential Midstream HVAC and Water Heat | H12: 18230161 | I12: ='2022 Sector View Gas'!I12+'2023 Sector View Gas'!I12 -> 0 | J12: ='2022 Sector View Gas'!J12+'2023 Sector View Gas'!J12 -> 0 | K12: ='2022 Sector View Gas'!K12+'2023 Sector View Gas'!K12 -> 0 | L12: ='2022 Sector View Gas'!L12+'2023 Sector View Gas'!L12 -> 0 | M12: ='2022 Sector View Gas'!M12+'2023 Sector View Gas'!M12 -> 0 | N12: ='2022 Sector View Gas'!N12+'2023 Sector View Gas'!N12 -> 0 | O12: ='2022 Sector View Gas'!O12+'2023 Sector View Gas'!O12 -> 0 | P12: ='2022 Sector View Gas'!P12+'2023 Sector View Gas'!P12 -> 0 | Q12: ='2022 Sector View Gas'!Q12+'2023 Sector View Gas'!Q12 -> 0 | R12: ='2022 Sector View Gas'!R12+'2023 Sector View Gas'!R12 -> 0 | S12: ='2022 Sector View Gas'!S12+'2023 Sector View Gas'!S12 -> 0
B13: ShwrHead Detail_REM G214 Gas | C13: G214 | E13: Residential Water Use Reducers | H13: 18230700 | I13: ='2022 Sector View Gas'!I13+'2023 Sector View Gas'!I13 -> 2275 | J13: ='2022 Sector View Gas'!J13+'2023 Sector View Gas'!J13 -> 1776.775 | K13: ='2022 Sector View Gas'!K13+'2023 Sector View Gas'!K13 -> 0 | L13: ='2022 Sector View Gas'!L13+'2023 Sector View Gas'!L13 -> 0 | M13: ='2022 Sector View Gas'!M13+'2023 Sector View Gas'!M13 -> 0 | N13: ='2022 Sector View Gas'!N13+'2023 Sector View Gas'!N13 -> 0 | O13: ='2022 Sector View Gas'!O13+'2023 Sector View Gas'!O13 -> 0 | P13: ='2022 Sector View Gas'!P13+'2023 Sector View Gas'!P13 -> 17.5 | Q13: ='2022 Sector View Gas'!Q13+'2023 Sector View Gas'!Q13 -> 0 | R13: ='2022 Sector View Gas'!R13+'2023 Sector View Gas'!R13 -> 4069.275 | S13: ='2022 Sector View Gas'!S13+'2023 Sector View Gas'!S13 -> 5.2
B14: HmApplSvgs Detail_REM G214 Gas | C14: G214 | E14: Home Appliances | H14: 1823gggg | I14: ='2022 Sector View Gas'!I14+'2023 Sector View Gas'!I14 -> 0 | J14: ='2022 Sector View Gas'!J14+'2023 Sector View Gas'!J14 -> 0 | K14: ='2022 Sector View Gas'!K14+'2023 Sector View Gas'!K14 -> 0 | L14: ='2022 Sector View Gas'!L14+'2023 Sector View Gas'!L14 -> 0 | M14: ='2022 Sector View Gas'!M14+'2023 Sector View Gas'!M14 -> 0 | N14: ='2022 Sector View Gas'!N14+'2023 Sector View Gas'!N14 -> 0 | O14: ='2022 Sector View Gas'!O14+'2023 Sector View Gas'!O14 -> 0 | P14: ='2022 Sector View Gas'!P14+'2023 Sector View Gas'!P14 -> 0 | Q14: ='2022 Sector View Gas'!Q14+'2023 Sector View Gas'!Q14 -> 0 | R14: ='2022 Sector View Gas'!R14+'2023 Sector View Gas'!R14 -> 0 | S14: ='2022 Sector View Gas'!S14+'2023 Sector View Gas'!S14 -> 12353.4
B15: WebTstat Detail_REM G214 Gas | C15: G214 | E15: Smart Thermostats | H15: 18230687 | I15: ='2022 Sector View Gas'!I15+'2023 Sector View Gas'!I15 -> 262300 | J15: ='2022 Sector View Gas'!J15+'2023 Sector View Gas'!J15 -> 204856.3 | K15: ='2022 Sector View Gas'!K15+'2023 Sector View Gas'!K15 -> 200000 | L15: ='2022 Sector View Gas'!L15+'2023 Sector View Gas'!L15 -> 4000 | M15: ='2022 Sector View Gas'!M15+'2023 Sector View Gas'!M15 -> 1185000 | N15: ='2022 Sector View Gas'!N15+'2023 Sector View Gas'!N15 -> 0 | O15: ='2022 Sector View Gas'!O15+'2023 Sector View Gas'!O15 -> 0 | P15: ='2022 Sector View Gas'!P15+'2023 Sector View Gas'!P15 -> 1700000 | Q15: ='2022 Sector View Gas'!Q15+'2023 Sector View Gas'!Q15 -> 0 | R15: ='2022 Sector View Gas'!R15+'2023 Sector View Gas'!R15 -> 3556156.3 | S15: ='2022 Sector View Gas'!S15+'2023 Sector View Gas'!S15 -> 660000
B16: HER Detail_REM G214 gas | C16: G214 | E16: Home Energy Reports | H16: 18230738 | I16: ='2022 Sector View Gas'!I16+'2023 Sector View Gas'!I16 -> 109700 | J16: ='2022 Sector View Gas'!J16+'2023 Sector View Gas'!J16 -> 85675.7 | K16: ='2022 Sector View Gas'!K16+'2023 Sector View Gas'!K16 -> 0 | L16: ='2022 Sector View Gas'!L16+'2023 Sector View Gas'!L16 -> 1200 | M16: ='2022 Sector View Gas'!M16+'2023 Sector View Gas'!M16 -> 1114562.06 | N16: ='2022 Sector View Gas'!N16+'2023 Sector View Gas'!N16 -> 0 | O16: ='2022 Sector View Gas'!O16+'2023 Sector View Gas'!O16 -> 0 | P16: ='2022 Sector View Gas'!P16+'2023 Sector View Gas'!P16 -> 1147505 | Q16: ='2022 Sector View Gas'!Q16+'2023 Sector View Gas'!Q16 -> 0 | R16: ='2022 Sector View Gas'!R16+'2023 Sector View Gas'!R16 -> 2458642.76 | S16: ='2022 Sector View Gas'!S16+'2023 Sector View Gas'!S16 -> 2969500
B17: SFNC Detail_REM G215 Gas | C17: G215 | E17: Single Family New Construction | H17: 18230684 | I17: ='2022 Sector View Gas'!I17+'2023 Sector View Gas'!I17 -> 29800 | J17: ='2022 Sector View Gas'!J17+'2023 Sector View Gas'!J17 -> 23273.8 | K17: ='2022 Sector View Gas'!K17+'2023 Sector View Gas'!K17 -> 0 | L17: ='2022 Sector View Gas'!L17+'2023 Sector View Gas'!L17 -> 0 | M17: ='2022 Sector View Gas'!M17+'2023 Sector View Gas'!M17 -> 0 | N17: ='2022 Sector View Gas'!N17+'2023 Sector View Gas'!N17 -> 0 | O17: ='2022 Sector View Gas'!O17+'2023 Sector View Gas'!O17 -> 0 | P17: ='2022 Sector View Gas'!P17+'2023 Sector View Gas'!P17 -> 13250 | Q17: ='2022 Sector View Gas'!Q17+'2023 Sector View Gas'!Q17 -> 0 | R17: ='2022 Sector View Gas'!R17+'2023 Sector View Gas'!R17 -> 66323.8 | S17: ='2022 Sector View Gas'!S17+'2023 Sector View Gas'!S17 -> 2390
B18: MfgHmNew Detail_REM E215 Elec | C18: E215 | E18: Manufactured Home New Construction | H18: 18230752 | I18: ='2022 Sector View Gas'!I18+'2023 Sector View Gas'!I18 -> 0 | J18: ='2022 Sector View Gas'!J18+'2023 Sector View Gas'!J18 -> 0 | K18: ='2022 Sector View Gas'!K18+'2023 Sector View Gas'!K18 -> 0 | L18: ='2022 Sector View Gas'!L18+'2023 Sector View Gas'!L18 -> 0 | M18: ='2022 Sector View Gas'!M18+'2023 Sector View Gas'!M18 -> 0 | N18: ='2022 Sector View Gas'!N18+'2023 Sector View Gas'!N18 -> 0 | O18: ='2022 Sector View Gas'!O18+'2023 Sector View Gas'!O18 -> 0 | P18: ='2022 Sector View Gas'!P18+'2023 Sector View Gas'!P18 -> 26400 | Q18: ='2022 Sector View Gas'!Q18+'2023 Sector View Gas'!Q18 -> 0 | R18: ='2022 Sector View Gas'!R18+'2023 Sector View Gas'!R18 -> 26400 | S18: ='2022 Sector View Gas'!S18+'2023 Sector View Gas'!S18 -> 1801.8
B19: Efficiency Boost G217 Gas | C19: G214 & 217 | E19: Moderate Income Residences | H19: 18230254 | I19: ='2022 Sector View Gas'!I19+'2023 Sector View Gas'!I19 -> 38850 | J19: ='2022 Sector View Gas'!J19+'2023 Sector View Gas'!J19 -> 30341.85 | K19: ='2022 Sector View Gas'!K19+'2023 Sector View Gas'!K19 -> 30000 | L19: ='2022 Sector View Gas'!L19+'2023 Sector View Gas'!L19 -> 0 | M19: ='2022 Sector View Gas'!M19+'2023 Sector View Gas'!M19 -> 0 | N19: ='2022 Sector View Gas'!N19+'2023 Sector View Gas'!N19 -> 0 | O19: ='2022 Sector View Gas'!O19+'2023 Sector View Gas'!O19 -> 0 | P19: ='2022 Sector View Gas'!P19+'2023 Sector View Gas'!P19 -> 0 | Q19: ='2022 Sector View Gas'!Q19+'2023 Sector View Gas'!Q19 -> 0 | R19: ='2022 Sector View Gas'!R19+'2023 Sector View Gas'!R19 -> 99191.85 | S19: ='2022 Sector View Gas'!S19+'2023 Sector View Gas'!S19 -> 0
B20: MF Retr Detail_REM G217 Gas | C20: G217 | E20: Multifamily Retrofit | H20: 18230736 | I20: ='2022 Sector View Gas'!I20+'2023 Sector View Gas'!I20 -> 44900 | J20: ='2022 Sector View Gas'!J20+'2023 Sector View Gas'!J20 -> 35066.9 | K20: ='2022 Sector View Gas'!K20+'2023 Sector View Gas'!K20 -> 7200 | L20: ='2022 Sector View Gas'!L20+'2023 Sector View Gas'!L20 -> 2000 | M20: ='2022 Sector View Gas'!M20+'2023 Sector View Gas'!M20 -> 104586.664 | N20: ='2022 Sector View Gas'!N20+'2023 Sector View Gas'!N20 -> 0 | O20: ='2022 Sector View Gas'!O20+'2023 Sector View Gas'!O20 -> 0 | P20: ='2022 Sector View Gas'!P20+'2023 Sector View Gas'!P20 -> 551200 | Q20: ='2022 Sector View Gas'!Q20+'2023 Sector View Gas'!Q20 -> 0 | R20: ='2022 Sector View Gas'!R20+'2023 Sector View Gas'!R20 -> 744953.564 | S20: ='2022 Sector View Gas'!S20+'2023 Sector View Gas'!S20 -> 74704.76
B21: MF Retr Grants_REM G217 Gas | C21: G218 | E21: State Grants | H21: 1823xxxx | I21: ='2022 Sector View Gas'!I21+'2023 Sector View Gas'!I21 -> 0 | J21: ='2022 Sector View Gas'!J21+'2023 Sector View Gas'!J21 -> 0 | K21: ='2022 Sector View Gas'!K21+'2023 Sector View Gas'!K21 -> 0 | L21: ='2022 Sector View Gas'!L21+'2023 Sector View Gas'!L21 -> 0 | M21: ='2022 Sector View Gas'!M21+'2023 Sector View Gas'!M21 -> 0 | N21: ='2022 Sector View Gas'!N21+'2023 Sector View Gas'!N21 -> 0 | O21: ='2022 Sector View Gas'!O21+'2023 Sector View Gas'!O21 -> 0 | P21: ='2022 Sector View Gas'!P21+'2023 Sector View Gas'!P21 -> 0 | Q21: ='2022 Sector View Gas'!Q21+'2023 Sector View Gas'!Q21 -> 0 | R21: ='2022 Sector View Gas'!R21+'2023 Sector View Gas'!R21 -> 0 | S21: ='2022 Sector View Gas'!S21+'2023 Sector View Gas'!S21 -> 0
B22: MFNC Detail_REM G218 Gas | C22: G218 | E22: Multi-Family New Construction | H22: 18230673 | I22: ='2022 Sector View Gas'!I22+'2023 Sector View Gas'!I22 -> 34100 | J22: ='2022 Sector View Gas'!J22+'2023 Sector View Gas'!J22 -> 26632.1 | K22: ='2022 Sector View Gas'!K22+'2023 Sector View Gas'!K22 -> 20000 | L22: ='2022 Sector View Gas'!L22+'2023 Sector View Gas'!L22 -> 2000 | M22: ='2022 Sector View Gas'!M22+'2023 Sector View Gas'!M22 -> 155000 | N22: ='2022 Sector View Gas'!N22+'2023 Sector View Gas'!N22 -> 1000 | O22: ='2022 Sector View Gas'!O22+'2023 Sector View Gas'!O22 -> 0 | P22: ='2022 Sector View Gas'!P22+'2023 Sector View Gas'!P22 -> 470000 | Q22: ='2022 Sector View Gas'!Q22+'2023 Sector View Gas'!Q22 -> 0 | R22: ='2022 Sector View Gas'!R22+'2023 Sector View Gas'!R22 -> 708732.1 | S22: ='2022 Sector View Gas'!S22+'2023 Sector View Gas'!S22 -> 100000
G23: Total, Residential Energy Management | I23: =SUM(I8:I22) -> 902300 | J23: =SUM(J8:J22) -> 704696.3 | K23: 888800 | L23: 15200 | M23: 2613148.724 | N23: 5300 | O23: 8000 | P23: 20028401.89 | Q23: 0 | R23: 25165846.91 | S23: =SUM(S8:S22) -> 5856444.168
P24: =P23/R23 -> 0.7958564621
H25: 2020-2021 Figures | I25: 801261 | J25: 699500.853 | K25: 1047830 | L25: 19150 | M25: 2152078.804 | N25: 14300 | O25: 6800 | P25: 13929854.97 | Q25: 0 | R25: 18670775.63 | S25: 4389196.07
C27: Business Energy Management
E28: Commercial/Industrial Retrofit | I28: =SUM(I29:I31) -> 637596 | J28: =SUM(J29:J31) -> 497992.476 | K28: 6000 | L28: 2000 | M28: 164484 | N28: 0 | O28: 0 | P28: =SUM(P29:P31) -> 3630247 | Q28: 0 | R28: =SUM(R29:R31) -> 4938319.476 | S28: =SUM(S29:S31) -> 1161722
B29: CI Retr Detail_BEM G250 Gas | C29: G250 | E29: Retrofit Custom Grants | H29: 18230731 | I29: ='2022 Sector View Gas'!I29+'2023 Sector View Gas'!I29 -> 470000 | J29: ='2022 Sector View Gas'!J29+'2023 Sector View Gas'!J29 -> 367100 | K29: ='2022 Sector View Gas'!K29+'2023 Sector View Gas'!K29 -> 6000 | L29: ='2022 Sector View Gas'!L29+'2023 Sector View Gas'!L29 -> 2000 | M29: ='2022 Sector View Gas'!M29+'2023 Sector View Gas'!M29 -> 20000 | N29: ='2022 Sector View Gas'!N29+'2023 Sector View Gas'!N29 -> 0 | O29: ='2022 Sector View Gas'!O29+'2023 Sector View Gas'!O29 -> 0 | P29: ='2022 Sector View Gas'!P29+'2023 Sector View Gas'!P29 -> 3180000 | Q29: ='2022 Sector View Gas'!Q29+'2023 Sector View Gas'!Q29 -> 0 | R29: ='2022 Sector View Gas'!R29+'2023 Sector View Gas'!R29 -> 4045100 | S29: ='2022 Sector View Gas'!S29+'2023 Sector View Gas'!S29 -> 860000
B30: CI Industrial BEM G250_Gas | C30: G250 | E30: Industrial Programs | H30: 18231037 | I30: ='2022 Sector View Gas'!I30+'2023 Sector View Gas'!I30 -> 167596 | J30: ='2022 Sector View Gas'!J30+'2023 Sector View Gas'!J30 -> 130892.476 | K30: ='2022 Sector View Gas'!K30+'2023 Sector View Gas'!K30 -> 0 | L30: ='2022 Sector View Gas'!L30+'2023 Sector View Gas'!L30 -> 0 | M30: ='2022 Sector View Gas'!M30+'2023 Sector View Gas'!M30 -> 0 | N30: ='2022 Sector View Gas'!N30+'2023 Sector View Gas'!N30 -> 0 | O30: ='2022 Sector View Gas'!O30+'2023 Sector View Gas'!O30 -> 0 | P30: ='2022 Sector View Gas'!P30+'2023 Sector View Gas'!P30 -> 450247 | Q30: ='2022 Sector View Gas'!Q30+'2023 Sector View Gas'!Q30 -> 0 | R30: ='2022 Sector View Gas'!R30+'2023 Sector View Gas'!R30 -> 748735.476 | S30: ='2022 Sector View Gas'!S30+'2023 Sector View Gas'!S30 -> 151722
C31: E250 | E31: Clean Buildings Accelerator | H31: 18230220 | I31: ='2022 Sector View Gas'!I31+'2023 Sector View Gas'!I31 -> 0 | J31: ='2022 Sector View Gas'!J31+'2023 Sector View Gas'!J31 -> 0 | K31: ='2022 Sector View Gas'!K31+'2023 Sector View Gas'!K31 -> 0 | L31: ='2022 Sector View Gas'!L31+'2023 Sector View Gas'!L31 -> 0 | M31: ='2022 Sector View Gas'!M31+'2023 Sector View Gas'!M31 -> 144484 | N31: ='2022 Sector View Gas'!N31+'2023 Sector View Gas'!N31 -> 0 | O31: ='2022 Sector View Gas'!O31+'2023 Sector View Gas'!O31 -> 0 | P31: ='2022 Sector View Gas'!P31+'2023 Sector View Gas'!P31 -> 0 | Q31: ='2022 Sector View Gas'!Q31+'2023 Sector View Gas'!Q31 -> 0 | R31: ='2022 Sector View Gas'!R31+'2023 Sector View Gas'!R31 -> 144484 | S31: ='2022 Sector View Gas'!S31+'2023 Sector View Gas'!S31 -> 150000
B32: CI NC Detail_BEM G251 Gas | C32: G251 | E32: Commercial/Industrial New Construction | H32: 18230706 | I32: ='2022 Sector View Gas'!I32+'2023 Sector View Gas'!I32 -> 88000 | J32: ='2022 Sector View Gas'!J32+'2023 Sector View Gas'!J32 -> 68728 | K32: ='2022 Sector View Gas'!K32+'2023 Sector View Gas'!K32 -> 17000 | L32: ='2022 Sector View Gas'!L32+'2023 Sector View Gas'!L32 -> 4000 | M32: ='2022 Sector View Gas'!M32+'2023 Sector View Gas'!M32 -> 148000 | N32: ='2022 Sector View Gas'!N32+'2023 Sector View Gas'!N32 -> 4500 | O32: ='2022 Sector View Gas'!O32+'2023 Sector View Gas'!O32 -> 0 | P32: ='2022 Sector View Gas'!P32+'2023 Sector View Gas'!P32 -> 1116000 | Q32: ='2022 Sector View Gas'!Q32+'2023 Sector View Gas'!Q32 -> 0 | R32: ='2022 Sector View Gas'!R32+'2023 Sector View Gas'!R32 -> 1446228 | S32: ='2022 Sector View Gas'!S32+'2023 Sector View Gas'!S32 -> 180000
E33: Commercial Strategic Energy Management | I33: ='2022 Sector View Gas'!I33+'2023 Sector View Gas'!I33 -> 505500 | J33: ='2022 Sector View Gas'!J33+'2023 Sector View Gas'!J33 -> 394795.5 | K33: ='2022 Sector View Gas'!K33+'2023 Sector View Gas'!K33 -> 3000 | L33: ='2022 Sector View Gas'!L33+'2023 Sector View Gas'!L33 -> 11900 | M33: ='2022 Sector View Gas'!M33+'2023 Sector View Gas'!M33 -> 207538 | N33: ='2022 Sector View Gas'!N33+'2023 Sector View Gas'!N33 -> 0 | O33: ='2022 Sector View Gas'!O33+'2023 Sector View Gas'!O33 -> 1000 | P33: ='2022 Sector View Gas'!P33+'2023 Sector View Gas'!P33 -> 383000 | Q33: ='2022 Sector View Gas'!Q33+'2023 Sector View Gas'!Q33 -> 0 | R33: ='2022 Sector View Gas'!R33+'2023 Sector View Gas'!R33 -> 1506733.5 | S33: ='2022 Sector View Gas'!S33+'2023 Sector View Gas'!S33 -> 1143000
B34: RCM Detail_BEM 253 Gas | C34: G253 | E34: SEM | H34: 18230691 | I34: ='2022 Sector View Gas'!I34+'2023 Sector View Gas'!I34 -> 505500 | J34: ='2022 Sector View Gas'!J34+'2023 Sector View Gas'!J34 -> 394795.5 | K34: ='2022 Sector View Gas'!K34+'2023 Sector View Gas'!K34 -> 3000 | L34: ='2022 Sector View Gas'!L34+'2023 Sector View Gas'!L34 -> 11900 | M34: ='2022 Sector View Gas'!M34+'2023 Sector View Gas'!M34 -> 207538 | N34: ='2022 Sector View Gas'!N34+'2023 Sector View Gas'!N34 -> 0 | O34: ='2022 Sector View Gas'!O34+'2023 Sector View Gas'!O34 -> 1000 | P34: ='2022 Sector View Gas'!P34+'2023 Sector View Gas'!P34 -> 365000 | Q34: ='2022 Sector View Gas'!Q34+'2023 Sector View Gas'!Q34 -> 0 | R34: ='2022 Sector View Gas'!R34+'2023 Sector View Gas'!R34 -> 1488733.5 | S34: ='2022 Sector View Gas'!S34+'2023 Sector View Gas'!S34 -> 1140000
B35: ResAcctSW Detail_PSWE_Gas | C35: G253 | E35: Resource Accounting Software | H35: 18231033 | I35: ='2022 Sector View Gas'!I35+'2023 Sector View Gas'!I35 -> 0 | J35: ='2022 Sector View Gas'!J35+'2023 Sector View Gas'!J35 -> 0 | K35: ='2022 Sector View Gas'!K35+'2023 Sector View Gas'!K35 -> 0 | L35: ='2022 Sector View Gas'!L35+'2023 Sector View Gas'!L35 -> 0 | M35: ='2022 Sector View Gas'!M35+'2023 Sector View Gas'!M35 -> 0 | N35: ='2022 Sector View Gas'!N35+'2023 Sector View Gas'!N35 -> 0 | O35: ='2022 Sector View Gas'!O35+'2023 Sector View Gas'!O35 -> 0 | P35: ='2022 Sector View Gas'!P35+'2023 Sector View Gas'!P35 -> 0 | Q35: ='2022 Sector View Gas'!Q35+'2023 Sector View Gas'!Q35 -> 0 | R35: ='2022 Sector View Gas'!R35+'2023 Sector View Gas'!R35 -> 0 | S35: ='2022 Sector View Gas'!S35+'2023 Sector View Gas'!S35 -> 0
C36: G253 | E36: Pay For Performance | H36: 18231039 | I36: ='2022 Sector View Gas'!I36+'2023 Sector View Gas'!I36 -> 0 | J36: ='2022 Sector View Gas'!J36+'2023 Sector View Gas'!J36 -> 0 | K36: ='2022 Sector View Gas'!K36+'2023 Sector View Gas'!K36 -> 0 | L36: ='2022 Sector View Gas'!L36+'2023 Sector View Gas'!L36 -> 0 | M36: ='2022 Sector View Gas'!M36+'2023 Sector View Gas'!M36 -> 0 | N36: ='2022 Sector View Gas'!N36+'2023 Sector View Gas'!N36 -> 0 | O36: ='2022 Sector View Gas'!O36+'2023 Sector View Gas'!O36 -> 0 | P36: ='2022 Sector View Gas'!P36+'2023 Sector View Gas'!P36 -> 18000 | Q36: ='2022 Sector View Gas'!Q36+'2023 Sector View Gas'!Q36 -> 0 | R36: ='2022 Sector View Gas'!R36+'2023 Sector View Gas'!R36 -> 18000 | S36: ='2022 Sector View Gas'!S36+'2023 Sector View Gas'!S36 -> 3000
B37: TechEval Detail_BEM G261 Gas | C37: G261 | E37: Technology Evaluation | H37: 18230694 | I37: ='2022 Sector View Gas'!I37+'2023 Sector View Gas'!I37 -> 0 | J37: ='2022 Sector View Gas'!J37+'2023 Sector View Gas'!J37 -> 0 | K37: ='2022 Sector View Gas'!K37+'2023 Sector View Gas'!K37 -> 0 | L37: ='2022 Sector View Gas'!L37+'2023 Sector View Gas'!L37 -> 0 | M37: ='2022 Sector View Gas'!M37+'2023 Sector View Gas'!M37 -> 0 | N37: ='2022 Sector View Gas'!N37+'2023 Sector View Gas'!N37 -> 0 | O37: ='2022 Sector View Gas'!O37+'2023 Sector View Gas'!O37 -> 0 | P37: ='2022 Sector View Gas'!P37+'2023 Sector View Gas'!P37 -> 0 | Q37: ='2022 Sector View Gas'!Q37+'2023 Sector View Gas'!Q37 -> 0 | R37: ='2022 Sector View Gas'!R37+'2023 Sector View Gas'!R37 -> 0 | S37: ='2022 Sector View Gas'!S37+'2023 Sector View Gas'!S37 -> 0
B38: Rebates Detail_BEM G262 Gas | C38: G262 | E38: Business Rebates | I38: ='2022 Sector View Gas'!I38+'2023 Sector View Gas'!I38 -> 351050 | J38: ='2022 Sector View Gas'!J38+'2023 Sector View Gas'!J38 -> 274170.05 | K38: ='2022 Sector View Gas'!K38+'2023 Sector View Gas'!K38 -> 84500 | L38: ='2022 Sector View Gas'!L38+'2023 Sector View Gas'!L38 -> 14000 | M38: ='2022 Sector View Gas'!M38+'2023 Sector View Gas'!M38 -> 3039151.88 | N38: ='2022 Sector View Gas'!N38+'2023 Sector View Gas'!N38 -> 2000 | O38: ='2022 Sector View Gas'!O38+'2023 Sector View Gas'!O38 -> 0 | P38: ='2022 Sector View Gas'!P38+'2023 Sector View Gas'!P38 -> 2269018.75 | Q38: ='2022 Sector View Gas'!Q38+'2023 Sector View Gas'!Q38 -> 0 | R38: ='2022 Sector View Gas'!R38+'2023 Sector View Gas'!R38 -> 6033890.68 | S38: ='2022 Sector View Gas'!S38+'2023 Sector View Gas'!S38 -> 1484104
B39: Comm Kit-Laund_G262 Gas | C39: G262 | E39: Commercial Foodservice | H39: 18231027 | I39: ='2022 Sector View Gas'!I39+'2023 Sector View Gas'!I39 -> 210150 | J39: ='2022 Sector View Gas'!J39+'2023 Sector View Gas'!J39 -> 164127.15 | K39: ='2022 Sector View Gas'!K39+'2023 Sector View Gas'!K39 -> 84500 | L39: ='2022 Sector View Gas'!L39+'2023 Sector View Gas'!L39 -> 12000 | M39: ='2022 Sector View Gas'!M39+'2023 Sector View Gas'!M39 -> 1054831.88 | N39: ='2022 Sector View Gas'!N39+'2023 Sector View Gas'!N39 -> 2000 | O39: ='2022 Sector View Gas'!O39+'2023 Sector View Gas'!O39 -> 0 | P39: ='2022 Sector View Gas'!P39+'2023 Sector View Gas'!P39 -> 1024218.75 | Q39: ='2022 Sector View Gas'!Q39+'2023 Sector View Gas'!Q39 -> 0 | R39: ='2022 Sector View Gas'!R39+'2023 Sector View Gas'!R39 -> 2551827.78 | S39: ='2022 Sector View Gas'!S39+'2023 Sector View Gas'!S39 -> 475000
B40: Comm HVAC_G262 Gas | C40: G262 | E40: Commercial HVAC Rebates | H40: 18231029 | I40: ='2022 Sector View Gas'!I40+'2023 Sector View Gas'!I40 -> 42600 | J40: ='2022 Sector View Gas'!J40+'2023 Sector View Gas'!J40 -> 33270.6 | K40: ='2022 Sector View Gas'!K40+'2023 Sector View Gas'!K40 -> 0 | L40: ='2022 Sector View Gas'!L40+'2023 Sector View Gas'!L40 -> 0 | M40: ='2022 Sector View Gas'!M40+'2023 Sector View Gas'!M40 -> 0 | N40: ='2022 Sector View Gas'!N40+'2023 Sector View Gas'!N40 -> 0 | O40: ='2022 Sector View Gas'!O40+'2023 Sector View Gas'!O40 -> 0 | P40: ='2022 Sector View Gas'!P40+'2023 Sector View Gas'!P40 -> 12000 | Q40: ='2022 Sector View Gas'!Q40+'2023 Sector View Gas'!Q40 -> 0 | R40: ='2022 Sector View Gas'!R40+'2023 Sector View Gas'!R40 -> 87870.6 | S40: ='2022 Sector View Gas'!S40+'2023 Sector View Gas'!S40 -> 25544
C41: G262 | E41: Commercial Midstream HVAC and Water Heat | H41: 18230248 | I41: ='2022 Sector View Gas'!I41+'2023 Sector View Gas'!I41 -> 98300 | J41: ='2022 Sector View Gas'!J41+'2023 Sector View Gas'!J41 -> 76772.3 | K41: ='2022 Sector View Gas'!K41+'2023 Sector View Gas'!K41 -> 0 | L41: ='2022 Sector View Gas'!L41+'2023 Sector View Gas'!L41 -> 2000 | M41: ='2022 Sector View Gas'!M41+'2023 Sector View Gas'!M41 -> 1980000 | N41: ='2022 Sector View Gas'!N41+'2023 Sector View Gas'!N41 -> 0 | O41: ='2022 Sector View Gas'!O41+'2023 Sector View Gas'!O41 -> 0 | P41: ='2022 Sector View Gas'!P41+'2023 Sector View Gas'!P41 -> 1232800 | Q41: ='2022 Sector View Gas'!Q41+'2023 Sector View Gas'!Q41 -> 0 | R41: ='2022 Sector View Gas'!R41+'2023 Sector View Gas'!R41 -> 3389872.3 | S41: ='2022 Sector View Gas'!S41+'2023 Sector View Gas'!S41 -> 983560
B42: Sm Bus DI_G262 Gas | C42: G262 | E42: Small Business Direct Install | H42: 18231022 | I42: ='2022 Sector View Gas'!I42+'2023 Sector View Gas'!I42 -> 0 | J42: ='2022 Sector View Gas'!J42+'2023 Sector View Gas'!J42 -> 0 | K42: ='2022 Sector View Gas'!K42+'2023 Sector View Gas'!K42 -> 0 | L42: ='2022 Sector View Gas'!L42+'2023 Sector View Gas'!L42 -> 0 | M42: ='2022 Sector View Gas'!M42+'2023 Sector View Gas'!M42 -> 4320 | N42: ='2022 Sector View Gas'!N42+'2023 Sector View Gas'!N42 -> 0 | O42: ='2022 Sector View Gas'!O42+'2023 Sector View Gas'!O42 -> 0 | P42: ='2022 Sector View Gas'!P42+'2023 Sector View Gas'!P42 -> 0 | Q42: ='2022 Sector View Gas'!Q42+'2023 Sector View Gas'!Q42 -> 0 | R42: ='2022 Sector View Gas'!R42+'2023 Sector View Gas'!R42 -> 4320 | S42: ='2022 Sector View Gas'!S42+'2023 Sector View Gas'!S42 -> 0
C43: G262 | E43: Lodging Rebates | H43: 18230221 | I43: ='2022 Sector View Gas'!I43+'2023 Sector View Gas'!I43 -> 0 | J43: ='2022 Sector View Gas'!J43+'2023 Sector View Gas'!J43 -> 0 | K43: ='2022 Sector View Gas'!K43+'2023 Sector View Gas'!K43 -> 0 | L43: ='2022 Sector View Gas'!L43+'2023 Sector View Gas'!L43 -> 0 | M43: ='2022 Sector View Gas'!M43+'2023 Sector View Gas'!M43 -> 0 | N43: ='2022 Sector View Gas'!N43+'2023 Sector View Gas'!N43 -> 0 | O43: ='2022 Sector View Gas'!O43+'2023 Sector View Gas'!O43 -> 0 | P43: ='2022 Sector View Gas'!P43+'2023 Sector View Gas'!P43 -> 0 | Q43: ='2022 Sector View Gas'!Q43+'2023 Sector View Gas'!Q43 -> 0 | R43: ='2022 Sector View Gas'!R43+'2023 Sector View Gas'!R43 -> 0 | S43: ='2022 Sector View Gas'!S43+'2023 Sector View Gas'!S43 -> 0
B44: New BusRebt Prgm_G262_Gas | C44: G262 | E44: Commercial General Rebates | H44: 1823xxxx | I44: ='2022 Sector View Gas'!I44+'2023 Sector View Gas'!I44 -> 0 | J44: ='2022 Sector View Gas'!J44+'2023 Sector View Gas'!J44 -> 0 | K44: ='2022 Sector View Gas'!K44+'2023 Sector View Gas'!K44 -> 0 | L44: ='2022 Sector View Gas'!L44+'2023 Sector View Gas'!L44 -> 0 | M44: ='2022 Sector View Gas'!M44+'2023 Sector View Gas'!M44 -> 0 | N44: ='2022 Sector View Gas'!N44+'2023 Sector View Gas'!N44 -> 0 | O44: ='2022 Sector View Gas'!O44+'2023 Sector View Gas'!O44 -> 0 | P44: ='2022 Sector View Gas'!P44+'2023 Sector View Gas'!P44 -> 0 | Q44: ='2022 Sector View Gas'!Q44+'2023 Sector View Gas'!Q44 -> 0 | R44: ='2022 Sector View Gas'!R44+'2023 Sector View Gas'!R44 -> 0 | S44: ='2022 Sector View Gas'!S44+'2023 Sector View Gas'!S44 -> 0
G45: Total, Business Energy Management | I45: =SUM(I29:I33)+I37+I38 -> 1582146 | J45: 1235686.026 | K45: 110500 | L45: 31900 | M45: 3559173.88 | N45: 6500 | O45: 1000 | P45: =SUM(P29:P33)+P37+P38 -> 7398265.75 | Q45: 0 | R45: =SUM(R29:R33)+R37+R38 -> 13925171.66 | S45: =SUM(S29:S33)+S37+S38 -> 3968826
P46: =P45/R45 -> 0.5312872209
H47: 2020-2021 Figures | I47: 1176578 | J47: 1029939.066 | K47: 90400 | L47: 46600 | M47: 1604860 | N47: 11000 | O47: 12000 | P47: 6134336.567 | Q47: 0 | R47: 10105713.63 | S47: 3294086
C49: Pilots With Uncertain Savings
B50: REM Pilots Detail G249 Gas | C50: E249 | E50: Residential Pilots | I50: ='2022 Sector View Gas'!I50+'2023 Sector View Gas'!I50 -> 0 | J50: ='2022 Sector View Gas'!J50+'2023 Sector View Gas'!J50 -> 0 | K50: ='2022 Sector View Gas'!K50+'2023 Sector View Gas'!K50 -> 0 | L50: ='2022 Sector View Gas'!L50+'2023 Sector View Gas'!L50 -> 0 | M50: ='2022 Sector View Gas'!M50+'2023 Sector View Gas'!M50 -> 0 | N50: ='2022 Sector View Gas'!N50+'2023 Sector View Gas'!N50 -> 0 | O50: ='2022 Sector View Gas'!O50+'2023 Sector View Gas'!O50 -> 0 | P50: ='2022 Sector View Gas'!P50+'2023 Sector View Gas'!P50 -> 0 | Q50: ='2022 Sector View Gas'!Q50+'2023 Sector View Gas'!Q50 -> 0 | R50: ='2022 Sector View Gas'!R50+'2023 Sector View Gas'!R50 -> 0 | S50: ='2022 Sector View Gas'!S50+'2023 Sector View Gas'!S50 -> 50250
C51: E249 | E51: HEA Behavioral | H51: 18230255 | I51: ='2022 Sector View Gas'!I51+'2023 Sector View Gas'!I51 -> 0 | J51: ='2022 Sector View Gas'!J51+'2023 Sector View Gas'!J51 -> 0 | K51: ='2022 Sector View Gas'!K51+'2023 Sector View Gas'!K51 -> 0 | L51: ='2022 Sector View Gas'!L51+'2023 Sector View Gas'!L51 -> 0 | M51: ='2022 Sector View Gas'!M51+'2023 Sector View Gas'!M51 -> 0 | N51: ='2022 Sector View Gas'!N51+'2023 Sector View Gas'!N51 -> 0 | O51: ='2022 Sector View Gas'!O51+'2023 Sector View Gas'!O51 -> 0 | P51: ='2022 Sector View Gas'!P51+'2023 Sector View Gas'!P51 -> 0 | Q51: ='2022 Sector View Gas'!Q51+'2023 Sector View Gas'!Q51 -> 0 | R51: ='2022 Sector View Gas'!R51+'2023 Sector View Gas'!R51 -> 0 | S51: ='2022 Sector View Gas'!S51+'2023 Sector View Gas'!S51 -> 0
C52: E249 | E52: Retail Choice | H52: 18230256 | I52: ='2022 Sector View Gas'!I52+'2023 Sector View Gas'!I52 -> 0 | J52: ='2022 Sector View Gas'!J52+'2023 Sector View Gas'!J52 -> 0 | K52: ='2022 Sector View Gas'!K52+'2023 Sector View Gas'!K52 -> 0 | L52: ='2022 Sector View Gas'!L52+'2023 Sector View Gas'!L52 -> 0 | M52: ='2022 Sector View Gas'!M52+'2023 Sector View Gas'!M52 -> 0 | N52: ='2022 Sector View Gas'!N52+'2023 Sector View Gas'!N52 -> 0 | O52: ='2022 Sector View Gas'!O52+'2023 Sector View Gas'!O52 -> 0 | P52: ='2022 Sector View Gas'!P52+'2023 Sector View Gas'!P52 -> 0 | Q52: ='2022 Sector View Gas'!Q52+'2023 Sector View Gas'!Q52 -> 0 | R52: ='2022 Sector View Gas'!R52+'2023 Sector View Gas'!R52 -> 0 | S52: ='2022 Sector View Gas'!S52+'2023 Sector View Gas'!S52 -> 50250
B53: BEM Pilots Detail G249 Gas | C53: E249 | E53: Commercial Pilots | I53: ='2022 Sector View Gas'!I53+'2023 Sector View Gas'!I53 -> 2100 | J53: ='2022 Sector View Gas'!J53+'2023 Sector View Gas'!J53 -> 1640.1 | K53: ='2022 Sector View Gas'!K53+'2023 Sector View Gas'!K53 -> 0 | L53: ='2022 Sector View Gas'!L53+'2023 Sector View Gas'!L53 -> 0 | M53: ='2022 Sector View Gas'!M53+'2023 Sector View Gas'!M53 -> 0 | N53: ='2022 Sector View Gas'!N53+'2023 Sector View Gas'!N53 -> 0 | O53: ='2022 Sector View Gas'!O53+'2023 Sector View Gas'!O53 -> 0 | P53: ='2022 Sector View Gas'!P53+'2023 Sector View Gas'!P53 -> 0 | Q53: ='2022 Sector View Gas'!Q53+'2023 Sector View Gas'!Q53 -> 0 | R53: ='2022 Sector View Gas'!R53+'2023 Sector View Gas'!R53 -> 3740.1 | S53: ='2022 Sector View Gas'!S53+'2023 Sector View Gas'!S53 -> 15000
C54: E249 | E54: SMB AMI Engagement | H54: 18231038 | I54: ='2022 Sector View Gas'!I54+'2023 Sector View Gas'!I54 -> 2100 | J54: ='2022 Sector View Gas'!J54+'2023 Sector View Gas'!J54 -> 1640.1 | K54: ='2022 Sector View Gas'!K54+'2023 Sector View Gas'!K54 -> 0 | L54: ='2022 Sector View Gas'!L54+'2023 Sector View Gas'!L54 -> 0 | M54: ='2022 Sector View Gas'!M54+'2023 Sector View Gas'!M54 -> 0 | N54: ='2022 Sector View Gas'!N54+'2023 Sector View Gas'!N54 -> 0 | O54: ='2022 Sector View Gas'!O54+'2023 Sector View Gas'!O54 -> 0 | P54: ='2022 Sector View Gas'!P54+'2023 Sector View Gas'!P54 -> 0 | Q54: ='2022 Sector View Gas'!Q54+'2023 Sector View Gas'!Q54 -> 0 | R54: ='2022 Sector View Gas'!R54+'2023 Sector View Gas'!R54 -> 3740.1 | S54: ='2022 Sector View Gas'!S54+'2023 Sector View Gas'!S54 -> 15000
G55: Total, Pilots | I55: =I50+I53 -> 2100 | J55: =J50+J53 -> 1640.1 | K55: 0 | L55: 0 | M55: 0 | N55: 0 | O55: 0 | P55: 0 | Q55: 0 | R55: 3740.1 | S55: 65250
P56: =P55/R55 -> 0
H57: 2020-2021 Figures | I57: 0 | J57: 0 | K57: 0 | L57: 0 | M57: 48000 | N57: 0 | O57: 0 | P57: 153825 | Q57: 0 | R57: 201825 | S57: 320000
C59: Regional Efficiency Programs
B60: TDSM_Regnl_Gas_g219 | E60: Targeted DSM | H60: 18230218 | I60: ='2022 Sector View Gas'!I60+'2023 Sector View Gas'!I60 -> 215250 | J60: ='2022 Sector View Gas'!J60+'2023 Sector View Gas'!J60 -> 168110.25 | K60: ='2022 Sector View Gas'!K60+'2023 Sector View Gas'!K60 -> 20000 | L60: ='2022 Sector View Gas'!L60+'2023 Sector View Gas'!L60 -> 1200 | M60: ='2022 Sector View Gas'!M60+'2023 Sector View Gas'!M60 -> 90000 | N60: ='2022 Sector View Gas'!N60+'2023 Sector View Gas'!N60 -> 0 | O60: ='2022 Sector View Gas'!O60+'2023 Sector View Gas'!O60 -> 0 | P60: ='2022 Sector View Gas'!P60+'2023 Sector View Gas'!P60 -> 70000 | Q60: ='2022 Sector View Gas'!Q60+'2023 Sector View Gas'!Q60 -> 0 | R60: ='2022 Sector View Gas'!R60+'2023 Sector View Gas'!R60 -> 564560.25 | S60: ='2022 Sector View Gas'!S60+'2023 Sector View Gas'!S60 -> 0
E61: NW Gas Market Transformation | H61: 18230660 | I61: ='2022 Sector View Gas'!I61+'2023 Sector View Gas'!I61 -> 0 | J61: ='2022 Sector View Gas'!J61+'2023 Sector View Gas'!J61 -> 0 | K61: ='2022 Sector View Gas'!K61+'2023 Sector View Gas'!K61 -> 0 | L61: ='2022 Sector View Gas'!L61+'2023 Sector View Gas'!L61 -> 0 | M61: ='2022 Sector View Gas'!M61+'2023 Sector View Gas'!M61 -> 3180472 | N61: ='2022 Sector View Gas'!N61+'2023 Sector View Gas'!N61 -> 0 | O61: ='2022 Sector View Gas'!O61+'2023 Sector View Gas'!O61 -> 0 | P61: ='2022 Sector View Gas'!P61+'2023 Sector View Gas'!P61 -> 0 | Q61: ='2022 Sector View Gas'!Q61+'2023 Sector View Gas'!Q61 -> 0 | R61: ='2022 Sector View Gas'!R61+'2023 Sector View Gas'!R61 -> 3180472 | S61: ='2022 Sector View Gas'!S61+'2023 Sector View Gas'!S61 -> 0
G62: Total, Regional Efficiency Programs | I62: =SUM(I60:I61) -> 215250 | J62: 168110.25 | K62: 20000 | L62: 1200 | M62: 3270472 | N62: 0 | O62: 0 | P62: 70000 | Q62: 0 | R62: =SUM(R60:R61) -> 3745032.25 | S62: =SUM(S61:S61) -> 0
P63: =P62/R62 -> 0.01869142782
H64: 2020-2021 Figures | I64: 172020 | J64: 150173.46 | K64: 0 | L64: 0 | M64: 3541888 | N64: 0 | O64: 0 | P64: 0 | Q64: 0 | R64: 3864081.46 | S64: 0
C66: Energy Efficiency Portfolio Support
B67: Data & Systm Svcs Detail Gas | E67: Data and Systems Services | H67: 18231005 | I67: ='2022 Sector View Gas'!I67+'2023 Sector View Gas'!I67 -> 119600 | J67: ='2022 Sector View Gas'!J67+'2023 Sector View Gas'!J67 -> 93407.6 | K67: ='2022 Sector View Gas'!K67+'2023 Sector View Gas'!K67 -> 0 | L67: ='2022 Sector View Gas'!L67+'2023 Sector View Gas'!L67 -> 2600 | M67: ='2022 Sector View Gas'!M67+'2023 Sector View Gas'!M67 -> 78000 | N67: ='2022 Sector View Gas'!N67+'2023 Sector View Gas'!N67 -> 0 | O67: ='2022 Sector View Gas'!O67+'2023 Sector View Gas'!O67 -> 0 | P67: ='2022 Sector View Gas'!P67+'2023 Sector View Gas'!P67 -> 0 | Q67: ='2022 Sector View Gas'!Q67+'2023 Sector View Gas'!Q67 -> 0 | R67: ='2022 Sector View Gas'!R67+'2023 Sector View Gas'!R67 -> 293607.6
B68: Rebt Procg_Detail Gas | E68: Rebates Processing | H68: 18230659 | I68: ='2022 Sector View Gas'!I68+'2023 Sector View Gas'!I68 -> 140620 | J68: ='2022 Sector View Gas'!J68+'2023 Sector View Gas'!J68 -> 109824.22 | K68: ='2022 Sector View Gas'!K68+'2023 Sector View Gas'!K68 -> 0 | L68: ='2022 Sector View Gas'!L68+'2023 Sector View Gas'!L68 -> 6600 | M68: ='2022 Sector View Gas'!M68+'2023 Sector View Gas'!M68 -> 18200 | N68: ='2022 Sector View Gas'!N68+'2023 Sector View Gas'!N68 -> 2000 | O68: ='2022 Sector View Gas'!O68+'2023 Sector View Gas'!O68 -> 0 | P68: ='2022 Sector View Gas'!P68+'2023 Sector View Gas'!P68 -> 0 | Q68: ='2022 Sector View Gas'!Q68+'2023 Sector View Gas'!Q68 -> 0 | R68: ='2022 Sector View Gas'!R68+'2023 Sector View Gas'!R68 -> 277244.22
B69: Vteam Detail_R&C_Gas | E69: Verification Team | H69: 18230668 | I69: ='2022 Sector View Gas'!I69+'2023 Sector View Gas'!I69 -> 99020 | J69: ='2022 Sector View Gas'!J69+'2023 Sector View Gas'!J69 -> 77334.62 | K69: ='2022 Sector View Gas'!K69+'2023 Sector View Gas'!K69 -> 0 | L69: ='2022 Sector View Gas'!L69+'2023 Sector View Gas'!L69 -> 4000 | M69: ='2022 Sector View Gas'!M69+'2023 Sector View Gas'!M69 -> 0 | N69: ='2022 Sector View Gas'!N69+'2023 Sector View Gas'!N69 -> 2000 | O69: ='2022 Sector View Gas'!O69+'2023 Sector View Gas'!O69 -> 0 | P69: ='2022 Sector View Gas'!P69+'2023 Sector View Gas'!P69 -> 0 | Q69: ='2022 Sector View Gas'!Q69+'2023 Sector View Gas'!Q69 -> 0 | R69: ='2022 Sector View Gas'!R69+'2023 Sector View Gas'!R69 -> 182354.62
B70: ProgDev Detail_R&C_ Elec | E70: Programs Support | H70: 18230688 | I70: ='2022 Sector View Gas'!I70+'2023 Sector View Gas'!I70 -> 17745 | J70: ='2022 Sector View Gas'!J70+'2023 Sector View Gas'!J70 -> 13858.845 | K70: ='2022 Sector View Gas'!K70+'2023 Sector View Gas'!K70 -> 0 | L70: ='2022 Sector View Gas'!L70+'2023 Sector View Gas'!L70 -> 3900 | M70: ='2022 Sector View Gas'!M70+'2023 Sector View Gas'!M70 -> 6500 | N70: ='2022 Sector View Gas'!N70+'2023 Sector View Gas'!N70 -> 0 | O70: ='2022 Sector View Gas'!O70+'2023 Sector View Gas'!O70 -> 0 | P70: ='2022 Sector View Gas'!P70+'2023 Sector View Gas'!P70 -> 0 | Q70: ='2022 Sector View Gas'!Q70+'2023 Sector View Gas'!Q70 -> 0 | R70: ='2022 Sector View Gas'!R70+'2023 Sector View Gas'!R70 -> 42003.845
B71: TradeAlly Detail_PS_gas | E71: Trade Ally Memberships | H71: 18230698 | I71: ='2022 Sector View Gas'!I71+'2023 Sector View Gas'!I71 -> 0 | J71: ='2022 Sector View Gas'!J71+'2023 Sector View Gas'!J71 -> 0 | K71: ='2022 Sector View Gas'!K71+'2023 Sector View Gas'!K71 -> 0 | L71: ='2022 Sector View Gas'!L71+'2023 Sector View Gas'!L71 -> 0 | M71: ='2022 Sector View Gas'!M71+'2023 Sector View Gas'!M71 -> 36400 | N71: ='2022 Sector View Gas'!N71+'2023 Sector View Gas'!N71 -> 0 | O71: ='2022 Sector View Gas'!O71+'2023 Sector View Gas'!O71 -> 0 | P71: ='2022 Sector View Gas'!P71+'2023 Sector View Gas'!P71 -> 0 | Q71: ='2022 Sector View Gas'!Q71+'2023 Sector View Gas'!Q71 -> 0 | R71: ='2022 Sector View Gas'!R71+'2023 Sector View Gas'!R71 -> 36400
B72: CAN_PS_Detail Gas | E72: Trade Ally Network (revenue + cost) | H72: 18231031 | I72: ='2022 Sector View Gas'!I72+'2023 Sector View Gas'!I72 -> 223027 | J72: ='2022 Sector View Gas'!J72+'2023 Sector View Gas'!J72 -> 174184.087 | K72: ='2022 Sector View Gas'!K72+'2023 Sector View Gas'!K72 -> 40000 | L72: ='2022 Sector View Gas'!L72+'2023 Sector View Gas'!L72 -> 10000 | M72: ='2022 Sector View Gas'!M72+'2023 Sector View Gas'!M72 -> 75000 | N72: ='2022 Sector View Gas'!N72+'2023 Sector View Gas'!N72 -> 3000 | O72: ='2022 Sector View Gas'!O72+'2023 Sector View Gas'!O72 -> 0 | P72: ='2022 Sector View Gas'!P72+'2023 Sector View Gas'!P72 -> 0 | Q72: ='2022 Sector View Gas'!Q72+'2023 Sector View Gas'!Q72 -> -557834 | R72: ='2022 Sector View Gas'!R72+'2023 Sector View Gas'!R72 -> -32622.913
B73: ABS Detail_PSWE_Gas | E73: Automated Benchmarking System | H73: 18230667 | I73: ='2022 Sector View Gas'!I73+'2023 Sector View Gas'!I73 -> 272000 | J73: ='2022 Sector View Gas'!J73+'2023 Sector View Gas'!J73 -> 212432 | K73: ='2022 Sector View Gas'!K73+'2023 Sector View Gas'!K73 -> 0 | L73: ='2022 Sector View Gas'!L73+'2023 Sector View Gas'!L73 -> 0 | M73: ='2022 Sector View Gas'!M73+'2023 Sector View Gas'!M73 -> 560000 | N73: ='2022 Sector View Gas'!N73+'2023 Sector View Gas'!N73 -> 0 | O73: ='2022 Sector View Gas'!O73+'2023 Sector View Gas'!O73 -> 0 | P73: ='2022 Sector View Gas'!P73+'2023 Sector View Gas'!P73 -> 0 | Q73: ='2022 Sector View Gas'!Q73+'2023 Sector View Gas'!Q73 -> 0 | R73: ='2022 Sector View Gas'!R73+'2023 Sector View Gas'!R73 -> 1044432
B74: Engy Adv Detail_PSCE_Gas | E74: Energy Advisors | H74: 18230704 | I74: ='2022 Sector View Gas'!I74+'2023 Sector View Gas'!I74 -> 206180 | J74: ='2022 Sector View Gas'!J74+'2023 Sector View Gas'!J74 -> 161026.58 | K74: ='2022 Sector View Gas'!K74+'2023 Sector View Gas'!K74 -> 0 | L74: ='2022 Sector View Gas'!L74+'2023 Sector View Gas'!L74 -> 15664 | M74: ='2022 Sector View Gas'!M74+'2023 Sector View Gas'!M74 -> 400 | N74: ='2022 Sector View Gas'!N74+'2023 Sector View Gas'!N74 -> 876 | O74: ='2022 Sector View Gas'!O74+'2023 Sector View Gas'!O74 -> 404 | P74: ='2022 Sector View Gas'!P74+'2023 Sector View Gas'!P74 -> 0 | Q74: ='2022 Sector View Gas'!Q74+'2023 Sector View Gas'!Q74 -> 0 | R74: ='2022 Sector View Gas'!R74+'2023 Sector View Gas'!R74 -> 384550.58
B75: EEC Detail_PS_Gas | E75: Energy Efficient Communities | H75: 18230657 | I75: ='2022 Sector View Gas'!I75+'2023 Sector View Gas'!I75 -> 181602.0569 | J75: ='2022 Sector View Gas'!J75+'2023 Sector View Gas'!J75 -> 141831.2064 | K75: ='2022 Sector View Gas'!K75+'2023 Sector View Gas'!K75 -> 12922 | L75: ='2022 Sector View Gas'!L75+'2023 Sector View Gas'!L75 -> 4124 | M75: ='2022 Sector View Gas'!M75+'2023 Sector View Gas'!M75 -> 29884 | N75: ='2022 Sector View Gas'!N75+'2023 Sector View Gas'!N75 -> 3510 | O75: ='2022 Sector View Gas'!O75+'2023 Sector View Gas'!O75 -> 0 | P75: ='2022 Sector View Gas'!P75+'2023 Sector View Gas'!P75 -> 0 | Q75: ='2022 Sector View Gas'!Q75+'2023 Sector View Gas'!Q75 -> 0 | R75: ='2022 Sector View Gas'!R75+'2023 Sector View Gas'!R75 -> 373873.2633
B76: CustOnline Detail_PSWE_Gas | E76: Customer Digital Services | I76: =SUM(I77:I80) -> 361370 | J76: =SUM(J77:J80) -> 282229.97 | K76: 140000 | L76: 500 | M76: =SUM(M77:M80) -> 344729.58 | N76: 0 | O76: 0 | P76: 0 | Q76: 0 | R76: 1128829.55
B77: CustOnline Detail_PSWE_Gas | E77: Digital Experience | H77: 18230665 | I77: ='2022 Sector View Gas'!I77+'2023 Sector View Gas'!I77 -> 18200 | J77: ='2022 Sector View Gas'!J77+'2023 Sector View Gas'!J77 -> 14214.2 | K77: ='2022 Sector View Gas'!K77+'2023 Sector View Gas'!K77 -> 0 | L77: ='2022 Sector View Gas'!L77+'2023 Sector View Gas'!L77 -> 0 | M77: ='2022 Sector View Gas'!M77+'2023 Sector View Gas'!M77 -> 0 | N77: ='2022 Sector View Gas'!N77+'2023 Sector View Gas'!N77 -> 0 | O77: ='2022 Sector View Gas'!O77+'2023 Sector View Gas'!O77 -> 0 | P77: ='2022 Sector View Gas'!P77+'2023 Sector View Gas'!P77 -> 0 | Q77: ='2022 Sector View Gas'!Q77+'2023 Sector View Gas'!Q77 -> 0 | R77: ='2022 Sector View Gas'!R77+'2023 Sector View Gas'!R77 -> 32414.2
E78: Customer Digital Experience | H78: 18230737 | I78: ='2022 Sector View Gas'!I78+'2023 Sector View Gas'!I78 -> 65470 | J78: ='2022 Sector View Gas'!J78+'2023 Sector View Gas'!J78 -> 51132.07 | K78: ='2022 Sector View Gas'!K78+'2023 Sector View Gas'!K78 -> 0 | L78: ='2022 Sector View Gas'!L78+'2023 Sector View Gas'!L78 -> 0 | M78: ='2022 Sector View Gas'!M78+'2023 Sector View Gas'!M78 -> 153626.2 | N78: ='2022 Sector View Gas'!N78+'2023 Sector View Gas'!N78 -> 0 | O78: ='2022 Sector View Gas'!O78+'2023 Sector View Gas'!O78 -> 0 | P78: ='2022 Sector View Gas'!P78+'2023 Sector View Gas'!P78 -> 0 | Q78: ='2022 Sector View Gas'!Q78+'2023 Sector View Gas'!Q78 -> 0 | R78: ='2022 Sector View Gas'!R78+'2023 Sector View Gas'!R78 -> 270228.27
B79: CustAwarTools_gas | E79: Cutomer Awareness Tools | H79: 18230690 | I79: ='2022 Sector View Gas'!I79+'2023 Sector View Gas'!I79 -> 95000 | J79: ='2022 Sector View Gas'!J79+'2023 Sector View Gas'!J79 -> 74195 | K79: ='2022 Sector View Gas'!K79+'2023 Sector View Gas'!K79 -> 0 | L79: ='2022 Sector View Gas'!L79+'2023 Sector View Gas'!L79 -> 500 | M79: ='2022 Sector View Gas'!M79+'2023 Sector View Gas'!M79 -> 178703.38 | N79: ='2022 Sector View Gas'!N79+'2023 Sector View Gas'!N79 -> 0 | O79: ='2022 Sector View Gas'!O79+'2023 Sector View Gas'!O79 -> 0 | P79: ='2022 Sector View Gas'!P79+'2023 Sector View Gas'!P79 -> 0 | Q79: ='2022 Sector View Gas'!Q79+'2023 Sector View Gas'!Q79 -> 0 | R79: ='2022 Sector View Gas'!R79+'2023 Sector View Gas'!R79 -> 348398.38
B80: ShopPSE_gas | E80: PSE Marketplace | H80: 18230662 | I80: ='2022 Sector View Gas'!I80+'2023 Sector View Gas'!I80 -> 182700 | J80: ='2022 Sector View Gas'!J80+'2023 Sector View Gas'!J80 -> 142688.7 | K80: ='2022 Sector View Gas'!K80+'2023 Sector View Gas'!K80 -> 140000 | L80: ='2022 Sector View Gas'!L80+'2023 Sector View Gas'!L80 -> 0 | M80: ='2022 Sector View Gas'!M80+'2023 Sector View Gas'!M80 -> 12400 | N80: ='2022 Sector View Gas'!N80+'2023 Sector View Gas'!N80 -> 0 | O80: ='2022 Sector View Gas'!O80+'2023 Sector View Gas'!O80 -> 0 | P80: ='2022 Sector View Gas'!P80+'2023 Sector View Gas'!P80 -> 0 | Q80: ='2022 Sector View Gas'!Q80+'2023 Sector View Gas'!Q80 -> 0 | R80: ='2022 Sector View Gas'!R80+'2023 Sector View Gas'!R80 -> 477788.7
B81: Mkt Intg Detail_PSWE_Gas | E81: Market Integration | H81: 18230732 | I81: ='2022 Sector View Gas'!I81+'2023 Sector View Gas'!I81 -> 76700 | J81: ='2022 Sector View Gas'!J81+'2023 Sector View Gas'!J81 -> 59902.7 | K81: ='2022 Sector View Gas'!K81+'2023 Sector View Gas'!K81 -> 286000 | L81: ='2022 Sector View Gas'!L81+'2023 Sector View Gas'!L81 -> 0 | M81: ='2022 Sector View Gas'!M81+'2023 Sector View Gas'!M81 -> 0 | N81: ='2022 Sector View Gas'!N81+'2023 Sector View Gas'!N81 -> 0 | O81: ='2022 Sector View Gas'!O81+'2023 Sector View Gas'!O81 -> 0 | P81: ='2022 Sector View Gas'!P81+'2023 Sector View Gas'!P81 -> 0 | Q81: ='2022 Sector View Gas'!Q81+'2023 Sector View Gas'!Q81 -> 0 | R81: ='2022 Sector View Gas'!R81+'2023 Sector View Gas'!R81 -> 422602.7
B82: Events Detail_PSCE_Gas | E82: Events | H82: 18230675 | I82: ='2022 Sector View Gas'!I82+'2023 Sector View Gas'!I82 -> 86600 | J82: ='2022 Sector View Gas'!J82+'2023 Sector View Gas'!J82 -> 67634.6 | K82: ='2022 Sector View Gas'!K82+'2023 Sector View Gas'!K82 -> 5200 | L82: ='2022 Sector View Gas'!L82+'2023 Sector View Gas'!L82 -> 1562 | M82: ='2022 Sector View Gas'!M82+'2023 Sector View Gas'!M82 -> 42004 | N82: ='2022 Sector View Gas'!N82+'2023 Sector View Gas'!N82 -> 9218 | O82: ='2022 Sector View Gas'!O82+'2023 Sector View Gas'!O82 -> 0 | P82: ='2022 Sector View Gas'!P82+'2023 Sector View Gas'!P82 -> 0 | Q82: ='2022 Sector View Gas'!Q82+'2023 Sector View Gas'!Q82 -> 0 | R82: ='2022 Sector View Gas'!R82+'2023 Sector View Gas'!R82 -> 212218.6
G83: Total, Portfolio Support | I83: =SUM(I67:I76)+SUM(I81:I82) -> 1784464.057 | J83: =SUM(J67:J76)+SUM(J81:J82) -> 1393666.428 | K83: =SUM(K67:K76)+SUM(K81:K82) -> 484122 | L83: 48950 | M83: 1191117.58 | N83: 20604 | O83: 404 | P83: 0 | Q83: -557834 | R83: 4365494.065
H85: 2020-2021 Figures | I85: 1439106 | J85: 1256339.538 | K85: 58032 | L85: 50650 | M85: 699740.18 | N85: 62876 | O85: 404 | P85: 0 | Q85: -415000 | R85: 3152147.718
C87: Energy Efficiency Research & Compliance
B88: Supp Crv Detail_R&C_gas | E88: Conservation Supply Curves | H88: 18230703 | I88: ='2022 Sector View Gas'!I88+'2023 Sector View Gas'!I88 -> 27300 | J88: ='2022 Sector View Gas'!J88+'2023 Sector View Gas'!J88 -> 21321.3 | K88: ='2022 Sector View Gas'!K88+'2023 Sector View Gas'!K88 -> 0 | L88: ='2022 Sector View Gas'!L88+'2023 Sector View Gas'!L88 -> 130 | M88: ='2022 Sector View Gas'!M88+'2023 Sector View Gas'!M88 -> 82876 | N88: ='2022 Sector View Gas'!N88+'2023 Sector View Gas'!N88 -> 0 | O88: ='2022 Sector View Gas'!O88+'2023 Sector View Gas'!O88 -> 0 | P88: ='2022 Sector View Gas'!P88+'2023 Sector View Gas'!P88 -> 0 | Q88: ='2022 Sector View Gas'!Q88+'2023 Sector View Gas'!Q88 -> 0 | R88: ='2022 Sector View Gas'!R88+'2023 Sector View Gas'!R88 -> 131627.3
B89: Strat Pln Detail_R&C_Gas | E89: Strategic Planning | H89: 18230679 | I89: ='2022 Sector View Gas'!I89+'2023 Sector View Gas'!I89 -> 84500 | J89: ='2022 Sector View Gas'!J89+'2023 Sector View Gas'!J89 -> 65994.5 | K89: ='2022 Sector View Gas'!K89+'2023 Sector View Gas'!K89 -> 0 | L89: ='2022 Sector View Gas'!L89+'2023 Sector View Gas'!L89 -> 1300 | M89: ='2022 Sector View Gas'!M89+'2023 Sector View Gas'!M89 -> 0 | N89: ='2022 Sector View Gas'!N89+'2023 Sector View Gas'!N89 -> 0 | O89: ='2022 Sector View Gas'!O89+'2023 Sector View Gas'!O89 -> 0 | P89: ='2022 Sector View Gas'!P89+'2023 Sector View Gas'!P89 -> 0 | Q89: ='2022 Sector View Gas'!Q89+'2023 Sector View Gas'!Q89 -> 0 | R89: ='2022 Sector View Gas'!R89+'2023 Sector View Gas'!R89 -> 151794.5
B90: Mktg Rsch Detail_PS_gas | E90: Market Research | H90: 18230669 | I90: ='2022 Sector View Gas'!I90+'2023 Sector View Gas'!I90 -> 32760 | J90: ='2022 Sector View Gas'!J90+'2023 Sector View Gas'!J90 -> 25585.56 | K90: ='2022 Sector View Gas'!K90+'2023 Sector View Gas'!K90 -> 0 | L90: ='2022 Sector View Gas'!L90+'2023 Sector View Gas'!L90 -> 0 | M90: ='2022 Sector View Gas'!M90+'2023 Sector View Gas'!M90 -> 0 | N90: ='2022 Sector View Gas'!N90+'2023 Sector View Gas'!N90 -> 0 | O90: ='2022 Sector View Gas'!O90+'2023 Sector View Gas'!O90 -> 2600 | P90: ='2022 Sector View Gas'!P90+'2023 Sector View Gas'!P90 -> 0 | Q90: ='2022 Sector View Gas'!Q90+'2023 Sector View Gas'!Q90 -> 0 | R90: ='2022 Sector View Gas'!R90+'2023 Sector View Gas'!R90 -> 60945.56
B91: Eval Detail_R&C_Gas | E91: Program Evaluation | H91: 18230699 | I91: ='2022 Sector View Gas'!I91+'2023 Sector View Gas'!I91 -> 54600 | J91: ='2022 Sector View Gas'!J91+'2023 Sector View Gas'!J91 -> 42642.6 | K91: ='2022 Sector View Gas'!K91+'2023 Sector View Gas'!K91 -> 0 | L91: ='2022 Sector View Gas'!L91+'2023 Sector View Gas'!L91 -> 1300 | M91: ='2022 Sector View Gas'!M91+'2023 Sector View Gas'!M91 -> 325736 | N91: ='2022 Sector View Gas'!N91+'2023 Sector View Gas'!N91 -> 0 | O91: ='2022 Sector View Gas'!O91+'2023 Sector View Gas'!O91 -> 289600 | P91: ='2022 Sector View Gas'!P91+'2023 Sector View Gas'!P91 -> 0 | Q91: ='2022 Sector View Gas'!Q91+'2023 Sector View Gas'!Q91 -> 0 | R91: ='2022 Sector View Gas'!R91+'2023 Sector View Gas'!R91 -> 713878.6
G92: Total, Research & Compliance | I92: =SUM(I88:I91) -> 199160 | J92: 155543.96 | K92: 0 | L92: 2730 | M92: 408612 | N92: 0 | O92: 292200 | P92: 0 | Q92: 0 | R92: 1058245.96
H94: 2020-2021 Figures | I94: 149480 | J94: 130496.04 | K94: 0 | L94: 3068 | M94: 506556 | N94: 0 | O94: 229610 | P94: 0 | Q94: 0 | R94: 1019210.04
C96: Other Customer Programs
B97: DemndResp_Detail_E249_Elec | C97: G249A, G271 | E97: Demand Response Pilot | H97: 18230217 | I97: ='2022 Sector View Gas'!I97+'2023 Sector View Gas'!I97 -> 0 | J97: ='2022 Sector View Gas'!J97+'2023 Sector View Gas'!J97 -> 0 | K97: ='2022 Sector View Gas'!K97+'2023 Sector View Gas'!K97 -> 0 | L97: ='2022 Sector View Gas'!L97+'2023 Sector View Gas'!L97 -> 0 | M97: ='2022 Sector View Gas'!M97+'2023 Sector View Gas'!M97 -> 260000 | N97: ='2022 Sector View Gas'!N97+'2023 Sector View Gas'!N97 -> 0 | O97: ='2022 Sector View Gas'!O97+'2023 Sector View Gas'!O97 -> 0 | P97: ='2022 Sector View Gas'!P97+'2023 Sector View Gas'!P97 -> 0 | Q97: ='2022 Sector View Gas'!Q97+'2023 Sector View Gas'!Q97 -> 0 | R97: ='2022 Sector View Gas'!R97+'2023 Sector View Gas'!R97 -> 260000
C98: 3 | G98: Total, Other Energy Efficiency Programs | I98: =SUM(I97:I97) -> 0 | J98: 0 | K98: 0 | L98: 0 | M98: 260000 | N98: 0 | O98: 0 | P98: 0 | Q98: 0 | R98: 260000
H100: 2020-2021 Figures | I100: 0 | J100: 0 | K100: 0 | L100: 0 | M100: 0 | N100: 0 | O100: 0 | P100: 0 | Q100: 0 | R100: 0
G102: GRAND TOTAL, GAS PROGRAMS | I102: =I92+I83+I62+I55+I45+I23+I98 -> 4685420.057 | J102: 3659343.064 | K102: 1503422 | L102: 99980 | M102: 11302524.18 | N102: 32404 | O102: 301604 | P102: 27496667.64 | Q102: -557834 | R102: 48523530.94 | S102: 9890520.168
P103: =P102/R102 -> 0.5666666688
H104: 2020-2021 Figures | I104: 3738445 | J104: 3266448.957 | K104: 1196262 | L104: 119468 | M104: 8761022.984 | N104: 88176 | O104: 248814 | P104: 20218016.54 | Q104: -415000 | R104: 37221653.48 | S104: 8003282.07
G106: Budget Category Includes | H106: This is the main level of tracking expenditures and expenses in EES. Per FERC rules, all conservation order numbers start with a "1823nnnn", where "n" is some number. Cost elements apply to all order numbers (for instance, all conservation programs that | I106: Energy Efficiency program staff labor. Average FTE cost including management assessments. This Budget Category group includes assessments from Major Accounts management, Resource Planning, Corporate Communications management, IT specialists and some building maintenance allocations. | J106: Overhead--costs associated with primarily employee labor; benefits, for instance. For 2017, includes micro-overhead | K106: Service and materials associated with the cost of printing program brochures, marketing pieces, advertising, banners, etc. Also includes marketing conducted by vendors and contractors. | L106: Costs associated with EE staff attending events, employee training, conferences, business meals, business parking, ferry & bridge tolls, mileage incurred on employee automobiles, office supplies, phones, subscriptions, software/hardware, etc. | M106: Contractors and vendors, such as PECI, Ecos, CostCo, EFI, etc. Legal expenses, technical services (CMS design, PSE.com web portals, etc.). These costs do NOT include brochure development, marketing pieces, (which are classified under MARKETING). These costs do NOT include incentives paid to customers by contractors. | N106: Primarily tools, trade show equipment, etc. | O106: This category should seldomly be used, and only expenses that cannot be classified under one of the above categories. | P106: All costs associated with rebates, grants, remuneration, value-added services that have a direct bearing on a customer's perceived value of PSE offerings. | Q106: Any amount that PSE is paid by a customer, partner, municipality or outside entity.

Sheet 2022 Sector View Gas
C2: Energy Efficiency 2022 Budgets and Aggregate Program Savings
C3: Sector View | I3: Please see category descriptions at the bottom of the sector table.
C4: Natural Gas Programs
I5: Budget Category
B6: Workbook Name | C6: Schedule | D6: Comment | E6: Description (Blue, indented text indicates a sub-total value) | H6: Order Number (Click on the order# below to link to the detail page) | I6: Labor | J6: Overhead | K6: Marketing | L6: Employee/Office Expense | M6: Outside Services | N6: Materials | O6: Miscellaneous | P6: DBtC | Q6: Revenue | R6: Total Budget | S6: Total Savings Therms
C7: Residential Energy Management
B8: LIW Detail_REM G201 Gas | C8: G201 | E8: Low Income Weatherization | H8: 18230661 | I8: ='LowIncWx Detail_REM G201 Gas'!D5 -> 33887.5 | J8: ='LowIncWx Detail_REM G201 Gas'!E5 -> 26466.1375 | K8: ='LowIncWx Detail_REM G201 Gas'!F5 -> 10800 | L8: ='LowIncWx Detail_REM G201 Gas'!G5 -> 500 | M8: ='LowIncWx Detail_REM G201 Gas'!H5 -> 2500 | N8: ='LowIncWx Detail_REM G201 Gas'!I5 -> 150 | O8: ='LowIncWx Detail_REM G201 Gas'!J5 -> 0 | P8: ='LowIncWx Detail_REM G201 Gas'!K5 -> 942482.294 | Q8: ='LowIncWx Detail_REM G201 Gas'!L5 -> 0 | R8: ='LowIncWx Detail_REM G201 Gas'!M5 -> 1016785.932 | S8: ='LowIncWx Detail_REM G201 Gas'!N5 -> 20743.53
B9: WtrHeat Detail_REM G214 Gas | C9: G214 | E9: SF Existing Water Heat | H9: 18230249 | I9: ='WtrHeat Detail_REM G214 Gas'!D5 -> 62400 | J9: ='WtrHeat Detail_REM G214 Gas'!E5 -> 48734.4 | K9: ='WtrHeat Detail_REM G214 Gas'!F5 -> 40000 | L9: ='WtrHeat Detail_REM G214 Gas'!G5 -> 500 | M9: ='WtrHeat Detail_REM G214 Gas'!H5 -> 1000 | N9: ='WtrHeat Detail_REM G214 Gas'!I5 -> 500 | O9: ='WtrHeat Detail_REM G214 Gas'!J5 -> 1500 | P9: ='WtrHeat Detail_REM G214 Gas'!K5 -> 322000 | Q9: ='WtrHeat Detail_REM G214 Gas'!L5 -> 0 | R9: ='WtrHeat Detail_REM G214 Gas'!M5 -> 476634.4 | S9: ='WtrHeat Detail_REM G214 Gas'!N5 -> 65469.9
B10: Wx Detail_REM G214 Gas | C10: G214 | E10: SF Existing Weatherization | H10: 18230637 | I10: ='Wx Detail_REM G214 Gas'!D5 -> 79400 | J10: ='Wx Detail_REM G214 Gas'!E5 -> 62011.4 | K10: ='Wx Detail_REM G214 Gas'!F5 -> 40000 | L10: ='Wx Detail_REM G214 Gas'!G5 -> 1000 | M10: ='Wx Detail_REM G214 Gas'!H5 -> 3500 | N10: ='Wx Detail_REM G214 Gas'!I5 -> 0 | O10: ='Wx Detail_REM G214 Gas'!J5 -> 2500 | P10: ='Wx Detail_REM G214 Gas'!K5 -> 2204382.4 | Q10: ='Wx Detail_REM G214 Gas'!L5 -> 0 | R10: ='Wx Detail_REM G214 Gas'!M5 -> 2392793.8 | S10: ='Wx Detail_REM G214 Gas'!N5 -> 244915.574
B11: SpHeat Detail_REM G214 Gas | C11: G214 | E11: SF Existing Space Heat | H11: 18230638 | I11: ='SpHeat Detail_REM G214 Gas'!D5 -> 14500 | J11: ='SpHeat Detail_REM G214 Gas'!E5 -> 11324.5 | K11: ='SpHeat Detail_REM G214 Gas'!F5 -> 225000 | L11: ='SpHeat Detail_REM G214 Gas'!G5 -> 1000 | M11: ='SpHeat Detail_REM G214 Gas'!H5 -> 20000 | N11: ='SpHeat Detail_REM G214 Gas'!I5 -> 1500 | O11: ='SpHeat Detail_REM G214 Gas'!J5 -> 0 | P11: ='SpHeat Detail_REM G214 Gas'!K5 -> 4591150 | Q11: ='SpHeat Detail_REM G214 Gas'!L5 -> 0 | R11: ='SpHeat Detail_REM G214 Gas'!M5 -> 4864474.5 | S11: ='SpHeat Detail_REM G214 Gas'!N5 -> 686972
C12: G214 | E12: Residential Midstream HVAC and Water Heat | H12: 18230161 | I12: ='HVAC&WH Mdstm_G214 Gas'!D5 -> 0 | J12: ='HVAC&WH Mdstm_G214 Gas'!E5 -> 0 | K12: ='HVAC&WH Mdstm_G214 Gas'!F5 -> 0 | L12: ='HVAC&WH Mdstm_G214 Gas'!G5 -> 0 | M12: ='HVAC&WH Mdstm_G214 Gas'!H5 -> 0 | N12: ='HVAC&WH Mdstm_G214 Gas'!I5 -> 0 | O12: ='HVAC&WH Mdstm_G214 Gas'!J5 -> 0 | P12: ='HVAC&WH Mdstm_G214 Gas'!K5 -> 0 | Q12: ='HVAC&WH Mdstm_G214 Gas'!L5 -> 0 | R12: ='HVAC&WH Mdstm_G214 Gas'!M5 -> 0 | S12: ='HVAC&WH Mdstm_G214 Gas'!N5 -> 0
B13: ShwrHead Detail_REM G214 Gas | C13: G214 | E13: Residential Water Use Reducers | H13: 18230700 | I13: ='Water Use Rdsrs G214 Gas'!D5 -> 2275 | J13: ='Water Use Rdsrs G214 Gas'!E5 -> 1776.775 | K13: ='Water Use Rdsrs G214 Gas'!F5 -> 0 | L13: ='Water Use Rdsrs G214 Gas'!G5 -> 0 | M13: ='Water Use Rdsrs G214 Gas'!H5 -> 0 | N13: ='Water Use Rdsrs G214 Gas'!I5 -> 0 | O13: ='Water Use Rdsrs G214 Gas'!J5 -> 0 | P13: ='Water Use Rdsrs G214 Gas'!K5 -> 17.5 | Q13: ='Water Use Rdsrs G214 Gas'!L5 -> 0 | R13: ='Water Use Rdsrs G214 Gas'!M5 -> 4069.275 | S13: ='Water Use Rdsrs G214 Gas'!N5 -> 5.2
B14: HmApplSvgs Detail_REM G214 Gas | C14: G214 | E14: Home Appliances | H14: 1823gggg | I14: ='HmApplSvgs Detail_REM G214 Gas'!D5 -> 0 | J14: ='HmApplSvgs Detail_REM G214 Gas'!E5 -> 0 | K14: ='HmApplSvgs Detail_REM G214 Gas'!F5 -> 0 | L14: ='HmApplSvgs Detail_REM G214 Gas'!G5 -> 0 | M14: ='HmApplSvgs Detail_REM G214 Gas'!H5 -> 0 | N14: ='HmApplSvgs Detail_REM G214 Gas'!I5 -> 0 | O14: ='HmApplSvgs Detail_REM G214 Gas'!J5 -> 0 | P14: ='HmApplSvgs Detail_REM G214 Gas'!K5 -> 0 | Q14: ='HmApplSvgs Detail_REM G214 Gas'!L5 -> 0 | R14: ='HmApplSvgs Detail_REM G214 Gas'!M5 -> 0 | S14: ='HmApplSvgs Detail_REM G214 Gas'!N5 -> 6233.4
B15: WebTstat Detail_REM G214 Gas | C15: G214 | E15: Smart Thermostats | H15: 18230687 | I15: ='WebTstat Detail_REM G214 Gas'!D5 -> 131250 | J15: ='WebTstat Detail_REM G214 Gas'!E5 -> 102506.25 | K15: ='WebTstat Detail_REM G214 Gas'!F5 -> 100000 | L15: ='WebTstat Detail_REM G214 Gas'!G5 -> 2000 | M15: ='WebTstat Detail_REM G214 Gas'!H5 -> 600000 | N15: ='WebTstat Detail_REM G214 Gas'!I5 -> 0 | O15: ='WebTstat Detail_REM G214 Gas'!J5 -> 0 | P15: ='WebTstat Detail_REM G214 Gas'!K5 -> 850000 | Q15: ='WebTstat Detail_REM G214 Gas'!L5 -> 0 | R15: ='WebTstat Detail_REM G214 Gas'!M5 -> 1785756.25 | S15: ='WebTstat Detail_REM G214 Gas'!N5 -> 330000
B16: HER Detail_REM G214 gas | C16: G214 | E16: Home Energy Reports | H16: 18230738 | I16: ='HER Detail_REM G214 gas'!D5 -> 54850 | J16: ='HER Detail_REM G214 gas'!E5 -> 42837.85 | K16: ='HER Detail_REM G214 gas'!F5 -> 0 | L16: ='HER Detail_REM G214 gas'!G5 -> 600 | M16: ='HER Detail_REM G214 gas'!H5 -> 557281.03 | N16: ='HER Detail_REM G214 gas'!I5 -> 0 | O16: ='HER Detail_REM G214 gas'!J5 -> 0 | P16: ='HER Detail_REM G214 gas'!K5 -> 570650 | Q16: ='HER Detail_REM G214 gas'!L5 -> 0 | R16: ='HER Detail_REM G214 gas'!M5 -> 1226218.88 | S16: ='HER Detail_REM G214 gas'!N5 -> 2744500
